Workbook

Sheet Overview of model
B3: Objective of model
B4: The objective of this model is to allow the distribution business to calculate the Exit Fee that must be paid by a retailer to the distributor where: (a) that retailer becomes the responsible person in respect of a metering installation for a customer with annual electricity consumption of 160MWh or less which, immediately prior to that time, included a revenue meter that is a remotely read interval meter which complies with the Specifications and that has been previously installed by a distributor and (b) the responsible person in respect of that metering installation immediately prior to that time was the distributor.
B10: High level description of model
B11: In simple terms, the model: (a) Requires the business to input their historical and forecast capital expenditure (by meter category), and then the model converts this into end $2015 based on inputted escalation factors; (b) it depreciates this $2015 expenditure using one of two methods - the method that underpins the AMI Charges Model (which, sees 1/2 year depreciation in the first year) AND the method that underpins the AER's building block model (which provides for no depreciation in the first year, but for capital expenditure to be provided with a half year WACC, and this inflated amount depreciated over the useful life of the asset), (c) calculates the average WDV per meter (in the ..'ComboREM' sheet), based on one of the two depreciation methodologies outlined above (with the decision dependent on whether or not the asset was constructed prior to 2016); d) adds in other costs (such as administrative and removal costs, as well as tax costs) to determine the final Exit Fee per meter (by meter category).
B15: Description of sheets in model
B16: Sheet Name | C16: Description
B17: Inputs | C17: Allows the business to input their key information including, but not limited to: (A) Historical and forecast capex by meter/capex category; (B) escalators, (C) WACC; (D) Volume of meters installed; (E) the administrative costs of removing the meter as well as other costs.
B18: Final Results | C18: Summarises the final Exit Fees calculated within the model - split out by meter category
B19: Tax | C19: Undertakes the tax calculation that is then included in the final Exit Fee
B20: Exit Fee (ex Tax) | C20: Summarise the Exit Fee (excluding the impact of Tax)
B21: UE - ComboREM | C21: Combines the outputs of the "UE - ESC" sheet and "UE - AER" sheet to to calculate the WDV of each meter class
B22: UE - ESC | C22: Calculates the WDV of each meter class based on the methodology outlined in the AMI Charges Model (otherwise described as the "ESC approach")
B23: UE - AER | C23: Calculates the WDV of each meter class based on the methodology used by the AER (otherwise described as the "AER approach")

Sheet Inputs
B2: GENERAL INPUTS
B4: Business | C4: United Energy | AX4: Charging Category | AY4: CAPEX Category | AZ4: Life | BA4: Business | BB4: Yes/No
B5: $ | C5: 2015$ | AX5: Single Phase | AY5: Single Phase | AZ5: 15 | BA5: AusNet Services | BB5: Yes
B6: Real Vanilla (WACC) | C6: 0.0476 | AX6: Single Phase, Two Element | AY6: Single Phase, Two Element | AZ6: 10 | BA6: Jemena | BB6: No
B7: Starting year of next reg period | C7: 2016 | AX7: Three Phase DC | AY7: Three Phase DC | AZ7: 7 | BA7: United Energy
B8: ="Is "&C4&" forecasting to have tax losses in any year over the forthcoming regulatory period?" -> Is United Energy forecasting to have tax losses in any year over the forthcoming regulatory period? | C8: Yes | D8: =IF(C8=BB5,"NOTE: User must fill in 'Tax' sheet - Row 16 as a tax loss is being forecast"," ") -> NOTE: User must fill in 'Tax' sheet - Row 16 as a tax loss is being forecast | AX8: Three Phase CT | AY8: Three Phase CT
B9: Value of Imputation Credits | C9: 0.4 | AY9: IT
B10: Corporate Tax Rate | C10: 0.3 | AY10: Communications
AY11: Other
B13: CPI conversion factors
B15: Starting Year | C15: Converted yr | D15: 2009 | E15: 2010 | F15: 2011 | G15: 2012 | H15: 2013 | I15: 2014 | J15: 2015
B16: Annual Inflation | C16: NA | D16: ='[2]Data 2009-15 (Real $2008)'!D144 -> 0.04981084489 | E16: ='[2]Data 2009-15 (Real $2008)'!E144 -> 0.01261261261 | F16: ='[2]Data 2009-15 (Real $2008)'!F144 -> 0.02787663108 | G16: ='[2]Data 2009-15 (Real $2008)'!G144 -> 0.03519907675 | H16: ='[2]Data 2009-15 (Real $2008)'!H144 -> 0.02004008016 | I16: ='[2]Data 2009-15 (Real $2008)'!I144 -> 0.02161100196 | J16: ='[2]Data 2009-15 (Real $2008)'!J144 -> 0.0247
B17: Cumulative inflation index to end $2015 | C17: 2015$ | D17: ='[3]Exit Fee - Tables'!D17 -> 1.15055593 | E17: ='[3]Exit Fee - Tables'!E17 -> 1.136225162 | F17: ='[3]Exit Fee - Tables'!F17 -> 1.105410054 | G17: ='[3]Exit Fee - Tables'!G17 -> 1.067823647 | H17: ='[3]Exit Fee - Tables'!H17 -> 1.046844794 | I17: ='[3]Exit Fee - Tables'!I17 -> 1.0247 | J17: ='[3]Exit Fee - Tables'!J17 -> 1
B21: ="Capital Expenditure - "&C4&" $Nominal" -> Capital Expenditure - United Energy $Nominal
B23: Category | C23: Life | D23: 2009 | E23: 2010 | F23: 2011 | G23: 2012 | H23: 2013 | I23: 2014 | J23: 2015 | K23: 2016 | L23: 2017 | M23: 2018 | N23: 2019 | O23: 2020
B24: Single Phase | C24: 15 | D24: ='[3]Exit Fee - Tables'!D27 -> 9218244.465 | E24: ='[3]Exit Fee - Tables'!E27 -> 24154024.16 | F24: ='[3]Exit Fee - Tables'!F27 -> 41036085.83 | G24: ='[3]Exit Fee - Tables'!G27 -> 46044592.06 | H24: ='[3]Exit Fee - Tables'!H27 -> 38255503.5 | I24: ='[3]Exit Fee - Tables'!I27 -> 10030650.93 | J24: ='[3]Exit Fee - Tables'!J27 -> 1037465.925
B25: Single Phase, Two Element | C25: 15 | D25: ='[3]Exit Fee - Tables'!D28 -> 1063661.925 | E25: ='[3]Exit Fee - Tables'!E28 -> 0 | F25: ='[3]Exit Fee - Tables'!F28 -> 0 | G25: ='[3]Exit Fee - Tables'!G28 -> 0 | H25: ='[3]Exit Fee - Tables'!H28 -> 11925899.83 | I25: ='[3]Exit Fee - Tables'!I28 -> 3201964.358 | J25: ='[3]Exit Fee - Tables'!J28 -> 100294.5258
B26: Three Phase DC | C26: 15 | D26: ='[3]Exit Fee - Tables'!D29 -> 0 | E26: ='[3]Exit Fee - Tables'!E29 -> 89218.83987 | F26: ='[3]Exit Fee - Tables'!F29 -> 7321233.408 | G26: ='[3]Exit Fee - Tables'!G29 -> 5806910.536 | H26: ='[3]Exit Fee - Tables'!H29 -> 11604974.9 | I26: ='[3]Exit Fee - Tables'!I29 -> 9835439.189 | J26: ='[3]Exit Fee - Tables'!J29 -> 586276.7064
B27: Three Phase CT | C27: 15 | D27: ='[3]Exit Fee - Tables'!D30 -> 0 | E27: ='[3]Exit Fee - Tables'!E30 -> 0 | F27: ='[3]Exit Fee - Tables'!F30 -> 0 | G27: ='[3]Exit Fee - Tables'!G30 -> 0 | H27: ='[3]Exit Fee - Tables'!H30 -> 0 | I27: ='[3]Exit Fee - Tables'!I30 -> 1481627.528 | J27: ='[3]Exit Fee - Tables'!J30 -> 78721.41767
B28: IT | C28: 7 | D28: ='[3]Exit Fee - Tables'!D31 -> 63237884.08 | E28: ='[3]Exit Fee - Tables'!E31 -> 34423246 | F28: ='[3]Exit Fee - Tables'!F31 -> 8382035.72 | G28: ='[3]Exit Fee - Tables'!G31 -> 7974074.95 | H28: ='[3]Exit Fee - Tables'!H31 -> 1748571.27 | I28: ='[3]Exit Fee - Tables'!I31 -> 4041916 | J28: ='[3]Exit Fee - Tables'!J31 -> 4336621.03
B29: Communications | C29: 7 | D29: ='[3]Exit Fee - Tables'!D32 -> 0 | E29: ='[3]Exit Fee - Tables'!E32 -> 0 | F29: ='[3]Exit Fee - Tables'!F32 -> 2276045.69 | G29: ='[3]Exit Fee - Tables'!G32 -> 418838.68 | H29: ='[3]Exit Fee - Tables'!H32 -> 1055372.2 | I29: ='[3]Exit Fee - Tables'!I32 -> 1078313 | J29: ='[3]Exit Fee - Tables'!J32 -> 234146.3415
B30: Other | C30: 7 | D30: ='[3]Exit Fee - Tables'!D33 -> 100958.88 | E30: ='[3]Exit Fee - Tables'!E33 -> 367167 | F30: ='[3]Exit Fee - Tables'!F33 -> 10550230.79 | G30: ='[3]Exit Fee - Tables'!G33 -> 2706937.79 | H30: ='[3]Exit Fee - Tables'!H33 -> 7135529.55 | I30: ='[3]Exit Fee - Tables'!I33 -> 0 | J30: ='[3]Exit Fee - Tables'!J33 -> 2298042.716
D31: ='[3]Exit Fee - Tables'!D34 -> 0 | E31: ='[3]Exit Fee - Tables'!E34 -> 0 | F31: ='[3]Exit Fee - Tables'!F34 -> 0 | G31: ='[3]Exit Fee - Tables'!G34 -> 0 | H31: ='[3]Exit Fee - Tables'!H34 -> 0 | I31: ='[3]Exit Fee - Tables'!I34 -> 0 | J31: ='[3]Exit Fee - Tables'!J34 -> 0
B32: TOTAL | D32: =SUM(D24:D31) -> 73620749.35 | E32: 59033656 | F32: 69565631.44 | G32: 62951354.02 | H32: 71725851.25 | I32: 29669911 | J32: 8671568.662 | K32: 0 | L32: 0 | M32: 0 | N32: 0 | O32: 0
B35: ="Capital Expenditure - "&C4&" - "&IF(C5=C17,C17,C18) -> Capital Expenditure - United Energy - 2015$
B37: Category | C37: Life | D37: 2009 | E37: 2010 | F37: 2011 | G37: 2012 | H37: 2013 | I37: 2014 | J37: 2015 | K37: 2016 | L37: 2017 | M37: 2018 | N37: 2019 | O37: 2020
B38: =IF(B24="","",B24) -> Single Phase | C38: 15 | D38: =D24*D$17 -> 10606105.83 | E38: =E24*E$17 -> 27444410.02 | F38: 45361701.85 | G38: 49167504.24 | H38: 40047574.67 | I38: 10278408 | J38: 1037465.925 | K38: ='[3]Exit Fee - Tables'!K44 -> 937239.4668 | L38: ='[3]Exit Fee - Tables'!L44 -> 0 | M38: ='[3]Exit Fee - Tables'!M44 -> 0 | N38: ='[3]Exit Fee - Tables'!N44 -> 0 | O38: ='[3]Exit Fee - Tables'!O44 -> 0
B39: Single Phase, Two Element | C39: 15 | D39: =D25*D$17 -> 1223802.535 | E39: 0 | F39: 0 | G39: 0 | H39: 12484566.15 | I39: 3281052.878 | J39: 100294.5258 | K39: ='[3]Exit Fee - Tables'!K45 -> 81172.34384 | L39: ='[3]Exit Fee - Tables'!L45 -> 0 | M39: ='[3]Exit Fee - Tables'!M45 -> 0 | N39: ='[3]Exit Fee - Tables'!N45 -> 0 | O39: ='[3]Exit Fee - Tables'!O45 -> 0
B40: Three Phase DC | C40: 15 | D40: =D26*D$17 -> 0 | E40: 101372.6908 | F40: 8092965.015 | G40: 6200756.388 | H40: 12148607.55 | I40: 10078374.54 | J40: 586276.7064 | K40: ='[3]Exit Fee - Tables'!K46 -> 487011.0342 | L40: ='[3]Exit Fee - Tables'!L46 -> 0 | M40: ='[3]Exit Fee - Tables'!M46 -> 0 | N40: ='[3]Exit Fee - Tables'!N46 -> 0 | O40: ='[3]Exit Fee - Tables'!O46 -> 0
B41: Three Phase CT | C41: 15 | D41: =D27*D$17 -> 0 | E41: 0 | F41: 0 | G41: 0 | H41: 0 | I41: 1518223.728 | J41: 78721.41767 | K41: ='[3]Exit Fee - Tables'!K47 -> 71800.83204 | L41: ='[3]Exit Fee - Tables'!L47 -> 0 | M41: ='[3]Exit Fee - Tables'!M47 -> 0 | N41: ='[3]Exit Fee - Tables'!N47 -> 0 | O41: ='[3]Exit Fee - Tables'!O47 -> 0
B42: IT | C42: 7 | D42: =D28*D$17 -> 72758722.52 | E42: 39112558.27 | F42: 9265586.556 | G42: 8514905.797 | H42: 1830482.73 | I42: 4141751.325 | J42: 4336621.03 | K42: ='[3]Exit Fee - Tables'!K48 -> 6610532.5 | L42: ='[3]Exit Fee - Tables'!L48 -> 2953622.063 | M42: ='[3]Exit Fee - Tables'!M48 -> 487616.075 | N42: ='[3]Exit Fee - Tables'!N48 -> 1017862.66 | O42: ='[3]Exit Fee - Tables'!O48 -> 3568989.494
B43: Communications | C43: 7 | D43: =D29*D$17 -> 0 | E43: 0 | F43: 2515963.789 | G43: 447245.8469 | H43: 1104810.893 | I43: 1104947.331 | J43: 234146.3415 | K43: ='[3]Exit Fee - Tables'!K49 -> 144038.4 | L43: ='[3]Exit Fee - Tables'!L49 -> 0 | M43: ='[3]Exit Fee - Tables'!M49 -> 0 | N43: ='[3]Exit Fee - Tables'!N49 -> 0 | O43: ='[3]Exit Fee - Tables'!O49 -> 0
B44: Other | C44: 7 | D44: =D30*D$17 -> 116158.8381 | E44: 417184.3841 | F44: 11662331.19 | G44: 2890532.184 | H44: 7469791.96 | I44: 0 | J44: 2298042.716 | K44: ='[3]Exit Fee - Tables'!K50 -> 263043.99 | L44: ='[3]Exit Fee - Tables'!L50 -> 59088.48 | M44: ='[3]Exit Fee - Tables'!M50 -> 59732.97 | N44: ='[3]Exit Fee - Tables'!N50 -> 13319.46 | O44: ='[3]Exit Fee - Tables'!O50 -> 13963.95
D45: =D31*D$17 -> 0 | E45: 0 | F45: 0 | G45: 0 | H45: 0 | I45: 0 | J45: 0 | K45: ='[3]Exit Fee - Tables'!K51 -> 0 | L45: ='[3]Exit Fee - Tables'!L51 -> 0 | M45: ='[3]Exit Fee - Tables'!M51 -> 0 | N45: ='[3]Exit Fee - Tables'!N51 -> 0 | O45: ='[3]Exit Fee - Tables'!O51 -> 0
B46: TOTAL | D46: =SUM(D38:D45) -> 84704789.73 | E46: 67075525.36 | F46: 76898548.39 | G46: 67220944.45 | H46: 75085833.96 | I46: 30402757.8 | J46: 8671568.662 | K46: 8594838.567 | L46: 3012710.543 | M46: 547349.045 | N46: 1031182.12 | O46: 3582953.444
B49: ="Volume of meters per year - "&C4 -> Volume of meters per year - United Energy
B51: Category | D51: 2009 | E51: 2010 | F51: 2011 | G51: 2012 | H51: 2013 | I51: 2014 | J51: 2015 | K51: 2016 | L51: 2017 | M51: 2018 | N51: 2019 | O51: 2020
B52: Single Phase | D52: ='[3]Exit Fee - Tables'!D58 -> 11101 | E52: ='[3]Exit Fee - Tables'!E58 -> 77122 | F52: ='[3]Exit Fee - Tables'!F58 -> 114541.3164 | G52: ='[3]Exit Fee - Tables'!G58 -> 133891 | H52: ='[3]Exit Fee - Tables'!H58 -> 106621 | I52: ='[3]Exit Fee - Tables'!I58 -> 64656 | J52: ='[3]Exit Fee - Tables'!J58 -> 13464 | K52: ='[3]Exit Fee - Tables'!K58 -> 12496 | L52: ='[3]Exit Fee - Tables'!L58 -> 1272 | M52: ='[3]Exit Fee - Tables'!M58 -> 1323 | N52: ='[3]Exit Fee - Tables'!N58 -> 1377 | O52: ='[3]Exit Fee - Tables'!O58 -> 1431
B53: Single Phase, Two Element | D53: ='[3]Exit Fee - Tables'!D59 -> 1238 | E53: ='[3]Exit Fee - Tables'!E59 -> 0 | F53: ='[3]Exit Fee - Tables'!F59 -> 0 | G53: ='[3]Exit Fee - Tables'!G59 -> 0 | H53: ='[3]Exit Fee - Tables'!H59 -> 32125 | I53: ='[3]Exit Fee - Tables'!I59 -> 19948 | J53: ='[3]Exit Fee - Tables'!J59 -> 1258 | K53: ='[3]Exit Fee - Tables'!K59 -> 1046 | L53: ='[3]Exit Fee - Tables'!L59 -> 131 | M53: ='[3]Exit Fee - Tables'!M59 -> 136 | N53: ='[3]Exit Fee - Tables'!N59 -> 141 | O53: ='[3]Exit Fee - Tables'!O59 -> 147
B54: Three Phase DC | D54: ='[3]Exit Fee - Tables'!D60 -> 0 | E54: ='[3]Exit Fee - Tables'!E60 -> 189 | F54: ='[3]Exit Fee - Tables'!F60 -> 13558.04086 | G54: ='[3]Exit Fee - Tables'!G60 -> 11203 | H54: ='[3]Exit Fee - Tables'!H60 -> 21459 | I54: ='[3]Exit Fee - Tables'!I60 -> 42062 | J54: ='[3]Exit Fee - Tables'!J60 -> 5048 | K54: ='[3]Exit Fee - Tables'!K60 -> 4308 | L54: ='[3]Exit Fee - Tables'!L60 -> 208 | M54: ='[3]Exit Fee - Tables'!M60 -> 217 | N54: ='[3]Exit Fee - Tables'!N60 -> 225 | O54: ='[3]Exit Fee - Tables'!O60 -> 235
B55: Three Phase CT | D55: ='[3]Exit Fee - Tables'!D61 -> 0 | E55: ='[3]Exit Fee - Tables'!E61 -> 0 | F55: ='[3]Exit Fee - Tables'!F61 -> 0 | G55: ='[3]Exit Fee - Tables'!G61 -> 0 | H55: ='[3]Exit Fee - Tables'!H61 -> 0 | I55: ='[3]Exit Fee - Tables'!I61 -> 2524 | J55: ='[3]Exit Fee - Tables'!J61 -> 270 | K55: ='[3]Exit Fee - Tables'!K61 -> 253 | L55: ='[3]Exit Fee - Tables'!L61 -> 56 | M55: ='[3]Exit Fee - Tables'!M61 -> 59 | N55: ='[3]Exit Fee - Tables'!N61 -> 62 | O55: ='[3]Exit Fee - Tables'!O61 -> 65
B60: TOTAL | D60: =SUM(D52:D59) -> 12339 | E60: 77311 | F60: 128099.3572 | G60: 145094 | H60: 160205 | I60: 129190 | J60: 20040 | K60: 18103 | L60: 1667 | M60: 1735 | N60: 1805 | O60: 1878
B62: Admin costs of removing meter ($2015)
B64: Category | C64: Unit | D64: 2016 | E64: 2017 | F64: 2018 | G64: 2019 | H64: 2020
B65: =AX5 -> Single Phase | C65: Per this meter type | D65: 76.08 | E65: 76.08 | F65: 76.08 | G65: 76.08 | H65: 76.08
B66: =AX6 -> Single Phase, Two Element | C66: Per this meter type | D66: 76.08 | E66: 76.08 | F66: 76.08 | G66: 76.08 | H66: 76.08
B67: Three Phase DC | C67: Per this meter type | D67: 76.08 | E67: 76.08 | F67: 76.08 | G67: 76.08 | H67: 76.08
B68: Three Phase CT | C68: Per this meter type | D68: 76.08 | E68: 76.08 | F68: 76.08 | G68: 76.08 | H68: 76.08
B69: 0 | C69: Per this meter type
B72: Infill Comms cost ($2015)
B74: Category | C74: Unit | D74: 2016 | E74: 2017 | F74: 2018 | G74: 2019 | H74: 2020
B75: =B65 -> Single Phase | C75: Per this meter type | D75: 0 | E75: 0 | F75: 0 | G75: 0 | H75: 0
B76: =B66 -> Single Phase, Two Element | C76: Per this meter type | D76: 0 | E76: 0 | F76: 0 | G76: 0 | H76: 0
B77: Three Phase DC | C77: Per this meter type | D77: 0 | E77: 0 | F77: 0 | G77: 0 | H77: 0
B78: Three Phase CT | C78: Per this meter type | D78: 0 | E78: 0 | F78: 0 | G78: 0 | H78: 0
B79: 0 | C79: Per this meter type
B82: Other taxable operating costs ($2015)
B84: Category | C84: Unit | D84: 2016 | E84: 2017 | F84: 2018 | G84: 2019 | H84: 2020
B85: =B75 -> Single Phase | C85: Per this meter type
B86: =B76 -> Single Phase, Two Element | C86: Per this meter type
B87: Three Phase DC | C87: Per this meter type
B88: Three Phase CT | C88: Per this meter type
B89: 0 | C89: Per this meter type
B92: Other (non taxable) operating costs ($2015)
B94: Category | C94: Unit | D94: 2016 | E94: 2017 | F94: 2018 | G94: 2019 | H94: 2020
B95: =B85 -> Single Phase | C95: Per this meter type
B96: =B86 -> Single Phase, Two Element | C96: Per this meter type
B97: Three Phase DC | C97: Per this meter type
B98: Three Phase CT | C98: Per this meter type
B99: 0 | C99: Per this meter type

Sheet Final Results
B3: ALL IN EXIT FEE - BY METER CLASS ($2015)
B5: Category | C5: 2015 | D5: 2016 | E5: 2017 | F5: 2018 | G5: 2019 | H5: 2020
B6: Single Phase | C6: ='Exit Fee (ex Tax)'!Q17+'Exit Fee (ex Tax)'!D29+'Exit Fee (ex Tax)'!D40+'Exit Fee (ex Tax)'!D51+'Exit Fee (ex Tax)'!D62 -> 433.1090858 | D6: ='Exit Fee (ex Tax)'!R17+'Exit Fee (ex Tax)'!D29+'Exit Fee (ex Tax)'!D40+'Exit Fee (ex Tax)'!D51+'Exit Fee (ex Tax)'!D62 -> 380.9968728 | E6: ='Exit Fee (ex Tax)'!S17+'Exit Fee (ex Tax)'!E29+'Exit Fee (ex Tax)'!E40+'Exit Fee (ex Tax)'!E51+'Exit Fee (ex Tax)'!E62 -> 339.006374 | F6: ='Exit Fee (ex Tax)'!T17+'Exit Fee (ex Tax)'!F29+'Exit Fee (ex Tax)'!F40+'Exit Fee (ex Tax)'!F51+'Exit Fee (ex Tax)'!F62 -> 303.2446832 | G6: ='Exit Fee (ex Tax)'!U17+'Exit Fee (ex Tax)'!G29+'Exit Fee (ex Tax)'!G40+'Exit Fee (ex Tax)'!G51+'Exit Fee (ex Tax)'!G62 -> 270.9995856 | H6: ='Exit Fee (ex Tax)'!V17+'Exit Fee (ex Tax)'!H29+'Exit Fee (ex Tax)'!H40+'Exit Fee (ex Tax)'!H51+'Exit Fee (ex Tax)'!H62 -> 243.7130692
B7: Single Phase, Two Element | C7: ='Exit Fee (ex Tax)'!Q18+'Exit Fee (ex Tax)'!D30+'Exit Fee (ex Tax)'!D41+'Exit Fee (ex Tax)'!D52+'Exit Fee (ex Tax)'!D63 -> 428.9579139 | D7: ='Exit Fee (ex Tax)'!R18+'Exit Fee (ex Tax)'!D30+'Exit Fee (ex Tax)'!D41+'Exit Fee (ex Tax)'!D52+'Exit Fee (ex Tax)'!D63 -> 380.2897939 | E7: ='Exit Fee (ex Tax)'!S18+'Exit Fee (ex Tax)'!E30+'Exit Fee (ex Tax)'!E41+'Exit Fee (ex Tax)'!E52+'Exit Fee (ex Tax)'!E63 -> 341.2260512 | F7: ='Exit Fee (ex Tax)'!T18+'Exit Fee (ex Tax)'!F30+'Exit Fee (ex Tax)'!F41+'Exit Fee (ex Tax)'!F52+'Exit Fee (ex Tax)'!F63 -> 307.9585388 | G7: ='Exit Fee (ex Tax)'!U18+'Exit Fee (ex Tax)'!G30+'Exit Fee (ex Tax)'!G41+'Exit Fee (ex Tax)'!G52+'Exit Fee (ex Tax)'!G63 -> 278.1951555 | H7: ='Exit Fee (ex Tax)'!V18+'Exit Fee (ex Tax)'!H30+'Exit Fee (ex Tax)'!H41+'Exit Fee (ex Tax)'!H52+'Exit Fee (ex Tax)'!H63 -> 253.3757228
B8: Three Phase DC | C8: ='Exit Fee (ex Tax)'!Q19+'Exit Fee (ex Tax)'!D31+'Exit Fee (ex Tax)'!D42+'Exit Fee (ex Tax)'!D53+'Exit Fee (ex Tax)'!D64 -> 499.7555895 | D8: ='Exit Fee (ex Tax)'!R19+'Exit Fee (ex Tax)'!D31+'Exit Fee (ex Tax)'!D42+'Exit Fee (ex Tax)'!D53+'Exit Fee (ex Tax)'!D64 -> 438.7437225 | E8: ='Exit Fee (ex Tax)'!S19+'Exit Fee (ex Tax)'!E31+'Exit Fee (ex Tax)'!E42+'Exit Fee (ex Tax)'!E53+'Exit Fee (ex Tax)'!E64 -> 391.9595078 | F8: ='Exit Fee (ex Tax)'!T19+'Exit Fee (ex Tax)'!F31+'Exit Fee (ex Tax)'!F42+'Exit Fee (ex Tax)'!F53+'Exit Fee (ex Tax)'!F64 -> 353.5371475 | G8: ='Exit Fee (ex Tax)'!U19+'Exit Fee (ex Tax)'!G31+'Exit Fee (ex Tax)'!G42+'Exit Fee (ex Tax)'!G53+'Exit Fee (ex Tax)'!G64 -> 318.6287365 | H8: ='Exit Fee (ex Tax)'!V19+'Exit Fee (ex Tax)'!H31+'Exit Fee (ex Tax)'!H42+'Exit Fee (ex Tax)'!H53+'Exit Fee (ex Tax)'!H64 -> 288.6756776
B9: Three Phase CT | C9: ='Exit Fee (ex Tax)'!Q20+'Exit Fee (ex Tax)'!D32+'Exit Fee (ex Tax)'!D43+'Exit Fee (ex Tax)'!D54+'Exit Fee (ex Tax)'!D65 -> 704.3010073 | D9: ='Exit Fee (ex Tax)'!R20+'Exit Fee (ex Tax)'!D32+'Exit Fee (ex Tax)'!D43+'Exit Fee (ex Tax)'!D54+'Exit Fee (ex Tax)'!D65 -> 620.7034239 | E9: ='Exit Fee (ex Tax)'!S20+'Exit Fee (ex Tax)'!E32+'Exit Fee (ex Tax)'!E43+'Exit Fee (ex Tax)'!E54+'Exit Fee (ex Tax)'!E65 -> 555.4451471 | F9: ='Exit Fee (ex Tax)'!T20+'Exit Fee (ex Tax)'!F32+'Exit Fee (ex Tax)'!F43+'Exit Fee (ex Tax)'!F54+'Exit Fee (ex Tax)'!F65 -> 499.652552 | G9: ='Exit Fee (ex Tax)'!U20+'Exit Fee (ex Tax)'!G32+'Exit Fee (ex Tax)'!G43+'Exit Fee (ex Tax)'!G54+'Exit Fee (ex Tax)'!G65 -> 448.5187302 | H9: ='Exit Fee (ex Tax)'!V20+'Exit Fee (ex Tax)'!H32+'Exit Fee (ex Tax)'!H43+'Exit Fee (ex Tax)'!H54+'Exit Fee (ex Tax)'!H65 -> 403.527919

Sheet Tax
C2: Tax calculation ($2015)
C4: Single Phase | D4: Drop down box to determine tax for each meter class - copy each result into table at bottom
D5: 2016 | E5: 2017 | F5: 2018 | G5: 2019 | H5: 2020
C6: Revenue from Exit Fee (ex Tax) | D6: =OFFSET('Exit Fee (ex Tax)'!D$72,MATCH($C$4,'Exit Fee (ex Tax)'!$B$73:$B$77,0),,,) -> 388.2263405 | E6: =OFFSET('Exit Fee (ex Tax)'!E$72,MATCH($C$4,'Exit Fee (ex Tax)'!$B$73:$B$77,0),,,) -> 354.2330748 | F6: =OFFSET('Exit Fee (ex Tax)'!F$72,MATCH($C$4,'Exit Fee (ex Tax)'!$B$73:$B$77,0),,,) -> 316.9567566 | G6: =OFFSET('Exit Fee (ex Tax)'!G$72,MATCH($C$4,'Exit Fee (ex Tax)'!$B$73:$B$77,0),,,) -> 278.0070476 | H6: =OFFSET('Exit Fee (ex Tax)'!H$72,MATCH($C$4,'Exit Fee (ex Tax)'!$B$73:$B$77,0),,,) -> 244.0947412
C8: Tax Expenses
C9: - Opex | D9: =OFFSET('Exit Fee (ex Tax)'!D$28,MATCH($C$4,'Exit Fee (ex Tax)'!$B$29:$B$33,0),,,)+OFFSET('Exit Fee (ex Tax)'!D$39,MATCH($C$4,'Exit Fee (ex Tax)'!$B$40:$B$44,0),,,)+OFFSET('Exit Fee (ex Tax)'!D$50,MATCH($C$4,'Exit Fee (ex Tax)'!$B$51:$B$55,0),,,) -> 76.08 | E9: =OFFSET('Exit Fee (ex Tax)'!E$28,MATCH($C$4,'Exit Fee (ex Tax)'!$B$29:$B$33,0),,,)+OFFSET('Exit Fee (ex Tax)'!E$39,MATCH($C$4,'Exit Fee (ex Tax)'!$B$40:$B$44,0),,,)+OFFSET('Exit Fee (ex Tax)'!E$50,MATCH($C$4,'Exit Fee (ex Tax)'!$B$51:$B$55,0),,,) -> 76.08 | F9: =OFFSET('Exit Fee (ex Tax)'!F$28,MATCH($C$4,'Exit Fee (ex Tax)'!$B$29:$B$33,0),,,)+OFFSET('Exit Fee (ex Tax)'!F$39,MATCH($C$4,'Exit Fee (ex Tax)'!$B$40:$B$44,0),,,)+OFFSET('Exit Fee (ex Tax)'!F$50,MATCH($C$4,'Exit Fee (ex Tax)'!$B$51:$B$55,0),,,) -> 76.08 | G9: =OFFSET('Exit Fee (ex Tax)'!G$28,MATCH($C$4,'Exit Fee (ex Tax)'!$B$29:$B$33,0),,,)+OFFSET('Exit Fee (ex Tax)'!G$39,MATCH($C$4,'Exit Fee (ex Tax)'!$B$40:$B$44,0),,,)+OFFSET('Exit Fee (ex Tax)'!G$50,MATCH($C$4,'Exit Fee (ex Tax)'!$B$51:$B$55,0),,,) -> 76.08 | H9: =OFFSET('Exit Fee (ex Tax)'!H$28,MATCH($C$4,'Exit Fee (ex Tax)'!$B$29:$B$33,0),,,)+OFFSET('Exit Fee (ex Tax)'!H$39,MATCH($C$4,'Exit Fee (ex Tax)'!$B$40:$B$44,0),,,)+OFFSET('Exit Fee (ex Tax)'!H$50,MATCH($C$4,'Exit Fee (ex Tax)'!$B$51:$B$55,0),,,) -> 76.08
C10: - WDV of meter for Tax purposes | D10: 0 | E10: 0 | F10: 0 | G10: 0 | H10: 0
C11: - Interest | D11: 0 | E11: 0 | F11: 0 | G11: 0 | H11: 0
C12: Total Tax Expenses | D12: =SUM(D9:D11) -> 76.08 | E12: =SUM(E9:E11) -> 76.08 | F12: 76.08 | G12: 76.08 | H12: 76.08
C14: Value of Imputation Credits | D14: =-D15*Inputs!$C$9 -> -45.67995226 | E14: =-E15*Inputs!$C$9 -> -40.70532803 | F14: =-F15*Inputs!$C$9 -> -35.25025707 | G14: =-G15*Inputs!$C$9 -> -29.55029966 | H14: =-H15*Inputs!$C$9 -> -24.5875231
C15: Intermediate Tax Calculation | D15: =(D6-D12)*Inputs!$C$10/(1-(1-Inputs!$C$9)*Inputs!$C$10) -> 114.1998807 | E15: =(E6-E12)*Inputs!$C$10/(1-(1-Inputs!$C$9)*Inputs!$C$10) -> 101.7633201 | F15: =(F6-F12)*Inputs!$C$10/(1-(1-Inputs!$C$9)*Inputs!$C$10) -> 88.12564267 | G15: =(G6-G12)*Inputs!$C$10/(1-(1-Inputs!$C$9)*Inputs!$C$10) -> 73.87574914 | H15: =(H6-H12)*Inputs!$C$10/(1-(1-Inputs!$C$9)*Inputs!$C$10) -> 61.46880776
C16: ="Is "&Inputs!C4&" forecasting to have tax losses in this year?" -> Is United Energy forecasting to have tax losses in this year? | D16: Yes | E16: Yes | F16: Yes | G16: Yes | H16: Yes
D18: 2016 | E18: 2017 | F18: 2018 | G18: 2019 | H18: 2020
C19: =C4 -> Single Phase | D19: =IF(Tax!D16=Inputs!$BB$6,SUM(D14:D15),0) -> 0 | E19: =IF(Tax!E16=Inputs!$BB$6,SUM(E14:E15),0) -> 0 | F19: =IF(Tax!F16=Inputs!$BB$6,SUM(F14:F15),0) -> 0 | G19: =IF(Tax!G16=Inputs!$BB$6,SUM(G14:G15),0) -> 0 | H19: =IF(Tax!H16=Inputs!$BB$6,SUM(H14:H15),0) -> 0
D21: 2016 | E21: 2017 | F21: 2018 | G21: 2019 | H21: 2020
C22: ='Exit Fee (ex Tax)'!B73 -> Single Phase | D22: 0 | E22: 0 | F22: 0 | G22: 0 | H22: 0
C23: ='Exit Fee (ex Tax)'!B74 -> Single Phase, Two Element | D23: 0 | E23: 0 | F23: 0 | G23: 0 | H23: 0
C24: ='Exit Fee (ex Tax)'!B75 -> Three Phase DC | D24: 0 | E24: 0 | F24: 0 | G24: 0 | H24: 0
C25: ='Exit Fee (ex Tax)'!B76 -> Three Phase CT | D25: 0 | E25: 0 | F25: 0 | G25: 0 | H25: 0
C26: ='Exit Fee (ex Tax)'!B77 ->  | D26: 0 | E26: 0 | F26: 0 | G26: 0 | H26: 0

Sheet Exit Fee (ex Tax)
B2: Summary of Average Written Down Value in Each Year ($2015)
B4: Category | C4: Unit | D4: 2009 | E4: 2010 | F4: 2011 | G4: 2012 | H4: 2013 | I4: 2014 | J4: 2015 | K4: 2016 | L4: 2017 | M4: 2018 | N4: 2019 | O4: 2020 | Q4: 2015 | R4: 2016 | S4: 2017 | T4: 2018 | U4: 2019 | V4: 2020
A5: 1 | B5: =IF(Inputs!B24="","",Inputs!B24) -> Single Phase | C5: Per this meter type | D5: ='UE - ComboREM'!D162 -> 923.5716576 | E5: ='UE - ComboREM'!E162 -> 466.4296703 | F5: ='UE - ComboREM'!F162 -> 389.9246492 | G5: ='UE - ComboREM'!G162 -> 364.73245 | H5: ='UE - ComboREM'!H162 -> 344.3707285 | I5: ='UE - ComboREM'!I162 -> 312.115481 | J5: ='UE - ComboREM'!J162 -> 276.0278971 | K5: ='UE - ComboREM'!K162 -> 247.7860934 | L5: ='UE - ComboREM'!L162 -> 222.2231461 | M5: ='UE - ComboREM'!M162 -> 198.4125844 | N5: ='UE - ComboREM'!N162 -> 174.6999827 | O5: ='UE - ComboREM'!O162 -> 151.0911182 | Q5: ='UE - ESC'!J189 -> 276.0278971 | R5: ='UE - ESC'!K189 -> 247.8712459 | S5: ='UE - ESC'!L189 -> 222.5265344 | T5: ='UE - ESC'!M189 -> 198.9851364 | U5: ='UE - ESC'!N189 -> 175.5403158 | V5: ='UE - ESC'!O189 -> 152.1977789
A6: 2 | B6: =IF(Inputs!B25="","",Inputs!B25) -> Single Phase, Two Element | C6: Per this meter type | D6: ='UE - ComboREM'!D172 -> 955.5808701 | E6: ='UE - ComboREM'!E172 -> 922.6298056 | F6: ='UE - ComboREM'!F172 -> 856.7276766 | G6: ='UE - ComboREM'!G172 -> 790.8255476 | H6: ='UE - ComboREM'!H172 -> 400.6625337 | I6: ='UE - ComboREM'!I172 -> 324.2949978 | J6: ='UE - ComboREM'!J172 -> 271.8767252 | K6: ='UE - ComboREM'!K172 -> 247.6695402 | L6: ='UE - ComboREM'!L172 -> 226.2037204 | M6: ='UE - ComboREM'!M172 -> 206.0657168 | N6: ='UE - ComboREM'!N172 -> 186.007195 | O6: ='UE - ComboREM'!O172 -> 166.0314501 | Q6: ='UE - ESC'!J199 -> 271.8767252 | R6: ='UE - ESC'!K199 -> 247.164167 | S6: ='UE - ESC'!L199 -> 224.7462116 | T6: ='UE - ESC'!M199 -> 203.698992 | U6: ='UE - ESC'!N199 -> 182.7358857 | V6: ='UE - ESC'!O199 -> 161.8604325
A7: 3 | B7: =IF(Inputs!B26="","",Inputs!B26) -> Three Phase DC | C7: Per this meter type | D7: ='UE - ComboREM'!D182 -> 0 | E7: ='UE - ComboREM'!E182 -> 518.4846619 | F7: ='UE - ComboREM'!F182 -> 574.9429568 | G7: ='UE - ComboREM'!G182 -> 549.8255748 | H7: ='UE - ComboREM'!H182 -> 525.6289831 | I7: ='UE - ComboREM'!I182 -> 417.1500379 | J7: ='UE - ComboREM'!J182 -> 342.6744008 | K7: ='UE - ComboREM'!K182 -> 305.5547974 | L7: ='UE - ComboREM'!L182 -> 275.1488789 | M7: ='UE - ComboREM'!M182 -> 248.5342002 | N7: ='UE - ComboREM'!N182 -> 222.0153378 | O7: ='UE - ComboREM'!O182 -> 195.5975141 | Q7: ='UE - ESC'!J209 -> 342.6744008 | R7: ='UE - ESC'!K209 -> 305.6180956 | S7: ='UE - ESC'!L209 -> 275.4796683 | T7: ='UE - ESC'!M209 -> 249.2776007 | U7: ='UE - ESC'!N209 -> 223.1694667 | V7: ='UE - ESC'!O209 -> 197.1603873
A8: 4 | B8: =IF(Inputs!B27="","",Inputs!B27) -> Three Phase CT | C8: Per this meter type | D8: ='UE - ComboREM'!D192 -> 0 | E8: ='UE - ComboREM'!E192 -> 0 | F8: ='UE - ComboREM'!F192 -> 0 | G8: ='UE - ComboREM'!G192 -> 0 | H8: ='UE - ComboREM'!H192 -> 0 | I8: ='UE - ComboREM'!I192 -> 581.4644493 | J8: ='UE - ComboREM'!J192 -> 547.2198186 | K8: ='UE - ComboREM'!K192 -> 488.8634915 | L8: ='UE - ComboREM'!L192 -> 441.9464898 | M8: ='UE - ComboREM'!M192 -> 399.3776572 | N8: ='UE - ComboREM'!N192 -> 358.0067542 | O8: ='UE - ComboREM'!O192 -> 317.8813515 | Q8: ='UE - ESC'!J219 -> 547.2198186 | R8: ='UE - ESC'!K219 -> 487.577797 | S8: ='UE - ESC'!L219 -> 438.9653076 | T8: ='UE - ESC'!M219 -> 395.3930052 | U8: ='UE - ESC'!N219 -> 353.0594604 | V8: ='UE - ESC'!O219 -> 312.0126287
A9: 5 | B9: =IF(Inputs!B28="","",Inputs!B28) -> IT | C9: Per meter | D9: ='UE - ComboREM'!D202 -> 5475.457566 | E9: ='UE - ComboREM'!E202 -> 1579.072672 | F9: ='UE - ComboREM'!F202 -> 584.2396439 | G9: ='UE - ComboREM'!G202 -> 280.4349173 | H9: ='UE - ComboREM'!H202 -> 154.1926075 | I9: ='UE - ComboREM'!I202 -> 89.20269138 | J9: ='UE - ComboREM'!J202 -> 56.28730389 | K9: ='UE - ComboREM'!K202 -> 44.06893717 | L9: ='UE - ComboREM'!L202 -> 41.25521024 | M9: ='UE - ComboREM'!M202 -> 33.44453408 | N9: ='UE - ComboREM'!N202 -> 23.88136925 | O9: ='UE - ComboREM'!O202 -> 16.47130704 | Q9: ='UE - ESC'!J229 -> 56.28730389 | R9: ='UE - ESC'!K229 -> 37.09400539 | S9: ='UE - ESC'!L229 -> 26.67716365 | T9: ='UE - ESC'!M229 -> 19.92061149 | U9: ='UE - ESC'!N229 -> 14.94952504 | V9: ='UE - ESC'!O229 -> 13.34439884
A10: 6 | B10: =IF(Inputs!B29="","",Inputs!B29) -> Communications | C10: Per meter | D10: ='UE - ComboREM'!D212 -> 0 | E10: ='UE - ComboREM'!E212 -> 0 | F10: ='UE - ComboREM'!F212 -> 7.60005522 | G10: ='UE - ComboREM'!G212 -> 8.144057578 | H10: ='UE - ComboREM'!H212 -> 6.080694617 | I10: ='UE - ComboREM'!I212 -> 5.474658906 | J10: ='UE - ComboREM'!J212 -> 4.799937015 | K10: ='UE - ComboREM'!K212 -> 3.855655767 | L10: ='UE - ComboREM'!L212 -> 2.836532452 | M10: ='UE - ComboREM'!M212 -> 1.746373004 | N10: ='UE - ComboREM'!N212 -> 0.6614870816 | O10: ='UE - ComboREM'!O212 -> 0.1058297716 | Q10: ='UE - ESC'!J239 -> 4.799937015 | R10: ='UE - ESC'!K239 -> 3.814105606 | S10: ='UE - ESC'!L239 -> 2.723907967 | T10: ='UE - ESC'!M239 -> 1.702428503 | U10: ='UE - ESC'!N239 -> 0.9675719078 | V10: ='UE - ESC'!O239 -> 0.4679455083
A11: 7 | B11: =IF(Inputs!B30="","",Inputs!B30) -> Other | C11: Per meter | D11: ='UE - ComboREM'!D222 -> 8.741533203 | E11: ='UE - ComboREM'!E222 -> 5.750766614 | F11: ='UE - ComboREM'!F222 -> 38.09514132 | G11: ='UE - ComboREM'!G222 -> 40.31287926 | H11: ='UE - ComboREM'!H222 -> 32.88015108 | I11: ='UE - ComboREM'!I222 -> 26.11025084 | J11: ='UE - ComboREM'!J222 -> 19.91394781 | K11: ='UE - ComboREM'!K222 -> 16.43565407 | L11: ='UE - ComboREM'!L222 -> 11.83818601 | M11: ='UE - ComboREM'!M222 -> 7.273265153 | N11: ='UE - ComboREM'!N222 -> 2.684208583 | O11: ='UE - ComboREM'!O222 -> 0.3464861999 | Q11: ='UE - ESC'!J249 -> 19.91394781 | R11: ='UE - ESC'!K249 -> 16.13751596 | S11: ='UE - ESC'!L249 -> 10.99876793 | T11: ='UE - ESC'!M249 -> 6.556506808 | U11: ='UE - ESC'!N249 -> 3.462172846 | V11: ='UE - ESC'!O249 -> 1.622945947
B12: Not used
B14: Rolled up WDV per Meter Category in each year ($2015)
B16: Category | C16: Unit | D16: 2009 | E16: 2010 | F16: 2011 | G16: 2012 | H16: 2013 | I16: 2014 | J16: 2015 | K16: 2016 | L16: 2017 | M16: 2018 | N16: 2019 | O16: 2020 | Q16: 2015 | R16: 2016 | S16: 2017 | T16: 2018 | U16: 2019 | V16: 2020
A17: 1 | B17: =IF(Inputs!AX5="","",Inputs!AX5) -> Single Phase | C17: Per this meter type | D17: =SUM(D5,D$9,D$10,D$11) -> 6407.770757 | E17: =SUM(E5,E$9,E$10,E$11) -> 2051.253109 | F17: 1019.85949 | G17: 693.6243042 | H17: 537.5241817 | I17: 432.9030821 | J17: 357.0290858 | K17: 312.1463405 | L17: 278.1530748 | M17: 240.8767566 | N17: 201.9270476 | O17: 168.0147412 | Q17: =SUM(Q5,Q$9,Q$10,Q$11) -> 357.0290858 | R17: 304.9168728 | S17: 262.926374 | T17: 227.1646832 | U17: 194.9195856 | V17: 167.6330692
A18: 2 | B18: =IF(Inputs!AX6="","",Inputs!AX6) -> Single Phase, Two Element | C18: Per this meter type | D18: =SUM(D6,D$9,D$10,D$11) -> 6439.77997 | E18: 2507.453244 | F18: 1486.662517 | G18: 1119.717402 | H18: 593.8159869 | I18: 445.0825989 | J18: 352.8779139 | K18: 312.0297872 | L18: 282.1336491 | M18: 248.529889 | N18: 213.2342599 | O18: 182.9550731 | Q18: =SUM(Q6,Q$9,Q$10,Q$11) -> 352.8779139 | R18: 304.2097939 | S18: 265.1460512 | T18: 231.8785388 | U18: 202.1151555 | V18: 177.2957228
A19: 3 | B19: =IF(Inputs!AX7="","",Inputs!AX7) -> Three Phase DC | C19: Per this meter type | D19: =SUM(D7,D$9,D$10,D$11) -> 5484.1991 | E19: 2103.3081 | F19: 1204.877797 | G19: 878.717429 | H19: 718.7824363 | I19: 537.937639 | J19: 423.6755895 | K19: 369.9150444 | L19: 331.0788076 | M19: 290.9983724 | N19: 249.2424027 | O19: 212.5211371 | Q19: =SUM(Q7,Q$9,Q$10,Q$11) -> 423.6755895 | R19: 362.6637225 | S19: 315.8795078 | T19: 277.4571475 | U19: 242.5487365 | V19: 212.5956776
A20: 4 | B20: =IF(Inputs!AX8="","",Inputs!AX8) -> Three Phase CT | C20: Per this meter type | D20: =SUM(D8,D$9,D$10,D$11) -> 5484.1991 | E20: 1584.823438 | F20: 629.9348405 | G20: 328.8918542 | H20: 193.1534532 | I20: 702.2520505 | J20: 628.2210073 | K20: 553.2237385 | L20: 497.8764185 | M20: 441.8418294 | N20: 385.2338191 | O20: 334.8049745 | Q20: =SUM(Q8,Q$9,Q$10,Q$11) -> 628.2210073 | R20: 544.6234239 | S20: 479.3651471 | T20: 423.572552 | U20: 372.4387302 | V20: 327.447919
A21: 5 | B21: =IF(Inputs!AX9="","",Inputs!AX9) -> 
B24: PLUS
B26: Admin costs of removing meter ($2015)
B28: Category | C28: Unit | D28: 2016 | E28: 2017 | F28: 2018 | G28: 2019 | H28: 2020
A29: 1 | B29: =B17 -> Single Phase | C29: Per this meter type | D29: =IF(Inputs!D65="","",Inputs!D65) -> 76.08 | E29: =IF(Inputs!E65="","",Inputs!E65) -> 76.08 | F29: =IF(Inputs!F65="","",Inputs!F65) -> 76.08 | G29: =IF(Inputs!G65="","",Inputs!G65) -> 76.08 | H29: =IF(Inputs!H65="","",Inputs!H65) -> 76.08
A30: 2 | B30: =B18 -> Single Phase, Two Element | C30: Per this meter type | D30: =IF(Inputs!D66="","",Inputs!D66) -> 76.08 | E30: =IF(Inputs!E66="","",Inputs!E66) -> 76.08 | F30: =IF(Inputs!F66="","",Inputs!F66) -> 76.08 | G30: =IF(Inputs!G66="","",Inputs!G66) -> 76.08 | H30: =IF(Inputs!H66="","",Inputs!H66) -> 76.08
A31: 3 | B31: Three Phase DC | C31: Per this meter type | D31: =IF(Inputs!D67="","",Inputs!D67) -> 76.08 | E31: =IF(Inputs!E67="","",Inputs!E67) -> 76.08 | F31: =IF(Inputs!F67="","",Inputs!F67) -> 76.08 | G31: =IF(Inputs!G67="","",Inputs!G67) -> 76.08 | H31: =IF(Inputs!H67="","",Inputs!H67) -> 76.08
A32: 4 | B32: Three Phase CT | C32: Per this meter type | D32: =IF(Inputs!D68="","",Inputs!D68) -> 76.08 | E32: =IF(Inputs!E68="","",Inputs!E68) -> 76.08 | F32: =IF(Inputs!F68="","",Inputs!F68) -> 76.08 | G32: =IF(Inputs!G68="","",Inputs!G68) -> 76.08 | H32: =IF(Inputs!H68="","",Inputs!H68) -> 76.08
A33: 5 | C33: Per this meter type | D33: =IF(Inputs!D69="","",Inputs!D69) ->  | E33: =IF(Inputs!E69="","",Inputs!E69) ->  | F33: =IF(Inputs!F69="","",Inputs!F69) ->  | G33: =IF(Inputs!G69="","",Inputs!G69) ->  | H33: =IF(Inputs!H69="","",Inputs!H69) -> 
B35: PLUS
B37: Infill Comms cost ($2015)
B39: Category | C39: Unit | D39: 2016 | E39: 2017 | F39: 2018 | G39: 2019 | H39: 2020
A40: 1 | B40: =B29 -> Single Phase | C40: Per this meter type | D40: =Inputs!D75 -> 0 | E40: =Inputs!E75 -> 0 | F40: =Inputs!F75 -> 0 | G40: =Inputs!G75 -> 0 | H40: =Inputs!H75 -> 0
A41: 2 | B41: =B30 -> Single Phase, Two Element | C41: Per this meter type | D41: =Inputs!D76 -> 0 | E41: =Inputs!E76 -> 0 | F41: =Inputs!F76 -> 0 | G41: =Inputs!G76 -> 0 | H41: =Inputs!H76 -> 0
A42: 3 | B42: Three Phase DC | C42: Per this meter type | D42: =Inputs!D77 -> 0 | E42: =Inputs!E77 -> 0 | F42: =Inputs!F77 -> 0 | G42: =Inputs!G77 -> 0 | H42: =Inputs!H77 -> 0
A43: 4 | B43: Three Phase CT | C43: Per this meter type | D43: =Inputs!D78 -> 0 | E43: =Inputs!E78 -> 0 | F43: =Inputs!F78 -> 0 | G43: =Inputs!G78 -> 0 | H43: =Inputs!H78 -> 0
A44: 5 | C44: Per this meter type | D44: =Inputs!D79 -> 0 | E44: =Inputs!E79 -> 0 | F44: =Inputs!F79 -> 0 | G44: =Inputs!G79 -> 0 | H44: =Inputs!H79 -> 0
B46: PLUS
B48: Other taxable operating costs ($2015)
B50: Category | C50: Unit | D50: 2016 | E50: 2017 | F50: 2018 | G50: 2019 | H50: 2020
B51: =B40 -> Single Phase | C51: Per this meter type | D51: =Inputs!D85 -> 0 | E51: =Inputs!E85 -> 0 | F51: =Inputs!F85 -> 0 | G51: =Inputs!G85 -> 0 | H51: =Inputs!H85 -> 0
B52: =B41 -> Single Phase, Two Element | C52: Per this meter type | D52: =Inputs!D86 -> 0 | E52: =Inputs!E86 -> 0 | F52: =Inputs!F86 -> 0 | G52: =Inputs!G86 -> 0 | H52: =Inputs!H86 -> 0
B53: Three Phase DC | C53: Per this meter type | D53: =Inputs!D87 -> 0 | E53: =Inputs!E87 -> 0 | F53: =Inputs!F87 -> 0 | G53: =Inputs!G87 -> 0 | H53: =Inputs!H87 -> 0
B54: Three Phase CT | C54: Per this meter type | D54: =Inputs!D88 -> 0 | E54: =Inputs!E88 -> 0 | F54: =Inputs!F88 -> 0 | G54: =Inputs!G88 -> 0 | H54: =Inputs!H88 -> 0
C55: Per this meter type | D55: =Inputs!D89 -> 0 | E55: =Inputs!E89 -> 0 | F55: =Inputs!F89 -> 0 | G55: =Inputs!G89 -> 0 | H55: =Inputs!H89 -> 0
B57: PLUS
B59: Other (non taxable) operating costs ($2015)
B61: Category | C61: Unit | D61: 2016 | E61: 2017 | F61: 2018 | G61: 2019 | H61: 2020
B62: =B51 -> Single Phase | C62: Per this meter type | D62: =Inputs!D95 -> 0 | E62: =Inputs!E95 -> 0 | F62: =Inputs!F95 -> 0 | G62: =Inputs!G95 -> 0 | H62: =Inputs!H95 -> 0
B63: =B52 -> Single Phase, Two Element | C63: Per this meter type | D63: =Inputs!D96 -> 0 | E63: =Inputs!E96 -> 0 | F63: =Inputs!F96 -> 0 | G63: =Inputs!G96 -> 0 | H63: =Inputs!H96 -> 0
B64: Three Phase DC | C64: Per this meter type | D64: =Inputs!D97 -> 0 | E64: =Inputs!E97 -> 0 | F64: =Inputs!F97 -> 0 | G64: =Inputs!G97 -> 0 | H64: =Inputs!H97 -> 0
B65: Three Phase CT | C65: Per this meter type | D65: =Inputs!D98 -> 0 | E65: =Inputs!E98 -> 0 | F65: =Inputs!F98 -> 0 | G65: =Inputs!G98 -> 0 | H65: =Inputs!H98 -> 0
C66: Per this meter type | D66: =Inputs!D99 -> 0 | E66: =Inputs!E99 -> 0 | F66: =Inputs!F99 -> 0 | G66: =Inputs!G99 -> 0 | H66: =Inputs!H99 -> 0
B68: PLUS
B70: EXIT FEE (ex TAX) - BY METER CLASS ($2015)
B72: Category | C72: Unit | D72: 2016 | E72: 2017 | F72: 2018 | G72: 2019 | H72: 2020
B73: =B62 -> Single Phase | C73: Per this meter type | D73: =SUM(K17,D29,D40,D51,D62) -> 388.2263405 | E73: =SUM(L17,E29,E40,E51,E62) -> 354.2330748 | F73: 316.9567566 | G73: 278.0070476 | H73: 244.0947412
B74: =B63 -> Single Phase, Two Element | C74: Per this meter type | D74: 388.1097872 | E74: 358.2136491 | F74: 324.609889 | G74: 289.3142599 | H74: 259.0350731
B75: Three Phase DC | C75: Per this meter type | D75: 445.9950444 | E75: 407.1588076 | F75: 367.0783724 | G75: 325.3224027 | H75: 288.6011371
B76: Three Phase CT | C76: Per this meter type | D76: 629.3037385 | E76: 573.9564185 | F76: 517.9218294 | G76: 461.3138191 | H76: 410.8849745
C77: Per this meter type | D77: 0 | E77: 0 | F77: 0 | G77: 0 | H77: =SUM(O21,H33,H44,H55,H66) -> 0

Sheet UE - ComboREM
B3: ="Depreciation - "&Inputs!C4&" - "&INDEX(Inputs!B38:B45,A5,)&" - "&IF(Inputs!C5=Inputs!C17,Inputs!C17,Inputs!C18) -> Depreciation - United Energy - Single Phase - 2015$
A5: 1 | B5: =INDEX(Inputs!$B$38:$B$45,$A$5,) -> Single Phase | C5: Life | D5: 2009 | E5: 2010 | F5: 2011 | G5: 2012 | H5: 2013 | I5: 2014 | J5: 2015 | K5: 2016 | L5: 2017 | M5: 2018 | N5: 2019 | O5: 2020
B6: =TRANSPOSE(Inputs!D37:P37) -> 2009 | C6: =INDEX(Inputs!$C$38:$C$45,$A$5,) -> 15 | D6: =IFERROR(IF($B6<Inputs!$C$7,IF(D$5<Inputs!$C$7,'UE - ESC'!D33,IF(D$5>=Inputs!$C$7+'UE - ESC'!$W$33,0,'UE - ESC'!$T33/'UE - ESC'!$W$33)),'UE - AER'!D33),0) -> 353536.8611 | E6: =IFERROR(IF($B6<Inputs!$C$7,IF(E$5<Inputs!$C$7,'UE - ESC'!E33,IF(E$5>=Inputs!$C$7+'UE - ESC'!$W$33,0,'UE - ESC'!$T33/'UE - ESC'!$W$33)),'UE - AER'!E33),0) -> 707073.7222 | F6: =IFERROR(IF($B6<Inputs!$C$7,IF(F$5<Inputs!$C$7,'UE - ESC'!F33,IF(F$5>=Inputs!$C$7+'UE - ESC'!$W$33,0,'UE - ESC'!$T33/'UE - ESC'!$W$33)),'UE - AER'!F33),0) -> 707073.7222 | G6: =IFERROR(IF($B6<Inputs!$C$7,IF(G$5<Inputs!$C$7,'UE - ESC'!G33,IF(G$5>=Inputs!$C$7+'UE - ESC'!$W$33,0,'UE - ESC'!$T33/'UE - ESC'!$W$33)),'UE - AER'!G33),0) -> 707073.7222 | H6: =IFERROR(IF($B6<Inputs!$C$7,IF(H$5<Inputs!$C$7,'UE - ESC'!H33,IF(H$5>=Inputs!$C$7+'UE - ESC'!$W$33,0,'UE - ESC'!$T33/'UE - ESC'!$W$33)),'UE - AER'!H33),0) -> 707073.7222 | I6: =IFERROR(IF($B6<Inputs!$C$7,IF(I$5<Inputs!$C$7,'UE - ESC'!I33,IF(I$5>=Inputs!$C$7+'UE - ESC'!$W$33,0,'UE - ESC'!$T33/'UE - ESC'!$W$33)),'UE - AER'!I33),0) -> 707073.7222 | J6: =IFERROR(IF($B6<Inputs!$C$7,IF(J$5<Inputs!$C$7,'UE - ESC'!J33,IF(J$5>=Inputs!$C$7+'UE - ESC'!$W$33,0,'UE - ESC'!$T33/'UE - ESC'!$W$33)),'UE - AER'!J33),0) -> 707073.7222 | K6: =IFERROR(IF($B6<Inputs!$C$7,IF(K$5<Inputs!$C$7,'UE - ESC'!K33,IF(K$5>=Inputs!$C$7+'UE - ESC'!$W$33,0,'UE - ESC'!$T33/'UE - ESC'!$W$33)),'UE - AER'!K33),0) -> 546375.1489 | L6: =IFERROR(IF($B6<Inputs!$C$7,IF(L$5<Inputs!$C$7,'UE - ESC'!L33,IF(L$5>=Inputs!$C$7+'UE - ESC'!$W$33,0,'UE - ESC'!$T33/'UE - ESC'!$W$33)),'UE - AER'!L33),0) -> 546375.1489 | M6: =IFERROR(IF($B6<Inputs!$C$7,IF(M$5<Inputs!$C$7,'UE - ESC'!M33,IF(M$5>=Inputs!$C$7+'UE - ESC'!$W$33,0,'UE - ESC'!$T33/'UE - ESC'!$W$33)),'UE - AER'!M33),0) -> 546375.1489 | N6: =IFERROR(IF($B6<Inputs!$C$7,IF(N$5<Inputs!$C$7,'UE - ESC'!N33,IF(N$5>=Inputs!$C$7+'UE - ESC'!$W$33,0,'UE - ESC'!$T33/'UE - ESC'!$W$33)),'UE - AER'!N33),0) -> 546375.1489 | O6: =IFERROR(IF($B6<Inputs!$C$7,IF(O$5<Inputs!$C$7,'UE - ESC'!O33,IF(O$5>=Inputs!$C$7+'UE - ESC'!$W$33,0,'UE - ESC'!$T33/'UE - ESC'!$W$33)),'UE - AER'!O33),0) -> 546375.1489
B7: 2010 | C7: =C6 -> 15 | D7: =IFERROR(IF($B7<Inputs!$C$7,IF(D$5<Inputs!$C$7,'UE - ESC'!D34,IF(D$5>=Inputs!$C$7+'UE - ESC'!$W$33,0,'UE - ESC'!$T34/'UE - ESC'!$W$33)),'UE - AER'!D34),0) -> 0 | E7: =IFERROR(IF($B7<Inputs!$C$7,IF(E$5<Inputs!$C$7,'UE - ESC'!E34,IF(E$5>=Inputs!$C$7+'UE - ESC'!$W$33,0,'UE - ESC'!$T34/'UE - ESC'!$W$33)),'UE - AER'!E34),0) -> 914813.6672 | F7: =IFERROR(IF($B7<Inputs!$C$7,IF(F$5<Inputs!$C$7,'UE - ESC'!F34,IF(F$5>=Inputs!$C$7+'UE - ESC'!$W$33,0,'UE - ESC'!$T34/'UE - ESC'!$W$33)),'UE - AER'!F34),0) -> 1829627.334 | G7: =IFERROR(IF($B7<Inputs!$C$7,IF(G$5<Inputs!$C$7,'UE - ESC'!G34,IF(G$5>=Inputs!$C$7+'UE - ESC'!$W$33,0,'UE - ESC'!$T34/'UE - ESC'!$W$33)),'UE - AER'!G34),0) -> 1829627.334 | H7: =IFERROR(IF($B7<Inputs!$C$7,IF(H$5<Inputs!$C$7,'UE - ESC'!H34,IF(H$5>=Inputs!$C$7+'UE - ESC'!$W$33,0,'UE - ESC'!$T34/'UE - ESC'!$W$33)),'UE - AER'!H34),0) -> 1829627.334 | I7: =IFERROR(IF($B7<Inputs!$C$7,IF(I$5<Inputs!$C$7,'UE - ESC'!I34,IF(I$5>=Inputs!$C$7+'UE - ESC'!$W$33,0,'UE - ESC'!$T34/'UE - ESC'!$W$33)),'UE - AER'!I34),0) -> 1829627.334 | J7: =IFERROR(IF($B7<Inputs!$C$7,IF(J$5<Inputs!$C$7,'UE - ESC'!J34,IF(J$5>=Inputs!$C$7+'UE - ESC'!$W$33,0,'UE - ESC'!$T34/'UE - ESC'!$W$33)),'UE - AER'!J34),0) -> 1829627.334 | K7: =IFERROR(IF($B7<Inputs!$C$7,IF(K$5<Inputs!$C$7,'UE - ESC'!K34,IF(K$5>=Inputs!$C$7+'UE - ESC'!$W$33,0,'UE - ESC'!$T34/'UE - ESC'!$W$33)),'UE - AER'!K34),0) -> 1580132.698 | L7: =IFERROR(IF($B7<Inputs!$C$7,IF(L$5<Inputs!$C$7,'UE - ESC'!L34,IF(L$5>=Inputs!$C$7+'UE - ESC'!$W$33,0,'UE - ESC'!$T34/'UE - ESC'!$W$33)),'UE - AER'!L34),0) -> 1580132.698 | M7: =IFERROR(IF($B7<Inputs!$C$7,IF(M$5<Inputs!$C$7,'UE - ESC'!M34,IF(M$5>=Inputs!$C$7+'UE - ESC'!$W$33,0,'UE - ESC'!$T34/'UE - ESC'!$W$33)),'UE - AER'!M34),0) -> 1580132.698 | N7: =IFERROR(IF($B7<Inputs!$C$7,IF(N$5<Inputs!$C$7,'UE - ESC'!N34,IF(N$5>=Inputs!$C$7+'UE - ESC'!$W$33,0,'UE - ESC'!$T34/'UE - ESC'!$W$33)),'UE - AER'!N34),0) -> 1580132.698 | O7: =IFERROR(IF($B7<Inputs!$C$7,IF(O$5<Inputs!$C$7,'UE - ESC'!O34,IF(O$5>=Inputs!$C$7+'UE - ESC'!$W$33,0,'UE - ESC'!$T34/'UE - ESC'!$W$33)),'UE - AER'!O34),0) -> 1580132.698
B8: 2011 | C8: =C7 -> 15 | D8: =IFERROR(IF($B8<Inputs!$C$7,IF(D$5<Inputs!$C$7,'UE - ESC'!D35,IF(D$5>=Inputs!$C$7+'UE - ESC'!$W$33,0,'UE - ESC'!$T35/'UE - ESC'!$W$33)),'UE - AER'!D35),0) -> 0 | E8: =IFERROR(IF($B8<Inputs!$C$7,IF(E$5<Inputs!$C$7,'UE - ESC'!E35,IF(E$5>=Inputs!$C$7+'UE - ESC'!$W$33,0,'UE - ESC'!$T35/'UE - ESC'!$W$33)),'UE - AER'!E35),0) -> 0 | F8: =IFERROR(IF($B8<Inputs!$C$7,IF(F$5<Inputs!$C$7,'UE - ESC'!F35,IF(F$5>=Inputs!$C$7+'UE - ESC'!$W$33,0,'UE - ESC'!$T35/'UE - ESC'!$W$33)),'UE - AER'!F35),0) -> 1512056.728 | G8: =IFERROR(IF($B8<Inputs!$C$7,IF(G$5<Inputs!$C$7,'UE - ESC'!G35,IF(G$5>=Inputs!$C$7+'UE - ESC'!$W$33,0,'UE - ESC'!$T35/'UE - ESC'!$W$33)),'UE - AER'!G35),0) -> 3024113.457 | H8: =IFERROR(IF($B8<Inputs!$C$7,IF(H$5<Inputs!$C$7,'UE - ESC'!H35,IF(H$5>=Inputs!$C$7+'UE - ESC'!$W$33,0,'UE - ESC'!$T35/'UE - ESC'!$W$33)),'UE - AER'!H35),0) -> 3024113.457 | I8: =IFERROR(IF($B8<Inputs!$C$7,IF(I$5<Inputs!$C$7,'UE - ESC'!I35,IF(I$5>=Inputs!$C$7+'UE - ESC'!$W$33,0,'UE - ESC'!$T35/'UE - ESC'!$W$33)),'UE - AER'!I35),0) -> 3024113.457 | J8: =IFERROR(IF($B8<Inputs!$C$7,IF(J$5<Inputs!$C$7,'UE - ESC'!J35,IF(J$5>=Inputs!$C$7+'UE - ESC'!$W$33,0,'UE - ESC'!$T35/'UE - ESC'!$W$33)),'UE - AER'!J35),0) -> 3024113.457 | K8: =IFERROR(IF($B8<Inputs!$C$7,IF(K$5<Inputs!$C$7,'UE - ESC'!K35,IF(K$5>=Inputs!$C$7+'UE - ESC'!$W$33,0,'UE - ESC'!$T35/'UE - ESC'!$W$33)),'UE - AER'!K35),0) -> 2886653.754 | L8: =IFERROR(IF($B8<Inputs!$C$7,IF(L$5<Inputs!$C$7,'UE - ESC'!L35,IF(L$5>=Inputs!$C$7+'UE - ESC'!$W$33,0,'UE - ESC'!$T35/'UE - ESC'!$W$33)),'UE - AER'!L35),0) -> 2886653.754 | M8: =IFERROR(IF($B8<Inputs!$C$7,IF(M$5<Inputs!$C$7,'UE - ESC'!M35,IF(M$5>=Inputs!$C$7+'UE - ESC'!$W$33,0,'UE - ESC'!$T35/'UE - ESC'!$W$33)),'UE - AER'!M35),0) -> 2886653.754 | N8: =IFERROR(IF($B8<Inputs!$C$7,IF(N$5<Inputs!$C$7,'UE - ESC'!N35,IF(N$5>=Inputs!$C$7+'UE - ESC'!$W$33,0,'UE - ESC'!$T35/'UE - ESC'!$W$33)),'UE - AER'!N35),0) -> 2886653.754 | O8: =IFERROR(IF($B8<Inputs!$C$7,IF(O$5<Inputs!$C$7,'UE - ESC'!O35,IF(O$5>=Inputs!$C$7+'UE - ESC'!$W$33,0,'UE - ESC'!$T35/'UE - ESC'!$W$33)),'UE - AER'!O35),0) -> 2886653.754
B9: 2012 | C9: 15 | D9: =IFERROR(IF($B9<Inputs!$C$7,IF(D$5<Inputs!$C$7,'UE - ESC'!D36,IF(D$5>=Inputs!$C$7+'UE - ESC'!$W$33,0,'UE - ESC'!$T36/'UE - ESC'!$W$33)),'UE - AER'!D36),0) -> 0 | E9: =IFERROR(IF($B9<Inputs!$C$7,IF(E$5<Inputs!$C$7,'UE - ESC'!E36,IF(E$5>=Inputs!$C$7+'UE - ESC'!$W$33,0,'UE - ESC'!$T36/'UE - ESC'!$W$33)),'UE - AER'!E36),0) -> 0 | F9: =IFERROR(IF($B9<Inputs!$C$7,IF(F$5<Inputs!$C$7,'UE - ESC'!F36,IF(F$5>=Inputs!$C$7+'UE - ESC'!$W$33,0,'UE - ESC'!$T36/'UE - ESC'!$W$33)),'UE - AER'!F36),0) -> 0 | G9: =IFERROR(IF($B9<Inputs!$C$7,IF(G$5<Inputs!$C$7,'UE - ESC'!G36,IF(G$5>=Inputs!$C$7+'UE - ESC'!$W$33,0,'UE - ESC'!$T36/'UE - ESC'!$W$33)),'UE - AER'!G36),0) -> 1638916.808 | H9: =IFERROR(IF($B9<Inputs!$C$7,IF(H$5<Inputs!$C$7,'UE - ESC'!H36,IF(H$5>=Inputs!$C$7+'UE - ESC'!$W$33,0,'UE - ESC'!$T36/'UE - ESC'!$W$33)),'UE - AER'!H36),0) -> 3277833.616 | I9: =IFERROR(IF($B9<Inputs!$C$7,IF(I$5<Inputs!$C$7,'UE - ESC'!I36,IF(I$5>=Inputs!$C$7+'UE - ESC'!$W$33,0,'UE - ESC'!$T36/'UE - ESC'!$W$33)),'UE - AER'!I36),0) -> 3277833.616 | J9: =IFERROR(IF($B9<Inputs!$C$7,IF(J$5<Inputs!$C$7,'UE - ESC'!J36,IF(J$5>=Inputs!$C$7+'UE - ESC'!$W$33,0,'UE - ESC'!$T36/'UE - ESC'!$W$33)),'UE - AER'!J36),0) -> 3277833.616 | K9: =IFERROR(IF($B9<Inputs!$C$7,IF(K$5<Inputs!$C$7,'UE - ESC'!K36,IF(K$5>=Inputs!$C$7+'UE - ESC'!$W$33,0,'UE - ESC'!$T36/'UE - ESC'!$W$33)),'UE - AER'!K36),0) -> 3426826.053 | L9: =IFERROR(IF($B9<Inputs!$C$7,IF(L$5<Inputs!$C$7,'UE - ESC'!L36,IF(L$5>=Inputs!$C$7+'UE - ESC'!$W$33,0,'UE - ESC'!$T36/'UE - ESC'!$W$33)),'UE - AER'!L36),0) -> 3426826.053 | M9: =IFERROR(IF($B9<Inputs!$C$7,IF(M$5<Inputs!$C$7,'UE - ESC'!M36,IF(M$5>=Inputs!$C$7+'UE - ESC'!$W$33,0,'UE - ESC'!$T36/'UE - ESC'!$W$33)),'UE - AER'!M36),0) -> 3426826.053 | N9: =IFERROR(IF($B9<Inputs!$C$7,IF(N$5<Inputs!$C$7,'UE - ESC'!N36,IF(N$5>=Inputs!$C$7+'UE - ESC'!$W$33,0,'UE - ESC'!$T36/'UE - ESC'!$W$33)),'UE - AER'!N36),0) -> 3426826.053 | O9: =IFERROR(IF($B9<Inputs!$C$7,IF(O$5<Inputs!$C$7,'UE - ESC'!O36,IF(O$5>=Inputs!$C$7+'UE - ESC'!$W$33,0,'UE - ESC'!$T36/'UE - ESC'!$W$33)),'UE - AER'!O36),0) -> 3426826.053
B10: 2013 | C10: 15 | D10: =IFERROR(IF($B10<Inputs!$C$7,IF(D$5<Inputs!$C$7,'UE - ESC'!D37,IF(D$5>=Inputs!$C$7+'UE - ESC'!$W$33,0,'UE - ESC'!$T37/'UE - ESC'!$W$33)),'UE - AER'!D37),0) -> 0 | E10: =IFERROR(IF($B10<Inputs!$C$7,IF(E$5<Inputs!$C$7,'UE - ESC'!E37,IF(E$5>=Inputs!$C$7+'UE - ESC'!$W$33,0,'UE - ESC'!$T37/'UE - ESC'!$W$33)),'UE - AER'!E37),0) -> 0 | F10: =IFERROR(IF($B10<Inputs!$C$7,IF(F$5<Inputs!$C$7,'UE - ESC'!F37,IF(F$5>=Inputs!$C$7+'UE - ESC'!$W$33,0,'UE - ESC'!$T37/'UE - ESC'!$W$33)),'UE - AER'!F37),0) -> 0 | G10: =IFERROR(IF($B10<Inputs!$C$7,IF(G$5<Inputs!$C$7,'UE - ESC'!G37,IF(G$5>=Inputs!$C$7+'UE - ESC'!$W$33,0,'UE - ESC'!$T37/'UE - ESC'!$W$33)),'UE - AER'!G37),0) -> 0 | H10: =IFERROR(IF($B10<Inputs!$C$7,IF(H$5<Inputs!$C$7,'UE - ESC'!H37,IF(H$5>=Inputs!$C$7+'UE - ESC'!$W$33,0,'UE - ESC'!$T37/'UE - ESC'!$W$33)),'UE - AER'!H37),0) -> 1334919.156 | I10: =IFERROR(IF($B10<Inputs!$C$7,IF(I$5<Inputs!$C$7,'UE - ESC'!I37,IF(I$5>=Inputs!$C$7+'UE - ESC'!$W$33,0,'UE - ESC'!$T37/'UE - ESC'!$W$33)),'UE - AER'!I37),0) -> 2669838.311 | J10: =IFERROR(IF($B10<Inputs!$C$7,IF(J$5<Inputs!$C$7,'UE - ESC'!J37,IF(J$5>=Inputs!$C$7+'UE - ESC'!$W$33,0,'UE - ESC'!$T37/'UE - ESC'!$W$33)),'UE - AER'!J37),0) -> 2669838.311 | K10: =IFERROR(IF($B10<Inputs!$C$7,IF(K$5<Inputs!$C$7,'UE - ESC'!K37,IF(K$5>=Inputs!$C$7+'UE - ESC'!$W$33,0,'UE - ESC'!$T37/'UE - ESC'!$W$33)),'UE - AER'!K37),0) -> 3033907.172 | L10: =IFERROR(IF($B10<Inputs!$C$7,IF(L$5<Inputs!$C$7,'UE - ESC'!L37,IF(L$5>=Inputs!$C$7+'UE - ESC'!$W$33,0,'UE - ESC'!$T37/'UE - ESC'!$W$33)),'UE - AER'!L37),0) -> 3033907.172 | M10: =IFERROR(IF($B10<Inputs!$C$7,IF(M$5<Inputs!$C$7,'UE - ESC'!M37,IF(M$5>=Inputs!$C$7+'UE - ESC'!$W$33,0,'UE - ESC'!$T37/'UE - ESC'!$W$33)),'UE - AER'!M37),0) -> 3033907.172 | N10: =IFERROR(IF($B10<Inputs!$C$7,IF(N$5<Inputs!$C$7,'UE - ESC'!N37,IF(N$5>=Inputs!$C$7+'UE - ESC'!$W$33,0,'UE - ESC'!$T37/'UE - ESC'!$W$33)),'UE - AER'!N37),0) -> 3033907.172 | O10: =IFERROR(IF($B10<Inputs!$C$7,IF(O$5<Inputs!$C$7,'UE - ESC'!O37,IF(O$5>=Inputs!$C$7+'UE - ESC'!$W$33,0,'UE - ESC'!$T37/'UE - ESC'!$W$33)),'UE - AER'!O37),0) -> 3033907.172
B11: 2014 | C11: 15 | D11: =IFERROR(IF($B11<Inputs!$C$7,IF(D$5<Inputs!$C$7,'UE - ESC'!D38,IF(D$5>=Inputs!$C$7+'UE - ESC'!$W$33,0,'UE - ESC'!$T38/'UE - ESC'!$W$33)),'UE - AER'!D38),0) -> 0 | E11: =IFERROR(IF($B11<Inputs!$C$7,IF(E$5<Inputs!$C$7,'UE - ESC'!E38,IF(E$5>=Inputs!$C$7+'UE - ESC'!$W$33,0,'UE - ESC'!$T38/'UE - ESC'!$W$33)),'UE - AER'!E38),0) -> 0 | F11: =IFERROR(IF($B11<Inputs!$C$7,IF(F$5<Inputs!$C$7,'UE - ESC'!F38,IF(F$5>=Inputs!$C$7+'UE - ESC'!$W$33,0,'UE - ESC'!$T38/'UE - ESC'!$W$33)),'UE - AER'!F38),0) -> 0 | G11: =IFERROR(IF($B11<Inputs!$C$7,IF(G$5<Inputs!$C$7,'UE - ESC'!G38,IF(G$5>=Inputs!$C$7+'UE - ESC'!$W$33,0,'UE - ESC'!$T38/'UE - ESC'!$W$33)),'UE - AER'!G38),0) -> 0 | H11: =IFERROR(IF($B11<Inputs!$C$7,IF(H$5<Inputs!$C$7,'UE - ESC'!H38,IF(H$5>=Inputs!$C$7+'UE - ESC'!$W$33,0,'UE - ESC'!$T38/'UE - ESC'!$W$33)),'UE - AER'!H38),0) -> 0 | I11: =IFERROR(IF($B11<Inputs!$C$7,IF(I$5<Inputs!$C$7,'UE - ESC'!I38,IF(I$5>=Inputs!$C$7+'UE - ESC'!$W$33,0,'UE - ESC'!$T38/'UE - ESC'!$W$33)),'UE - AER'!I38),0) -> 342613.6001 | J11: =IFERROR(IF($B11<Inputs!$C$7,IF(J$5<Inputs!$C$7,'UE - ESC'!J38,IF(J$5>=Inputs!$C$7+'UE - ESC'!$W$33,0,'UE - ESC'!$T38/'UE - ESC'!$W$33)),'UE - AER'!J38),0) -> 685227.2002 | K11: =IFERROR(IF($B11<Inputs!$C$7,IF(K$5<Inputs!$C$7,'UE - ESC'!K38,IF(K$5>=Inputs!$C$7+'UE - ESC'!$W$33,0,'UE - ESC'!$T38/'UE - ESC'!$W$33)),'UE - AER'!K38),0) -> 840960.6548 | L11: =IFERROR(IF($B11<Inputs!$C$7,IF(L$5<Inputs!$C$7,'UE - ESC'!L38,IF(L$5>=Inputs!$C$7+'UE - ESC'!$W$33,0,'UE - ESC'!$T38/'UE - ESC'!$W$33)),'UE - AER'!L38),0) -> 840960.6548 | M11: =IFERROR(IF($B11<Inputs!$C$7,IF(M$5<Inputs!$C$7,'UE - ESC'!M38,IF(M$5>=Inputs!$C$7+'UE - ESC'!$W$33,0,'UE - ESC'!$T38/'UE - ESC'!$W$33)),'UE - AER'!M38),0) -> 840960.6548 | N11: =IFERROR(IF($B11<Inputs!$C$7,IF(N$5<Inputs!$C$7,'UE - ESC'!N38,IF(N$5>=Inputs!$C$7+'UE - ESC'!$W$33,0,'UE - ESC'!$T38/'UE - ESC'!$W$33)),'UE - AER'!N38),0) -> 840960.6548 | O11: =IFERROR(IF($B11<Inputs!$C$7,IF(O$5<Inputs!$C$7,'UE - ESC'!O38,IF(O$5>=Inputs!$C$7+'UE - ESC'!$W$33,0,'UE - ESC'!$T38/'UE - ESC'!$W$33)),'UE - AER'!O38),0) -> 840960.6548
B12: 2015 | C12: 15 | D12: =IFERROR(IF($B12<Inputs!$C$7,IF(D$5<Inputs!$C$7,'UE - ESC'!D39,IF(D$5>=Inputs!$C$7+'UE - ESC'!$W$33,0,'UE - ESC'!$T39/'UE - ESC'!$W$33)),'UE - AER'!D39),0) -> 0 | E12: =IFERROR(IF($B12<Inputs!$C$7,IF(E$5<Inputs!$C$7,'UE - ESC'!E39,IF(E$5>=Inputs!$C$7+'UE - ESC'!$W$33,0,'UE - ESC'!$T39/'UE - ESC'!$W$33)),'UE - AER'!E39),0) -> 0 | F12: =IFERROR(IF($B12<Inputs!$C$7,IF(F$5<Inputs!$C$7,'UE - ESC'!F39,IF(F$5>=Inputs!$C$7+'UE - ESC'!$W$33,0,'UE - ESC'!$T39/'UE - ESC'!$W$33)),'UE - AER'!F39),0) -> 0 | G12: =IFERROR(IF($B12<Inputs!$C$7,IF(G$5<Inputs!$C$7,'UE - ESC'!G39,IF(G$5>=Inputs!$C$7+'UE - ESC'!$W$33,0,'UE - ESC'!$T39/'UE - ESC'!$W$33)),'UE - AER'!G39),0) -> 0 | H12: =IFERROR(IF($B12<Inputs!$C$7,IF(H$5<Inputs!$C$7,'UE - ESC'!H39,IF(H$5>=Inputs!$C$7+'UE - ESC'!$W$33,0,'UE - ESC'!$T39/'UE - ESC'!$W$33)),'UE - AER'!H39),0) -> 0 | I12: =IFERROR(IF($B12<Inputs!$C$7,IF(I$5<Inputs!$C$7,'UE - ESC'!I39,IF(I$5>=Inputs!$C$7+'UE - ESC'!$W$33,0,'UE - ESC'!$T39/'UE - ESC'!$W$33)),'UE - AER'!I39),0) -> 0 | J12: =IFERROR(IF($B12<Inputs!$C$7,IF(J$5<Inputs!$C$7,'UE - ESC'!J39,IF(J$5>=Inputs!$C$7+'UE - ESC'!$W$33,0,'UE - ESC'!$T39/'UE - ESC'!$W$33)),'UE - AER'!J39),0) -> 34582.19749 | K12: =IFERROR(IF($B12<Inputs!$C$7,IF(K$5<Inputs!$C$7,'UE - ESC'!K39,IF(K$5>=Inputs!$C$7+'UE - ESC'!$W$33,0,'UE - ESC'!$T39/'UE - ESC'!$W$33)),'UE - AER'!K39),0) -> 91171.24794 | L12: =IFERROR(IF($B12<Inputs!$C$7,IF(L$5<Inputs!$C$7,'UE - ESC'!L39,IF(L$5>=Inputs!$C$7+'UE - ESC'!$W$33,0,'UE - ESC'!$T39/'UE - ESC'!$W$33)),'UE - AER'!L39),0) -> 91171.24794 | M12: =IFERROR(IF($B12<Inputs!$C$7,IF(M$5<Inputs!$C$7,'UE - ESC'!M39,IF(M$5>=Inputs!$C$7+'UE - ESC'!$W$33,0,'UE - ESC'!$T39/'UE - ESC'!$W$33)),'UE - AER'!M39),0) -> 91171.24794 | N12: =IFERROR(IF($B12<Inputs!$C$7,IF(N$5<Inputs!$C$7,'UE - ESC'!N39,IF(N$5>=Inputs!$C$7+'UE - ESC'!$W$33,0,'UE - ESC'!$T39/'UE - ESC'!$W$33)),'UE - AER'!N39),0) -> 91171.24794 | O12: =IFERROR(IF($B12<Inputs!$C$7,IF(O$5<Inputs!$C$7,'UE - ESC'!O39,IF(O$5>=Inputs!$C$7+'UE - ESC'!$W$33,0,'UE - ESC'!$T39/'UE - ESC'!$W$33)),'UE - AER'!O39),0) -> 91171.24794
B13: 2016 | C13: 15 | D13: =IFERROR(IF($B13<Inputs!$C$7,IF(D$5<Inputs!$C$7,'UE - ESC'!D40,IF(D$5>=Inputs!$C$7+'UE - ESC'!$W$33,0,'UE - ESC'!$T40/'UE - ESC'!$W$33)),'UE - AER'!D40),0) -> 0 | E13: =IFERROR(IF($B13<Inputs!$C$7,IF(E$5<Inputs!$C$7,'UE - ESC'!E40,IF(E$5>=Inputs!$C$7+'UE - ESC'!$W$33,0,'UE - ESC'!$T40/'UE - ESC'!$W$33)),'UE - AER'!E40),0) -> 0 | F13: =IFERROR(IF($B13<Inputs!$C$7,IF(F$5<Inputs!$C$7,'UE - ESC'!F40,IF(F$5>=Inputs!$C$7+'UE - ESC'!$W$33,0,'UE - ESC'!$T40/'UE - ESC'!$W$33)),'UE - AER'!F40),0) -> 0 | G13: =IFERROR(IF($B13<Inputs!$C$7,IF(G$5<Inputs!$C$7,'UE - ESC'!G40,IF(G$5>=Inputs!$C$7+'UE - ESC'!$W$33,0,'UE - ESC'!$T40/'UE - ESC'!$W$33)),'UE - AER'!G40),0) -> 0 | H13: =IFERROR(IF($B13<Inputs!$C$7,IF(H$5<Inputs!$C$7,'UE - ESC'!H40,IF(H$5>=Inputs!$C$7+'UE - ESC'!$W$33,0,'UE - ESC'!$T40/'UE - ESC'!$W$33)),'UE - AER'!H40),0) -> 0 | I13: =IFERROR(IF($B13<Inputs!$C$7,IF(I$5<Inputs!$C$7,'UE - ESC'!I40,IF(I$5>=Inputs!$C$7+'UE - ESC'!$W$33,0,'UE - ESC'!$T40/'UE - ESC'!$W$33)),'UE - AER'!I40),0) -> 0 | J13: =IFERROR(IF($B13<Inputs!$C$7,IF(J$5<Inputs!$C$7,'UE - ESC'!J40,IF(J$5>=Inputs!$C$7+'UE - ESC'!$W$33,0,'UE - ESC'!$T40/'UE - ESC'!$W$33)),'UE - AER'!J40),0) -> 0 | K13: =IFERROR(IF($B13<Inputs!$C$7,IF(K$5<Inputs!$C$7,'UE - ESC'!K40,IF(K$5>=Inputs!$C$7+'UE - ESC'!$W$33,0,'UE - ESC'!$T40/'UE - ESC'!$W$33)),'UE - AER'!K40),0) -> 0 | L13: =IFERROR(IF($B13<Inputs!$C$7,IF(L$5<Inputs!$C$7,'UE - ESC'!L40,IF(L$5>=Inputs!$C$7+'UE - ESC'!$W$33,0,'UE - ESC'!$T40/'UE - ESC'!$W$33)),'UE - AER'!L40),0) -> 63952.43046 | M13: =IFERROR(IF($B13<Inputs!$C$7,IF(M$5<Inputs!$C$7,'UE - ESC'!M40,IF(M$5>=Inputs!$C$7+'UE - ESC'!$W$33,0,'UE - ESC'!$T40/'UE - ESC'!$W$33)),'UE - AER'!M40),0) -> 63952.43046 | N13: =IFERROR(IF($B13<Inputs!$C$7,IF(N$5<Inputs!$C$7,'UE - ESC'!N40,IF(N$5>=Inputs!$C$7+'UE - ESC'!$W$33,0,'UE - ESC'!$T40/'UE - ESC'!$W$33)),'UE - AER'!N40),0) -> 63952.43046 | O13: =IFERROR(IF($B13<Inputs!$C$7,IF(O$5<Inputs!$C$7,'UE - ESC'!O40,IF(O$5>=Inputs!$C$7+'UE - ESC'!$W$33,0,'UE - ESC'!$T40/'UE - ESC'!$W$33)),'UE - AER'!O40),0) -> 63952.43046
B14: 2017 | C14: 15 | D14: =IFERROR(IF($B14<Inputs!$C$7,IF(D$5<Inputs!$C$7,'UE - ESC'!D41,IF(D$5>=Inputs!$C$7+'UE - ESC'!$W$33,0,'UE - ESC'!$T41/'UE - ESC'!$W$33)),'UE - AER'!D41),0) -> 0 | E14: =IFERROR(IF($B14<Inputs!$C$7,IF(E$5<Inputs!$C$7,'UE - ESC'!E41,IF(E$5>=Inputs!$C$7+'UE - ESC'!$W$33,0,'UE - ESC'!$T41/'UE - ESC'!$W$33)),'UE - AER'!E41),0) -> 0 | F14: =IFERROR(IF($B14<Inputs!$C$7,IF(F$5<Inputs!$C$7,'UE - ESC'!F41,IF(F$5>=Inputs!$C$7+'UE - ESC'!$W$33,0,'UE - ESC'!$T41/'UE - ESC'!$W$33)),'UE - AER'!F41),0) -> 0 | G14: =IFERROR(IF($B14<Inputs!$C$7,IF(G$5<Inputs!$C$7,'UE - ESC'!G41,IF(G$5>=Inputs!$C$7+'UE - ESC'!$W$33,0,'UE - ESC'!$T41/'UE - ESC'!$W$33)),'UE - AER'!G41),0) -> 0 | H14: =IFERROR(IF($B14<Inputs!$C$7,IF(H$5<Inputs!$C$7,'UE - ESC'!H41,IF(H$5>=Inputs!$C$7+'UE - ESC'!$W$33,0,'UE - ESC'!$T41/'UE - ESC'!$W$33)),'UE - AER'!H41),0) -> 0 | I14: =IFERROR(IF($B14<Inputs!$C$7,IF(I$5<Inputs!$C$7,'UE - ESC'!I41,IF(I$5>=Inputs!$C$7+'UE - ESC'!$W$33,0,'UE - ESC'!$T41/'UE - ESC'!$W$33)),'UE - AER'!I41),0) -> 0 | J14: =IFERROR(IF($B14<Inputs!$C$7,IF(J$5<Inputs!$C$7,'UE - ESC'!J41,IF(J$5>=Inputs!$C$7+'UE - ESC'!$W$33,0,'UE - ESC'!$T41/'UE - ESC'!$W$33)),'UE - AER'!J41),0) -> 0 | K14: =IFERROR(IF($B14<Inputs!$C$7,IF(K$5<Inputs!$C$7,'UE - ESC'!K41,IF(K$5>=Inputs!$C$7+'UE - ESC'!$W$33,0,'UE - ESC'!$T41/'UE - ESC'!$W$33)),'UE - AER'!K41),0) -> 0 | L14: =IFERROR(IF($B14<Inputs!$C$7,IF(L$5<Inputs!$C$7,'UE - ESC'!L41,IF(L$5>=Inputs!$C$7+'UE - ESC'!$W$33,0,'UE - ESC'!$T41/'UE - ESC'!$W$33)),'UE - AER'!L41),0) -> 0 | M14: =IFERROR(IF($B14<Inputs!$C$7,IF(M$5<Inputs!$C$7,'UE - ESC'!M41,IF(M$5>=Inputs!$C$7+'UE - ESC'!$W$33,0,'UE - ESC'!$T41/'UE - ESC'!$W$33)),'UE - AER'!M41),0) -> 0 | N14: =IFERROR(IF($B14<Inputs!$C$7,IF(N$5<Inputs!$C$7,'UE - ESC'!N41,IF(N$5>=Inputs!$C$7+'UE - ESC'!$W$33,0,'UE - ESC'!$T41/'UE - ESC'!$W$33)),'UE - AER'!N41),0) -> 0 | O14: =IFERROR(IF($B14<Inputs!$C$7,IF(O$5<Inputs!$C$7,'UE - ESC'!O41,IF(O$5>=Inputs!$C$7+'UE - ESC'!$W$33,0,'UE - ESC'!$T41/'UE - ESC'!$W$33)),'UE - AER'!O41),0) -> 0
B15: 2018 | C15: 15 | D15: =IFERROR(IF($B15<Inputs!$C$7,IF(D$5<Inputs!$C$7,'UE - ESC'!D42,IF(D$5>=Inputs!$C$7+'UE - ESC'!$W$33,0,'UE - ESC'!$T42/'UE - ESC'!$W$33)),'UE - AER'!D42),0) -> 0 | E15: =IFERROR(IF($B15<Inputs!$C$7,IF(E$5<Inputs!$C$7,'UE - ESC'!E42,IF(E$5>=Inputs!$C$7+'UE - ESC'!$W$33,0,'UE - ESC'!$T42/'UE - ESC'!$W$33)),'UE - AER'!E42),0) -> 0 | F15: =IFERROR(IF($B15<Inputs!$C$7,IF(F$5<Inputs!$C$7,'UE - ESC'!F42,IF(F$5>=Inputs!$C$7+'UE - ESC'!$W$33,0,'UE - ESC'!$T42/'UE - ESC'!$W$33)),'UE - AER'!F42),0) -> 0 | G15: =IFERROR(IF($B15<Inputs!$C$7,IF(G$5<Inputs!$C$7,'UE - ESC'!G42,IF(G$5>=Inputs!$C$7+'UE - ESC'!$W$33,0,'UE - ESC'!$T42/'UE - ESC'!$W$33)),'UE - AER'!G42),0) -> 0 | H15: =IFERROR(IF($B15<Inputs!$C$7,IF(H$5<Inputs!$C$7,'UE - ESC'!H42,IF(H$5>=Inputs!$C$7+'UE - ESC'!$W$33,0,'UE - ESC'!$T42/'UE - ESC'!$W$33)),'UE - AER'!H42),0) -> 0 | I15: =IFERROR(IF($B15<Inputs!$C$7,IF(I$5<Inputs!$C$7,'UE - ESC'!I42,IF(I$5>=Inputs!$C$7+'UE - ESC'!$W$33,0,'UE - ESC'!$T42/'UE - ESC'!$W$33)),'UE - AER'!I42),0) -> 0 | J15: =IFERROR(IF($B15<Inputs!$C$7,IF(J$5<Inputs!$C$7,'UE - ESC'!J42,IF(J$5>=Inputs!$C$7+'UE - ESC'!$W$33,0,'UE - ESC'!$T42/'UE - ESC'!$W$33)),'UE - AER'!J42),0) -> 0 | K15: =IFERROR(IF($B15<Inputs!$C$7,IF(K$5<Inputs!$C$7,'UE - ESC'!K42,IF(K$5>=Inputs!$C$7+'UE - ESC'!$W$33,0,'UE - ESC'!$T42/'UE - ESC'!$W$33)),'UE - AER'!K42),0) -> 0 | L15: =IFERROR(IF($B15<Inputs!$C$7,IF(L$5<Inputs!$C$7,'UE - ESC'!L42,IF(L$5>=Inputs!$C$7+'UE - ESC'!$W$33,0,'UE - ESC'!$T42/'UE - ESC'!$W$33)),'UE - AER'!L42),0) -> 0 | M15: =IFERROR(IF($B15<Inputs!$C$7,IF(M$5<Inputs!$C$7,'UE - ESC'!M42,IF(M$5>=Inputs!$C$7+'UE - ESC'!$W$33,0,'UE - ESC'!$T42/'UE - ESC'!$W$33)),'UE - AER'!M42),0) -> 0 | N15: =IFERROR(IF($B15<Inputs!$C$7,IF(N$5<Inputs!$C$7,'UE - ESC'!N42,IF(N$5>=Inputs!$C$7+'UE - ESC'!$W$33,0,'UE - ESC'!$T42/'UE - ESC'!$W$33)),'UE - AER'!N42),0) -> 0 | O15: =IFERROR(IF($B15<Inputs!$C$7,IF(O$5<Inputs!$C$7,'UE - ESC'!O42,IF(O$5>=Inputs!$C$7+'UE - ESC'!$W$33,0,'UE - ESC'!$T42/'UE - ESC'!$W$33)),'UE - AER'!O42),0) -> 0
B16: 2019 | C16: 15 | D16: =IFERROR(IF($B16<Inputs!$C$7,IF(D$5<Inputs!$C$7,'UE - ESC'!D43,IF(D$5>=Inputs!$C$7+'UE - ESC'!$W$33,0,'UE - ESC'!$T43/'UE - ESC'!$W$33)),'UE - AER'!D43),0) -> 0 | E16: =IFERROR(IF($B16<Inputs!$C$7,IF(E$5<Inputs!$C$7,'UE - ESC'!E43,IF(E$5>=Inputs!$C$7+'UE - ESC'!$W$33,0,'UE - ESC'!$T43/'UE - ESC'!$W$33)),'UE - AER'!E43),0) -> 0 | F16: =IFERROR(IF($B16<Inputs!$C$7,IF(F$5<Inputs!$C$7,'UE - ESC'!F43,IF(F$5>=Inputs!$C$7+'UE - ESC'!$W$33,0,'UE - ESC'!$T43/'UE - ESC'!$W$33)),'UE - AER'!F43),0) -> 0 | G16: =IFERROR(IF($B16<Inputs!$C$7,IF(G$5<Inputs!$C$7,'UE - ESC'!G43,IF(G$5>=Inputs!$C$7+'UE - ESC'!$W$33,0,'UE - ESC'!$T43/'UE - ESC'!$W$33)),'UE - AER'!G43),0) -> 0 | H16: =IFERROR(IF($B16<Inputs!$C$7,IF(H$5<Inputs!$C$7,'UE - ESC'!H43,IF(H$5>=Inputs!$C$7+'UE - ESC'!$W$33,0,'UE - ESC'!$T43/'UE - ESC'!$W$33)),'UE - AER'!H43),0) -> 0 | I16: =IFERROR(IF($B16<Inputs!$C$7,IF(I$5<Inputs!$C$7,'UE - ESC'!I43,IF(I$5>=Inputs!$C$7+'UE - ESC'!$W$33,0,'UE - ESC'!$T43/'UE - ESC'!$W$33)),'UE - AER'!I43),0) -> 0 | J16: =IFERROR(IF($B16<Inputs!$C$7,IF(J$5<Inputs!$C$7,'UE - ESC'!J43,IF(J$5>=Inputs!$C$7+'UE - ESC'!$W$33,0,'UE - ESC'!$T43/'UE - ESC'!$W$33)),'UE - AER'!J43),0) -> 0 | K16: =IFERROR(IF($B16<Inputs!$C$7,IF(K$5<Inputs!$C$7,'UE - ESC'!K43,IF(K$5>=Inputs!$C$7+'UE - ESC'!$W$33,0,'UE - ESC'!$T43/'UE - ESC'!$W$33)),'UE - AER'!K43),0) -> 0 | L16: =IFERROR(IF($B16<Inputs!$C$7,IF(L$5<Inputs!$C$7,'UE - ESC'!L43,IF(L$5>=Inputs!$C$7+'UE - ESC'!$W$33,0,'UE - ESC'!$T43/'UE - ESC'!$W$33)),'UE - AER'!L43),0) -> 0 | M16: =IFERROR(IF($B16<Inputs!$C$7,IF(M$5<Inputs!$C$7,'UE - ESC'!M43,IF(M$5>=Inputs!$C$7+'UE - ESC'!$W$33,0,'UE - ESC'!$T43/'UE - ESC'!$W$33)),'UE - AER'!M43),0) -> 0 | N16: =IFERROR(IF($B16<Inputs!$C$7,IF(N$5<Inputs!$C$7,'UE - ESC'!N43,IF(N$5>=Inputs!$C$7+'UE - ESC'!$W$33,0,'UE - ESC'!$T43/'UE - ESC'!$W$33)),'UE - AER'!N43),0) -> 0 | O16: =IFERROR(IF($B16<Inputs!$C$7,IF(O$5<Inputs!$C$7,'UE - ESC'!O43,IF(O$5>=Inputs!$C$7+'UE - ESC'!$W$33,0,'UE - ESC'!$T43/'UE - ESC'!$W$33)),'UE - AER'!O43),0) -> 0
B17: 2020 | C17: 15 | D17: =IFERROR(IF($B17<Inputs!$C$7,IF(D$5<Inputs!$C$7,'UE - ESC'!D44,IF(D$5>=Inputs!$C$7+'UE - ESC'!$W$33,0,'UE - ESC'!$T44/'UE - ESC'!$W$33)),'UE - AER'!D44),0) -> 0 | E17: =IFERROR(IF($B17<Inputs!$C$7,IF(E$5<Inputs!$C$7,'UE - ESC'!E44,IF(E$5>=Inputs!$C$7+'UE - ESC'!$W$33,0,'UE - ESC'!$T44/'UE - ESC'!$W$33)),'UE - AER'!E44),0) -> 0 | F17: =IFERROR(IF($B17<Inputs!$C$7,IF(F$5<Inputs!$C$7,'UE - ESC'!F44,IF(F$5>=Inputs!$C$7+'UE - ESC'!$W$33,0,'UE - ESC'!$T44/'UE - ESC'!$W$33)),'UE - AER'!F44),0) -> 0 | G17: =IFERROR(IF($B17<Inputs!$C$7,IF(G$5<Inputs!$C$7,'UE - ESC'!G44,IF(G$5>=Inputs!$C$7+'UE - ESC'!$W$33,0,'UE - ESC'!$T44/'UE - ESC'!$W$33)),'UE - AER'!G44),0) -> 0 | H17: =IFERROR(IF($B17<Inputs!$C$7,IF(H$5<Inputs!$C$7,'UE - ESC'!H44,IF(H$5>=Inputs!$C$7+'UE - ESC'!$W$33,0,'UE - ESC'!$T44/'UE - ESC'!$W$33)),'UE - AER'!H44),0) -> 0 | I17: =IFERROR(IF($B17<Inputs!$C$7,IF(I$5<Inputs!$C$7,'UE - ESC'!I44,IF(I$5>=Inputs!$C$7+'UE - ESC'!$W$33,0,'UE - ESC'!$T44/'UE - ESC'!$W$33)),'UE - AER'!I44),0) -> 0 | J17: =IFERROR(IF($B17<Inputs!$C$7,IF(J$5<Inputs!$C$7,'UE - ESC'!J44,IF(J$5>=Inputs!$C$7+'UE - ESC'!$W$33,0,'UE - ESC'!$T44/'UE - ESC'!$W$33)),'UE - AER'!J44),0) -> 0 | K17: =IFERROR(IF($B17<Inputs!$C$7,IF(K$5<Inputs!$C$7,'UE - ESC'!K44,IF(K$5>=Inputs!$C$7+'UE - ESC'!$W$33,0,'UE - ESC'!$T44/'UE - ESC'!$W$33)),'UE - AER'!K44),0) -> 0 | L17: =IFERROR(IF($B17<Inputs!$C$7,IF(L$5<Inputs!$C$7,'UE - ESC'!L44,IF(L$5>=Inputs!$C$7+'UE - ESC'!$W$33,0,'UE - ESC'!$T44/'UE - ESC'!$W$33)),'UE - AER'!L44),0) -> 0 | M17: =IFERROR(IF($B17<Inputs!$C$7,IF(M$5<Inputs!$C$7,'UE - ESC'!M44,IF(M$5>=Inputs!$C$7+'UE - ESC'!$W$33,0,'UE - ESC'!$T44/'UE - ESC'!$W$33)),'UE - AER'!M44),0) -> 0 | N17: =IFERROR(IF($B17<Inputs!$C$7,IF(N$5<Inputs!$C$7,'UE - ESC'!N44,IF(N$5>=Inputs!$C$7+'UE - ESC'!$W$33,0,'UE - ESC'!$T44/'UE - ESC'!$W$33)),'UE - AER'!N44),0) -> 0 | O17: =IFERROR(IF($B17<Inputs!$C$7,IF(O$5<Inputs!$C$7,'UE - ESC'!O44,IF(O$5>=Inputs!$C$7+'UE - ESC'!$W$33,0,'UE - ESC'!$T44/'UE - ESC'!$W$33)),'UE - AER'!O44),0) -> 0
B18: 0 | C18: 15 | D18: =IFERROR(IF($B18<Inputs!$C$7,IF(D$5<Inputs!$C$7,'UE - ESC'!D45,IF(D$5>=Inputs!$C$7+'UE - ESC'!$W$33,0,'UE - ESC'!$T45/'UE - ESC'!$W$33)),'UE - AER'!D45),0) -> 0 | E18: =IFERROR(IF($B18<Inputs!$C$7,IF(E$5<Inputs!$C$7,'UE - ESC'!E45,IF(E$5>=Inputs!$C$7+'UE - ESC'!$W$33,0,'UE - ESC'!$T45/'UE - ESC'!$W$33)),'UE - AER'!E45),0) -> 0 | F18: =IFERROR(IF($B18<Inputs!$C$7,IF(F$5<Inputs!$C$7,'UE - ESC'!F45,IF(F$5>=Inputs!$C$7+'UE - ESC'!$W$33,0,'UE - ESC'!$T45/'UE - ESC'!$W$33)),'UE - AER'!F45),0) -> 0 | G18: =IFERROR(IF($B18<Inputs!$C$7,IF(G$5<Inputs!$C$7,'UE - ESC'!G45,IF(G$5>=Inputs!$C$7+'UE - ESC'!$W$33,0,'UE - ESC'!$T45/'UE - ESC'!$W$33)),'UE - AER'!G45),0) -> 0 | H18: =IFERROR(IF($B18<Inputs!$C$7,IF(H$5<Inputs!$C$7,'UE - ESC'!H45,IF(H$5>=Inputs!$C$7+'UE - ESC'!$W$33,0,'UE - ESC'!$T45/'UE - ESC'!$W$33)),'UE - AER'!H45),0) -> 0 | I18: =IFERROR(IF($B18<Inputs!$C$7,IF(I$5<Inputs!$C$7,'UE - ESC'!I45,IF(I$5>=Inputs!$C$7+'UE - ESC'!$W$33,0,'UE - ESC'!$T45/'UE - ESC'!$W$33)),'UE - AER'!I45),0) -> 0 | J18: =IFERROR(IF($B18<Inputs!$C$7,IF(J$5<Inputs!$C$7,'UE - ESC'!J45,IF(J$5>=Inputs!$C$7+'UE - ESC'!$W$33,0,'UE - ESC'!$T45/'UE - ESC'!$W$33)),'UE - AER'!J45),0) -> 0 | K18: =IFERROR(IF($B18<Inputs!$C$7,IF(K$5<Inputs!$C$7,'UE - ESC'!K45,IF(K$5>=Inputs!$C$7+'UE - ESC'!$W$33,0,'UE - ESC'!$T45/'UE - ESC'!$W$33)),'UE - AER'!K45),0) -> 0 | L18: =IFERROR(IF($B18<Inputs!$C$7,IF(L$5<Inputs!$C$7,'UE - ESC'!L45,IF(L$5>=Inputs!$C$7+'UE - ESC'!$W$33,0,'UE - ESC'!$T45/'UE - ESC'!$W$33)),'UE - AER'!L45),0) -> 0 | M18: =IFERROR(IF($B18<Inputs!$C$7,IF(M$5<Inputs!$C$7,'UE - ESC'!M45,IF(M$5>=Inputs!$C$7+'UE - ESC'!$W$33,0,'UE - ESC'!$T45/'UE - ESC'!$W$33)),'UE - AER'!M45),0) -> 0 | N18: =IFERROR(IF($B18<Inputs!$C$7,IF(N$5<Inputs!$C$7,'UE - ESC'!N45,IF(N$5>=Inputs!$C$7+'UE - ESC'!$W$33,0,'UE - ESC'!$T45/'UE - ESC'!$W$33)),'UE - AER'!N45),0) -> 0 | O18: =IFERROR(IF($B18<Inputs!$C$7,IF(O$5<Inputs!$C$7,'UE - ESC'!O45,IF(O$5>=Inputs!$C$7+'UE - ESC'!$W$33,0,'UE - ESC'!$T45/'UE - ESC'!$W$33)),'UE - AER'!O45),0) -> 0
B19: TOTAL | D19: =SUM(D6:D18) -> 353536.8611 | E19: 1621887.389 | F19: 4048757.785 | G19: 7199731.321 | H19: 10173567.28 | I19: 11851100.04 | J19: 12228295.84 | K19: 12406026.73 | L19: 12469979.16 | M19: 12469979.16 | N19: 12469979.16 | O19: 12469979.16
B22: ="Depreciation - "&Inputs!C4&" - "&INDEX(Inputs!B38:B45,A24,)&" - "&IF(Inputs!C5=Inputs!C17,Inputs!C17,Inputs!C18) -> Depreciation - United Energy - Single Phase, Two Element - 2015$
A24: 2 | B24: =INDEX(Inputs!$B$38:$B$45,$A$24,) -> Single Phase, Two Element | C24: Life | D24: 2009 | E24: 2010 | F24: 2011 | G24: 2012 | H24: 2013 | I24: 2014 | J24: 2015 | K24: 2016 | L24: 2017 | M24: 2018 | N24: 2019 | O24: 2020
B25: =B6 -> 2009 | C25: =INDEX(Inputs!$C$38:$C$45,$A$24,) -> 15 | D25: =IFERROR(IF($B25<Inputs!$C$7,IF(D$24<Inputs!$C$7,'UE - ESC'!D52,IF(D$24>=Inputs!$C$7+'UE - ESC'!$W$52,0,'UE - ESC'!$T52/'UE - ESC'!$W$52)),'UE - AER'!D52),0) -> 40793.41783 | E25: =IFERROR(IF($B25<Inputs!$C$7,IF(E$24<Inputs!$C$7,'UE - ESC'!E52,IF(E$24>=Inputs!$C$7+'UE - ESC'!$W$52,0,'UE - ESC'!$T52/'UE - ESC'!$W$52)),'UE - AER'!E52),0) -> 81586.83566 | F25: =IFERROR(IF($B25<Inputs!$C$7,IF(F$24<Inputs!$C$7,'UE - ESC'!F52,IF(F$24>=Inputs!$C$7+'UE - ESC'!$W$52,0,'UE - ESC'!$T52/'UE - ESC'!$W$52)),'UE - AER'!F52),0) -> 81586.83566 | G25: =IFERROR(IF($B25<Inputs!$C$7,IF(G$24<Inputs!$C$7,'UE - ESC'!G52,IF(G$24>=Inputs!$C$7+'UE - ESC'!$W$52,0,'UE - ESC'!$T52/'UE - ESC'!$W$52)),'UE - AER'!G52),0) -> 81586.83566 | H25: =IFERROR(IF($B25<Inputs!$C$7,IF(H$24<Inputs!$C$7,'UE - ESC'!H52,IF(H$24>=Inputs!$C$7+'UE - ESC'!$W$52,0,'UE - ESC'!$T52/'UE - ESC'!$W$52)),'UE - AER'!H52),0) -> 81586.83566 | I25: =IFERROR(IF($B25<Inputs!$C$7,IF(I$24<Inputs!$C$7,'UE - ESC'!I52,IF(I$24>=Inputs!$C$7+'UE - ESC'!$W$52,0,'UE - ESC'!$T52/'UE - ESC'!$W$52)),'UE - AER'!I52),0) -> 81586.83566 | J25: =IFERROR(IF($B25<Inputs!$C$7,IF(J$24<Inputs!$C$7,'UE - ESC'!J52,IF(J$24>=Inputs!$C$7+'UE - ESC'!$W$52,0,'UE - ESC'!$T52/'UE - ESC'!$W$52)),'UE - AER'!J52),0) -> 81586.83566 | K25: =IFERROR(IF($B25<Inputs!$C$7,IF(K$24<Inputs!$C$7,'UE - ESC'!K52,IF(K$24>=Inputs!$C$7+'UE - ESC'!$W$52,0,'UE - ESC'!$T52/'UE - ESC'!$W$52)),'UE - AER'!K52),0) -> 53345.2387 | L25: =IFERROR(IF($B25<Inputs!$C$7,IF(L$24<Inputs!$C$7,'UE - ESC'!L52,IF(L$24>=Inputs!$C$7+'UE - ESC'!$W$52,0,'UE - ESC'!$T52/'UE - ESC'!$W$52)),'UE - AER'!L52),0) -> 53345.2387 | M25: =IFERROR(IF($B25<Inputs!$C$7,IF(M$24<Inputs!$C$7,'UE - ESC'!M52,IF(M$24>=Inputs!$C$7+'UE - ESC'!$W$52,0,'UE - ESC'!$T52/'UE - ESC'!$W$52)),'UE - AER'!M52),0) -> 53345.2387 | N25: =IFERROR(IF($B25<Inputs!$C$7,IF(N$24<Inputs!$C$7,'UE - ESC'!N52,IF(N$24>=Inputs!$C$7+'UE - ESC'!$W$52,0,'UE - ESC'!$T52/'UE - ESC'!$W$52)),'UE - AER'!N52),0) -> 53345.2387 | O25: =IFERROR(IF($B25<Inputs!$C$7,IF(O$24<Inputs!$C$7,'UE - ESC'!O52,IF(O$24>=Inputs!$C$7+'UE - ESC'!$W$52,0,'UE - ESC'!$T52/'UE - ESC'!$W$52)),'UE - AER'!O52),0) -> 53345.2387
B26: =B7 -> 2010 | C26: =C25 -> 15 | D26: =IFERROR(IF($B26<Inputs!$C$7,IF(D$24<Inputs!$C$7,'UE - ESC'!D53,IF(D$24>=Inputs!$C$7+'UE - ESC'!$W$52,0,'UE - ESC'!$T53/'UE - ESC'!$W$52)),'UE - AER'!D53),0) -> 0 | E26: =IFERROR(IF($B26<Inputs!$C$7,IF(E$24<Inputs!$C$7,'UE - ESC'!E53,IF(E$24>=Inputs!$C$7+'UE - ESC'!$W$52,0,'UE - ESC'!$T53/'UE - ESC'!$W$52)),'UE - AER'!E53),0) -> 0 | F26: =IFERROR(IF($B26<Inputs!$C$7,IF(F$24<Inputs!$C$7,'UE - ESC'!F53,IF(F$24>=Inputs!$C$7+'UE - ESC'!$W$52,0,'UE - ESC'!$T53/'UE - ESC'!$W$52)),'UE - AER'!F53),0) -> 0 | G26: =IFERROR(IF($B26<Inputs!$C$7,IF(G$24<Inputs!$C$7,'UE - ESC'!G53,IF(G$24>=Inputs!$C$7+'UE - ESC'!$W$52,0,'UE - ESC'!$T53/'UE - ESC'!$W$52)),'UE - AER'!G53),0) -> 0 | H26: =IFERROR(IF($B26<Inputs!$C$7,IF(H$24<Inputs!$C$7,'UE - ESC'!H53,IF(H$24>=Inputs!$C$7+'UE - ESC'!$W$52,0,'UE - ESC'!$T53/'UE - ESC'!$W$52)),'UE - AER'!H53),0) -> 0 | I26: =IFERROR(IF($B26<Inputs!$C$7,IF(I$24<Inputs!$C$7,'UE - ESC'!I53,IF(I$24>=Inputs!$C$7+'UE - ESC'!$W$52,0,'UE - ESC'!$T53/'UE - ESC'!$W$52)),'UE - AER'!I53),0) -> 0 | J26: =IFERROR(IF($B26<Inputs!$C$7,IF(J$24<Inputs!$C$7,'UE - ESC'!J53,IF(J$24>=Inputs!$C$7+'UE - ESC'!$W$52,0,'UE - ESC'!$T53/'UE - ESC'!$W$52)),'UE - AER'!J53),0) -> 0 | K26: =IFERROR(IF($B26<Inputs!$C$7,IF(K$24<Inputs!$C$7,'UE - ESC'!K53,IF(K$24>=Inputs!$C$7+'UE - ESC'!$W$52,0,'UE - ESC'!$T53/'UE - ESC'!$W$52)),'UE - AER'!K53),0) -> 0 | L26: =IFERROR(IF($B26<Inputs!$C$7,IF(L$24<Inputs!$C$7,'UE - ESC'!L53,IF(L$24>=Inputs!$C$7+'UE - ESC'!$W$52,0,'UE - ESC'!$T53/'UE - ESC'!$W$52)),'UE - AER'!L53),0) -> 0 | M26: =IFERROR(IF($B26<Inputs!$C$7,IF(M$24<Inputs!$C$7,'UE - ESC'!M53,IF(M$24>=Inputs!$C$7+'UE - ESC'!$W$52,0,'UE - ESC'!$T53/'UE - ESC'!$W$52)),'UE - AER'!M53),0) -> 0 | N26: =IFERROR(IF($B26<Inputs!$C$7,IF(N$24<Inputs!$C$7,'UE - ESC'!N53,IF(N$24>=Inputs!$C$7+'UE - ESC'!$W$52,0,'UE - ESC'!$T53/'UE - ESC'!$W$52)),'UE - AER'!N53),0) -> 0 | O26: =IFERROR(IF($B26<Inputs!$C$7,IF(O$24<Inputs!$C$7,'UE - ESC'!O53,IF(O$24>=Inputs!$C$7+'UE - ESC'!$W$52,0,'UE - ESC'!$T53/'UE - ESC'!$W$52)),'UE - AER'!O53),0) -> 0
B27: 2011 | C27: =C26 -> 15 | D27: =IFERROR(IF($B27<Inputs!$C$7,IF(D$24<Inputs!$C$7,'UE - ESC'!D54,IF(D$24>=Inputs!$C$7+'UE - ESC'!$W$52,0,'UE - ESC'!$T54/'UE - ESC'!$W$52)),'UE - AER'!D54),0) -> 0 | E27: =IFERROR(IF($B27<Inputs!$C$7,IF(E$24<Inputs!$C$7,'UE - ESC'!E54,IF(E$24>=Inputs!$C$7+'UE - ESC'!$W$52,0,'UE - ESC'!$T54/'UE - ESC'!$W$52)),'UE - AER'!E54),0) -> 0 | F27: =IFERROR(IF($B27<Inputs!$C$7,IF(F$24<Inputs!$C$7,'UE - ESC'!F54,IF(F$24>=Inputs!$C$7+'UE - ESC'!$W$52,0,'UE - ESC'!$T54/'UE - ESC'!$W$52)),'UE - AER'!F54),0) -> 0 | G27: =IFERROR(IF($B27<Inputs!$C$7,IF(G$24<Inputs!$C$7,'UE - ESC'!G54,IF(G$24>=Inputs!$C$7+'UE - ESC'!$W$52,0,'UE - ESC'!$T54/'UE - ESC'!$W$52)),'UE - AER'!G54),0) -> 0 | H27: =IFERROR(IF($B27<Inputs!$C$7,IF(H$24<Inputs!$C$7,'UE - ESC'!H54,IF(H$24>=Inputs!$C$7+'UE - ESC'!$W$52,0,'UE - ESC'!$T54/'UE - ESC'!$W$52)),'UE - AER'!H54),0) -> 0 | I27: =IFERROR(IF($B27<Inputs!$C$7,IF(I$24<Inputs!$C$7,'UE - ESC'!I54,IF(I$24>=Inputs!$C$7+'UE - ESC'!$W$52,0,'UE - ESC'!$T54/'UE - ESC'!$W$52)),'UE - AER'!I54),0) -> 0 | J27: =IFERROR(IF($B27<Inputs!$C$7,IF(J$24<Inputs!$C$7,'UE - ESC'!J54,IF(J$24>=Inputs!$C$7+'UE - ESC'!$W$52,0,'UE - ESC'!$T54/'UE - ESC'!$W$52)),'UE - AER'!J54),0) -> 0 | K27: =IFERROR(IF($B27<Inputs!$C$7,IF(K$24<Inputs!$C$7,'UE - ESC'!K54,IF(K$24>=Inputs!$C$7+'UE - ESC'!$W$52,0,'UE - ESC'!$T54/'UE - ESC'!$W$52)),'UE - AER'!K54),0) -> 0 | L27: =IFERROR(IF($B27<Inputs!$C$7,IF(L$24<Inputs!$C$7,'UE - ESC'!L54,IF(L$24>=Inputs!$C$7+'UE - ESC'!$W$52,0,'UE - ESC'!$T54/'UE - ESC'!$W$52)),'UE - AER'!L54),0) -> 0 | M27: =IFERROR(IF($B27<Inputs!$C$7,IF(M$24<Inputs!$C$7,'UE - ESC'!M54,IF(M$24>=Inputs!$C$7+'UE - ESC'!$W$52,0,'UE - ESC'!$T54/'UE - ESC'!$W$52)),'UE - AER'!M54),0) -> 0 | N27: =IFERROR(IF($B27<Inputs!$C$7,IF(N$24<Inputs!$C$7,'UE - ESC'!N54,IF(N$24>=Inputs!$C$7+'UE - ESC'!$W$52,0,'UE - ESC'!$T54/'UE - ESC'!$W$52)),'UE - AER'!N54),0) -> 0 | O27: =IFERROR(IF($B27<Inputs!$C$7,IF(O$24<Inputs!$C$7,'UE - ESC'!O54,IF(O$24>=Inputs!$C$7+'UE - ESC'!$W$52,0,'UE - ESC'!$T54/'UE - ESC'!$W$52)),'UE - AER'!O54),0) -> 0
B28: 2012 | C28: 15 | D28: =IFERROR(IF($B28<Inputs!$C$7,IF(D$24<Inputs!$C$7,'UE - ESC'!D55,IF(D$24>=Inputs!$C$7+'UE - ESC'!$W$52,0,'UE - ESC'!$T55/'UE - ESC'!$W$52)),'UE - AER'!D55),0) -> 0 | E28: =IFERROR(IF($B28<Inputs!$C$7,IF(E$24<Inputs!$C$7,'UE - ESC'!E55,IF(E$24>=Inputs!$C$7+'UE - ESC'!$W$52,0,'UE - ESC'!$T55/'UE - ESC'!$W$52)),'UE - AER'!E55),0) -> 0 | F28: =IFERROR(IF($B28<Inputs!$C$7,IF(F$24<Inputs!$C$7,'UE - ESC'!F55,IF(F$24>=Inputs!$C$7+'UE - ESC'!$W$52,0,'UE - ESC'!$T55/'UE - ESC'!$W$52)),'UE - AER'!F55),0) -> 0 | G28: =IFERROR(IF($B28<Inputs!$C$7,IF(G$24<Inputs!$C$7,'UE - ESC'!G55,IF(G$24>=Inputs!$C$7+'UE - ESC'!$W$52,0,'UE - ESC'!$T55/'UE - ESC'!$W$52)),'UE - AER'!G55),0) -> 0 | H28: =IFERROR(IF($B28<Inputs!$C$7,IF(H$24<Inputs!$C$7,'UE - ESC'!H55,IF(H$24>=Inputs!$C$7+'UE - ESC'!$W$52,0,'UE - ESC'!$T55/'UE - ESC'!$W$52)),'UE - AER'!H55),0) -> 0 | I28: =IFERROR(IF($B28<Inputs!$C$7,IF(I$24<Inputs!$C$7,'UE - ESC'!I55,IF(I$24>=Inputs!$C$7+'UE - ESC'!$W$52,0,'UE - ESC'!$T55/'UE - ESC'!$W$52)),'UE - AER'!I55),0) -> 0 | J28: =IFERROR(IF($B28<Inputs!$C$7,IF(J$24<Inputs!$C$7,'UE - ESC'!J55,IF(J$24>=Inputs!$C$7+'UE - ESC'!$W$52,0,'UE - ESC'!$T55/'UE - ESC'!$W$52)),'UE - AER'!J55),0) -> 0 | K28: =IFERROR(IF($B28<Inputs!$C$7,IF(K$24<Inputs!$C$7,'UE - ESC'!K55,IF(K$24>=Inputs!$C$7+'UE - ESC'!$W$52,0,'UE - ESC'!$T55/'UE - ESC'!$W$52)),'UE - AER'!K55),0) -> 0 | L28: =IFERROR(IF($B28<Inputs!$C$7,IF(L$24<Inputs!$C$7,'UE - ESC'!L55,IF(L$24>=Inputs!$C$7+'UE - ESC'!$W$52,0,'UE - ESC'!$T55/'UE - ESC'!$W$52)),'UE - AER'!L55),0) -> 0 | M28: =IFERROR(IF($B28<Inputs!$C$7,IF(M$24<Inputs!$C$7,'UE - ESC'!M55,IF(M$24>=Inputs!$C$7+'UE - ESC'!$W$52,0,'UE - ESC'!$T55/'UE - ESC'!$W$52)),'UE - AER'!M55),0) -> 0 | N28: =IFERROR(IF($B28<Inputs!$C$7,IF(N$24<Inputs!$C$7,'UE - ESC'!N55,IF(N$24>=Inputs!$C$7+'UE - ESC'!$W$52,0,'UE - ESC'!$T55/'UE - ESC'!$W$52)),'UE - AER'!N55),0) -> 0 | O28: =IFERROR(IF($B28<Inputs!$C$7,IF(O$24<Inputs!$C$7,'UE - ESC'!O55,IF(O$24>=Inputs!$C$7+'UE - ESC'!$W$52,0,'UE - ESC'!$T55/'UE - ESC'!$W$52)),'UE - AER'!O55),0) -> 0
B29: 2013 | C29: 15 | D29: =IFERROR(IF($B29<Inputs!$C$7,IF(D$24<Inputs!$C$7,'UE - ESC'!D56,IF(D$24>=Inputs!$C$7+'UE - ESC'!$W$52,0,'UE - ESC'!$T56/'UE - ESC'!$W$52)),'UE - AER'!D56),0) -> 0 | E29: =IFERROR(IF($B29<Inputs!$C$7,IF(E$24<Inputs!$C$7,'UE - ESC'!E56,IF(E$24>=Inputs!$C$7+'UE - ESC'!$W$52,0,'UE - ESC'!$T56/'UE - ESC'!$W$52)),'UE - AER'!E56),0) -> 0 | F29: =IFERROR(IF($B29<Inputs!$C$7,IF(F$24<Inputs!$C$7,'UE - ESC'!F56,IF(F$24>=Inputs!$C$7+'UE - ESC'!$W$52,0,'UE - ESC'!$T56/'UE - ESC'!$W$52)),'UE - AER'!F56),0) -> 0 | G29: =IFERROR(IF($B29<Inputs!$C$7,IF(G$24<Inputs!$C$7,'UE - ESC'!G56,IF(G$24>=Inputs!$C$7+'UE - ESC'!$W$52,0,'UE - ESC'!$T56/'UE - ESC'!$W$52)),'UE - AER'!G56),0) -> 0 | H29: =IFERROR(IF($B29<Inputs!$C$7,IF(H$24<Inputs!$C$7,'UE - ESC'!H56,IF(H$24>=Inputs!$C$7+'UE - ESC'!$W$52,0,'UE - ESC'!$T56/'UE - ESC'!$W$52)),'UE - AER'!H56),0) -> 416152.2049 | I29: =IFERROR(IF($B29<Inputs!$C$7,IF(I$24<Inputs!$C$7,'UE - ESC'!I56,IF(I$24>=Inputs!$C$7+'UE - ESC'!$W$52,0,'UE - ESC'!$T56/'UE - ESC'!$W$52)),'UE - AER'!I56),0) -> 832304.4099 | J29: =IFERROR(IF($B29<Inputs!$C$7,IF(J$24<Inputs!$C$7,'UE - ESC'!J56,IF(J$24>=Inputs!$C$7+'UE - ESC'!$W$52,0,'UE - ESC'!$T56/'UE - ESC'!$W$52)),'UE - AER'!J56),0) -> 832304.4099 | K29: =IFERROR(IF($B29<Inputs!$C$7,IF(K$24<Inputs!$C$7,'UE - ESC'!K56,IF(K$24>=Inputs!$C$7+'UE - ESC'!$W$52,0,'UE - ESC'!$T56/'UE - ESC'!$W$52)),'UE - AER'!K56),0) -> 800292.7018 | L29: =IFERROR(IF($B29<Inputs!$C$7,IF(L$24<Inputs!$C$7,'UE - ESC'!L56,IF(L$24>=Inputs!$C$7+'UE - ESC'!$W$52,0,'UE - ESC'!$T56/'UE - ESC'!$W$52)),'UE - AER'!L56),0) -> 800292.7018 | M29: =IFERROR(IF($B29<Inputs!$C$7,IF(M$24<Inputs!$C$7,'UE - ESC'!M56,IF(M$24>=Inputs!$C$7+'UE - ESC'!$W$52,0,'UE - ESC'!$T56/'UE - ESC'!$W$52)),'UE - AER'!M56),0) -> 800292.7018 | N29: =IFERROR(IF($B29<Inputs!$C$7,IF(N$24<Inputs!$C$7,'UE - ESC'!N56,IF(N$24>=Inputs!$C$7+'UE - ESC'!$W$52,0,'UE - ESC'!$T56/'UE - ESC'!$W$52)),'UE - AER'!N56),0) -> 800292.7018 | O29: =IFERROR(IF($B29<Inputs!$C$7,IF(O$24<Inputs!$C$7,'UE - ESC'!O56,IF(O$24>=Inputs!$C$7+'UE - ESC'!$W$52,0,'UE - ESC'!$T56/'UE - ESC'!$W$52)),'UE - AER'!O56),0) -> 800292.7018
B30: 2014 | C30: 15 | D30: =IFERROR(IF($B30<Inputs!$C$7,IF(D$24<Inputs!$C$7,'UE - ESC'!D57,IF(D$24>=Inputs!$C$7+'UE - ESC'!$W$52,0,'UE - ESC'!$T57/'UE - ESC'!$W$52)),'UE - AER'!D57),0) -> 0 | E30: =IFERROR(IF($B30<Inputs!$C$7,IF(E$24<Inputs!$C$7,'UE - ESC'!E57,IF(E$24>=Inputs!$C$7+'UE - ESC'!$W$52,0,'UE - ESC'!$T57/'UE - ESC'!$W$52)),'UE - AER'!E57),0) -> 0 | F30: =IFERROR(IF($B30<Inputs!$C$7,IF(F$24<Inputs!$C$7,'UE - ESC'!F57,IF(F$24>=Inputs!$C$7+'UE - ESC'!$W$52,0,'UE - ESC'!$T57/'UE - ESC'!$W$52)),'UE - AER'!F57),0) -> 0 | G30: =IFERROR(IF($B30<Inputs!$C$7,IF(G$24<Inputs!$C$7,'UE - ESC'!G57,IF(G$24>=Inputs!$C$7+'UE - ESC'!$W$52,0,'UE - ESC'!$T57/'UE - ESC'!$W$52)),'UE - AER'!G57),0) -> 0 | H30: =IFERROR(IF($B30<Inputs!$C$7,IF(H$24<Inputs!$C$7,'UE - ESC'!H57,IF(H$24>=Inputs!$C$7+'UE - ESC'!$W$52,0,'UE - ESC'!$T57/'UE - ESC'!$W$52)),'UE - AER'!H57),0) -> 0 | I30: =IFERROR(IF($B30<Inputs!$C$7,IF(I$24<Inputs!$C$7,'UE - ESC'!I57,IF(I$24>=Inputs!$C$7+'UE - ESC'!$W$52,0,'UE - ESC'!$T57/'UE - ESC'!$W$52)),'UE - AER'!I57),0) -> 109368.4293 | J30: =IFERROR(IF($B30<Inputs!$C$7,IF(J$24<Inputs!$C$7,'UE - ESC'!J57,IF(J$24>=Inputs!$C$7+'UE - ESC'!$W$52,0,'UE - ESC'!$T57/'UE - ESC'!$W$52)),'UE - AER'!J57),0) -> 218736.8585 | K30: =IFERROR(IF($B30<Inputs!$C$7,IF(K$24<Inputs!$C$7,'UE - ESC'!K57,IF(K$24>=Inputs!$C$7+'UE - ESC'!$W$52,0,'UE - ESC'!$T57/'UE - ESC'!$W$52)),'UE - AER'!K57),0) -> 227149.8146 | L30: =IFERROR(IF($B30<Inputs!$C$7,IF(L$24<Inputs!$C$7,'UE - ESC'!L57,IF(L$24>=Inputs!$C$7+'UE - ESC'!$W$52,0,'UE - ESC'!$T57/'UE - ESC'!$W$52)),'UE - AER'!L57),0) -> 227149.8146 | M30: =IFERROR(IF($B30<Inputs!$C$7,IF(M$24<Inputs!$C$7,'UE - ESC'!M57,IF(M$24>=Inputs!$C$7+'UE - ESC'!$W$52,0,'UE - ESC'!$T57/'UE - ESC'!$W$52)),'UE - AER'!M57),0) -> 227149.8146 | N30: =IFERROR(IF($B30<Inputs!$C$7,IF(N$24<Inputs!$C$7,'UE - ESC'!N57,IF(N$24>=Inputs!$C$7+'UE - ESC'!$W$52,0,'UE - ESC'!$T57/'UE - ESC'!$W$52)),'UE - AER'!N57),0) -> 227149.8146 | O30: =IFERROR(IF($B30<Inputs!$C$7,IF(O$24<Inputs!$C$7,'UE - ESC'!O57,IF(O$24>=Inputs!$C$7+'UE - ESC'!$W$52,0,'UE - ESC'!$T57/'UE - ESC'!$W$52)),'UE - AER'!O57),0) -> 227149.8146
B31: 2015 | C31: 15 | D31: =IFERROR(IF($B31<Inputs!$C$7,IF(D$24<Inputs!$C$7,'UE - ESC'!D58,IF(D$24>=Inputs!$C$7+'UE - ESC'!$W$52,0,'UE - ESC'!$T58/'UE - ESC'!$W$52)),'UE - AER'!D58),0) -> 0 | E31: =IFERROR(IF($B31<Inputs!$C$7,IF(E$24<Inputs!$C$7,'UE - ESC'!E58,IF(E$24>=Inputs!$C$7+'UE - ESC'!$W$52,0,'UE - ESC'!$T58/'UE - ESC'!$W$52)),'UE - AER'!E58),0) -> 0 | F31: =IFERROR(IF($B31<Inputs!$C$7,IF(F$24<Inputs!$C$7,'UE - ESC'!F58,IF(F$24>=Inputs!$C$7+'UE - ESC'!$W$52,0,'UE - ESC'!$T58/'UE - ESC'!$W$52)),'UE - AER'!F58),0) -> 0 | G31: =IFERROR(IF($B31<Inputs!$C$7,IF(G$24<Inputs!$C$7,'UE - ESC'!G58,IF(G$24>=Inputs!$C$7+'UE - ESC'!$W$52,0,'UE - ESC'!$T58/'UE - ESC'!$W$52)),'UE - AER'!G58),0) -> 0 | H31: =IFERROR(IF($B31<Inputs!$C$7,IF(H$24<Inputs!$C$7,'UE - ESC'!H58,IF(H$24>=Inputs!$C$7+'UE - ESC'!$W$52,0,'UE - ESC'!$T58/'UE - ESC'!$W$52)),'UE - AER'!H58),0) -> 0 | I31: =IFERROR(IF($B31<Inputs!$C$7,IF(I$24<Inputs!$C$7,'UE - ESC'!I58,IF(I$24>=Inputs!$C$7+'UE - ESC'!$W$52,0,'UE - ESC'!$T58/'UE - ESC'!$W$52)),'UE - AER'!I58),0) -> 0 | J31: =IFERROR(IF($B31<Inputs!$C$7,IF(J$24<Inputs!$C$7,'UE - ESC'!J58,IF(J$24>=Inputs!$C$7+'UE - ESC'!$W$52,0,'UE - ESC'!$T58/'UE - ESC'!$W$52)),'UE - AER'!J58),0) -> 3343.150862 | K31: =IFERROR(IF($B31<Inputs!$C$7,IF(K$24<Inputs!$C$7,'UE - ESC'!K58,IF(K$24>=Inputs!$C$7+'UE - ESC'!$W$52,0,'UE - ESC'!$T58/'UE - ESC'!$W$52)),'UE - AER'!K58),0) -> 7457.798076 | L31: =IFERROR(IF($B31<Inputs!$C$7,IF(L$24<Inputs!$C$7,'UE - ESC'!L58,IF(L$24>=Inputs!$C$7+'UE - ESC'!$W$52,0,'UE - ESC'!$T58/'UE - ESC'!$W$52)),'UE - AER'!L58),0) -> 7457.798076 | M31: =IFERROR(IF($B31<Inputs!$C$7,IF(M$24<Inputs!$C$7,'UE - ESC'!M58,IF(M$24>=Inputs!$C$7+'UE - ESC'!$W$52,0,'UE - ESC'!$T58/'UE - ESC'!$W$52)),'UE - AER'!M58),0) -> 7457.798076 | N31: =IFERROR(IF($B31<Inputs!$C$7,IF(N$24<Inputs!$C$7,'UE - ESC'!N58,IF(N$24>=Inputs!$C$7+'UE - ESC'!$W$52,0,'UE - ESC'!$T58/'UE - ESC'!$W$52)),'UE - AER'!N58),0) -> 7457.798076 | O31: =IFERROR(IF($B31<Inputs!$C$7,IF(O$24<Inputs!$C$7,'UE - ESC'!O58,IF(O$24>=Inputs!$C$7+'UE - ESC'!$W$52,0,'UE - ESC'!$T58/'UE - ESC'!$W$52)),'UE - AER'!O58),0) -> 7457.798076
B32: 2016 | C32: 15 | D32: =IFERROR(IF($B32<Inputs!$C$7,IF(D$24<Inputs!$C$7,'UE - ESC'!D59,IF(D$24>=Inputs!$C$7+'UE - ESC'!$W$52,0,'UE - ESC'!$T59/'UE - ESC'!$W$52)),'UE - AER'!D59),0) -> 0 | E32: =IFERROR(IF($B32<Inputs!$C$7,IF(E$24<Inputs!$C$7,'UE - ESC'!E59,IF(E$24>=Inputs!$C$7+'UE - ESC'!$W$52,0,'UE - ESC'!$T59/'UE - ESC'!$W$52)),'UE - AER'!E59),0) -> 0 | F32: =IFERROR(IF($B32<Inputs!$C$7,IF(F$24<Inputs!$C$7,'UE - ESC'!F59,IF(F$24>=Inputs!$C$7+'UE - ESC'!$W$52,0,'UE - ESC'!$T59/'UE - ESC'!$W$52)),'UE - AER'!F59),0) -> 0 | G32: =IFERROR(IF($B32<Inputs!$C$7,IF(G$24<Inputs!$C$7,'UE - ESC'!G59,IF(G$24>=Inputs!$C$7+'UE - ESC'!$W$52,0,'UE - ESC'!$T59/'UE - ESC'!$W$52)),'UE - AER'!G59),0) -> 0 | H32: =IFERROR(IF($B32<Inputs!$C$7,IF(H$24<Inputs!$C$7,'UE - ESC'!H59,IF(H$24>=Inputs!$C$7+'UE - ESC'!$W$52,0,'UE - ESC'!$T59/'UE - ESC'!$W$52)),'UE - AER'!H59),0) -> 0 | I32: =IFERROR(IF($B32<Inputs!$C$7,IF(I$24<Inputs!$C$7,'UE - ESC'!I59,IF(I$24>=Inputs!$C$7+'UE - ESC'!$W$52,0,'UE - ESC'!$T59/'UE - ESC'!$W$52)),'UE - AER'!I59),0) -> 0 | J32: =IFERROR(IF($B32<Inputs!$C$7,IF(J$24<Inputs!$C$7,'UE - ESC'!J59,IF(J$24>=Inputs!$C$7+'UE - ESC'!$W$52,0,'UE - ESC'!$T59/'UE - ESC'!$W$52)),'UE - AER'!J59),0) -> 0 | K32: =IFERROR(IF($B32<Inputs!$C$7,IF(K$24<Inputs!$C$7,'UE - ESC'!K59,IF(K$24>=Inputs!$C$7+'UE - ESC'!$W$52,0,'UE - ESC'!$T59/'UE - ESC'!$W$52)),'UE - AER'!K59),0) -> 0 | L32: =IFERROR(IF($B32<Inputs!$C$7,IF(L$24<Inputs!$C$7,'UE - ESC'!L59,IF(L$24>=Inputs!$C$7+'UE - ESC'!$W$52,0,'UE - ESC'!$T59/'UE - ESC'!$W$52)),'UE - AER'!L59),0) -> 5538.785826 | M32: =IFERROR(IF($B32<Inputs!$C$7,IF(M$24<Inputs!$C$7,'UE - ESC'!M59,IF(M$24>=Inputs!$C$7+'UE - ESC'!$W$52,0,'UE - ESC'!$T59/'UE - ESC'!$W$52)),'UE - AER'!M59),0) -> 5538.785826 | N32: =IFERROR(IF($B32<Inputs!$C$7,IF(N$24<Inputs!$C$7,'UE - ESC'!N59,IF(N$24>=Inputs!$C$7+'UE - ESC'!$W$52,0,'UE - ESC'!$T59/'UE - ESC'!$W$52)),'UE - AER'!N59),0) -> 5538.785826 | O32: =IFERROR(IF($B32<Inputs!$C$7,IF(O$24<Inputs!$C$7,'UE - ESC'!O59,IF(O$24>=Inputs!$C$7+'UE - ESC'!$W$52,0,'UE - ESC'!$T59/'UE - ESC'!$W$52)),'UE - AER'!O59),0) -> 5538.785826
B33: 2017 | C33: 15 | D33: =IFERROR(IF($B33<Inputs!$C$7,IF(D$24<Inputs!$C$7,'UE - ESC'!D60,IF(D$24>=Inputs!$C$7+'UE - ESC'!$W$52,0,'UE - ESC'!$T60/'UE - ESC'!$W$52)),'UE - AER'!D60),0) -> 0 | E33: =IFERROR(IF($B33<Inputs!$C$7,IF(E$24<Inputs!$C$7,'UE - ESC'!E60,IF(E$24>=Inputs!$C$7+'UE - ESC'!$W$52,0,'UE - ESC'!$T60/'UE - ESC'!$W$52)),'UE - AER'!E60),0) -> 0 | F33: =IFERROR(IF($B33<Inputs!$C$7,IF(F$24<Inputs!$C$7,'UE - ESC'!F60,IF(F$24>=Inputs!$C$7+'UE - ESC'!$W$52,0,'UE - ESC'!$T60/'UE - ESC'!$W$52)),'UE - AER'!F60),0) -> 0 | G33: =IFERROR(IF($B33<Inputs!$C$7,IF(G$24<Inputs!$C$7,'UE - ESC'!G60,IF(G$24>=Inputs!$C$7+'UE - ESC'!$W$52,0,'UE - ESC'!$T60/'UE - ESC'!$W$52)),'UE - AER'!G60),0) -> 0 | H33: =IFERROR(IF($B33<Inputs!$C$7,IF(H$24<Inputs!$C$7,'UE - ESC'!H60,IF(H$24>=Inputs!$C$7+'UE - ESC'!$W$52,0,'UE - ESC'!$T60/'UE - ESC'!$W$52)),'UE - AER'!H60),0) -> 0 | I33: =IFERROR(IF($B33<Inputs!$C$7,IF(I$24<Inputs!$C$7,'UE - ESC'!I60,IF(I$24>=Inputs!$C$7+'UE - ESC'!$W$52,0,'UE - ESC'!$T60/'UE - ESC'!$W$52)),'UE - AER'!I60),0) -> 0 | J33: =IFERROR(IF($B33<Inputs!$C$7,IF(J$24<Inputs!$C$7,'UE - ESC'!J60,IF(J$24>=Inputs!$C$7+'UE - ESC'!$W$52,0,'UE - ESC'!$T60/'UE - ESC'!$W$52)),'UE - AER'!J60),0) -> 0 | K33: =IFERROR(IF($B33<Inputs!$C$7,IF(K$24<Inputs!$C$7,'UE - ESC'!K60,IF(K$24>=Inputs!$C$7+'UE - ESC'!$W$52,0,'UE - ESC'!$T60/'UE - ESC'!$W$52)),'UE - AER'!K60),0) -> 0 | L33: =IFERROR(IF($B33<Inputs!$C$7,IF(L$24<Inputs!$C$7,'UE - ESC'!L60,IF(L$24>=Inputs!$C$7+'UE - ESC'!$W$52,0,'UE - ESC'!$T60/'UE - ESC'!$W$52)),'UE - AER'!L60),0) -> 0 | M33: =IFERROR(IF($B33<Inputs!$C$7,IF(M$24<Inputs!$C$7,'UE - ESC'!M60,IF(M$24>=Inputs!$C$7+'UE - ESC'!$W$52,0,'UE - ESC'!$T60/'UE - ESC'!$W$52)),'UE - AER'!M60),0) -> 0 | N33: =IFERROR(IF($B33<Inputs!$C$7,IF(N$24<Inputs!$C$7,'UE - ESC'!N60,IF(N$24>=Inputs!$C$7+'UE - ESC'!$W$52,0,'UE - ESC'!$T60/'UE - ESC'!$W$52)),'UE - AER'!N60),0) -> 0 | O33: =IFERROR(IF($B33<Inputs!$C$7,IF(O$24<Inputs!$C$7,'UE - ESC'!O60,IF(O$24>=Inputs!$C$7+'UE - ESC'!$W$52,0,'UE - ESC'!$T60/'UE - ESC'!$W$52)),'UE - AER'!O60),0) -> 0
B34: 2018 | C34: 15 | D34: =IFERROR(IF($B34<Inputs!$C$7,IF(D$24<Inputs!$C$7,'UE - ESC'!D61,IF(D$24>=Inputs!$C$7+'UE - ESC'!$W$52,0,'UE - ESC'!$T61/'UE - ESC'!$W$52)),'UE - AER'!D61),0) -> 0 | E34: =IFERROR(IF($B34<Inputs!$C$7,IF(E$24<Inputs!$C$7,'UE - ESC'!E61,IF(E$24>=Inputs!$C$7+'UE - ESC'!$W$52,0,'UE - ESC'!$T61/'UE - ESC'!$W$52)),'UE - AER'!E61),0) -> 0 | F34: =IFERROR(IF($B34<Inputs!$C$7,IF(F$24<Inputs!$C$7,'UE - ESC'!F61,IF(F$24>=Inputs!$C$7+'UE - ESC'!$W$52,0,'UE - ESC'!$T61/'UE - ESC'!$W$52)),'UE - AER'!F61),0) -> 0 | G34: =IFERROR(IF($B34<Inputs!$C$7,IF(G$24<Inputs!$C$7,'UE - ESC'!G61,IF(G$24>=Inputs!$C$7+'UE - ESC'!$W$52,0,'UE - ESC'!$T61/'UE - ESC'!$W$52)),'UE - AER'!G61),0) -> 0 | H34: =IFERROR(IF($B34<Inputs!$C$7,IF(H$24<Inputs!$C$7,'UE - ESC'!H61,IF(H$24>=Inputs!$C$7+'UE - ESC'!$W$52,0,'UE - ESC'!$T61/'UE - ESC'!$W$52)),'UE - AER'!H61),0) -> 0 | I34: =IFERROR(IF($B34<Inputs!$C$7,IF(I$24<Inputs!$C$7,'UE - ESC'!I61,IF(I$24>=Inputs!$C$7+'UE - ESC'!$W$52,0,'UE - ESC'!$T61/'UE - ESC'!$W$52)),'UE - AER'!I61),0) -> 0 | J34: =IFERROR(IF($B34<Inputs!$C$7,IF(J$24<Inputs!$C$7,'UE - ESC'!J61,IF(J$24>=Inputs!$C$7+'UE - ESC'!$W$52,0,'UE - ESC'!$T61/'UE - ESC'!$W$52)),'UE - AER'!J61),0) -> 0 | K34: =IFERROR(IF($B34<Inputs!$C$7,IF(K$24<Inputs!$C$7,'UE - ESC'!K61,IF(K$24>=Inputs!$C$7+'UE - ESC'!$W$52,0,'UE - ESC'!$T61/'UE - ESC'!$W$52)),'UE - AER'!K61),0) -> 0 | L34: =IFERROR(IF($B34<Inputs!$C$7,IF(L$24<Inputs!$C$7,'UE - ESC'!L61,IF(L$24>=Inputs!$C$7+'UE - ESC'!$W$52,0,'UE - ESC'!$T61/'UE - ESC'!$W$52)),'UE - AER'!L61),0) -> 0 | M34: =IFERROR(IF($B34<Inputs!$C$7,IF(M$24<Inputs!$C$7,'UE - ESC'!M61,IF(M$24>=Inputs!$C$7+'UE - ESC'!$W$52,0,'UE - ESC'!$T61/'UE - ESC'!$W$52)),'UE - AER'!M61),0) -> 0 | N34: =IFERROR(IF($B34<Inputs!$C$7,IF(N$24<Inputs!$C$7,'UE - ESC'!N61,IF(N$24>=Inputs!$C$7+'UE - ESC'!$W$52,0,'UE - ESC'!$T61/'UE - ESC'!$W$52)),'UE - AER'!N61),0) -> 0 | O34: =IFERROR(IF($B34<Inputs!$C$7,IF(O$24<Inputs!$C$7,'UE - ESC'!O61,IF(O$24>=Inputs!$C$7+'UE - ESC'!$W$52,0,'UE - ESC'!$T61/'UE - ESC'!$W$52)),'UE - AER'!O61),0) -> 0
B35: 2019 | C35: 15 | D35: =IFERROR(IF($B35<Inputs!$C$7,IF(D$24<Inputs!$C$7,'UE - ESC'!D62,IF(D$24>=Inputs!$C$7+'UE - ESC'!$W$52,0,'UE - ESC'!$T62/'UE - ESC'!$W$52)),'UE - AER'!D62),0) -> 0 | E35: =IFERROR(IF($B35<Inputs!$C$7,IF(E$24<Inputs!$C$7,'UE - ESC'!E62,IF(E$24>=Inputs!$C$7+'UE - ESC'!$W$52,0,'UE - ESC'!$T62/'UE - ESC'!$W$52)),'UE - AER'!E62),0) -> 0 | F35: =IFERROR(IF($B35<Inputs!$C$7,IF(F$24<Inputs!$C$7,'UE - ESC'!F62,IF(F$24>=Inputs!$C$7+'UE - ESC'!$W$52,0,'UE - ESC'!$T62/'UE - ESC'!$W$52)),'UE - AER'!F62),0) -> 0 | G35: =IFERROR(IF($B35<Inputs!$C$7,IF(G$24<Inputs!$C$7,'UE - ESC'!G62,IF(G$24>=Inputs!$C$7+'UE - ESC'!$W$52,0,'UE - ESC'!$T62/'UE - ESC'!$W$52)),'UE - AER'!G62),0) -> 0 | H35: =IFERROR(IF($B35<Inputs!$C$7,IF(H$24<Inputs!$C$7,'UE - ESC'!H62,IF(H$24>=Inputs!$C$7+'UE - ESC'!$W$52,0,'UE - ESC'!$T62/'UE - ESC'!$W$52)),'UE - AER'!H62),0) -> 0 | I35: =IFERROR(IF($B35<Inputs!$C$7,IF(I$24<Inputs!$C$7,'UE - ESC'!I62,IF(I$24>=Inputs!$C$7+'UE - ESC'!$W$52,0,'UE - ESC'!$T62/'UE - ESC'!$W$52)),'UE - AER'!I62),0) -> 0 | J35: =IFERROR(IF($B35<Inputs!$C$7,IF(J$24<Inputs!$C$7,'UE - ESC'!J62,IF(J$24>=Inputs!$C$7+'UE - ESC'!$W$52,0,'UE - ESC'!$T62/'UE - ESC'!$W$52)),'UE - AER'!J62),0) -> 0 | K35: =IFERROR(IF($B35<Inputs!$C$7,IF(K$24<Inputs!$C$7,'UE - ESC'!K62,IF(K$24>=Inputs!$C$7+'UE - ESC'!$W$52,0,'UE - ESC'!$T62/'UE - ESC'!$W$52)),'UE - AER'!K62),0) -> 0 | L35: =IFERROR(IF($B35<Inputs!$C$7,IF(L$24<Inputs!$C$7,'UE - ESC'!L62,IF(L$24>=Inputs!$C$7+'UE - ESC'!$W$52,0,'UE - ESC'!$T62/'UE - ESC'!$W$52)),'UE - AER'!L62),0) -> 0 | M35: =IFERROR(IF($B35<Inputs!$C$7,IF(M$24<Inputs!$C$7,'UE - ESC'!M62,IF(M$24>=Inputs!$C$7+'UE - ESC'!$W$52,0,'UE - ESC'!$T62/'UE - ESC'!$W$52)),'UE - AER'!M62),0) -> 0 | N35: =IFERROR(IF($B35<Inputs!$C$7,IF(N$24<Inputs!$C$7,'UE - ESC'!N62,IF(N$24>=Inputs!$C$7+'UE - ESC'!$W$52,0,'UE - ESC'!$T62/'UE - ESC'!$W$52)),'UE - AER'!N62),0) -> 0 | O35: =IFERROR(IF($B35<Inputs!$C$7,IF(O$24<Inputs!$C$7,'UE - ESC'!O62,IF(O$24>=Inputs!$C$7+'UE - ESC'!$W$52,0,'UE - ESC'!$T62/'UE - ESC'!$W$52)),'UE - AER'!O62),0) -> 0
B36: 2020 | C36: 15 | D36: =IFERROR(IF($B36<Inputs!$C$7,IF(D$24<Inputs!$C$7,'UE - ESC'!D63,IF(D$24>=Inputs!$C$7+'UE - ESC'!$W$52,0,'UE - ESC'!$T63/'UE - ESC'!$W$52)),'UE - AER'!D63),0) -> 0 | E36: =IFERROR(IF($B36<Inputs!$C$7,IF(E$24<Inputs!$C$7,'UE - ESC'!E63,IF(E$24>=Inputs!$C$7+'UE - ESC'!$W$52,0,'UE - ESC'!$T63/'UE - ESC'!$W$52)),'UE - AER'!E63),0) -> 0 | F36: =IFERROR(IF($B36<Inputs!$C$7,IF(F$24<Inputs!$C$7,'UE - ESC'!F63,IF(F$24>=Inputs!$C$7+'UE - ESC'!$W$52,0,'UE - ESC'!$T63/'UE - ESC'!$W$52)),'UE - AER'!F63),0) -> 0 | G36: =IFERROR(IF($B36<Inputs!$C$7,IF(G$24<Inputs!$C$7,'UE - ESC'!G63,IF(G$24>=Inputs!$C$7+'UE - ESC'!$W$52,0,'UE - ESC'!$T63/'UE - ESC'!$W$52)),'UE - AER'!G63),0) -> 0 | H36: =IFERROR(IF($B36<Inputs!$C$7,IF(H$24<Inputs!$C$7,'UE - ESC'!H63,IF(H$24>=Inputs!$C$7+'UE - ESC'!$W$52,0,'UE - ESC'!$T63/'UE - ESC'!$W$52)),'UE - AER'!H63),0) -> 0 | I36: =IFERROR(IF($B36<Inputs!$C$7,IF(I$24<Inputs!$C$7,'UE - ESC'!I63,IF(I$24>=Inputs!$C$7+'UE - ESC'!$W$52,0,'UE - ESC'!$T63/'UE - ESC'!$W$52)),'UE - AER'!I63),0) -> 0 | J36: =IFERROR(IF($B36<Inputs!$C$7,IF(J$24<Inputs!$C$7,'UE - ESC'!J63,IF(J$24>=Inputs!$C$7+'UE - ESC'!$W$52,0,'UE - ESC'!$T63/'UE - ESC'!$W$52)),'UE - AER'!J63),0) -> 0 | K36: =IFERROR(IF($B36<Inputs!$C$7,IF(K$24<Inputs!$C$7,'UE - ESC'!K63,IF(K$24>=Inputs!$C$7+'UE - ESC'!$W$52,0,'UE - ESC'!$T63/'UE - ESC'!$W$52)),'UE - AER'!K63),0) -> 0 | L36: =IFERROR(IF($B36<Inputs!$C$7,IF(L$24<Inputs!$C$7,'UE - ESC'!L63,IF(L$24>=Inputs!$C$7+'UE - ESC'!$W$52,0,'UE - ESC'!$T63/'UE - ESC'!$W$52)),'UE - AER'!L63),0) -> 0 | M36: =IFERROR(IF($B36<Inputs!$C$7,IF(M$24<Inputs!$C$7,'UE - ESC'!M63,IF(M$24>=Inputs!$C$7+'UE - ESC'!$W$52,0,'UE - ESC'!$T63/'UE - ESC'!$W$52)),'UE - AER'!M63),0) -> 0 | N36: =IFERROR(IF($B36<Inputs!$C$7,IF(N$24<Inputs!$C$7,'UE - ESC'!N63,IF(N$24>=Inputs!$C$7+'UE - ESC'!$W$52,0,'UE - ESC'!$T63/'UE - ESC'!$W$52)),'UE - AER'!N63),0) -> 0 | O36: =IFERROR(IF($B36<Inputs!$C$7,IF(O$24<Inputs!$C$7,'UE - ESC'!O63,IF(O$24>=Inputs!$C$7+'UE - ESC'!$W$52,0,'UE - ESC'!$T63/'UE - ESC'!$W$52)),'UE - AER'!O63),0) -> 0
B37: 0 | C37: 15 | D37: =IFERROR(IF($B37<Inputs!$C$7,IF(D$24<Inputs!$C$7,'UE - ESC'!D64,IF(D$24>=Inputs!$C$7+'UE - ESC'!$W$52,0,'UE - ESC'!$T64/'UE - ESC'!$W$52)),'UE - AER'!D64),0) -> 0 | E37: =IFERROR(IF($B37<Inputs!$C$7,IF(E$24<Inputs!$C$7,'UE - ESC'!E64,IF(E$24>=Inputs!$C$7+'UE - ESC'!$W$52,0,'UE - ESC'!$T64/'UE - ESC'!$W$52)),'UE - AER'!E64),0) -> 0 | F37: =IFERROR(IF($B37<Inputs!$C$7,IF(F$24<Inputs!$C$7,'UE - ESC'!F64,IF(F$24>=Inputs!$C$7+'UE - ESC'!$W$52,0,'UE - ESC'!$T64/'UE - ESC'!$W$52)),'UE - AER'!F64),0) -> 0 | G37: =IFERROR(IF($B37<Inputs!$C$7,IF(G$24<Inputs!$C$7,'UE - ESC'!G64,IF(G$24>=Inputs!$C$7+'UE - ESC'!$W$52,0,'UE - ESC'!$T64/'UE - ESC'!$W$52)),'UE - AER'!G64),0) -> 0 | H37: =IFERROR(IF($B37<Inputs!$C$7,IF(H$24<Inputs!$C$7,'UE - ESC'!H64,IF(H$24>=Inputs!$C$7+'UE - ESC'!$W$52,0,'UE - ESC'!$T64/'UE - ESC'!$W$52)),'UE - AER'!H64),0) -> 0 | I37: =IFERROR(IF($B37<Inputs!$C$7,IF(I$24<Inputs!$C$7,'UE - ESC'!I64,IF(I$24>=Inputs!$C$7+'UE - ESC'!$W$52,0,'UE - ESC'!$T64/'UE - ESC'!$W$52)),'UE - AER'!I64),0) -> 0 | J37: =IFERROR(IF($B37<Inputs!$C$7,IF(J$24<Inputs!$C$7,'UE - ESC'!J64,IF(J$24>=Inputs!$C$7+'UE - ESC'!$W$52,0,'UE - ESC'!$T64/'UE - ESC'!$W$52)),'UE - AER'!J64),0) -> 0 | K37: =IFERROR(IF($B37<Inputs!$C$7,IF(K$24<Inputs!$C$7,'UE - ESC'!K64,IF(K$24>=Inputs!$C$7+'UE - ESC'!$W$52,0,'UE - ESC'!$T64/'UE - ESC'!$W$52)),'UE - AER'!K64),0) -> 0 | L37: =IFERROR(IF($B37<Inputs!$C$7,IF(L$24<Inputs!$C$7,'UE - ESC'!L64,IF(L$24>=Inputs!$C$7+'UE - ESC'!$W$52,0,'UE - ESC'!$T64/'UE - ESC'!$W$52)),'UE - AER'!L64),0) -> 0 | M37: =IFERROR(IF($B37<Inputs!$C$7,IF(M$24<Inputs!$C$7,'UE - ESC'!M64,IF(M$24>=Inputs!$C$7+'UE - ESC'!$W$52,0,'UE - ESC'!$T64/'UE - ESC'!$W$52)),'UE - AER'!M64),0) -> 0 | N37: =IFERROR(IF($B37<Inputs!$C$7,IF(N$24<Inputs!$C$7,'UE - ESC'!N64,IF(N$24>=Inputs!$C$7+'UE - ESC'!$W$52,0,'UE - ESC'!$T64/'UE - ESC'!$W$52)),'UE - AER'!N64),0) -> 0 | O37: =IFERROR(IF($B37<Inputs!$C$7,IF(O$24<Inputs!$C$7,'UE - ESC'!O64,IF(O$24>=Inputs!$C$7+'UE - ESC'!$W$52,0,'UE - ESC'!$T64/'UE - ESC'!$W$52)),'UE - AER'!O64),0) -> 0
B38: TOTAL | D38: =SUM(D25:D37) -> 40793.41783 | E38: 81586.83566 | F38: 81586.83566 | G38: 81586.83566 | H38: 497739.0406 | I38: 1023259.675 | J38: 1135971.255 | K38: 1088245.553 | L38: 1093784.339 | M38: 1093784.339 | N38: 1093784.339 | O38: 1093784.339
B41: ="Depreciation - "&Inputs!C4&" - "&INDEX(Inputs!B38:B45,A43,)&" - "&IF(Inputs!C5=Inputs!C17,Inputs!C17,Inputs!C18) -> Depreciation - United Energy - Three Phase DC - 2015$
A43: 3 | B43: =INDEX(Inputs!$B$38:$B$45,$A$43,) -> Three Phase DC | C43: Life | D43: 2009 | E43: 2010 | F43: 2011 | G43: 2012 | H43: 2013 | I43: 2014 | J43: 2015 | K43: 2016 | L43: 2017 | M43: 2018 | N43: 2019 | O43: 2020
B44: =B25 -> 2009 | C44: =INDEX(Inputs!$C$38:$C$45,$A$43,) -> 15 | D44: =IFERROR(IF($B44<Inputs!$C$7,IF(D$43<Inputs!$C$7,'UE - ESC'!D71,IF(D$43>=Inputs!$C$7+'UE - ESC'!$W$71,0,'UE - ESC'!$T71/'UE - ESC'!$W$71)),'UE - AER'!D71),0) -> 0 | E44: =IFERROR(IF($B44<Inputs!$C$7,IF(E$43<Inputs!$C$7,'UE - ESC'!E71,IF(E$43>=Inputs!$C$7+'UE - ESC'!$W$71,0,'UE - ESC'!$T71/'UE - ESC'!$W$71)),'UE - AER'!E71),0) -> 0 | F44: =IFERROR(IF($B44<Inputs!$C$7,IF(F$43<Inputs!$C$7,'UE - ESC'!F71,IF(F$43>=Inputs!$C$7+'UE - ESC'!$W$71,0,'UE - ESC'!$T71/'UE - ESC'!$W$71)),'UE - AER'!F71),0) -> 0 | G44: =IFERROR(IF($B44<Inputs!$C$7,IF(G$43<Inputs!$C$7,'UE - ESC'!G71,IF(G$43>=Inputs!$C$7+'UE - ESC'!$W$71,0,'UE - ESC'!$T71/'UE - ESC'!$W$71)),'UE - AER'!G71),0) -> 0 | H44: =IFERROR(IF($B44<Inputs!$C$7,IF(H$43<Inputs!$C$7,'UE - ESC'!H71,IF(H$43>=Inputs!$C$7+'UE - ESC'!$W$71,0,'UE - ESC'!$T71/'UE - ESC'!$W$71)),'UE - AER'!H71),0) -> 0 | I44: =IFERROR(IF($B44<Inputs!$C$7,IF(I$43<Inputs!$C$7,'UE - ESC'!I71,IF(I$43>=Inputs!$C$7+'UE - ESC'!$W$71,0,'UE - ESC'!$T71/'UE - ESC'!$W$71)),'UE - AER'!I71),0) -> 0 | J44: =IFERROR(IF($B44<Inputs!$C$7,IF(J$43<Inputs!$C$7,'UE - ESC'!J71,IF(J$43>=Inputs!$C$7+'UE - ESC'!$W$71,0,'UE - ESC'!$T71/'UE - ESC'!$W$71)),'UE - AER'!J71),0) -> 0 | K44: =IFERROR(IF($B44<Inputs!$C$7,IF(K$43<Inputs!$C$7,'UE - ESC'!K71,IF(K$43>=Inputs!$C$7+'UE - ESC'!$W$71,0,'UE - ESC'!$T71/'UE - ESC'!$W$71)),'UE - AER'!K71),0) -> 0 | L44: =IFERROR(IF($B44<Inputs!$C$7,IF(L$43<Inputs!$C$7,'UE - ESC'!L71,IF(L$43>=Inputs!$C$7+'UE - ESC'!$W$71,0,'UE - ESC'!$T71/'UE - ESC'!$W$71)),'UE - AER'!L71),0) -> 0 | M44: =IFERROR(IF($B44<Inputs!$C$7,IF(M$43<Inputs!$C$7,'UE - ESC'!M71,IF(M$43>=Inputs!$C$7+'UE - ESC'!$W$71,0,'UE - ESC'!$T71/'UE - ESC'!$W$71)),'UE - AER'!M71),0) -> 0 | N44: =IFERROR(IF($B44<Inputs!$C$7,IF(N$43<Inputs!$C$7,'UE - ESC'!N71,IF(N$43>=Inputs!$C$7+'UE - ESC'!$W$71,0,'UE - ESC'!$T71/'UE - ESC'!$W$71)),'UE - AER'!N71),0) -> 0 | O44: =IFERROR(IF($B44<Inputs!$C$7,IF(O$43<Inputs!$C$7,'UE - ESC'!O71,IF(O$43>=Inputs!$C$7+'UE - ESC'!$W$71,0,'UE - ESC'!$T71/'UE - ESC'!$W$71)),'UE - AER'!O71),0) -> 0
B45: =B26 -> 2010 | C45: =C44 -> 15 | D45: =IFERROR(IF($B45<Inputs!$C$7,IF(D$43<Inputs!$C$7,'UE - ESC'!D72,IF(D$43>=Inputs!$C$7+'UE - ESC'!$W$71,0,'UE - ESC'!$T72/'UE - ESC'!$W$71)),'UE - AER'!D72),0) -> 0 | E45: =IFERROR(IF($B45<Inputs!$C$7,IF(E$43<Inputs!$C$7,'UE - ESC'!E72,IF(E$43>=Inputs!$C$7+'UE - ESC'!$W$71,0,'UE - ESC'!$T72/'UE - ESC'!$W$71)),'UE - AER'!E72),0) -> 3379.089693 | F45: =IFERROR(IF($B45<Inputs!$C$7,IF(F$43<Inputs!$C$7,'UE - ESC'!F72,IF(F$43>=Inputs!$C$7+'UE - ESC'!$W$71,0,'UE - ESC'!$T72/'UE - ESC'!$W$71)),'UE - AER'!F72),0) -> 6758.179386 | G45: =IFERROR(IF($B45<Inputs!$C$7,IF(G$43<Inputs!$C$7,'UE - ESC'!G72,IF(G$43>=Inputs!$C$7+'UE - ESC'!$W$71,0,'UE - ESC'!$T72/'UE - ESC'!$W$71)),'UE - AER'!G72),0) -> 6758.179386 | H45: =IFERROR(IF($B45<Inputs!$C$7,IF(H$43<Inputs!$C$7,'UE - ESC'!H72,IF(H$43>=Inputs!$C$7+'UE - ESC'!$W$71,0,'UE - ESC'!$T72/'UE - ESC'!$W$71)),'UE - AER'!H72),0) -> 6758.179386 | I45: =IFERROR(IF($B45<Inputs!$C$7,IF(I$43<Inputs!$C$7,'UE - ESC'!I72,IF(I$43>=Inputs!$C$7+'UE - ESC'!$W$71,0,'UE - ESC'!$T72/'UE - ESC'!$W$71)),'UE - AER'!I72),0) -> 6758.179386 | J45: =IFERROR(IF($B45<Inputs!$C$7,IF(J$43<Inputs!$C$7,'UE - ESC'!J72,IF(J$43>=Inputs!$C$7+'UE - ESC'!$W$71,0,'UE - ESC'!$T72/'UE - ESC'!$W$71)),'UE - AER'!J72),0) -> 6758.179386 | K45: =IFERROR(IF($B45<Inputs!$C$7,IF(K$43<Inputs!$C$7,'UE - ESC'!K72,IF(K$43>=Inputs!$C$7+'UE - ESC'!$W$71,0,'UE - ESC'!$T72/'UE - ESC'!$W$71)),'UE - AER'!K72),0) -> 5350.225347 | L45: =IFERROR(IF($B45<Inputs!$C$7,IF(L$43<Inputs!$C$7,'UE - ESC'!L72,IF(L$43>=Inputs!$C$7+'UE - ESC'!$W$71,0,'UE - ESC'!$T72/'UE - ESC'!$W$71)),'UE - AER'!L72),0) -> 5350.225347 | M45: =IFERROR(IF($B45<Inputs!$C$7,IF(M$43<Inputs!$C$7,'UE - ESC'!M72,IF(M$43>=Inputs!$C$7+'UE - ESC'!$W$71,0,'UE - ESC'!$T72/'UE - ESC'!$W$71)),'UE - AER'!M72),0) -> 5350.225347 | N45: =IFERROR(IF($B45<Inputs!$C$7,IF(N$43<Inputs!$C$7,'UE - ESC'!N72,IF(N$43>=Inputs!$C$7+'UE - ESC'!$W$71,0,'UE - ESC'!$T72/'UE - ESC'!$W$71)),'UE - AER'!N72),0) -> 5350.225347 | O45: =IFERROR(IF($B45<Inputs!$C$7,IF(O$43<Inputs!$C$7,'UE - ESC'!O72,IF(O$43>=Inputs!$C$7+'UE - ESC'!$W$71,0,'UE - ESC'!$T72/'UE - ESC'!$W$71)),'UE - AER'!O72),0) -> 5350.225347
B46: 2011 | C46: =C45 -> 15 | D46: =IFERROR(IF($B46<Inputs!$C$7,IF(D$43<Inputs!$C$7,'UE - ESC'!D73,IF(D$43>=Inputs!$C$7+'UE - ESC'!$W$71,0,'UE - ESC'!$T73/'UE - ESC'!$W$71)),'UE - AER'!D73),0) -> 0 | E46: =IFERROR(IF($B46<Inputs!$C$7,IF(E$43<Inputs!$C$7,'UE - ESC'!E73,IF(E$43>=Inputs!$C$7+'UE - ESC'!$W$71,0,'UE - ESC'!$T73/'UE - ESC'!$W$71)),'UE - AER'!E73),0) -> 0 | F46: =IFERROR(IF($B46<Inputs!$C$7,IF(F$43<Inputs!$C$7,'UE - ESC'!F73,IF(F$43>=Inputs!$C$7+'UE - ESC'!$W$71,0,'UE - ESC'!$T73/'UE - ESC'!$W$71)),'UE - AER'!F73),0) -> 269765.5005 | G46: =IFERROR(IF($B46<Inputs!$C$7,IF(G$43<Inputs!$C$7,'UE - ESC'!G73,IF(G$43>=Inputs!$C$7+'UE - ESC'!$W$71,0,'UE - ESC'!$T73/'UE - ESC'!$W$71)),'UE - AER'!G73),0) -> 539531.001 | H46: =IFERROR(IF($B46<Inputs!$C$7,IF(H$43<Inputs!$C$7,'UE - ESC'!H73,IF(H$43>=Inputs!$C$7+'UE - ESC'!$W$71,0,'UE - ESC'!$T73/'UE - ESC'!$W$71)),'UE - AER'!H73),0) -> 539531.001 | I46: =IFERROR(IF($B46<Inputs!$C$7,IF(I$43<Inputs!$C$7,'UE - ESC'!I73,IF(I$43>=Inputs!$C$7+'UE - ESC'!$W$71,0,'UE - ESC'!$T73/'UE - ESC'!$W$71)),'UE - AER'!I73),0) -> 539531.001 | J46: =IFERROR(IF($B46<Inputs!$C$7,IF(J$43<Inputs!$C$7,'UE - ESC'!J73,IF(J$43>=Inputs!$C$7+'UE - ESC'!$W$71,0,'UE - ESC'!$T73/'UE - ESC'!$W$71)),'UE - AER'!J73),0) -> 539531.001 | K46: =IFERROR(IF($B46<Inputs!$C$7,IF(K$43<Inputs!$C$7,'UE - ESC'!K73,IF(K$43>=Inputs!$C$7+'UE - ESC'!$W$71,0,'UE - ESC'!$T73/'UE - ESC'!$W$71)),'UE - AER'!K73),0) -> 472089.6259 | L46: =IFERROR(IF($B46<Inputs!$C$7,IF(L$43<Inputs!$C$7,'UE - ESC'!L73,IF(L$43>=Inputs!$C$7+'UE - ESC'!$W$71,0,'UE - ESC'!$T73/'UE - ESC'!$W$71)),'UE - AER'!L73),0) -> 472089.6259 | M46: =IFERROR(IF($B46<Inputs!$C$7,IF(M$43<Inputs!$C$7,'UE - ESC'!M73,IF(M$43>=Inputs!$C$7+'UE - ESC'!$W$71,0,'UE - ESC'!$T73/'UE - ESC'!$W$71)),'UE - AER'!M73),0) -> 472089.6259 | N46: =IFERROR(IF($B46<Inputs!$C$7,IF(N$43<Inputs!$C$7,'UE - ESC'!N73,IF(N$43>=Inputs!$C$7+'UE - ESC'!$W$71,0,'UE - ESC'!$T73/'UE - ESC'!$W$71)),'UE - AER'!N73),0) -> 472089.6259 | O46: =IFERROR(IF($B46<Inputs!$C$7,IF(O$43<Inputs!$C$7,'UE - ESC'!O73,IF(O$43>=Inputs!$C$7+'UE - ESC'!$W$71,0,'UE - ESC'!$T73/'UE - ESC'!$W$71)),'UE - AER'!O73),0) -> 472089.6259
B47: 2012 | C47: 15 | D47: =IFERROR(IF($B47<Inputs!$C$7,IF(D$43<Inputs!$C$7,'UE - ESC'!D74,IF(D$43>=Inputs!$C$7+'UE - ESC'!$W$71,0,'UE - ESC'!$T74/'UE - ESC'!$W$71)),'UE - AER'!D74),0) -> 0 | E47: =IFERROR(IF($B47<Inputs!$C$7,IF(E$43<Inputs!$C$7,'UE - ESC'!E74,IF(E$43>=Inputs!$C$7+'UE - ESC'!$W$71,0,'UE - ESC'!$T74/'UE - ESC'!$W$71)),'UE - AER'!E74),0) -> 0 | F47: =IFERROR(IF($B47<Inputs!$C$7,IF(F$43<Inputs!$C$7,'UE - ESC'!F74,IF(F$43>=Inputs!$C$7+'UE - ESC'!$W$71,0,'UE - ESC'!$T74/'UE - ESC'!$W$71)),'UE - AER'!F74),0) -> 0 | G47: =IFERROR(IF($B47<Inputs!$C$7,IF(G$43<Inputs!$C$7,'UE - ESC'!G74,IF(G$43>=Inputs!$C$7+'UE - ESC'!$W$71,0,'UE - ESC'!$T74/'UE - ESC'!$W$71)),'UE - AER'!G74),0) -> 206691.8796 | H47: =IFERROR(IF($B47<Inputs!$C$7,IF(H$43<Inputs!$C$7,'UE - ESC'!H74,IF(H$43>=Inputs!$C$7+'UE - ESC'!$W$71,0,'UE - ESC'!$T74/'UE - ESC'!$W$71)),'UE - AER'!H74),0) -> 413383.7592 | I47: =IFERROR(IF($B47<Inputs!$C$7,IF(I$43<Inputs!$C$7,'UE - ESC'!I74,IF(I$43>=Inputs!$C$7+'UE - ESC'!$W$71,0,'UE - ESC'!$T74/'UE - ESC'!$W$71)),'UE - AER'!I74),0) -> 413383.7592 | J47: =IFERROR(IF($B47<Inputs!$C$7,IF(J$43<Inputs!$C$7,'UE - ESC'!J74,IF(J$43>=Inputs!$C$7+'UE - ESC'!$W$71,0,'UE - ESC'!$T74/'UE - ESC'!$W$71)),'UE - AER'!J74),0) -> 413383.7592 | K47: =IFERROR(IF($B47<Inputs!$C$7,IF(K$43<Inputs!$C$7,'UE - ESC'!K74,IF(K$43>=Inputs!$C$7+'UE - ESC'!$W$71,0,'UE - ESC'!$T74/'UE - ESC'!$W$71)),'UE - AER'!K74),0) -> 396159.4359 | L47: =IFERROR(IF($B47<Inputs!$C$7,IF(L$43<Inputs!$C$7,'UE - ESC'!L74,IF(L$43>=Inputs!$C$7+'UE - ESC'!$W$71,0,'UE - ESC'!$T74/'UE - ESC'!$W$71)),'UE - AER'!L74),0) -> 396159.4359 | M47: =IFERROR(IF($B47<Inputs!$C$7,IF(M$43<Inputs!$C$7,'UE - ESC'!M74,IF(M$43>=Inputs!$C$7+'UE - ESC'!$W$71,0,'UE - ESC'!$T74/'UE - ESC'!$W$71)),'UE - AER'!M74),0) -> 396159.4359 | N47: =IFERROR(IF($B47<Inputs!$C$7,IF(N$43<Inputs!$C$7,'UE - ESC'!N74,IF(N$43>=Inputs!$C$7+'UE - ESC'!$W$71,0,'UE - ESC'!$T74/'UE - ESC'!$W$71)),'UE - AER'!N74),0) -> 396159.4359 | O47: =IFERROR(IF($B47<Inputs!$C$7,IF(O$43<Inputs!$C$7,'UE - ESC'!O74,IF(O$43>=Inputs!$C$7+'UE - ESC'!$W$71,0,'UE - ESC'!$T74/'UE - ESC'!$W$71)),'UE - AER'!O74),0) -> 396159.4359
B48: 2013 | C48: 15 | D48: =IFERROR(IF($B48<Inputs!$C$7,IF(D$43<Inputs!$C$7,'UE - ESC'!D75,IF(D$43>=Inputs!$C$7+'UE - ESC'!$W$71,0,'UE - ESC'!$T75/'UE - ESC'!$W$71)),'UE - AER'!D75),0) -> 0 | E48: =IFERROR(IF($B48<Inputs!$C$7,IF(E$43<Inputs!$C$7,'UE - ESC'!E75,IF(E$43>=Inputs!$C$7+'UE - ESC'!$W$71,0,'UE - ESC'!$T75/'UE - ESC'!$W$71)),'UE - AER'!E75),0) -> 0 | F48: =IFERROR(IF($B48<Inputs!$C$7,IF(F$43<Inputs!$C$7,'UE - ESC'!F75,IF(F$43>=Inputs!$C$7+'UE - ESC'!$W$71,0,'UE - ESC'!$T75/'UE - ESC'!$W$71)),'UE - AER'!F75),0) -> 0 | G48: =IFERROR(IF($B48<Inputs!$C$7,IF(G$43<Inputs!$C$7,'UE - ESC'!G75,IF(G$43>=Inputs!$C$7+'UE - ESC'!$W$71,0,'UE - ESC'!$T75/'UE - ESC'!$W$71)),'UE - AER'!G75),0) -> 0 | H48: =IFERROR(IF($B48<Inputs!$C$7,IF(H$43<Inputs!$C$7,'UE - ESC'!H75,IF(H$43>=Inputs!$C$7+'UE - ESC'!$W$71,0,'UE - ESC'!$T75/'UE - ESC'!$W$71)),'UE - AER'!H75),0) -> 404953.5851 | I48: =IFERROR(IF($B48<Inputs!$C$7,IF(I$43<Inputs!$C$7,'UE - ESC'!I75,IF(I$43>=Inputs!$C$7+'UE - ESC'!$W$71,0,'UE - ESC'!$T75/'UE - ESC'!$W$71)),'UE - AER'!I75),0) -> 809907.1702 | J48: =IFERROR(IF($B48<Inputs!$C$7,IF(J$43<Inputs!$C$7,'UE - ESC'!J75,IF(J$43>=Inputs!$C$7+'UE - ESC'!$W$71,0,'UE - ESC'!$T75/'UE - ESC'!$W$71)),'UE - AER'!J75),0) -> 809907.1702 | K48: =IFERROR(IF($B48<Inputs!$C$7,IF(K$43<Inputs!$C$7,'UE - ESC'!K75,IF(K$43>=Inputs!$C$7+'UE - ESC'!$W$71,0,'UE - ESC'!$T75/'UE - ESC'!$W$71)),'UE - AER'!K75),0) -> 843653.3023 | L48: =IFERROR(IF($B48<Inputs!$C$7,IF(L$43<Inputs!$C$7,'UE - ESC'!L75,IF(L$43>=Inputs!$C$7+'UE - ESC'!$W$71,0,'UE - ESC'!$T75/'UE - ESC'!$W$71)),'UE - AER'!L75),0) -> 843653.3023 | M48: =IFERROR(IF($B48<Inputs!$C$7,IF(M$43<Inputs!$C$7,'UE - ESC'!M75,IF(M$43>=Inputs!$C$7+'UE - ESC'!$W$71,0,'UE - ESC'!$T75/'UE - ESC'!$W$71)),'UE - AER'!M75),0) -> 843653.3023 | N48: =IFERROR(IF($B48<Inputs!$C$7,IF(N$43<Inputs!$C$7,'UE - ESC'!N75,IF(N$43>=Inputs!$C$7+'UE - ESC'!$W$71,0,'UE - ESC'!$T75/'UE - ESC'!$W$71)),'UE - AER'!N75),0) -> 843653.3023 | O48: =IFERROR(IF($B48<Inputs!$C$7,IF(O$43<Inputs!$C$7,'UE - ESC'!O75,IF(O$43>=Inputs!$C$7+'UE - ESC'!$W$71,0,'UE - ESC'!$T75/'UE - ESC'!$W$71)),'UE - AER'!O75),0) -> 843653.3023
B49: 2014 | C49: 15 | D49: =IFERROR(IF($B49<Inputs!$C$7,IF(D$43<Inputs!$C$7,'UE - ESC'!D76,IF(D$43>=Inputs!$C$7+'UE - ESC'!$W$71,0,'UE - ESC'!$T76/'UE - ESC'!$W$71)),'UE - AER'!D76),0) -> 0 | E49: =IFERROR(IF($B49<Inputs!$C$7,IF(E$43<Inputs!$C$7,'UE - ESC'!E76,IF(E$43>=Inputs!$C$7+'UE - ESC'!$W$71,0,'UE - ESC'!$T76/'UE - ESC'!$W$71)),'UE - AER'!E76),0) -> 0 | F49: =IFERROR(IF($B49<Inputs!$C$7,IF(F$43<Inputs!$C$7,'UE - ESC'!F76,IF(F$43>=Inputs!$C$7+'UE - ESC'!$W$71,0,'UE - ESC'!$T76/'UE - ESC'!$W$71)),'UE - AER'!F76),0) -> 0 | G49: =IFERROR(IF($B49<Inputs!$C$7,IF(G$43<Inputs!$C$7,'UE - ESC'!G76,IF(G$43>=Inputs!$C$7+'UE - ESC'!$W$71,0,'UE - ESC'!$T76/'UE - ESC'!$W$71)),'UE - AER'!G76),0) -> 0 | H49: =IFERROR(IF($B49<Inputs!$C$7,IF(H$43<Inputs!$C$7,'UE - ESC'!H76,IF(H$43>=Inputs!$C$7+'UE - ESC'!$W$71,0,'UE - ESC'!$T76/'UE - ESC'!$W$71)),'UE - AER'!H76),0) -> 0 | I49: =IFERROR(IF($B49<Inputs!$C$7,IF(I$43<Inputs!$C$7,'UE - ESC'!I76,IF(I$43>=Inputs!$C$7+'UE - ESC'!$W$71,0,'UE - ESC'!$T76/'UE - ESC'!$W$71)),'UE - AER'!I76),0) -> 335945.8179 | J49: =IFERROR(IF($B49<Inputs!$C$7,IF(J$43<Inputs!$C$7,'UE - ESC'!J76,IF(J$43>=Inputs!$C$7+'UE - ESC'!$W$71,0,'UE - ESC'!$T76/'UE - ESC'!$W$71)),'UE - AER'!J76),0) -> 671891.6358 | K49: =IFERROR(IF($B49<Inputs!$C$7,IF(K$43<Inputs!$C$7,'UE - ESC'!K76,IF(K$43>=Inputs!$C$7+'UE - ESC'!$W$71,0,'UE - ESC'!$T76/'UE - ESC'!$W$71)),'UE - AER'!K76),0) -> 755878.0903 | L49: =IFERROR(IF($B49<Inputs!$C$7,IF(L$43<Inputs!$C$7,'UE - ESC'!L76,IF(L$43>=Inputs!$C$7+'UE - ESC'!$W$71,0,'UE - ESC'!$T76/'UE - ESC'!$W$71)),'UE - AER'!L76),0) -> 755878.0903 | M49: =IFERROR(IF($B49<Inputs!$C$7,IF(M$43<Inputs!$C$7,'UE - ESC'!M76,IF(M$43>=Inputs!$C$7+'UE - ESC'!$W$71,0,'UE - ESC'!$T76/'UE - ESC'!$W$71)),'UE - AER'!M76),0) -> 755878.0903 | N49: =IFERROR(IF($B49<Inputs!$C$7,IF(N$43<Inputs!$C$7,'UE - ESC'!N76,IF(N$43>=Inputs!$C$7+'UE - ESC'!$W$71,0,'UE - ESC'!$T76/'UE - ESC'!$W$71)),'UE - AER'!N76),0) -> 755878.0903 | O49: =IFERROR(IF($B49<Inputs!$C$7,IF(O$43<Inputs!$C$7,'UE - ESC'!O76,IF(O$43>=Inputs!$C$7+'UE - ESC'!$W$71,0,'UE - ESC'!$T76/'UE - ESC'!$W$71)),'UE - AER'!O76),0) -> 755878.0903
B50: 2015 | C50: 15 | D50: =IFERROR(IF($B50<Inputs!$C$7,IF(D$43<Inputs!$C$7,'UE - ESC'!D77,IF(D$43>=Inputs!$C$7+'UE - ESC'!$W$71,0,'UE - ESC'!$T77/'UE - ESC'!$W$71)),'UE - AER'!D77),0) -> 0 | E50: =IFERROR(IF($B50<Inputs!$C$7,IF(E$43<Inputs!$C$7,'UE - ESC'!E77,IF(E$43>=Inputs!$C$7+'UE - ESC'!$W$71,0,'UE - ESC'!$T77/'UE - ESC'!$W$71)),'UE - AER'!E77),0) -> 0 | F50: =IFERROR(IF($B50<Inputs!$C$7,IF(F$43<Inputs!$C$7,'UE - ESC'!F77,IF(F$43>=Inputs!$C$7+'UE - ESC'!$W$71,0,'UE - ESC'!$T77/'UE - ESC'!$W$71)),'UE - AER'!F77),0) -> 0 | G50: =IFERROR(IF($B50<Inputs!$C$7,IF(G$43<Inputs!$C$7,'UE - ESC'!G77,IF(G$43>=Inputs!$C$7+'UE - ESC'!$W$71,0,'UE - ESC'!$T77/'UE - ESC'!$W$71)),'UE - AER'!G77),0) -> 0 | H50: =IFERROR(IF($B50<Inputs!$C$7,IF(H$43<Inputs!$C$7,'UE - ESC'!H77,IF(H$43>=Inputs!$C$7+'UE - ESC'!$W$71,0,'UE - ESC'!$T77/'UE - ESC'!$W$71)),'UE - AER'!H77),0) -> 0 | I50: =IFERROR(IF($B50<Inputs!$C$7,IF(I$43<Inputs!$C$7,'UE - ESC'!I77,IF(I$43>=Inputs!$C$7+'UE - ESC'!$W$71,0,'UE - ESC'!$T77/'UE - ESC'!$W$71)),'UE - AER'!I77),0) -> 0 | J50: =IFERROR(IF($B50<Inputs!$C$7,IF(J$43<Inputs!$C$7,'UE - ESC'!J77,IF(J$43>=Inputs!$C$7+'UE - ESC'!$W$71,0,'UE - ESC'!$T77/'UE - ESC'!$W$71)),'UE - AER'!J77),0) -> 19542.55688 | K50: =IFERROR(IF($B50<Inputs!$C$7,IF(K$43<Inputs!$C$7,'UE - ESC'!K77,IF(K$43>=Inputs!$C$7+'UE - ESC'!$W$71,0,'UE - ESC'!$T77/'UE - ESC'!$W$71)),'UE - AER'!K77),0) -> 47227.84579 | L50: =IFERROR(IF($B50<Inputs!$C$7,IF(L$43<Inputs!$C$7,'UE - ESC'!L77,IF(L$43>=Inputs!$C$7+'UE - ESC'!$W$71,0,'UE - ESC'!$T77/'UE - ESC'!$W$71)),'UE - AER'!L77),0) -> 47227.84579 | M50: =IFERROR(IF($B50<Inputs!$C$7,IF(M$43<Inputs!$C$7,'UE - ESC'!M77,IF(M$43>=Inputs!$C$7+'UE - ESC'!$W$71,0,'UE - ESC'!$T77/'UE - ESC'!$W$71)),'UE - AER'!M77),0) -> 47227.84579 | N50: =IFERROR(IF($B50<Inputs!$C$7,IF(N$43<Inputs!$C$7,'UE - ESC'!N77,IF(N$43>=Inputs!$C$7+'UE - ESC'!$W$71,0,'UE - ESC'!$T77/'UE - ESC'!$W$71)),'UE - AER'!N77),0) -> 47227.84579 | O50: =IFERROR(IF($B50<Inputs!$C$7,IF(O$43<Inputs!$C$7,'UE - ESC'!O77,IF(O$43>=Inputs!$C$7+'UE - ESC'!$W$71,0,'UE - ESC'!$T77/'UE - ESC'!$W$71)),'UE - AER'!O77),0) -> 47227.84579
B51: 2016 | C51: 15 | D51: =IFERROR(IF($B51<Inputs!$C$7,IF(D$43<Inputs!$C$7,'UE - ESC'!D78,IF(D$43>=Inputs!$C$7+'UE - ESC'!$W$71,0,'UE - ESC'!$T78/'UE - ESC'!$W$71)),'UE - AER'!D78),0) -> 0 | E51: =IFERROR(IF($B51<Inputs!$C$7,IF(E$43<Inputs!$C$7,'UE - ESC'!E78,IF(E$43>=Inputs!$C$7+'UE - ESC'!$W$71,0,'UE - ESC'!$T78/'UE - ESC'!$W$71)),'UE - AER'!E78),0) -> 0 | F51: =IFERROR(IF($B51<Inputs!$C$7,IF(F$43<Inputs!$C$7,'UE - ESC'!F78,IF(F$43>=Inputs!$C$7+'UE - ESC'!$W$71,0,'UE - ESC'!$T78/'UE - ESC'!$W$71)),'UE - AER'!F78),0) -> 0 | G51: =IFERROR(IF($B51<Inputs!$C$7,IF(G$43<Inputs!$C$7,'UE - ESC'!G78,IF(G$43>=Inputs!$C$7+'UE - ESC'!$W$71,0,'UE - ESC'!$T78/'UE - ESC'!$W$71)),'UE - AER'!G78),0) -> 0 | H51: =IFERROR(IF($B51<Inputs!$C$7,IF(H$43<Inputs!$C$7,'UE - ESC'!H78,IF(H$43>=Inputs!$C$7+'UE - ESC'!$W$71,0,'UE - ESC'!$T78/'UE - ESC'!$W$71)),'UE - AER'!H78),0) -> 0 | I51: =IFERROR(IF($B51<Inputs!$C$7,IF(I$43<Inputs!$C$7,'UE - ESC'!I78,IF(I$43>=Inputs!$C$7+'UE - ESC'!$W$71,0,'UE - ESC'!$T78/'UE - ESC'!$W$71)),'UE - AER'!I78),0) -> 0 | J51: =IFERROR(IF($B51<Inputs!$C$7,IF(J$43<Inputs!$C$7,'UE - ESC'!J78,IF(J$43>=Inputs!$C$7+'UE - ESC'!$W$71,0,'UE - ESC'!$T78/'UE - ESC'!$W$71)),'UE - AER'!J78),0) -> 0 | K51: =IFERROR(IF($B51<Inputs!$C$7,IF(K$43<Inputs!$C$7,'UE - ESC'!K78,IF(K$43>=Inputs!$C$7+'UE - ESC'!$W$71,0,'UE - ESC'!$T78/'UE - ESC'!$W$71)),'UE - AER'!K78),0) -> 0 | L51: =IFERROR(IF($B51<Inputs!$C$7,IF(L$43<Inputs!$C$7,'UE - ESC'!L78,IF(L$43>=Inputs!$C$7+'UE - ESC'!$W$71,0,'UE - ESC'!$T78/'UE - ESC'!$W$71)),'UE - AER'!L78),0) -> 33231.14359 | M51: =IFERROR(IF($B51<Inputs!$C$7,IF(M$43<Inputs!$C$7,'UE - ESC'!M78,IF(M$43>=Inputs!$C$7+'UE - ESC'!$W$71,0,'UE - ESC'!$T78/'UE - ESC'!$W$71)),'UE - AER'!M78),0) -> 33231.14359 | N51: =IFERROR(IF($B51<Inputs!$C$7,IF(N$43<Inputs!$C$7,'UE - ESC'!N78,IF(N$43>=Inputs!$C$7+'UE - ESC'!$W$71,0,'UE - ESC'!$T78/'UE - ESC'!$W$71)),'UE - AER'!N78),0) -> 33231.14359 | O51: =IFERROR(IF($B51<Inputs!$C$7,IF(O$43<Inputs!$C$7,'UE - ESC'!O78,IF(O$43>=Inputs!$C$7+'UE - ESC'!$W$71,0,'UE - ESC'!$T78/'UE - ESC'!$W$71)),'UE - AER'!O78),0) -> 33231.14359
B52: 2017 | C52: 15 | D52: =IFERROR(IF($B52<Inputs!$C$7,IF(D$43<Inputs!$C$7,'UE - ESC'!D79,IF(D$43>=Inputs!$C$7+'UE - ESC'!$W$71,0,'UE - ESC'!$T79/'UE - ESC'!$W$71)),'UE - AER'!D79),0) -> 0 | E52: =IFERROR(IF($B52<Inputs!$C$7,IF(E$43<Inputs!$C$7,'UE - ESC'!E79,IF(E$43>=Inputs!$C$7+'UE - ESC'!$W$71,0,'UE - ESC'!$T79/'UE - ESC'!$W$71)),'UE - AER'!E79),0) -> 0 | F52: =IFERROR(IF($B52<Inputs!$C$7,IF(F$43<Inputs!$C$7,'UE - ESC'!F79,IF(F$43>=Inputs!$C$7+'UE - ESC'!$W$71,0,'UE - ESC'!$T79/'UE - ESC'!$W$71)),'UE - AER'!F79),0) -> 0 | G52: =IFERROR(IF($B52<Inputs!$C$7,IF(G$43<Inputs!$C$7,'UE - ESC'!G79,IF(G$43>=Inputs!$C$7+'UE - ESC'!$W$71,0,'UE - ESC'!$T79/'UE - ESC'!$W$71)),'UE - AER'!G79),0) -> 0 | H52: =IFERROR(IF($B52<Inputs!$C$7,IF(H$43<Inputs!$C$7,'UE - ESC'!H79,IF(H$43>=Inputs!$C$7+'UE - ESC'!$W$71,0,'UE - ESC'!$T79/'UE - ESC'!$W$71)),'UE - AER'!H79),0) -> 0 | I52: =IFERROR(IF($B52<Inputs!$C$7,IF(I$43<Inputs!$C$7,'UE - ESC'!I79,IF(I$43>=Inputs!$C$7+'UE - ESC'!$W$71,0,'UE - ESC'!$T79/'UE - ESC'!$W$71)),'UE - AER'!I79),0) -> 0 | J52: =IFERROR(IF($B52<Inputs!$C$7,IF(J$43<Inputs!$C$7,'UE - ESC'!J79,IF(J$43>=Inputs!$C$7+'UE - ESC'!$W$71,0,'UE - ESC'!$T79/'UE - ESC'!$W$71)),'UE - AER'!J79),0) -> 0 | K52: =IFERROR(IF($B52<Inputs!$C$7,IF(K$43<Inputs!$C$7,'UE - ESC'!K79,IF(K$43>=Inputs!$C$7+'UE - ESC'!$W$71,0,'UE - ESC'!$T79/'UE - ESC'!$W$71)),'UE - AER'!K79),0) -> 0 | L52: =IFERROR(IF($B52<Inputs!$C$7,IF(L$43<Inputs!$C$7,'UE - ESC'!L79,IF(L$43>=Inputs!$C$7+'UE - ESC'!$W$71,0,'UE - ESC'!$T79/'UE - ESC'!$W$71)),'UE - AER'!L79),0) -> 0 | M52: =IFERROR(IF($B52<Inputs!$C$7,IF(M$43<Inputs!$C$7,'UE - ESC'!M79,IF(M$43>=Inputs!$C$7+'UE - ESC'!$W$71,0,'UE - ESC'!$T79/'UE - ESC'!$W$71)),'UE - AER'!M79),0) -> 0 | N52: =IFERROR(IF($B52<Inputs!$C$7,IF(N$43<Inputs!$C$7,'UE - ESC'!N79,IF(N$43>=Inputs!$C$7+'UE - ESC'!$W$71,0,'UE - ESC'!$T79/'UE - ESC'!$W$71)),'UE - AER'!N79),0) -> 0 | O52: =IFERROR(IF($B52<Inputs!$C$7,IF(O$43<Inputs!$C$7,'UE - ESC'!O79,IF(O$43>=Inputs!$C$7+'UE - ESC'!$W$71,0,'UE - ESC'!$T79/'UE - ESC'!$W$71)),'UE - AER'!O79),0) -> 0
B53: 2018 | C53: 15 | D53: =IFERROR(IF($B53<Inputs!$C$7,IF(D$43<Inputs!$C$7,'UE - ESC'!D80,IF(D$43>=Inputs!$C$7+'UE - ESC'!$W$71,0,'UE - ESC'!$T80/'UE - ESC'!$W$71)),'UE - AER'!D80),0) -> 0 | E53: =IFERROR(IF($B53<Inputs!$C$7,IF(E$43<Inputs!$C$7,'UE - ESC'!E80,IF(E$43>=Inputs!$C$7+'UE - ESC'!$W$71,0,'UE - ESC'!$T80/'UE - ESC'!$W$71)),'UE - AER'!E80),0) -> 0 | F53: =IFERROR(IF($B53<Inputs!$C$7,IF(F$43<Inputs!$C$7,'UE - ESC'!F80,IF(F$43>=Inputs!$C$7+'UE - ESC'!$W$71,0,'UE - ESC'!$T80/'UE - ESC'!$W$71)),'UE - AER'!F80),0) -> 0 | G53: =IFERROR(IF($B53<Inputs!$C$7,IF(G$43<Inputs!$C$7,'UE - ESC'!G80,IF(G$43>=Inputs!$C$7+'UE - ESC'!$W$71,0,'UE - ESC'!$T80/'UE - ESC'!$W$71)),'UE - AER'!G80),0) -> 0 | H53: =IFERROR(IF($B53<Inputs!$C$7,IF(H$43<Inputs!$C$7,'UE - ESC'!H80,IF(H$43>=Inputs!$C$7+'UE - ESC'!$W$71,0,'UE - ESC'!$T80/'UE - ESC'!$W$71)),'UE - AER'!H80),0) -> 0 | I53: =IFERROR(IF($B53<Inputs!$C$7,IF(I$43<Inputs!$C$7,'UE - ESC'!I80,IF(I$43>=Inputs!$C$7+'UE - ESC'!$W$71,0,'UE - ESC'!$T80/'UE - ESC'!$W$71)),'UE - AER'!I80),0) -> 0 | J53: =IFERROR(IF($B53<Inputs!$C$7,IF(J$43<Inputs!$C$7,'UE - ESC'!J80,IF(J$43>=Inputs!$C$7+'UE - ESC'!$W$71,0,'UE - ESC'!$T80/'UE - ESC'!$W$71)),'UE - AER'!J80),0) -> 0 | K53: =IFERROR(IF($B53<Inputs!$C$7,IF(K$43<Inputs!$C$7,'UE - ESC'!K80,IF(K$43>=Inputs!$C$7+'UE - ESC'!$W$71,0,'UE - ESC'!$T80/'UE - ESC'!$W$71)),'UE - AER'!K80),0) -> 0 | L53: =IFERROR(IF($B53<Inputs!$C$7,IF(L$43<Inputs!$C$7,'UE - ESC'!L80,IF(L$43>=Inputs!$C$7+'UE - ESC'!$W$71,0,'UE - ESC'!$T80/'UE - ESC'!$W$71)),'UE - AER'!L80),0) -> 0 | M53: =IFERROR(IF($B53<Inputs!$C$7,IF(M$43<Inputs!$C$7,'UE - ESC'!M80,IF(M$43>=Inputs!$C$7+'UE - ESC'!$W$71,0,'UE - ESC'!$T80/'UE - ESC'!$W$71)),'UE - AER'!M80),0) -> 0 | N53: =IFERROR(IF($B53<Inputs!$C$7,IF(N$43<Inputs!$C$7,'UE - ESC'!N80,IF(N$43>=Inputs!$C$7+'UE - ESC'!$W$71,0,'UE - ESC'!$T80/'UE - ESC'!$W$71)),'UE - AER'!N80),0) -> 0 | O53: =IFERROR(IF($B53<Inputs!$C$7,IF(O$43<Inputs!$C$7,'UE - ESC'!O80,IF(O$43>=Inputs!$C$7+'UE - ESC'!$W$71,0,'UE - ESC'!$T80/'UE - ESC'!$W$71)),'UE - AER'!O80),0) -> 0
B54: 2019 | C54: 15 | D54: =IFERROR(IF($B54<Inputs!$C$7,IF(D$43<Inputs!$C$7,'UE - ESC'!D81,IF(D$43>=Inputs!$C$7+'UE - ESC'!$W$71,0,'UE - ESC'!$T81/'UE - ESC'!$W$71)),'UE - AER'!D81),0) -> 0 | E54: =IFERROR(IF($B54<Inputs!$C$7,IF(E$43<Inputs!$C$7,'UE - ESC'!E81,IF(E$43>=Inputs!$C$7+'UE - ESC'!$W$71,0,'UE - ESC'!$T81/'UE - ESC'!$W$71)),'UE - AER'!E81),0) -> 0 | F54: =IFERROR(IF($B54<Inputs!$C$7,IF(F$43<Inputs!$C$7,'UE - ESC'!F81,IF(F$43>=Inputs!$C$7+'UE - ESC'!$W$71,0,'UE - ESC'!$T81/'UE - ESC'!$W$71)),'UE - AER'!F81),0) -> 0 | G54: =IFERROR(IF($B54<Inputs!$C$7,IF(G$43<Inputs!$C$7,'UE - ESC'!G81,IF(G$43>=Inputs!$C$7+'UE - ESC'!$W$71,0,'UE - ESC'!$T81/'UE - ESC'!$W$71)),'UE - AER'!G81),0) -> 0 | H54: =IFERROR(IF($B54<Inputs!$C$7,IF(H$43<Inputs!$C$7,'UE - ESC'!H81,IF(H$43>=Inputs!$C$7+'UE - ESC'!$W$71,0,'UE - ESC'!$T81/'UE - ESC'!$W$71)),'UE - AER'!H81),0) -> 0 | I54: =IFERROR(IF($B54<Inputs!$C$7,IF(I$43<Inputs!$C$7,'UE - ESC'!I81,IF(I$43>=Inputs!$C$7+'UE - ESC'!$W$71,0,'UE - ESC'!$T81/'UE - ESC'!$W$71)),'UE - AER'!I81),0) -> 0 | J54: =IFERROR(IF($B54<Inputs!$C$7,IF(J$43<Inputs!$C$7,'UE - ESC'!J81,IF(J$43>=Inputs!$C$7+'UE - ESC'!$W$71,0,'UE - ESC'!$T81/'UE - ESC'!$W$71)),'UE - AER'!J81),0) -> 0 | K54: =IFERROR(IF($B54<Inputs!$C$7,IF(K$43<Inputs!$C$7,'UE - ESC'!K81,IF(K$43>=Inputs!$C$7+'UE - ESC'!$W$71,0,'UE - ESC'!$T81/'UE - ESC'!$W$71)),'UE - AER'!K81),0) -> 0 | L54: =IFERROR(IF($B54<Inputs!$C$7,IF(L$43<Inputs!$C$7,'UE - ESC'!L81,IF(L$43>=Inputs!$C$7+'UE - ESC'!$W$71,0,'UE - ESC'!$T81/'UE - ESC'!$W$71)),'UE - AER'!L81),0) -> 0 | M54: =IFERROR(IF($B54<Inputs!$C$7,IF(M$43<Inputs!$C$7,'UE - ESC'!M81,IF(M$43>=Inputs!$C$7+'UE - ESC'!$W$71,0,'UE - ESC'!$T81/'UE - ESC'!$W$71)),'UE - AER'!M81),0) -> 0 | N54: =IFERROR(IF($B54<Inputs!$C$7,IF(N$43<Inputs!$C$7,'UE - ESC'!N81,IF(N$43>=Inputs!$C$7+'UE - ESC'!$W$71,0,'UE - ESC'!$T81/'UE - ESC'!$W$71)),'UE - AER'!N81),0) -> 0 | O54: =IFERROR(IF($B54<Inputs!$C$7,IF(O$43<Inputs!$C$7,'UE - ESC'!O81,IF(O$43>=Inputs!$C$7+'UE - ESC'!$W$71,0,'UE - ESC'!$T81/'UE - ESC'!$W$71)),'UE - AER'!O81),0) -> 0
B55: 2020 | C55: 15 | D55: =IFERROR(IF($B55<Inputs!$C$7,IF(D$43<Inputs!$C$7,'UE - ESC'!D82,IF(D$43>=Inputs!$C$7+'UE - ESC'!$W$71,0,'UE - ESC'!$T82/'UE - ESC'!$W$71)),'UE - AER'!D82),0) -> 0 | E55: =IFERROR(IF($B55<Inputs!$C$7,IF(E$43<Inputs!$C$7,'UE - ESC'!E82,IF(E$43>=Inputs!$C$7+'UE - ESC'!$W$71,0,'UE - ESC'!$T82/'UE - ESC'!$W$71)),'UE - AER'!E82),0) -> 0 | F55: =IFERROR(IF($B55<Inputs!$C$7,IF(F$43<Inputs!$C$7,'UE - ESC'!F82,IF(F$43>=Inputs!$C$7+'UE - ESC'!$W$71,0,'UE - ESC'!$T82/'UE - ESC'!$W$71)),'UE - AER'!F82),0) -> 0 | G55: =IFERROR(IF($B55<Inputs!$C$7,IF(G$43<Inputs!$C$7,'UE - ESC'!G82,IF(G$43>=Inputs!$C$7+'UE - ESC'!$W$71,0,'UE - ESC'!$T82/'UE - ESC'!$W$71)),'UE - AER'!G82),0) -> 0 | H55: =IFERROR(IF($B55<Inputs!$C$7,IF(H$43<Inputs!$C$7,'UE - ESC'!H82,IF(H$43>=Inputs!$C$7+'UE - ESC'!$W$71,0,'UE - ESC'!$T82/'UE - ESC'!$W$71)),'UE - AER'!H82),0) -> 0 | I55: =IFERROR(IF($B55<Inputs!$C$7,IF(I$43<Inputs!$C$7,'UE - ESC'!I82,IF(I$43>=Inputs!$C$7+'UE - ESC'!$W$71,0,'UE - ESC'!$T82/'UE - ESC'!$W$71)),'UE - AER'!I82),0) -> 0 | J55: =IFERROR(IF($B55<Inputs!$C$7,IF(J$43<Inputs!$C$7,'UE - ESC'!J82,IF(J$43>=Inputs!$C$7+'UE - ESC'!$W$71,0,'UE - ESC'!$T82/'UE - ESC'!$W$71)),'UE - AER'!J82),0) -> 0 | K55: =IFERROR(IF($B55<Inputs!$C$7,IF(K$43<Inputs!$C$7,'UE - ESC'!K82,IF(K$43>=Inputs!$C$7+'UE - ESC'!$W$71,0,'UE - ESC'!$T82/'UE - ESC'!$W$71)),'UE - AER'!K82),0) -> 0 | L55: =IFERROR(IF($B55<Inputs!$C$7,IF(L$43<Inputs!$C$7,'UE - ESC'!L82,IF(L$43>=Inputs!$C$7+'UE - ESC'!$W$71,0,'UE - ESC'!$T82/'UE - ESC'!$W$71)),'UE - AER'!L82),0) -> 0 | M55: =IFERROR(IF($B55<Inputs!$C$7,IF(M$43<Inputs!$C$7,'UE - ESC'!M82,IF(M$43>=Inputs!$C$7+'UE - ESC'!$W$71,0,'UE - ESC'!$T82/'UE - ESC'!$W$71)),'UE - AER'!M82),0) -> 0 | N55: =IFERROR(IF($B55<Inputs!$C$7,IF(N$43<Inputs!$C$7,'UE - ESC'!N82,IF(N$43>=Inputs!$C$7+'UE - ESC'!$W$71,0,'UE - ESC'!$T82/'UE - ESC'!$W$71)),'UE - AER'!N82),0) -> 0 | O55: =IFERROR(IF($B55<Inputs!$C$7,IF(O$43<Inputs!$C$7,'UE - ESC'!O82,IF(O$43>=Inputs!$C$7+'UE - ESC'!$W$71,0,'UE - ESC'!$T82/'UE - ESC'!$W$71)),'UE - AER'!O82),0) -> 0
B56: 0 | C56: 15 | D56: =IFERROR(IF($B56<Inputs!$C$7,IF(D$43<Inputs!$C$7,'UE - ESC'!D83,IF(D$43>=Inputs!$C$7+'UE - ESC'!$W$71,0,'UE - ESC'!$T83/'UE - ESC'!$W$71)),'UE - AER'!D83),0) -> 0 | E56: =IFERROR(IF($B56<Inputs!$C$7,IF(E$43<Inputs!$C$7,'UE - ESC'!E83,IF(E$43>=Inputs!$C$7+'UE - ESC'!$W$71,0,'UE - ESC'!$T83/'UE - ESC'!$W$71)),'UE - AER'!E83),0) -> 0 | F56: =IFERROR(IF($B56<Inputs!$C$7,IF(F$43<Inputs!$C$7,'UE - ESC'!F83,IF(F$43>=Inputs!$C$7+'UE - ESC'!$W$71,0,'UE - ESC'!$T83/'UE - ESC'!$W$71)),'UE - AER'!F83),0) -> 0 | G56: =IFERROR(IF($B56<Inputs!$C$7,IF(G$43<Inputs!$C$7,'UE - ESC'!G83,IF(G$43>=Inputs!$C$7+'UE - ESC'!$W$71,0,'UE - ESC'!$T83/'UE - ESC'!$W$71)),'UE - AER'!G83),0) -> 0 | H56: =IFERROR(IF($B56<Inputs!$C$7,IF(H$43<Inputs!$C$7,'UE - ESC'!H83,IF(H$43>=Inputs!$C$7+'UE - ESC'!$W$71,0,'UE - ESC'!$T83/'UE - ESC'!$W$71)),'UE - AER'!H83),0) -> 0 | I56: =IFERROR(IF($B56<Inputs!$C$7,IF(I$43<Inputs!$C$7,'UE - ESC'!I83,IF(I$43>=Inputs!$C$7+'UE - ESC'!$W$71,0,'UE - ESC'!$T83/'UE - ESC'!$W$71)),'UE - AER'!I83),0) -> 0 | J56: =IFERROR(IF($B56<Inputs!$C$7,IF(J$43<Inputs!$C$7,'UE - ESC'!J83,IF(J$43>=Inputs!$C$7+'UE - ESC'!$W$71,0,'UE - ESC'!$T83/'UE - ESC'!$W$71)),'UE - AER'!J83),0) -> 0 | K56: =IFERROR(IF($B56<Inputs!$C$7,IF(K$43<Inputs!$C$7,'UE - ESC'!K83,IF(K$43>=Inputs!$C$7+'UE - ESC'!$W$71,0,'UE - ESC'!$T83/'UE - ESC'!$W$71)),'UE - AER'!K83),0) -> 0 | L56: =IFERROR(IF($B56<Inputs!$C$7,IF(L$43<Inputs!$C$7,'UE - ESC'!L83,IF(L$43>=Inputs!$C$7+'UE - ESC'!$W$71,0,'UE - ESC'!$T83/'UE - ESC'!$W$71)),'UE - AER'!L83),0) -> 0 | M56: =IFERROR(IF($B56<Inputs!$C$7,IF(M$43<Inputs!$C$7,'UE - ESC'!M83,IF(M$43>=Inputs!$C$7+'UE - ESC'!$W$71,0,'UE - ESC'!$T83/'UE - ESC'!$W$71)),'UE - AER'!M83),0) -> 0 | N56: =IFERROR(IF($B56<Inputs!$C$7,IF(N$43<Inputs!$C$7,'UE - ESC'!N83,IF(N$43>=Inputs!$C$7+'UE - ESC'!$W$71,0,'UE - ESC'!$T83/'UE - ESC'!$W$71)),'UE - AER'!N83),0) -> 0 | O56: =IFERROR(IF($B56<Inputs!$C$7,IF(O$43<Inputs!$C$7,'UE - ESC'!O83,IF(O$43>=Inputs!$C$7+'UE - ESC'!$W$71,0,'UE - ESC'!$T83/'UE - ESC'!$W$71)),'UE - AER'!O83),0) -> 0
B57: TOTAL | D57: =SUM(D44:D56) -> 0 | E57: 3379.089693 | F57: 276523.6799 | G57: 752981.06 | H57: 1364626.525 | I57: 2105525.928 | J57: 2461014.303 | K57: 2520358.526 | L57: 2553589.669 | M57: 2553589.669 | N57: 2553589.669 | O57: 2553589.669
B60: ="Depreciation - "&Inputs!C4&" - "&INDEX(Inputs!B38:B45,A62,)&" - "&IF(Inputs!C5=Inputs!C17,Inputs!C17,Inputs!C18) -> Depreciation - United Energy - Three Phase CT - 2015$
A62: 4 | B62: =INDEX(Inputs!$B$38:$B$45,$A$62,) -> Three Phase CT | C62: Life | D62: 2009 | E62: 2010 | F62: 2011 | G62: 2012 | H62: 2013 | I62: 2014 | J62: 2015 | K62: 2016 | L62: 2017 | M62: 2018 | N62: 2019 | O62: 2020
B63: =B44 -> 2009 | C63: =INDEX(Inputs!$C$38:$C$45,$A$62,) -> 15 | D63: =IFERROR(IF($B63<Inputs!$C$7,IF(D$62<Inputs!$C$7,'UE - ESC'!D90,IF(D$62>=Inputs!$C$7+'UE - ESC'!$W$90,0,'UE - ESC'!$T90/'UE - ESC'!$W$90)),'UE - AER'!D90),0) -> 0 | E63: =IFERROR(IF($B63<Inputs!$C$7,IF(E$62<Inputs!$C$7,'UE - ESC'!E90,IF(E$62>=Inputs!$C$7+'UE - ESC'!$W$90,0,'UE - ESC'!$T90/'UE - ESC'!$W$90)),'UE - AER'!E90),0) -> 0 | F63: =IFERROR(IF($B63<Inputs!$C$7,IF(F$62<Inputs!$C$7,'UE - ESC'!F90,IF(F$62>=Inputs!$C$7+'UE - ESC'!$W$90,0,'UE - ESC'!$T90/'UE - ESC'!$W$90)),'UE - AER'!F90),0) -> 0 | G63: =IFERROR(IF($B63<Inputs!$C$7,IF(G$62<Inputs!$C$7,'UE - ESC'!G90,IF(G$62>=Inputs!$C$7+'UE - ESC'!$W$90,0,'UE - ESC'!$T90/'UE - ESC'!$W$90)),'UE - AER'!G90),0) -> 0 | H63: =IFERROR(IF($B63<Inputs!$C$7,IF(H$62<Inputs!$C$7,'UE - ESC'!H90,IF(H$62>=Inputs!$C$7+'UE - ESC'!$W$90,0,'UE - ESC'!$T90/'UE - ESC'!$W$90)),'UE - AER'!H90),0) -> 0 | I63: =IFERROR(IF($B63<Inputs!$C$7,IF(I$62<Inputs!$C$7,'UE - ESC'!I90,IF(I$62>=Inputs!$C$7+'UE - ESC'!$W$90,0,'UE - ESC'!$T90/'UE - ESC'!$W$90)),'UE - AER'!I90),0) -> 0 | J63: =IFERROR(IF($B63<Inputs!$C$7,IF(J$62<Inputs!$C$7,'UE - ESC'!J90,IF(J$62>=Inputs!$C$7+'UE - ESC'!$W$90,0,'UE - ESC'!$T90/'UE - ESC'!$W$90)),'UE - AER'!J90),0) -> 0 | K63: =IFERROR(IF($B63<Inputs!$C$7,IF(K$62<Inputs!$C$7,'UE - ESC'!K90,IF(K$62>=Inputs!$C$7+'UE - ESC'!$W$90,0,'UE - ESC'!$T90/'UE - ESC'!$W$90)),'UE - AER'!K90),0) -> 0 | L63: =IFERROR(IF($B63<Inputs!$C$7,IF(L$62<Inputs!$C$7,'UE - ESC'!L90,IF(L$62>=Inputs!$C$7+'UE - ESC'!$W$90,0,'UE - ESC'!$T90/'UE - ESC'!$W$90)),'UE - AER'!L90),0) -> 0 | M63: =IFERROR(IF($B63<Inputs!$C$7,IF(M$62<Inputs!$C$7,'UE - ESC'!M90,IF(M$62>=Inputs!$C$7+'UE - ESC'!$W$90,0,'UE - ESC'!$T90/'UE - ESC'!$W$90)),'UE - AER'!M90),0) -> 0 | N63: =IFERROR(IF($B63<Inputs!$C$7,IF(N$62<Inputs!$C$7,'UE - ESC'!N90,IF(N$62>=Inputs!$C$7+'UE - ESC'!$W$90,0,'UE - ESC'!$T90/'UE - ESC'!$W$90)),'UE - AER'!N90),0) -> 0 | O63: =IFERROR(IF($B63<Inputs!$C$7,IF(O$62<Inputs!$C$7,'UE - ESC'!O90,IF(O$62>=Inputs!$C$7+'UE - ESC'!$W$90,0,'UE - ESC'!$T90/'UE - ESC'!$W$90)),'UE - AER'!O90),0) -> 0
B64: =B45 -> 2010 | C64: =C63 -> 15 | D64: =IFERROR(IF($B64<Inputs!$C$7,IF(D$62<Inputs!$C$7,'UE - ESC'!D91,IF(D$62>=Inputs!$C$7+'UE - ESC'!$W$90,0,'UE - ESC'!$T91/'UE - ESC'!$W$90)),'UE - AER'!D91),0) -> 0 | E64: =IFERROR(IF($B64<Inputs!$C$7,IF(E$62<Inputs!$C$7,'UE - ESC'!E91,IF(E$62>=Inputs!$C$7+'UE - ESC'!$W$90,0,'UE - ESC'!$T91/'UE - ESC'!$W$90)),'UE - AER'!E91),0) -> 0 | F64: =IFERROR(IF($B64<Inputs!$C$7,IF(F$62<Inputs!$C$7,'UE - ESC'!F91,IF(F$62>=Inputs!$C$7+'UE - ESC'!$W$90,0,'UE - ESC'!$T91/'UE - ESC'!$W$90)),'UE - AER'!F91),0) -> 0 | G64: =IFERROR(IF($B64<Inputs!$C$7,IF(G$62<Inputs!$C$7,'UE - ESC'!G91,IF(G$62>=Inputs!$C$7+'UE - ESC'!$W$90,0,'UE - ESC'!$T91/'UE - ESC'!$W$90)),'UE - AER'!G91),0) -> 0 | H64: =IFERROR(IF($B64<Inputs!$C$7,IF(H$62<Inputs!$C$7,'UE - ESC'!H91,IF(H$62>=Inputs!$C$7+'UE - ESC'!$W$90,0,'UE - ESC'!$T91/'UE - ESC'!$W$90)),'UE - AER'!H91),0) -> 0 | I64: =IFERROR(IF($B64<Inputs!$C$7,IF(I$62<Inputs!$C$7,'UE - ESC'!I91,IF(I$62>=Inputs!$C$7+'UE - ESC'!$W$90,0,'UE - ESC'!$T91/'UE - ESC'!$W$90)),'UE - AER'!I91),0) -> 0 | J64: =IFERROR(IF($B64<Inputs!$C$7,IF(J$62<Inputs!$C$7,'UE - ESC'!J91,IF(J$62>=Inputs!$C$7+'UE - ESC'!$W$90,0,'UE - ESC'!$T91/'UE - ESC'!$W$90)),'UE - AER'!J91),0) -> 0 | K64: =IFERROR(IF($B64<Inputs!$C$7,IF(K$62<Inputs!$C$7,'UE - ESC'!K91,IF(K$62>=Inputs!$C$7+'UE - ESC'!$W$90,0,'UE - ESC'!$T91/'UE - ESC'!$W$90)),'UE - AER'!K91),0) -> 0 | L64: =IFERROR(IF($B64<Inputs!$C$7,IF(L$62<Inputs!$C$7,'UE - ESC'!L91,IF(L$62>=Inputs!$C$7+'UE - ESC'!$W$90,0,'UE - ESC'!$T91/'UE - ESC'!$W$90)),'UE - AER'!L91),0) -> 0 | M64: =IFERROR(IF($B64<Inputs!$C$7,IF(M$62<Inputs!$C$7,'UE - ESC'!M91,IF(M$62>=Inputs!$C$7+'UE - ESC'!$W$90,0,'UE - ESC'!$T91/'UE - ESC'!$W$90)),'UE - AER'!M91),0) -> 0 | N64: =IFERROR(IF($B64<Inputs!$C$7,IF(N$62<Inputs!$C$7,'UE - ESC'!N91,IF(N$62>=Inputs!$C$7+'UE - ESC'!$W$90,0,'UE - ESC'!$T91/'UE - ESC'!$W$90)),'UE - AER'!N91),0) -> 0 | O64: =IFERROR(IF($B64<Inputs!$C$7,IF(O$62<Inputs!$C$7,'UE - ESC'!O91,IF(O$62>=Inputs!$C$7+'UE - ESC'!$W$90,0,'UE - ESC'!$T91/'UE - ESC'!$W$90)),'UE - AER'!O91),0) -> 0
B65: 2011 | C65: =C64 -> 15 | D65: =IFERROR(IF($B65<Inputs!$C$7,IF(D$62<Inputs!$C$7,'UE - ESC'!D92,IF(D$62>=Inputs!$C$7+'UE - ESC'!$W$90,0,'UE - ESC'!$T92/'UE - ESC'!$W$90)),'UE - AER'!D92),0) -> 0 | E65: =IFERROR(IF($B65<Inputs!$C$7,IF(E$62<Inputs!$C$7,'UE - ESC'!E92,IF(E$62>=Inputs!$C$7+'UE - ESC'!$W$90,0,'UE - ESC'!$T92/'UE - ESC'!$W$90)),'UE - AER'!E92),0) -> 0 | F65: =IFERROR(IF($B65<Inputs!$C$7,IF(F$62<Inputs!$C$7,'UE - ESC'!F92,IF(F$62>=Inputs!$C$7+'UE - ESC'!$W$90,0,'UE - ESC'!$T92/'UE - ESC'!$W$90)),'UE - AER'!F92),0) -> 0 | G65: =IFERROR(IF($B65<Inputs!$C$7,IF(G$62<Inputs!$C$7,'UE - ESC'!G92,IF(G$62>=Inputs!$C$7+'UE - ESC'!$W$90,0,'UE - ESC'!$T92/'UE - ESC'!$W$90)),'UE - AER'!G92),0) -> 0 | H65: =IFERROR(IF($B65<Inputs!$C$7,IF(H$62<Inputs!$C$7,'UE - ESC'!H92,IF(H$62>=Inputs!$C$7+'UE - ESC'!$W$90,0,'UE - ESC'!$T92/'UE - ESC'!$W$90)),'UE - AER'!H92),0) -> 0 | I65: =IFERROR(IF($B65<Inputs!$C$7,IF(I$62<Inputs!$C$7,'UE - ESC'!I92,IF(I$62>=Inputs!$C$7+'UE - ESC'!$W$90,0,'UE - ESC'!$T92/'UE - ESC'!$W$90)),'UE - AER'!I92),0) -> 0 | J65: =IFERROR(IF($B65<Inputs!$C$7,IF(J$62<Inputs!$C$7,'UE - ESC'!J92,IF(J$62>=Inputs!$C$7+'UE - ESC'!$W$90,0,'UE - ESC'!$T92/'UE - ESC'!$W$90)),'UE - AER'!J92),0) -> 0 | K65: =IFERROR(IF($B65<Inputs!$C$7,IF(K$62<Inputs!$C$7,'UE - ESC'!K92,IF(K$62>=Inputs!$C$7+'UE - ESC'!$W$90,0,'UE - ESC'!$T92/'UE - ESC'!$W$90)),'UE - AER'!K92),0) -> 0 | L65: =IFERROR(IF($B65<Inputs!$C$7,IF(L$62<Inputs!$C$7,'UE - ESC'!L92,IF(L$62>=Inputs!$C$7+'UE - ESC'!$W$90,0,'UE - ESC'!$T92/'UE - ESC'!$W$90)),'UE - AER'!L92),0) -> 0 | M65: =IFERROR(IF($B65<Inputs!$C$7,IF(M$62<Inputs!$C$7,'UE - ESC'!M92,IF(M$62>=Inputs!$C$7+'UE - ESC'!$W$90,0,'UE - ESC'!$T92/'UE - ESC'!$W$90)),'UE - AER'!M92),0) -> 0 | N65: =IFERROR(IF($B65<Inputs!$C$7,IF(N$62<Inputs!$C$7,'UE - ESC'!N92,IF(N$62>=Inputs!$C$7+'UE - ESC'!$W$90,0,'UE - ESC'!$T92/'UE - ESC'!$W$90)),'UE - AER'!N92),0) -> 0 | O65: =IFERROR(IF($B65<Inputs!$C$7,IF(O$62<Inputs!$C$7,'UE - ESC'!O92,IF(O$62>=Inputs!$C$7+'UE - ESC'!$W$90,0,'UE - ESC'!$T92/'UE - ESC'!$W$90)),'UE - AER'!O92),0) -> 0
B66: 2012 | C66: 15 | D66: =IFERROR(IF($B66<Inputs!$C$7,IF(D$62<Inputs!$C$7,'UE - ESC'!D93,IF(D$62>=Inputs!$C$7+'UE - ESC'!$W$90,0,'UE - ESC'!$T93/'UE - ESC'!$W$90)),'UE - AER'!D93),0) -> 0 | E66: =IFERROR(IF($B66<Inputs!$C$7,IF(E$62<Inputs!$C$7,'UE - ESC'!E93,IF(E$62>=Inputs!$C$7+'UE - ESC'!$W$90,0,'UE - ESC'!$T93/'UE - ESC'!$W$90)),'UE - AER'!E93),0) -> 0 | F66: =IFERROR(IF($B66<Inputs!$C$7,IF(F$62<Inputs!$C$7,'UE - ESC'!F93,IF(F$62>=Inputs!$C$7+'UE - ESC'!$W$90,0,'UE - ESC'!$T93/'UE - ESC'!$W$90)),'UE - AER'!F93),0) -> 0 | G66: =IFERROR(IF($B66<Inputs!$C$7,IF(G$62<Inputs!$C$7,'UE - ESC'!G93,IF(G$62>=Inputs!$C$7+'UE - ESC'!$W$90,0,'UE - ESC'!$T93/'UE - ESC'!$W$90)),'UE - AER'!G93),0) -> 0 | H66: =IFERROR(IF($B66<Inputs!$C$7,IF(H$62<Inputs!$C$7,'UE - ESC'!H93,IF(H$62>=Inputs!$C$7+'UE - ESC'!$W$90,0,'UE - ESC'!$T93/'UE - ESC'!$W$90)),'UE - AER'!H93),0) -> 0 | I66: =IFERROR(IF($B66<Inputs!$C$7,IF(I$62<Inputs!$C$7,'UE - ESC'!I93,IF(I$62>=Inputs!$C$7+'UE - ESC'!$W$90,0,'UE - ESC'!$T93/'UE - ESC'!$W$90)),'UE - AER'!I93),0) -> 0 | J66: =IFERROR(IF($B66<Inputs!$C$7,IF(J$62<Inputs!$C$7,'UE - ESC'!J93,IF(J$62>=Inputs!$C$7+'UE - ESC'!$W$90,0,'UE - ESC'!$T93/'UE - ESC'!$W$90)),'UE - AER'!J93),0) -> 0 | K66: =IFERROR(IF($B66<Inputs!$C$7,IF(K$62<Inputs!$C$7,'UE - ESC'!K93,IF(K$62>=Inputs!$C$7+'UE - ESC'!$W$90,0,'UE - ESC'!$T93/'UE - ESC'!$W$90)),'UE - AER'!K93),0) -> 0 | L66: =IFERROR(IF($B66<Inputs!$C$7,IF(L$62<Inputs!$C$7,'UE - ESC'!L93,IF(L$62>=Inputs!$C$7+'UE - ESC'!$W$90,0,'UE - ESC'!$T93/'UE - ESC'!$W$90)),'UE - AER'!L93),0) -> 0 | M66: =IFERROR(IF($B66<Inputs!$C$7,IF(M$62<Inputs!$C$7,'UE - ESC'!M93,IF(M$62>=Inputs!$C$7+'UE - ESC'!$W$90,0,'UE - ESC'!$T93/'UE - ESC'!$W$90)),'UE - AER'!M93),0) -> 0 | N66: =IFERROR(IF($B66<Inputs!$C$7,IF(N$62<Inputs!$C$7,'UE - ESC'!N93,IF(N$62>=Inputs!$C$7+'UE - ESC'!$W$90,0,'UE - ESC'!$T93/'UE - ESC'!$W$90)),'UE - AER'!N93),0) -> 0 | O66: =IFERROR(IF($B66<Inputs!$C$7,IF(O$62<Inputs!$C$7,'UE - ESC'!O93,IF(O$62>=Inputs!$C$7+'UE - ESC'!$W$90,0,'UE - ESC'!$T93/'UE - ESC'!$W$90)),'UE - AER'!O93),0) -> 0
B67: 2013 | C67: 15 | D67: =IFERROR(IF($B67<Inputs!$C$7,IF(D$62<Inputs!$C$7,'UE - ESC'!D94,IF(D$62>=Inputs!$C$7+'UE - ESC'!$W$90,0,'UE - ESC'!$T94/'UE - ESC'!$W$90)),'UE - AER'!D94),0) -> 0 | E67: =IFERROR(IF($B67<Inputs!$C$7,IF(E$62<Inputs!$C$7,'UE - ESC'!E94,IF(E$62>=Inputs!$C$7+'UE - ESC'!$W$90,0,'UE - ESC'!$T94/'UE - ESC'!$W$90)),'UE - AER'!E94),0) -> 0 | F67: =IFERROR(IF($B67<Inputs!$C$7,IF(F$62<Inputs!$C$7,'UE - ESC'!F94,IF(F$62>=Inputs!$C$7+'UE - ESC'!$W$90,0,'UE - ESC'!$T94/'UE - ESC'!$W$90)),'UE - AER'!F94),0) -> 0 | G67: =IFERROR(IF($B67<Inputs!$C$7,IF(G$62<Inputs!$C$7,'UE - ESC'!G94,IF(G$62>=Inputs!$C$7+'UE - ESC'!$W$90,0,'UE - ESC'!$T94/'UE - ESC'!$W$90)),'UE - AER'!G94),0) -> 0 | H67: =IFERROR(IF($B67<Inputs!$C$7,IF(H$62<Inputs!$C$7,'UE - ESC'!H94,IF(H$62>=Inputs!$C$7+'UE - ESC'!$W$90,0,'UE - ESC'!$T94/'UE - ESC'!$W$90)),'UE - AER'!H94),0) -> 0 | I67: =IFERROR(IF($B67<Inputs!$C$7,IF(I$62<Inputs!$C$7,'UE - ESC'!I94,IF(I$62>=Inputs!$C$7+'UE - ESC'!$W$90,0,'UE - ESC'!$T94/'UE - ESC'!$W$90)),'UE - AER'!I94),0) -> 0 | J67: =IFERROR(IF($B67<Inputs!$C$7,IF(J$62<Inputs!$C$7,'UE - ESC'!J94,IF(J$62>=Inputs!$C$7+'UE - ESC'!$W$90,0,'UE - ESC'!$T94/'UE - ESC'!$W$90)),'UE - AER'!J94),0) -> 0 | K67: =IFERROR(IF($B67<Inputs!$C$7,IF(K$62<Inputs!$C$7,'UE - ESC'!K94,IF(K$62>=Inputs!$C$7+'UE - ESC'!$W$90,0,'UE - ESC'!$T94/'UE - ESC'!$W$90)),'UE - AER'!K94),0) -> 0 | L67: =IFERROR(IF($B67<Inputs!$C$7,IF(L$62<Inputs!$C$7,'UE - ESC'!L94,IF(L$62>=Inputs!$C$7+'UE - ESC'!$W$90,0,'UE - ESC'!$T94/'UE - ESC'!$W$90)),'UE - AER'!L94),0) -> 0 | M67: =IFERROR(IF($B67<Inputs!$C$7,IF(M$62<Inputs!$C$7,'UE - ESC'!M94,IF(M$62>=Inputs!$C$7+'UE - ESC'!$W$90,0,'UE - ESC'!$T94/'UE - ESC'!$W$90)),'UE - AER'!M94),0) -> 0 | N67: =IFERROR(IF($B67<Inputs!$C$7,IF(N$62<Inputs!$C$7,'UE - ESC'!N94,IF(N$62>=Inputs!$C$7+'UE - ESC'!$W$90,0,'UE - ESC'!$T94/'UE - ESC'!$W$90)),'UE - AER'!N94),0) -> 0 | O67: =IFERROR(IF($B67<Inputs!$C$7,IF(O$62<Inputs!$C$7,'UE - ESC'!O94,IF(O$62>=Inputs!$C$7+'UE - ESC'!$W$90,0,'UE - ESC'!$T94/'UE - ESC'!$W$90)),'UE - AER'!O94),0) -> 0
B68: 2014 | C68: 15 | D68: =IFERROR(IF($B68<Inputs!$C$7,IF(D$62<Inputs!$C$7,'UE - ESC'!D95,IF(D$62>=Inputs!$C$7+'UE - ESC'!$W$90,0,'UE - ESC'!$T95/'UE - ESC'!$W$90)),'UE - AER'!D95),0) -> 0 | E68: =IFERROR(IF($B68<Inputs!$C$7,IF(E$62<Inputs!$C$7,'UE - ESC'!E95,IF(E$62>=Inputs!$C$7+'UE - ESC'!$W$90,0,'UE - ESC'!$T95/'UE - ESC'!$W$90)),'UE - AER'!E95),0) -> 0 | F68: =IFERROR(IF($B68<Inputs!$C$7,IF(F$62<Inputs!$C$7,'UE - ESC'!F95,IF(F$62>=Inputs!$C$7+'UE - ESC'!$W$90,0,'UE - ESC'!$T95/'UE - ESC'!$W$90)),'UE - AER'!F95),0) -> 0 | G68: =IFERROR(IF($B68<Inputs!$C$7,IF(G$62<Inputs!$C$7,'UE - ESC'!G95,IF(G$62>=Inputs!$C$7+'UE - ESC'!$W$90,0,'UE - ESC'!$T95/'UE - ESC'!$W$90)),'UE - AER'!G95),0) -> 0 | H68: =IFERROR(IF($B68<Inputs!$C$7,IF(H$62<Inputs!$C$7,'UE - ESC'!H95,IF(H$62>=Inputs!$C$7+'UE - ESC'!$W$90,0,'UE - ESC'!$T95/'UE - ESC'!$W$90)),'UE - AER'!H95),0) -> 0 | I68: =IFERROR(IF($B68<Inputs!$C$7,IF(I$62<Inputs!$C$7,'UE - ESC'!I95,IF(I$62>=Inputs!$C$7+'UE - ESC'!$W$90,0,'UE - ESC'!$T95/'UE - ESC'!$W$90)),'UE - AER'!I95),0) -> 50607.45759 | J68: =IFERROR(IF($B68<Inputs!$C$7,IF(J$62<Inputs!$C$7,'UE - ESC'!J95,IF(J$62>=Inputs!$C$7+'UE - ESC'!$W$90,0,'UE - ESC'!$T95/'UE - ESC'!$W$90)),'UE - AER'!J95),0) -> 101214.9152 | K68: =IFERROR(IF($B68<Inputs!$C$7,IF(K$62<Inputs!$C$7,'UE - ESC'!K95,IF(K$62>=Inputs!$C$7+'UE - ESC'!$W$90,0,'UE - ESC'!$T95/'UE - ESC'!$W$90)),'UE - AER'!K95),0) -> 97600.09678 | L68: =IFERROR(IF($B68<Inputs!$C$7,IF(L$62<Inputs!$C$7,'UE - ESC'!L95,IF(L$62>=Inputs!$C$7+'UE - ESC'!$W$90,0,'UE - ESC'!$T95/'UE - ESC'!$W$90)),'UE - AER'!L95),0) -> 97600.09678 | M68: =IFERROR(IF($B68<Inputs!$C$7,IF(M$62<Inputs!$C$7,'UE - ESC'!M95,IF(M$62>=Inputs!$C$7+'UE - ESC'!$W$90,0,'UE - ESC'!$T95/'UE - ESC'!$W$90)),'UE - AER'!M95),0) -> 97600.09678 | N68: =IFERROR(IF($B68<Inputs!$C$7,IF(N$62<Inputs!$C$7,'UE - ESC'!N95,IF(N$62>=Inputs!$C$7+'UE - ESC'!$W$90,0,'UE - ESC'!$T95/'UE - ESC'!$W$90)),'UE - AER'!N95),0) -> 97600.09678 | O68: =IFERROR(IF($B68<Inputs!$C$7,IF(O$62<Inputs!$C$7,'UE - ESC'!O95,IF(O$62>=Inputs!$C$7+'UE - ESC'!$W$90,0,'UE - ESC'!$T95/'UE - ESC'!$W$90)),'UE - AER'!O95),0) -> 97600.09678
B69: 2015 | C69: 15 | D69: =IFERROR(IF($B69<Inputs!$C$7,IF(D$62<Inputs!$C$7,'UE - ESC'!D96,IF(D$62>=Inputs!$C$7+'UE - ESC'!$W$90,0,'UE - ESC'!$T96/'UE - ESC'!$W$90)),'UE - AER'!D96),0) -> 0 | E69: =IFERROR(IF($B69<Inputs!$C$7,IF(E$62<Inputs!$C$7,'UE - ESC'!E96,IF(E$62>=Inputs!$C$7+'UE - ESC'!$W$90,0,'UE - ESC'!$T96/'UE - ESC'!$W$90)),'UE - AER'!E96),0) -> 0 | F69: =IFERROR(IF($B69<Inputs!$C$7,IF(F$62<Inputs!$C$7,'UE - ESC'!F96,IF(F$62>=Inputs!$C$7+'UE - ESC'!$W$90,0,'UE - ESC'!$T96/'UE - ESC'!$W$90)),'UE - AER'!F96),0) -> 0 | G69: =IFERROR(IF($B69<Inputs!$C$7,IF(G$62<Inputs!$C$7,'UE - ESC'!G96,IF(G$62>=Inputs!$C$7+'UE - ESC'!$W$90,0,'UE - ESC'!$T96/'UE - ESC'!$W$90)),'UE - AER'!G96),0) -> 0 | H69: =IFERROR(IF($B69<Inputs!$C$7,IF(H$62<Inputs!$C$7,'UE - ESC'!H96,IF(H$62>=Inputs!$C$7+'UE - ESC'!$W$90,0,'UE - ESC'!$T96/'UE - ESC'!$W$90)),'UE - AER'!H96),0) -> 0 | I69: =IFERROR(IF($B69<Inputs!$C$7,IF(I$62<Inputs!$C$7,'UE - ESC'!I96,IF(I$62>=Inputs!$C$7+'UE - ESC'!$W$90,0,'UE - ESC'!$T96/'UE - ESC'!$W$90)),'UE - AER'!I96),0) -> 0 | J69: =IFERROR(IF($B69<Inputs!$C$7,IF(J$62<Inputs!$C$7,'UE - ESC'!J96,IF(J$62>=Inputs!$C$7+'UE - ESC'!$W$90,0,'UE - ESC'!$T96/'UE - ESC'!$W$90)),'UE - AER'!J96),0) -> 2624.047256 | K69: =IFERROR(IF($B69<Inputs!$C$7,IF(K$62<Inputs!$C$7,'UE - ESC'!K96,IF(K$62>=Inputs!$C$7+'UE - ESC'!$W$90,0,'UE - ESC'!$T96/'UE - ESC'!$W$90)),'UE - AER'!K96),0) -> 5435.526458 | L69: =IFERROR(IF($B69<Inputs!$C$7,IF(L$62<Inputs!$C$7,'UE - ESC'!L96,IF(L$62>=Inputs!$C$7+'UE - ESC'!$W$90,0,'UE - ESC'!$T96/'UE - ESC'!$W$90)),'UE - AER'!L96),0) -> 5435.526458 | M69: =IFERROR(IF($B69<Inputs!$C$7,IF(M$62<Inputs!$C$7,'UE - ESC'!M96,IF(M$62>=Inputs!$C$7+'UE - ESC'!$W$90,0,'UE - ESC'!$T96/'UE - ESC'!$W$90)),'UE - AER'!M96),0) -> 5435.526458 | N69: =IFERROR(IF($B69<Inputs!$C$7,IF(N$62<Inputs!$C$7,'UE - ESC'!N96,IF(N$62>=Inputs!$C$7+'UE - ESC'!$W$90,0,'UE - ESC'!$T96/'UE - ESC'!$W$90)),'UE - AER'!N96),0) -> 5435.526458 | O69: =IFERROR(IF($B69<Inputs!$C$7,IF(O$62<Inputs!$C$7,'UE - ESC'!O96,IF(O$62>=Inputs!$C$7+'UE - ESC'!$W$90,0,'UE - ESC'!$T96/'UE - ESC'!$W$90)),'UE - AER'!O96),0) -> 5435.526458
B70: 2016 | C70: 15 | D70: =IFERROR(IF($B70<Inputs!$C$7,IF(D$62<Inputs!$C$7,'UE - ESC'!D97,IF(D$62>=Inputs!$C$7+'UE - ESC'!$W$90,0,'UE - ESC'!$T97/'UE - ESC'!$W$90)),'UE - AER'!D97),0) -> 0 | E70: =IFERROR(IF($B70<Inputs!$C$7,IF(E$62<Inputs!$C$7,'UE - ESC'!E97,IF(E$62>=Inputs!$C$7+'UE - ESC'!$W$90,0,'UE - ESC'!$T97/'UE - ESC'!$W$90)),'UE - AER'!E97),0) -> 0 | F70: =IFERROR(IF($B70<Inputs!$C$7,IF(F$62<Inputs!$C$7,'UE - ESC'!F97,IF(F$62>=Inputs!$C$7+'UE - ESC'!$W$90,0,'UE - ESC'!$T97/'UE - ESC'!$W$90)),'UE - AER'!F97),0) -> 0 | G70: =IFERROR(IF($B70<Inputs!$C$7,IF(G$62<Inputs!$C$7,'UE - ESC'!G97,IF(G$62>=Inputs!$C$7+'UE - ESC'!$W$90,0,'UE - ESC'!$T97/'UE - ESC'!$W$90)),'UE - AER'!G97),0) -> 0 | H70: =IFERROR(IF($B70<Inputs!$C$7,IF(H$62<Inputs!$C$7,'UE - ESC'!H97,IF(H$62>=Inputs!$C$7+'UE - ESC'!$W$90,0,'UE - ESC'!$T97/'UE - ESC'!$W$90)),'UE - AER'!H97),0) -> 0 | I70: =IFERROR(IF($B70<Inputs!$C$7,IF(I$62<Inputs!$C$7,'UE - ESC'!I97,IF(I$62>=Inputs!$C$7+'UE - ESC'!$W$90,0,'UE - ESC'!$T97/'UE - ESC'!$W$90)),'UE - AER'!I97),0) -> 0 | J70: =IFERROR(IF($B70<Inputs!$C$7,IF(J$62<Inputs!$C$7,'UE - ESC'!J97,IF(J$62>=Inputs!$C$7+'UE - ESC'!$W$90,0,'UE - ESC'!$T97/'UE - ESC'!$W$90)),'UE - AER'!J97),0) -> 0 | K70: =IFERROR(IF($B70<Inputs!$C$7,IF(K$62<Inputs!$C$7,'UE - ESC'!K97,IF(K$62>=Inputs!$C$7+'UE - ESC'!$W$90,0,'UE - ESC'!$T97/'UE - ESC'!$W$90)),'UE - AER'!K97),0) -> 0 | L70: =IFERROR(IF($B70<Inputs!$C$7,IF(L$62<Inputs!$C$7,'UE - ESC'!L97,IF(L$62>=Inputs!$C$7+'UE - ESC'!$W$90,0,'UE - ESC'!$T97/'UE - ESC'!$W$90)),'UE - AER'!L97),0) -> 4899.321764 | M70: =IFERROR(IF($B70<Inputs!$C$7,IF(M$62<Inputs!$C$7,'UE - ESC'!M97,IF(M$62>=Inputs!$C$7+'UE - ESC'!$W$90,0,'UE - ESC'!$T97/'UE - ESC'!$W$90)),'UE - AER'!M97),0) -> 4899.321764 | N70: =IFERROR(IF($B70<Inputs!$C$7,IF(N$62<Inputs!$C$7,'UE - ESC'!N97,IF(N$62>=Inputs!$C$7+'UE - ESC'!$W$90,0,'UE - ESC'!$T97/'UE - ESC'!$W$90)),'UE - AER'!N97),0) -> 4899.321764 | O70: =IFERROR(IF($B70<Inputs!$C$7,IF(O$62<Inputs!$C$7,'UE - ESC'!O97,IF(O$62>=Inputs!$C$7+'UE - ESC'!$W$90,0,'UE - ESC'!$T97/'UE - ESC'!$W$90)),'UE - AER'!O97),0) -> 4899.321764
B71: 2017 | C71: 15 | D71: =IFERROR(IF($B71<Inputs!$C$7,IF(D$62<Inputs!$C$7,'UE - ESC'!D98,IF(D$62>=Inputs!$C$7+'UE - ESC'!$W$90,0,'UE - ESC'!$T98/'UE - ESC'!$W$90)),'UE - AER'!D98),0) -> 0 | E71: =IFERROR(IF($B71<Inputs!$C$7,IF(E$62<Inputs!$C$7,'UE - ESC'!E98,IF(E$62>=Inputs!$C$7+'UE - ESC'!$W$90,0,'UE - ESC'!$T98/'UE - ESC'!$W$90)),'UE - AER'!E98),0) -> 0 | F71: =IFERROR(IF($B71<Inputs!$C$7,IF(F$62<Inputs!$C$7,'UE - ESC'!F98,IF(F$62>=Inputs!$C$7+'UE - ESC'!$W$90,0,'UE - ESC'!$T98/'UE - ESC'!$W$90)),'UE - AER'!F98),0) -> 0 | G71: =IFERROR(IF($B71<Inputs!$C$7,IF(G$62<Inputs!$C$7,'UE - ESC'!G98,IF(G$62>=Inputs!$C$7+'UE - ESC'!$W$90,0,'UE - ESC'!$T98/'UE - ESC'!$W$90)),'UE - AER'!G98),0) -> 0 | H71: =IFERROR(IF($B71<Inputs!$C$7,IF(H$62<Inputs!$C$7,'UE - ESC'!H98,IF(H$62>=Inputs!$C$7+'UE - ESC'!$W$90,0,'UE - ESC'!$T98/'UE - ESC'!$W$90)),'UE - AER'!H98),0) -> 0 | I71: =IFERROR(IF($B71<Inputs!$C$7,IF(I$62<Inputs!$C$7,'UE - ESC'!I98,IF(I$62>=Inputs!$C$7+'UE - ESC'!$W$90,0,'UE - ESC'!$T98/'UE - ESC'!$W$90)),'UE - AER'!I98),0) -> 0 | J71: =IFERROR(IF($B71<Inputs!$C$7,IF(J$62<Inputs!$C$7,'UE - ESC'!J98,IF(J$62>=Inputs!$C$7+'UE - ESC'!$W$90,0,'UE - ESC'!$T98/'UE - ESC'!$W$90)),'UE - AER'!J98),0) -> 0 | K71: =IFERROR(IF($B71<Inputs!$C$7,IF(K$62<Inputs!$C$7,'UE - ESC'!K98,IF(K$62>=Inputs!$C$7+'UE - ESC'!$W$90,0,'UE - ESC'!$T98/'UE - ESC'!$W$90)),'UE - AER'!K98),0) -> 0 | L71: =IFERROR(IF($B71<Inputs!$C$7,IF(L$62<Inputs!$C$7,'UE - ESC'!L98,IF(L$62>=Inputs!$C$7+'UE - ESC'!$W$90,0,'UE - ESC'!$T98/'UE - ESC'!$W$90)),'UE - AER'!L98),0) -> 0 | M71: =IFERROR(IF($B71<Inputs!$C$7,IF(M$62<Inputs!$C$7,'UE - ESC'!M98,IF(M$62>=Inputs!$C$7+'UE - ESC'!$W$90,0,'UE - ESC'!$T98/'UE - ESC'!$W$90)),'UE - AER'!M98),0) -> 0 | N71: =IFERROR(IF($B71<Inputs!$C$7,IF(N$62<Inputs!$C$7,'UE - ESC'!N98,IF(N$62>=Inputs!$C$7+'UE - ESC'!$W$90,0,'UE - ESC'!$T98/'UE - ESC'!$W$90)),'UE - AER'!N98),0) -> 0 | O71: =IFERROR(IF($B71<Inputs!$C$7,IF(O$62<Inputs!$C$7,'UE - ESC'!O98,IF(O$62>=Inputs!$C$7+'UE - ESC'!$W$90,0,'UE - ESC'!$T98/'UE - ESC'!$W$90)),'UE - AER'!O98),0) -> 0
B72: 2018 | C72: 15 | D72: =IFERROR(IF($B72<Inputs!$C$7,IF(D$62<Inputs!$C$7,'UE - ESC'!D99,IF(D$62>=Inputs!$C$7+'UE - ESC'!$W$90,0,'UE - ESC'!$T99/'UE - ESC'!$W$90)),'UE - AER'!D99),0) -> 0 | E72: =IFERROR(IF($B72<Inputs!$C$7,IF(E$62<Inputs!$C$7,'UE - ESC'!E99,IF(E$62>=Inputs!$C$7+'UE - ESC'!$W$90,0,'UE - ESC'!$T99/'UE - ESC'!$W$90)),'UE - AER'!E99),0) -> 0 | F72: =IFERROR(IF($B72<Inputs!$C$7,IF(F$62<Inputs!$C$7,'UE - ESC'!F99,IF(F$62>=Inputs!$C$7+'UE - ESC'!$W$90,0,'UE - ESC'!$T99/'UE - ESC'!$W$90)),'UE - AER'!F99),0) -> 0 | G72: =IFERROR(IF($B72<Inputs!$C$7,IF(G$62<Inputs!$C$7,'UE - ESC'!G99,IF(G$62>=Inputs!$C$7+'UE - ESC'!$W$90,0,'UE - ESC'!$T99/'UE - ESC'!$W$90)),'UE - AER'!G99),0) -> 0 | H72: =IFERROR(IF($B72<Inputs!$C$7,IF(H$62<Inputs!$C$7,'UE - ESC'!H99,IF(H$62>=Inputs!$C$7+'UE - ESC'!$W$90,0,'UE - ESC'!$T99/'UE - ESC'!$W$90)),'UE - AER'!H99),0) -> 0 | I72: =IFERROR(IF($B72<Inputs!$C$7,IF(I$62<Inputs!$C$7,'UE - ESC'!I99,IF(I$62>=Inputs!$C$7+'UE - ESC'!$W$90,0,'UE - ESC'!$T99/'UE - ESC'!$W$90)),'UE - AER'!I99),0) -> 0 | J72: =IFERROR(IF($B72<Inputs!$C$7,IF(J$62<Inputs!$C$7,'UE - ESC'!J99,IF(J$62>=Inputs!$C$7+'UE - ESC'!$W$90,0,'UE - ESC'!$T99/'UE - ESC'!$W$90)),'UE - AER'!J99),0) -> 0 | K72: =IFERROR(IF($B72<Inputs!$C$7,IF(K$62<Inputs!$C$7,'UE - ESC'!K99,IF(K$62>=Inputs!$C$7+'UE - ESC'!$W$90,0,'UE - ESC'!$T99/'UE - ESC'!$W$90)),'UE - AER'!K99),0) -> 0 | L72: =IFERROR(IF($B72<Inputs!$C$7,IF(L$62<Inputs!$C$7,'UE - ESC'!L99,IF(L$62>=Inputs!$C$7+'UE - ESC'!$W$90,0,'UE - ESC'!$T99/'UE - ESC'!$W$90)),'UE - AER'!L99),0) -> 0 | M72: =IFERROR(IF($B72<Inputs!$C$7,IF(M$62<Inputs!$C$7,'UE - ESC'!M99,IF(M$62>=Inputs!$C$7+'UE - ESC'!$W$90,0,'UE - ESC'!$T99/'UE - ESC'!$W$90)),'UE - AER'!M99),0) -> 0 | N72: =IFERROR(IF($B72<Inputs!$C$7,IF(N$62<Inputs!$C$7,'UE - ESC'!N99,IF(N$62>=Inputs!$C$7+'UE - ESC'!$W$90,0,'UE - ESC'!$T99/'UE - ESC'!$W$90)),'UE - AER'!N99),0) -> 0 | O72: =IFERROR(IF($B72<Inputs!$C$7,IF(O$62<Inputs!$C$7,'UE - ESC'!O99,IF(O$62>=Inputs!$C$7+'UE - ESC'!$W$90,0,'UE - ESC'!$T99/'UE - ESC'!$W$90)),'UE - AER'!O99),0) -> 0
B73: 2019 | C73: 15 | D73: =IFERROR(IF($B73<Inputs!$C$7,IF(D$62<Inputs!$C$7,'UE - ESC'!D100,IF(D$62>=Inputs!$C$7+'UE - ESC'!$W$90,0,'UE - ESC'!$T100/'UE - ESC'!$W$90)),'UE - AER'!D100),0) -> 0 | E73: =IFERROR(IF($B73<Inputs!$C$7,IF(E$62<Inputs!$C$7,'UE - ESC'!E100,IF(E$62>=Inputs!$C$7+'UE - ESC'!$W$90,0,'UE - ESC'!$T100/'UE - ESC'!$W$90)),'UE - AER'!E100),0) -> 0 | F73: =IFERROR(IF($B73<Inputs!$C$7,IF(F$62<Inputs!$C$7,'UE - ESC'!F100,IF(F$62>=Inputs!$C$7+'UE - ESC'!$W$90,0,'UE - ESC'!$T100/'UE - ESC'!$W$90)),'UE - AER'!F100),0) -> 0 | G73: =IFERROR(IF($B73<Inputs!$C$7,IF(G$62<Inputs!$C$7,'UE - ESC'!G100,IF(G$62>=Inputs!$C$7+'UE - ESC'!$W$90,0,'UE - ESC'!$T100/'UE - ESC'!$W$90)),'UE - AER'!G100),0) -> 0 | H73: =IFERROR(IF($B73<Inputs!$C$7,IF(H$62<Inputs!$C$7,'UE - ESC'!H100,IF(H$62>=Inputs!$C$7+'UE - ESC'!$W$90,0,'UE - ESC'!$T100/'UE - ESC'!$W$90)),'UE - AER'!H100),0) -> 0 | I73: =IFERROR(IF($B73<Inputs!$C$7,IF(I$62<Inputs!$C$7,'UE - ESC'!I100,IF(I$62>=Inputs!$C$7+'UE - ESC'!$W$90,0,'UE - ESC'!$T100/'UE - ESC'!$W$90)),'UE - AER'!I100),0) -> 0 | J73: =IFERROR(IF($B73<Inputs!$C$7,IF(J$62<Inputs!$C$7,'UE - ESC'!J100,IF(J$62>=Inputs!$C$7+'UE - ESC'!$W$90,0,'UE - ESC'!$T100/'UE - ESC'!$W$90)),'UE - AER'!J100),0) -> 0 | K73: =IFERROR(IF($B73<Inputs!$C$7,IF(K$62<Inputs!$C$7,'UE - ESC'!K100,IF(K$62>=Inputs!$C$7+'UE - ESC'!$W$90,0,'UE - ESC'!$T100/'UE - ESC'!$W$90)),'UE - AER'!K100),0) -> 0 | L73: =IFERROR(IF($B73<Inputs!$C$7,IF(L$62<Inputs!$C$7,'UE - ESC'!L100,IF(L$62>=Inputs!$C$7+'UE - ESC'!$W$90,0,'UE - ESC'!$T100/'UE - ESC'!$W$90)),'UE - AER'!L100),0) -> 0 | M73: =IFERROR(IF($B73<Inputs!$C$7,IF(M$62<Inputs!$C$7,'UE - ESC'!M100,IF(M$62>=Inputs!$C$7+'UE - ESC'!$W$90,0,'UE - ESC'!$T100/'UE - ESC'!$W$90)),'UE - AER'!M100),0) -> 0 | N73: =IFERROR(IF($B73<Inputs!$C$7,IF(N$62<Inputs!$C$7,'UE - ESC'!N100,IF(N$62>=Inputs!$C$7+'UE - ESC'!$W$90,0,'UE - ESC'!$T100/'UE - ESC'!$W$90)),'UE - AER'!N100),0) -> 0 | O73: =IFERROR(IF($B73<Inputs!$C$7,IF(O$62<Inputs!$C$7,'UE - ESC'!O100,IF(O$62>=Inputs!$C$7+'UE - ESC'!$W$90,0,'UE - ESC'!$T100/'UE - ESC'!$W$90)),'UE - AER'!O100),0) -> 0
B74: 2020 | C74: 15 | D74: =IFERROR(IF($B74<Inputs!$C$7,IF(D$62<Inputs!$C$7,'UE - ESC'!D101,IF(D$62>=Inputs!$C$7+'UE - ESC'!$W$90,0,'UE - ESC'!$T101/'UE - ESC'!$W$90)),'UE - AER'!D101),0) -> 0 | E74: =IFERROR(IF($B74<Inputs!$C$7,IF(E$62<Inputs!$C$7,'UE - ESC'!E101,IF(E$62>=Inputs!$C$7+'UE - ESC'!$W$90,0,'UE - ESC'!$T101/'UE - ESC'!$W$90)),'UE - AER'!E101),0) -> 0 | F74: =IFERROR(IF($B74<Inputs!$C$7,IF(F$62<Inputs!$C$7,'UE - ESC'!F101,IF(F$62>=Inputs!$C$7+'UE - ESC'!$W$90,0,'UE - ESC'!$T101/'UE - ESC'!$W$90)),'UE - AER'!F101),0) -> 0 | G74: =IFERROR(IF($B74<Inputs!$C$7,IF(G$62<Inputs!$C$7,'UE - ESC'!G101,IF(G$62>=Inputs!$C$7+'UE - ESC'!$W$90,0,'UE - ESC'!$T101/'UE - ESC'!$W$90)),'UE - AER'!G101),0) -> 0 | H74: =IFERROR(IF($B74<Inputs!$C$7,IF(H$62<Inputs!$C$7,'UE - ESC'!H101,IF(H$62>=Inputs!$C$7+'UE - ESC'!$W$90,0,'UE - ESC'!$T101/'UE - ESC'!$W$90)),'UE - AER'!H101),0) -> 0 | I74: =IFERROR(IF($B74<Inputs!$C$7,IF(I$62<Inputs!$C$7,'UE - ESC'!I101,IF(I$62>=Inputs!$C$7+'UE - ESC'!$W$90,0,'UE - ESC'!$T101/'UE - ESC'!$W$90)),'UE - AER'!I101),0) -> 0 | J74: =IFERROR(IF($B74<Inputs!$C$7,IF(J$62<Inputs!$C$7,'UE - ESC'!J101,IF(J$62>=Inputs!$C$7+'UE - ESC'!$W$90,0,'UE - ESC'!$T101/'UE - ESC'!$W$90)),'UE - AER'!J101),0) -> 0 | K74: =IFERROR(IF($B74<Inputs!$C$7,IF(K$62<Inputs!$C$7,'UE - ESC'!K101,IF(K$62>=Inputs!$C$7+'UE - ESC'!$W$90,0,'UE - ESC'!$T101/'UE - ESC'!$W$90)),'UE - AER'!K101),0) -> 0 | L74: =IFERROR(IF($B74<Inputs!$C$7,IF(L$62<Inputs!$C$7,'UE - ESC'!L101,IF(L$62>=Inputs!$C$7+'UE - ESC'!$W$90,0,'UE - ESC'!$T101/'UE - ESC'!$W$90)),'UE - AER'!L101),0) -> 0 | M74: =IFERROR(IF($B74<Inputs!$C$7,IF(M$62<Inputs!$C$7,'UE - ESC'!M101,IF(M$62>=Inputs!$C$7+'UE - ESC'!$W$90,0,'UE - ESC'!$T101/'UE - ESC'!$W$90)),'UE - AER'!M101),0) -> 0 | N74: =IFERROR(IF($B74<Inputs!$C$7,IF(N$62<Inputs!$C$7,'UE - ESC'!N101,IF(N$62>=Inputs!$C$7+'UE - ESC'!$W$90,0,'UE - ESC'!$T101/'UE - ESC'!$W$90)),'UE - AER'!N101),0) -> 0 | O74: =IFERROR(IF($B74<Inputs!$C$7,IF(O$62<Inputs!$C$7,'UE - ESC'!O101,IF(O$62>=Inputs!$C$7+'UE - ESC'!$W$90,0,'UE - ESC'!$T101/'UE - ESC'!$W$90)),'UE - AER'!O101),0) -> 0
B75: 0 | C75: 15 | D75: =IFERROR(IF($B75<Inputs!$C$7,IF(D$62<Inputs!$C$7,'UE - ESC'!D102,IF(D$62>=Inputs!$C$7+'UE - ESC'!$W$90,0,'UE - ESC'!$T102/'UE - ESC'!$W$90)),'UE - AER'!D102),0) -> 0 | E75: =IFERROR(IF($B75<Inputs!$C$7,IF(E$62<Inputs!$C$7,'UE - ESC'!E102,IF(E$62>=Inputs!$C$7+'UE - ESC'!$W$90,0,'UE - ESC'!$T102/'UE - ESC'!$W$90)),'UE - AER'!E102),0) -> 0 | F75: =IFERROR(IF($B75<Inputs!$C$7,IF(F$62<Inputs!$C$7,'UE - ESC'!F102,IF(F$62>=Inputs!$C$7+'UE - ESC'!$W$90,0,'UE - ESC'!$T102/'UE - ESC'!$W$90)),'UE - AER'!F102),0) -> 0 | G75: =IFERROR(IF($B75<Inputs!$C$7,IF(G$62<Inputs!$C$7,'UE - ESC'!G102,IF(G$62>=Inputs!$C$7+'UE - ESC'!$W$90,0,'UE - ESC'!$T102/'UE - ESC'!$W$90)),'UE - AER'!G102),0) -> 0 | H75: =IFERROR(IF($B75<Inputs!$C$7,IF(H$62<Inputs!$C$7,'UE - ESC'!H102,IF(H$62>=Inputs!$C$7+'UE - ESC'!$W$90,0,'UE - ESC'!$T102/'UE - ESC'!$W$90)),'UE - AER'!H102),0) -> 0 | I75: =IFERROR(IF($B75<Inputs!$C$7,IF(I$62<Inputs!$C$7,'UE - ESC'!I102,IF(I$62>=Inputs!$C$7+'UE - ESC'!$W$90,0,'UE - ESC'!$T102/'UE - ESC'!$W$90)),'UE - AER'!I102),0) -> 0 | J75: =IFERROR(IF($B75<Inputs!$C$7,IF(J$62<Inputs!$C$7,'UE - ESC'!J102,IF(J$62>=Inputs!$C$7+'UE - ESC'!$W$90,0,'UE - ESC'!$T102/'UE - ESC'!$W$90)),'UE - AER'!J102),0) -> 0 | K75: =IFERROR(IF($B75<Inputs!$C$7,IF(K$62<Inputs!$C$7,'UE - ESC'!K102,IF(K$62>=Inputs!$C$7+'UE - ESC'!$W$90,0,'UE - ESC'!$T102/'UE - ESC'!$W$90)),'UE - AER'!K102),0) -> 0 | L75: =IFERROR(IF($B75<Inputs!$C$7,IF(L$62<Inputs!$C$7,'UE - ESC'!L102,IF(L$62>=Inputs!$C$7+'UE - ESC'!$W$90,0,'UE - ESC'!$T102/'UE - ESC'!$W$90)),'UE - AER'!L102),0) -> 0 | M75: =IFERROR(IF($B75<Inputs!$C$7,IF(M$62<Inputs!$C$7,'UE - ESC'!M102,IF(M$62>=Inputs!$C$7+'UE - ESC'!$W$90,0,'UE - ESC'!$T102/'UE - ESC'!$W$90)),'UE - AER'!M102),0) -> 0 | N75: =IFERROR(IF($B75<Inputs!$C$7,IF(N$62<Inputs!$C$7,'UE - ESC'!N102,IF(N$62>=Inputs!$C$7+'UE - ESC'!$W$90,0,'UE - ESC'!$T102/'UE - ESC'!$W$90)),'UE - AER'!N102),0) -> 0 | O75: =IFERROR(IF($B75<Inputs!$C$7,IF(O$62<Inputs!$C$7,'UE - ESC'!O102,IF(O$62>=Inputs!$C$7+'UE - ESC'!$W$90,0,'UE - ESC'!$T102/'UE - ESC'!$W$90)),'UE - AER'!O102),0) -> 0
B76: TOTAL | D76: =SUM(D63:D75) -> 0 | E76: 0 | F76: 0 | G76: 0 | H76: 0 | I76: 50607.45759 | J76: 103838.9624 | K76: 103035.6232 | L76: 107934.945 | M76: 107934.945 | N76: 107934.945 | O76: 107934.945
B79: ="Depreciation - "&Inputs!C4&" - "&INDEX(Inputs!B38:B45,A81,)&" - "&IF(Inputs!C5=Inputs!C17,Inputs!C17,Inputs!C18) -> Depreciation - United Energy - IT - 2015$
A81: 5 | B81: =INDEX(Inputs!$B$38:$B$45,$A$81,) -> IT | C81: Life | D81: 2009 | E81: 2010 | F81: 2011 | G81: 2012 | H81: 2013 | I81: 2014 | J81: 2015 | K81: 2016 | L81: 2017 | M81: 2018 | N81: 2019 | O81: 2020
B82: =B63 -> 2009 | C82: =INDEX(Inputs!$C$38:$C$45,$A$81,) -> 7 | D82: =IFERROR(IF($B82<Inputs!$C$7,IF(D$81<Inputs!$C$7,'UE - ESC'!D109,IF(D$81>=Inputs!$C$7+'UE - ESC'!$W$109,0,'UE - ESC'!$T109/'UE - ESC'!$W$109)),'UE - AER'!D109),0) -> 5197051.609 | E82: =IFERROR(IF($B82<Inputs!$C$7,IF(E$81<Inputs!$C$7,'UE - ESC'!E109,IF(E$81>=Inputs!$C$7+'UE - ESC'!$W$109,0,'UE - ESC'!$T109/'UE - ESC'!$W$109)),'UE - AER'!E109),0) -> 10394103.22 | F82: =IFERROR(IF($B82<Inputs!$C$7,IF(F$81<Inputs!$C$7,'UE - ESC'!F109,IF(F$81>=Inputs!$C$7+'UE - ESC'!$W$109,0,'UE - ESC'!$T109/'UE - ESC'!$W$109)),'UE - AER'!F109),0) -> 10394103.22 | G82: =IFERROR(IF($B82<Inputs!$C$7,IF(G$81<Inputs!$C$7,'UE - ESC'!G109,IF(G$81>=Inputs!$C$7+'UE - ESC'!$W$109,0,'UE - ESC'!$T109/'UE - ESC'!$W$109)),'UE - AER'!G109),0) -> 10394103.22 | H82: =IFERROR(IF($B82<Inputs!$C$7,IF(H$81<Inputs!$C$7,'UE - ESC'!H109,IF(H$81>=Inputs!$C$7+'UE - ESC'!$W$109,0,'UE - ESC'!$T109/'UE - ESC'!$W$109)),'UE - AER'!H109),0) -> 10394103.22 | I82: =IFERROR(IF($B82<Inputs!$C$7,IF(I$81<Inputs!$C$7,'UE - ESC'!I109,IF(I$81>=Inputs!$C$7+'UE - ESC'!$W$109,0,'UE - ESC'!$T109/'UE - ESC'!$W$109)),'UE - AER'!I109),0) -> 10394103.22 | J82: =IFERROR(IF($B82<Inputs!$C$7,IF(J$81<Inputs!$C$7,'UE - ESC'!J109,IF(J$81>=Inputs!$C$7+'UE - ESC'!$W$109,0,'UE - ESC'!$T109/'UE - ESC'!$W$109)),'UE - AER'!J109),0) -> 10394103.22 | K82: =IFERROR(IF($B82<Inputs!$C$7,IF(K$81<Inputs!$C$7,'UE - ESC'!K109,IF(K$81>=Inputs!$C$7+'UE - ESC'!$W$109,0,'UE - ESC'!$T109/'UE - ESC'!$W$109)),'UE - AER'!K109),0) -> 1039410.322 | L82: =IFERROR(IF($B82<Inputs!$C$7,IF(L$81<Inputs!$C$7,'UE - ESC'!L109,IF(L$81>=Inputs!$C$7+'UE - ESC'!$W$109,0,'UE - ESC'!$T109/'UE - ESC'!$W$109)),'UE - AER'!L109),0) -> 1039410.322 | M82: =IFERROR(IF($B82<Inputs!$C$7,IF(M$81<Inputs!$C$7,'UE - ESC'!M109,IF(M$81>=Inputs!$C$7+'UE - ESC'!$W$109,0,'UE - ESC'!$T109/'UE - ESC'!$W$109)),'UE - AER'!M109),0) -> 1039410.322 | N82: =IFERROR(IF($B82<Inputs!$C$7,IF(N$81<Inputs!$C$7,'UE - ESC'!N109,IF(N$81>=Inputs!$C$7+'UE - ESC'!$W$109,0,'UE - ESC'!$T109/'UE - ESC'!$W$109)),'UE - AER'!N109),0) -> 1039410.322 | O82: =IFERROR(IF($B82<Inputs!$C$7,IF(O$81<Inputs!$C$7,'UE - ESC'!O109,IF(O$81>=Inputs!$C$7+'UE - ESC'!$W$109,0,'UE - ESC'!$T109/'UE - ESC'!$W$109)),'UE - AER'!O109),0) -> 1039410.322
B83: =B64 -> 2010 | C83: =C82 -> 7 | D83: =IFERROR(IF($B83<Inputs!$C$7,IF(D$81<Inputs!$C$7,'UE - ESC'!D110,IF(D$81>=Inputs!$C$7+'UE - ESC'!$W$109,0,'UE - ESC'!$T110/'UE - ESC'!$W$109)),'UE - AER'!D110),0) -> 0 | E83: =IFERROR(IF($B83<Inputs!$C$7,IF(E$81<Inputs!$C$7,'UE - ESC'!E110,IF(E$81>=Inputs!$C$7+'UE - ESC'!$W$109,0,'UE - ESC'!$T110/'UE - ESC'!$W$109)),'UE - AER'!E110),0) -> 2793754.162 | F83: =IFERROR(IF($B83<Inputs!$C$7,IF(F$81<Inputs!$C$7,'UE - ESC'!F110,IF(F$81>=Inputs!$C$7+'UE - ESC'!$W$109,0,'UE - ESC'!$T110/'UE - ESC'!$W$109)),'UE - AER'!F110),0) -> 5587508.324 | G83: =IFERROR(IF($B83<Inputs!$C$7,IF(G$81<Inputs!$C$7,'UE - ESC'!G110,IF(G$81>=Inputs!$C$7+'UE - ESC'!$W$109,0,'UE - ESC'!$T110/'UE - ESC'!$W$109)),'UE - AER'!G110),0) -> 5587508.324 | H83: =IFERROR(IF($B83<Inputs!$C$7,IF(H$81<Inputs!$C$7,'UE - ESC'!H110,IF(H$81>=Inputs!$C$7+'UE - ESC'!$W$109,0,'UE - ESC'!$T110/'UE - ESC'!$W$109)),'UE - AER'!H110),0) -> 5587508.324 | I83: =IFERROR(IF($B83<Inputs!$C$7,IF(I$81<Inputs!$C$7,'UE - ESC'!I110,IF(I$81>=Inputs!$C$7+'UE - ESC'!$W$109,0,'UE - ESC'!$T110/'UE - ESC'!$W$109)),'UE - AER'!I110),0) -> 5587508.324 | J83: =IFERROR(IF($B83<Inputs!$C$7,IF(J$81<Inputs!$C$7,'UE - ESC'!J110,IF(J$81>=Inputs!$C$7+'UE - ESC'!$W$109,0,'UE - ESC'!$T110/'UE - ESC'!$W$109)),'UE - AER'!J110),0) -> 5587508.324 | K83: =IFERROR(IF($B83<Inputs!$C$7,IF(K$81<Inputs!$C$7,'UE - ESC'!K110,IF(K$81>=Inputs!$C$7+'UE - ESC'!$W$109,0,'UE - ESC'!$T110/'UE - ESC'!$W$109)),'UE - AER'!K110),0) -> 1676252.497 | L83: =IFERROR(IF($B83<Inputs!$C$7,IF(L$81<Inputs!$C$7,'UE - ESC'!L110,IF(L$81>=Inputs!$C$7+'UE - ESC'!$W$109,0,'UE - ESC'!$T110/'UE - ESC'!$W$109)),'UE - AER'!L110),0) -> 1676252.497 | M83: =IFERROR(IF($B83<Inputs!$C$7,IF(M$81<Inputs!$C$7,'UE - ESC'!M110,IF(M$81>=Inputs!$C$7+'UE - ESC'!$W$109,0,'UE - ESC'!$T110/'UE - ESC'!$W$109)),'UE - AER'!M110),0) -> 1676252.497 | N83: =IFERROR(IF($B83<Inputs!$C$7,IF(N$81<Inputs!$C$7,'UE - ESC'!N110,IF(N$81>=Inputs!$C$7+'UE - ESC'!$W$109,0,'UE - ESC'!$T110/'UE - ESC'!$W$109)),'UE - AER'!N110),0) -> 1676252.497 | O83: =IFERROR(IF($B83<Inputs!$C$7,IF(O$81<Inputs!$C$7,'UE - ESC'!O110,IF(O$81>=Inputs!$C$7+'UE - ESC'!$W$109,0,'UE - ESC'!$T110/'UE - ESC'!$W$109)),'UE - AER'!O110),0) -> 1676252.497
B84: 2011 | C84: =C83 -> 7 | D84: =IFERROR(IF($B84<Inputs!$C$7,IF(D$81<Inputs!$C$7,'UE - ESC'!D111,IF(D$81>=Inputs!$C$7+'UE - ESC'!$W$109,0,'UE - ESC'!$T111/'UE - ESC'!$W$109)),'UE - AER'!D111),0) -> 0 | E84: =IFERROR(IF($B84<Inputs!$C$7,IF(E$81<Inputs!$C$7,'UE - ESC'!E111,IF(E$81>=Inputs!$C$7+'UE - ESC'!$W$109,0,'UE - ESC'!$T111/'UE - ESC'!$W$109)),'UE - AER'!E111),0) -> 0 | F84: =IFERROR(IF($B84<Inputs!$C$7,IF(F$81<Inputs!$C$7,'UE - ESC'!F111,IF(F$81>=Inputs!$C$7+'UE - ESC'!$W$109,0,'UE - ESC'!$T111/'UE - ESC'!$W$109)),'UE - AER'!F111),0) -> 661827.6112 | G84: =IFERROR(IF($B84<Inputs!$C$7,IF(G$81<Inputs!$C$7,'UE - ESC'!G111,IF(G$81>=Inputs!$C$7+'UE - ESC'!$W$109,0,'UE - ESC'!$T111/'UE - ESC'!$W$109)),'UE - AER'!G111),0) -> 1323655.222 | H84: =IFERROR(IF($B84<Inputs!$C$7,IF(H$81<Inputs!$C$7,'UE - ESC'!H111,IF(H$81>=Inputs!$C$7+'UE - ESC'!$W$109,0,'UE - ESC'!$T111/'UE - ESC'!$W$109)),'UE - AER'!H111),0) -> 1323655.222 | I84: =IFERROR(IF($B84<Inputs!$C$7,IF(I$81<Inputs!$C$7,'UE - ESC'!I111,IF(I$81>=Inputs!$C$7+'UE - ESC'!$W$109,0,'UE - ESC'!$T111/'UE - ESC'!$W$109)),'UE - AER'!I111),0) -> 1323655.222 | J84: =IFERROR(IF($B84<Inputs!$C$7,IF(J$81<Inputs!$C$7,'UE - ESC'!J111,IF(J$81>=Inputs!$C$7+'UE - ESC'!$W$109,0,'UE - ESC'!$T111/'UE - ESC'!$W$109)),'UE - AER'!J111),0) -> 1323655.222 | K84: =IFERROR(IF($B84<Inputs!$C$7,IF(K$81<Inputs!$C$7,'UE - ESC'!K111,IF(K$81>=Inputs!$C$7+'UE - ESC'!$W$109,0,'UE - ESC'!$T111/'UE - ESC'!$W$109)),'UE - AER'!K111),0) -> 661827.6112 | L84: =IFERROR(IF($B84<Inputs!$C$7,IF(L$81<Inputs!$C$7,'UE - ESC'!L111,IF(L$81>=Inputs!$C$7+'UE - ESC'!$W$109,0,'UE - ESC'!$T111/'UE - ESC'!$W$109)),'UE - AER'!L111),0) -> 661827.6112 | M84: =IFERROR(IF($B84<Inputs!$C$7,IF(M$81<Inputs!$C$7,'UE - ESC'!M111,IF(M$81>=Inputs!$C$7+'UE - ESC'!$W$109,0,'UE - ESC'!$T111/'UE - ESC'!$W$109)),'UE - AER'!M111),0) -> 661827.6112 | N84: =IFERROR(IF($B84<Inputs!$C$7,IF(N$81<Inputs!$C$7,'UE - ESC'!N111,IF(N$81>=Inputs!$C$7+'UE - ESC'!$W$109,0,'UE - ESC'!$T111/'UE - ESC'!$W$109)),'UE - AER'!N111),0) -> 661827.6112 | O84: =IFERROR(IF($B84<Inputs!$C$7,IF(O$81<Inputs!$C$7,'UE - ESC'!O111,IF(O$81>=Inputs!$C$7+'UE - ESC'!$W$109,0,'UE - ESC'!$T111/'UE - ESC'!$W$109)),'UE - AER'!O111),0) -> 661827.6112
B85: 2012 | C85: 7 | D85: =IFERROR(IF($B85<Inputs!$C$7,IF(D$81<Inputs!$C$7,'UE - ESC'!D112,IF(D$81>=Inputs!$C$7+'UE - ESC'!$W$109,0,'UE - ESC'!$T112/'UE - ESC'!$W$109)),'UE - AER'!D112),0) -> 0 | E85: =IFERROR(IF($B85<Inputs!$C$7,IF(E$81<Inputs!$C$7,'UE - ESC'!E112,IF(E$81>=Inputs!$C$7+'UE - ESC'!$W$109,0,'UE - ESC'!$T112/'UE - ESC'!$W$109)),'UE - AER'!E112),0) -> 0 | F85: =IFERROR(IF($B85<Inputs!$C$7,IF(F$81<Inputs!$C$7,'UE - ESC'!F112,IF(F$81>=Inputs!$C$7+'UE - ESC'!$W$109,0,'UE - ESC'!$T112/'UE - ESC'!$W$109)),'UE - AER'!F112),0) -> 0 | G85: =IFERROR(IF($B85<Inputs!$C$7,IF(G$81<Inputs!$C$7,'UE - ESC'!G112,IF(G$81>=Inputs!$C$7+'UE - ESC'!$W$109,0,'UE - ESC'!$T112/'UE - ESC'!$W$109)),'UE - AER'!G112),0) -> 608207.5569 | H85: =IFERROR(IF($B85<Inputs!$C$7,IF(H$81<Inputs!$C$7,'UE - ESC'!H112,IF(H$81>=Inputs!$C$7+'UE - ESC'!$W$109,0,'UE - ESC'!$T112/'UE - ESC'!$W$109)),'UE - AER'!H112),0) -> 1216415.114 | I85: =IFERROR(IF($B85<Inputs!$C$7,IF(I$81<Inputs!$C$7,'UE - ESC'!I112,IF(I$81>=Inputs!$C$7+'UE - ESC'!$W$109,0,'UE - ESC'!$T112/'UE - ESC'!$W$109)),'UE - AER'!I112),0) -> 1216415.114 | J85: =IFERROR(IF($B85<Inputs!$C$7,IF(J$81<Inputs!$C$7,'UE - ESC'!J112,IF(J$81>=Inputs!$C$7+'UE - ESC'!$W$109,0,'UE - ESC'!$T112/'UE - ESC'!$W$109)),'UE - AER'!J112),0) -> 1216415.114 | K85: =IFERROR(IF($B85<Inputs!$C$7,IF(K$81<Inputs!$C$7,'UE - ESC'!K112,IF(K$81>=Inputs!$C$7+'UE - ESC'!$W$109,0,'UE - ESC'!$T112/'UE - ESC'!$W$109)),'UE - AER'!K112),0) -> 851490.5797 | L85: =IFERROR(IF($B85<Inputs!$C$7,IF(L$81<Inputs!$C$7,'UE - ESC'!L112,IF(L$81>=Inputs!$C$7+'UE - ESC'!$W$109,0,'UE - ESC'!$T112/'UE - ESC'!$W$109)),'UE - AER'!L112),0) -> 851490.5797 | M85: =IFERROR(IF($B85<Inputs!$C$7,IF(M$81<Inputs!$C$7,'UE - ESC'!M112,IF(M$81>=Inputs!$C$7+'UE - ESC'!$W$109,0,'UE - ESC'!$T112/'UE - ESC'!$W$109)),'UE - AER'!M112),0) -> 851490.5797 | N85: =IFERROR(IF($B85<Inputs!$C$7,IF(N$81<Inputs!$C$7,'UE - ESC'!N112,IF(N$81>=Inputs!$C$7+'UE - ESC'!$W$109,0,'UE - ESC'!$T112/'UE - ESC'!$W$109)),'UE - AER'!N112),0) -> 851490.5797 | O85: =IFERROR(IF($B85<Inputs!$C$7,IF(O$81<Inputs!$C$7,'UE - ESC'!O112,IF(O$81>=Inputs!$C$7+'UE - ESC'!$W$109,0,'UE - ESC'!$T112/'UE - ESC'!$W$109)),'UE - AER'!O112),0) -> 851490.5797
B86: 2013 | C86: 7 | D86: =IFERROR(IF($B86<Inputs!$C$7,IF(D$81<Inputs!$C$7,'UE - ESC'!D113,IF(D$81>=Inputs!$C$7+'UE - ESC'!$W$109,0,'UE - ESC'!$T113/'UE - ESC'!$W$109)),'UE - AER'!D113),0) -> 0 | E86: =IFERROR(IF($B86<Inputs!$C$7,IF(E$81<Inputs!$C$7,'UE - ESC'!E113,IF(E$81>=Inputs!$C$7+'UE - ESC'!$W$109,0,'UE - ESC'!$T113/'UE - ESC'!$W$109)),'UE - AER'!E113),0) -> 0 | F86: =IFERROR(IF($B86<Inputs!$C$7,IF(F$81<Inputs!$C$7,'UE - ESC'!F113,IF(F$81>=Inputs!$C$7+'UE - ESC'!$W$109,0,'UE - ESC'!$T113/'UE - ESC'!$W$109)),'UE - AER'!F113),0) -> 0 | G86: =IFERROR(IF($B86<Inputs!$C$7,IF(G$81<Inputs!$C$7,'UE - ESC'!G113,IF(G$81>=Inputs!$C$7+'UE - ESC'!$W$109,0,'UE - ESC'!$T113/'UE - ESC'!$W$109)),'UE - AER'!G113),0) -> 0 | H86: =IFERROR(IF($B86<Inputs!$C$7,IF(H$81<Inputs!$C$7,'UE - ESC'!H113,IF(H$81>=Inputs!$C$7+'UE - ESC'!$W$109,0,'UE - ESC'!$T113/'UE - ESC'!$W$109)),'UE - AER'!H113),0) -> 130748.7665 | I86: =IFERROR(IF($B86<Inputs!$C$7,IF(I$81<Inputs!$C$7,'UE - ESC'!I113,IF(I$81>=Inputs!$C$7+'UE - ESC'!$W$109,0,'UE - ESC'!$T113/'UE - ESC'!$W$109)),'UE - AER'!I113),0) -> 261497.5329 | J86: =IFERROR(IF($B86<Inputs!$C$7,IF(J$81<Inputs!$C$7,'UE - ESC'!J113,IF(J$81>=Inputs!$C$7+'UE - ESC'!$W$109,0,'UE - ESC'!$T113/'UE - ESC'!$W$109)),'UE - AER'!J113),0) -> 261497.5329 | K86: =IFERROR(IF($B86<Inputs!$C$7,IF(K$81<Inputs!$C$7,'UE - ESC'!K113,IF(K$81>=Inputs!$C$7+'UE - ESC'!$W$109,0,'UE - ESC'!$T113/'UE - ESC'!$W$109)),'UE - AER'!K113),0) -> 235347.7796 | L86: =IFERROR(IF($B86<Inputs!$C$7,IF(L$81<Inputs!$C$7,'UE - ESC'!L113,IF(L$81>=Inputs!$C$7+'UE - ESC'!$W$109,0,'UE - ESC'!$T113/'UE - ESC'!$W$109)),'UE - AER'!L113),0) -> 235347.7796 | M86: =IFERROR(IF($B86<Inputs!$C$7,IF(M$81<Inputs!$C$7,'UE - ESC'!M113,IF(M$81>=Inputs!$C$7+'UE - ESC'!$W$109,0,'UE - ESC'!$T113/'UE - ESC'!$W$109)),'UE - AER'!M113),0) -> 235347.7796 | N86: =IFERROR(IF($B86<Inputs!$C$7,IF(N$81<Inputs!$C$7,'UE - ESC'!N113,IF(N$81>=Inputs!$C$7+'UE - ESC'!$W$109,0,'UE - ESC'!$T113/'UE - ESC'!$W$109)),'UE - AER'!N113),0) -> 235347.7796 | O86: =IFERROR(IF($B86<Inputs!$C$7,IF(O$81<Inputs!$C$7,'UE - ESC'!O113,IF(O$81>=Inputs!$C$7+'UE - ESC'!$W$109,0,'UE - ESC'!$T113/'UE - ESC'!$W$109)),'UE - AER'!O113),0) -> 235347.7796
B87: 2014 | C87: 7 | D87: =IFERROR(IF($B87<Inputs!$C$7,IF(D$81<Inputs!$C$7,'UE - ESC'!D114,IF(D$81>=Inputs!$C$7+'UE - ESC'!$W$109,0,'UE - ESC'!$T114/'UE - ESC'!$W$109)),'UE - AER'!D114),0) -> 0 | E87: =IFERROR(IF($B87<Inputs!$C$7,IF(E$81<Inputs!$C$7,'UE - ESC'!E114,IF(E$81>=Inputs!$C$7+'UE - ESC'!$W$109,0,'UE - ESC'!$T114/'UE - ESC'!$W$109)),'UE - AER'!E114),0) -> 0 | F87: =IFERROR(IF($B87<Inputs!$C$7,IF(F$81<Inputs!$C$7,'UE - ESC'!F114,IF(F$81>=Inputs!$C$7+'UE - ESC'!$W$109,0,'UE - ESC'!$T114/'UE - ESC'!$W$109)),'UE - AER'!F114),0) -> 0 | G87: =IFERROR(IF($B87<Inputs!$C$7,IF(G$81<Inputs!$C$7,'UE - ESC'!G114,IF(G$81>=Inputs!$C$7+'UE - ESC'!$W$109,0,'UE - ESC'!$T114/'UE - ESC'!$W$109)),'UE - AER'!G114),0) -> 0 | H87: =IFERROR(IF($B87<Inputs!$C$7,IF(H$81<Inputs!$C$7,'UE - ESC'!H114,IF(H$81>=Inputs!$C$7+'UE - ESC'!$W$109,0,'UE - ESC'!$T114/'UE - ESC'!$W$109)),'UE - AER'!H114),0) -> 0 | I87: =IFERROR(IF($B87<Inputs!$C$7,IF(I$81<Inputs!$C$7,'UE - ESC'!I114,IF(I$81>=Inputs!$C$7+'UE - ESC'!$W$109,0,'UE - ESC'!$T114/'UE - ESC'!$W$109)),'UE - AER'!I114),0) -> 295839.3804 | J87: =IFERROR(IF($B87<Inputs!$C$7,IF(J$81<Inputs!$C$7,'UE - ESC'!J114,IF(J$81>=Inputs!$C$7+'UE - ESC'!$W$109,0,'UE - ESC'!$T114/'UE - ESC'!$W$109)),'UE - AER'!J114),0) -> 591678.7607 | K87: =IFERROR(IF($B87<Inputs!$C$7,IF(K$81<Inputs!$C$7,'UE - ESC'!K114,IF(K$81>=Inputs!$C$7+'UE - ESC'!$W$109,0,'UE - ESC'!$T114/'UE - ESC'!$W$109)),'UE - AER'!K114),0) -> 650846.6368 | L87: =IFERROR(IF($B87<Inputs!$C$7,IF(L$81<Inputs!$C$7,'UE - ESC'!L114,IF(L$81>=Inputs!$C$7+'UE - ESC'!$W$109,0,'UE - ESC'!$T114/'UE - ESC'!$W$109)),'UE - AER'!L114),0) -> 650846.6368 | M87: =IFERROR(IF($B87<Inputs!$C$7,IF(M$81<Inputs!$C$7,'UE - ESC'!M114,IF(M$81>=Inputs!$C$7+'UE - ESC'!$W$109,0,'UE - ESC'!$T114/'UE - ESC'!$W$109)),'UE - AER'!M114),0) -> 650846.6368 | N87: =IFERROR(IF($B87<Inputs!$C$7,IF(N$81<Inputs!$C$7,'UE - ESC'!N114,IF(N$81>=Inputs!$C$7+'UE - ESC'!$W$109,0,'UE - ESC'!$T114/'UE - ESC'!$W$109)),'UE - AER'!N114),0) -> 650846.6368 | O87: =IFERROR(IF($B87<Inputs!$C$7,IF(O$81<Inputs!$C$7,'UE - ESC'!O114,IF(O$81>=Inputs!$C$7+'UE - ESC'!$W$109,0,'UE - ESC'!$T114/'UE - ESC'!$W$109)),'UE - AER'!O114),0) -> 650846.6368
B88: 2015 | C88: 7 | D88: =IFERROR(IF($B88<Inputs!$C$7,IF(D$81<Inputs!$C$7,'UE - ESC'!D115,IF(D$81>=Inputs!$C$7+'UE - ESC'!$W$109,0,'UE - ESC'!$T115/'UE - ESC'!$W$109)),'UE - AER'!D115),0) -> 0 | E88: =IFERROR(IF($B88<Inputs!$C$7,IF(E$81<Inputs!$C$7,'UE - ESC'!E115,IF(E$81>=Inputs!$C$7+'UE - ESC'!$W$109,0,'UE - ESC'!$T115/'UE - ESC'!$W$109)),'UE - AER'!E115),0) -> 0 | F88: =IFERROR(IF($B88<Inputs!$C$7,IF(F$81<Inputs!$C$7,'UE - ESC'!F115,IF(F$81>=Inputs!$C$7+'UE - ESC'!$W$109,0,'UE - ESC'!$T115/'UE - ESC'!$W$109)),'UE - AER'!F115),0) -> 0 | G88: =IFERROR(IF($B88<Inputs!$C$7,IF(G$81<Inputs!$C$7,'UE - ESC'!G115,IF(G$81>=Inputs!$C$7+'UE - ESC'!$W$109,0,'UE - ESC'!$T115/'UE - ESC'!$W$109)),'UE - AER'!G115),0) -> 0 | H88: =IFERROR(IF($B88<Inputs!$C$7,IF(H$81<Inputs!$C$7,'UE - ESC'!H115,IF(H$81>=Inputs!$C$7+'UE - ESC'!$W$109,0,'UE - ESC'!$T115/'UE - ESC'!$W$109)),'UE - AER'!H115),0) -> 0 | I88: =IFERROR(IF($B88<Inputs!$C$7,IF(I$81<Inputs!$C$7,'UE - ESC'!I115,IF(I$81>=Inputs!$C$7+'UE - ESC'!$W$109,0,'UE - ESC'!$T115/'UE - ESC'!$W$109)),'UE - AER'!I115),0) -> 0 | J88: =IFERROR(IF($B88<Inputs!$C$7,IF(J$81<Inputs!$C$7,'UE - ESC'!J115,IF(J$81>=Inputs!$C$7+'UE - ESC'!$W$109,0,'UE - ESC'!$T115/'UE - ESC'!$W$109)),'UE - AER'!J115),0) -> 309758.645 | K88: =IFERROR(IF($B88<Inputs!$C$7,IF(K$81<Inputs!$C$7,'UE - ESC'!K115,IF(K$81>=Inputs!$C$7+'UE - ESC'!$W$109,0,'UE - ESC'!$T115/'UE - ESC'!$W$109)),'UE - AER'!K115),0) -> 805372.477 | L88: =IFERROR(IF($B88<Inputs!$C$7,IF(L$81<Inputs!$C$7,'UE - ESC'!L115,IF(L$81>=Inputs!$C$7+'UE - ESC'!$W$109,0,'UE - ESC'!$T115/'UE - ESC'!$W$109)),'UE - AER'!L115),0) -> 805372.477 | M88: =IFERROR(IF($B88<Inputs!$C$7,IF(M$81<Inputs!$C$7,'UE - ESC'!M115,IF(M$81>=Inputs!$C$7+'UE - ESC'!$W$109,0,'UE - ESC'!$T115/'UE - ESC'!$W$109)),'UE - AER'!M115),0) -> 805372.477 | N88: =IFERROR(IF($B88<Inputs!$C$7,IF(N$81<Inputs!$C$7,'UE - ESC'!N115,IF(N$81>=Inputs!$C$7+'UE - ESC'!$W$109,0,'UE - ESC'!$T115/'UE - ESC'!$W$109)),'UE - AER'!N115),0) -> 805372.477 | O88: =IFERROR(IF($B88<Inputs!$C$7,IF(O$81<Inputs!$C$7,'UE - ESC'!O115,IF(O$81>=Inputs!$C$7+'UE - ESC'!$W$109,0,'UE - ESC'!$T115/'UE - ESC'!$W$109)),'UE - AER'!O115),0) -> 805372.477
B89: 2016 | C89: 7 | D89: =IFERROR(IF($B89<Inputs!$C$7,IF(D$81<Inputs!$C$7,'UE - ESC'!D116,IF(D$81>=Inputs!$C$7+'UE - ESC'!$W$109,0,'UE - ESC'!$T116/'UE - ESC'!$W$109)),'UE - AER'!D116),0) -> 0 | E89: =IFERROR(IF($B89<Inputs!$C$7,IF(E$81<Inputs!$C$7,'UE - ESC'!E116,IF(E$81>=Inputs!$C$7+'UE - ESC'!$W$109,0,'UE - ESC'!$T116/'UE - ESC'!$W$109)),'UE - AER'!E116),0) -> 0 | F89: =IFERROR(IF($B89<Inputs!$C$7,IF(F$81<Inputs!$C$7,'UE - ESC'!F116,IF(F$81>=Inputs!$C$7+'UE - ESC'!$W$109,0,'UE - ESC'!$T116/'UE - ESC'!$W$109)),'UE - AER'!F116),0) -> 0 | G89: =IFERROR(IF($B89<Inputs!$C$7,IF(G$81<Inputs!$C$7,'UE - ESC'!G116,IF(G$81>=Inputs!$C$7+'UE - ESC'!$W$109,0,'UE - ESC'!$T116/'UE - ESC'!$W$109)),'UE - AER'!G116),0) -> 0 | H89: =IFERROR(IF($B89<Inputs!$C$7,IF(H$81<Inputs!$C$7,'UE - ESC'!H116,IF(H$81>=Inputs!$C$7+'UE - ESC'!$W$109,0,'UE - ESC'!$T116/'UE - ESC'!$W$109)),'UE - AER'!H116),0) -> 0 | I89: =IFERROR(IF($B89<Inputs!$C$7,IF(I$81<Inputs!$C$7,'UE - ESC'!I116,IF(I$81>=Inputs!$C$7+'UE - ESC'!$W$109,0,'UE - ESC'!$T116/'UE - ESC'!$W$109)),'UE - AER'!I116),0) -> 0 | J89: =IFERROR(IF($B89<Inputs!$C$7,IF(J$81<Inputs!$C$7,'UE - ESC'!J116,IF(J$81>=Inputs!$C$7+'UE - ESC'!$W$109,0,'UE - ESC'!$T116/'UE - ESC'!$W$109)),'UE - AER'!J116),0) -> 0 | K89: =IFERROR(IF($B89<Inputs!$C$7,IF(K$81<Inputs!$C$7,'UE - ESC'!K116,IF(K$81>=Inputs!$C$7+'UE - ESC'!$W$109,0,'UE - ESC'!$T116/'UE - ESC'!$W$109)),'UE - AER'!K116),0) -> 0 | L89: =IFERROR(IF($B89<Inputs!$C$7,IF(L$81<Inputs!$C$7,'UE - ESC'!L116,IF(L$81>=Inputs!$C$7+'UE - ESC'!$W$109,0,'UE - ESC'!$T116/'UE - ESC'!$W$109)),'UE - AER'!L116),0) -> 966576.3164 | M89: =IFERROR(IF($B89<Inputs!$C$7,IF(M$81<Inputs!$C$7,'UE - ESC'!M116,IF(M$81>=Inputs!$C$7+'UE - ESC'!$W$109,0,'UE - ESC'!$T116/'UE - ESC'!$W$109)),'UE - AER'!M116),0) -> 966576.3164 | N89: =IFERROR(IF($B89<Inputs!$C$7,IF(N$81<Inputs!$C$7,'UE - ESC'!N116,IF(N$81>=Inputs!$C$7+'UE - ESC'!$W$109,0,'UE - ESC'!$T116/'UE - ESC'!$W$109)),'UE - AER'!N116),0) -> 966576.3164 | O89: =IFERROR(IF($B89<Inputs!$C$7,IF(O$81<Inputs!$C$7,'UE - ESC'!O116,IF(O$81>=Inputs!$C$7+'UE - ESC'!$W$109,0,'UE - ESC'!$T116/'UE - ESC'!$W$109)),'UE - AER'!O116),0) -> 966576.3164
B90: 2017 | C90: 7 | D90: =IFERROR(IF($B90<Inputs!$C$7,IF(D$81<Inputs!$C$7,'UE - ESC'!D117,IF(D$81>=Inputs!$C$7+'UE - ESC'!$W$109,0,'UE - ESC'!$T117/'UE - ESC'!$W$109)),'UE - AER'!D117),0) -> 0 | E90: =IFERROR(IF($B90<Inputs!$C$7,IF(E$81<Inputs!$C$7,'UE - ESC'!E117,IF(E$81>=Inputs!$C$7+'UE - ESC'!$W$109,0,'UE - ESC'!$T117/'UE - ESC'!$W$109)),'UE - AER'!E117),0) -> 0 | F90: =IFERROR(IF($B90<Inputs!$C$7,IF(F$81<Inputs!$C$7,'UE - ESC'!F117,IF(F$81>=Inputs!$C$7+'UE - ESC'!$W$109,0,'UE - ESC'!$T117/'UE - ESC'!$W$109)),'UE - AER'!F117),0) -> 0 | G90: =IFERROR(IF($B90<Inputs!$C$7,IF(G$81<Inputs!$C$7,'UE - ESC'!G117,IF(G$81>=Inputs!$C$7+'UE - ESC'!$W$109,0,'UE - ESC'!$T117/'UE - ESC'!$W$109)),'UE - AER'!G117),0) -> 0 | H90: =IFERROR(IF($B90<Inputs!$C$7,IF(H$81<Inputs!$C$7,'UE - ESC'!H117,IF(H$81>=Inputs!$C$7+'UE - ESC'!$W$109,0,'UE - ESC'!$T117/'UE - ESC'!$W$109)),'UE - AER'!H117),0) -> 0 | I90: =IFERROR(IF($B90<Inputs!$C$7,IF(I$81<Inputs!$C$7,'UE - ESC'!I117,IF(I$81>=Inputs!$C$7+'UE - ESC'!$W$109,0,'UE - ESC'!$T117/'UE - ESC'!$W$109)),'UE - AER'!I117),0) -> 0 | J90: =IFERROR(IF($B90<Inputs!$C$7,IF(J$81<Inputs!$C$7,'UE - ESC'!J117,IF(J$81>=Inputs!$C$7+'UE - ESC'!$W$109,0,'UE - ESC'!$T117/'UE - ESC'!$W$109)),'UE - AER'!J117),0) -> 0 | K90: =IFERROR(IF($B90<Inputs!$C$7,IF(K$81<Inputs!$C$7,'UE - ESC'!K117,IF(K$81>=Inputs!$C$7+'UE - ESC'!$W$109,0,'UE - ESC'!$T117/'UE - ESC'!$W$109)),'UE - AER'!K117),0) -> 0 | L90: =IFERROR(IF($B90<Inputs!$C$7,IF(L$81<Inputs!$C$7,'UE - ESC'!L117,IF(L$81>=Inputs!$C$7+'UE - ESC'!$W$109,0,'UE - ESC'!$T117/'UE - ESC'!$W$109)),'UE - AER'!L117),0) -> 0 | M90: =IFERROR(IF($B90<Inputs!$C$7,IF(M$81<Inputs!$C$7,'UE - ESC'!M117,IF(M$81>=Inputs!$C$7+'UE - ESC'!$W$109,0,'UE - ESC'!$T117/'UE - ESC'!$W$109)),'UE - AER'!M117),0) -> 431871.5827 | N90: =IFERROR(IF($B90<Inputs!$C$7,IF(N$81<Inputs!$C$7,'UE - ESC'!N117,IF(N$81>=Inputs!$C$7+'UE - ESC'!$W$109,0,'UE - ESC'!$T117/'UE - ESC'!$W$109)),'UE - AER'!N117),0) -> 431871.5827 | O90: =IFERROR(IF($B90<Inputs!$C$7,IF(O$81<Inputs!$C$7,'UE - ESC'!O117,IF(O$81>=Inputs!$C$7+'UE - ESC'!$W$109,0,'UE - ESC'!$T117/'UE - ESC'!$W$109)),'UE - AER'!O117),0) -> 431871.5827
B91: 2018 | C91: 7 | D91: =IFERROR(IF($B91<Inputs!$C$7,IF(D$81<Inputs!$C$7,'UE - ESC'!D118,IF(D$81>=Inputs!$C$7+'UE - ESC'!$W$109,0,'UE - ESC'!$T118/'UE - ESC'!$W$109)),'UE - AER'!D118),0) -> 0 | E91: =IFERROR(IF($B91<Inputs!$C$7,IF(E$81<Inputs!$C$7,'UE - ESC'!E118,IF(E$81>=Inputs!$C$7+'UE - ESC'!$W$109,0,'UE - ESC'!$T118/'UE - ESC'!$W$109)),'UE - AER'!E118),0) -> 0 | F91: =IFERROR(IF($B91<Inputs!$C$7,IF(F$81<Inputs!$C$7,'UE - ESC'!F118,IF(F$81>=Inputs!$C$7+'UE - ESC'!$W$109,0,'UE - ESC'!$T118/'UE - ESC'!$W$109)),'UE - AER'!F118),0) -> 0 | G91: =IFERROR(IF($B91<Inputs!$C$7,IF(G$81<Inputs!$C$7,'UE - ESC'!G118,IF(G$81>=Inputs!$C$7+'UE - ESC'!$W$109,0,'UE - ESC'!$T118/'UE - ESC'!$W$109)),'UE - AER'!G118),0) -> 0 | H91: =IFERROR(IF($B91<Inputs!$C$7,IF(H$81<Inputs!$C$7,'UE - ESC'!H118,IF(H$81>=Inputs!$C$7+'UE - ESC'!$W$109,0,'UE - ESC'!$T118/'UE - ESC'!$W$109)),'UE - AER'!H118),0) -> 0 | I91: =IFERROR(IF($B91<Inputs!$C$7,IF(I$81<Inputs!$C$7,'UE - ESC'!I118,IF(I$81>=Inputs!$C$7+'UE - ESC'!$W$109,0,'UE - ESC'!$T118/'UE - ESC'!$W$109)),'UE - AER'!I118),0) -> 0 | J91: =IFERROR(IF($B91<Inputs!$C$7,IF(J$81<Inputs!$C$7,'UE - ESC'!J118,IF(J$81>=Inputs!$C$7+'UE - ESC'!$W$109,0,'UE - ESC'!$T118/'UE - ESC'!$W$109)),'UE - AER'!J118),0) -> 0 | K91: =IFERROR(IF($B91<Inputs!$C$7,IF(K$81<Inputs!$C$7,'UE - ESC'!K118,IF(K$81>=Inputs!$C$7+'UE - ESC'!$W$109,0,'UE - ESC'!$T118/'UE - ESC'!$W$109)),'UE - AER'!K118),0) -> 0 | L91: =IFERROR(IF($B91<Inputs!$C$7,IF(L$81<Inputs!$C$7,'UE - ESC'!L118,IF(L$81>=Inputs!$C$7+'UE - ESC'!$W$109,0,'UE - ESC'!$T118/'UE - ESC'!$W$109)),'UE - AER'!L118),0) -> 0 | M91: =IFERROR(IF($B91<Inputs!$C$7,IF(M$81<Inputs!$C$7,'UE - ESC'!M118,IF(M$81>=Inputs!$C$7+'UE - ESC'!$W$109,0,'UE - ESC'!$T118/'UE - ESC'!$W$109)),'UE - AER'!M118),0) -> 0 | N91: =IFERROR(IF($B91<Inputs!$C$7,IF(N$81<Inputs!$C$7,'UE - ESC'!N118,IF(N$81>=Inputs!$C$7+'UE - ESC'!$W$109,0,'UE - ESC'!$T118/'UE - ESC'!$W$109)),'UE - AER'!N118),0) -> 71298.06102 | O91: =IFERROR(IF($B91<Inputs!$C$7,IF(O$81<Inputs!$C$7,'UE - ESC'!O118,IF(O$81>=Inputs!$C$7+'UE - ESC'!$W$109,0,'UE - ESC'!$T118/'UE - ESC'!$W$109)),'UE - AER'!O118),0) -> 71298.06102
B92: 2019 | C92: 7 | D92: =IFERROR(IF($B92<Inputs!$C$7,IF(D$81<Inputs!$C$7,'UE - ESC'!D119,IF(D$81>=Inputs!$C$7+'UE - ESC'!$W$109,0,'UE - ESC'!$T119/'UE - ESC'!$W$109)),'UE - AER'!D119),0) -> 0 | E92: =IFERROR(IF($B92<Inputs!$C$7,IF(E$81<Inputs!$C$7,'UE - ESC'!E119,IF(E$81>=Inputs!$C$7+'UE - ESC'!$W$109,0,'UE - ESC'!$T119/'UE - ESC'!$W$109)),'UE - AER'!E119),0) -> 0 | F92: =IFERROR(IF($B92<Inputs!$C$7,IF(F$81<Inputs!$C$7,'UE - ESC'!F119,IF(F$81>=Inputs!$C$7+'UE - ESC'!$W$109,0,'UE - ESC'!$T119/'UE - ESC'!$W$109)),'UE - AER'!F119),0) -> 0 | G92: =IFERROR(IF($B92<Inputs!$C$7,IF(G$81<Inputs!$C$7,'UE - ESC'!G119,IF(G$81>=Inputs!$C$7+'UE - ESC'!$W$109,0,'UE - ESC'!$T119/'UE - ESC'!$W$109)),'UE - AER'!G119),0) -> 0 | H92: =IFERROR(IF($B92<Inputs!$C$7,IF(H$81<Inputs!$C$7,'UE - ESC'!H119,IF(H$81>=Inputs!$C$7+'UE - ESC'!$W$109,0,'UE - ESC'!$T119/'UE - ESC'!$W$109)),'UE - AER'!H119),0) -> 0 | I92: =IFERROR(IF($B92<Inputs!$C$7,IF(I$81<Inputs!$C$7,'UE - ESC'!I119,IF(I$81>=Inputs!$C$7+'UE - ESC'!$W$109,0,'UE - ESC'!$T119/'UE - ESC'!$W$109)),'UE - AER'!I119),0) -> 0 | J92: =IFERROR(IF($B92<Inputs!$C$7,IF(J$81<Inputs!$C$7,'UE - ESC'!J119,IF(J$81>=Inputs!$C$7+'UE - ESC'!$W$109,0,'UE - ESC'!$T119/'UE - ESC'!$W$109)),'UE - AER'!J119),0) -> 0 | K92: =IFERROR(IF($B92<Inputs!$C$7,IF(K$81<Inputs!$C$7,'UE - ESC'!K119,IF(K$81>=Inputs!$C$7+'UE - ESC'!$W$109,0,'UE - ESC'!$T119/'UE - ESC'!$W$109)),'UE - AER'!K119),0) -> 0 | L92: =IFERROR(IF($B92<Inputs!$C$7,IF(L$81<Inputs!$C$7,'UE - ESC'!L119,IF(L$81>=Inputs!$C$7+'UE - ESC'!$W$109,0,'UE - ESC'!$T119/'UE - ESC'!$W$109)),'UE - AER'!L119),0) -> 0 | M92: =IFERROR(IF($B92<Inputs!$C$7,IF(M$81<Inputs!$C$7,'UE - ESC'!M119,IF(M$81>=Inputs!$C$7+'UE - ESC'!$W$109,0,'UE - ESC'!$T119/'UE - ESC'!$W$109)),'UE - AER'!M119),0) -> 0 | N92: =IFERROR(IF($B92<Inputs!$C$7,IF(N$81<Inputs!$C$7,'UE - ESC'!N119,IF(N$81>=Inputs!$C$7+'UE - ESC'!$W$109,0,'UE - ESC'!$T119/'UE - ESC'!$W$109)),'UE - AER'!N119),0) -> 0 | O92: =IFERROR(IF($B92<Inputs!$C$7,IF(O$81<Inputs!$C$7,'UE - ESC'!O119,IF(O$81>=Inputs!$C$7+'UE - ESC'!$W$109,0,'UE - ESC'!$T119/'UE - ESC'!$W$109)),'UE - AER'!O119),0) -> 148829.4537
B93: 2020 | C93: 7 | D93: =IFERROR(IF($B93<Inputs!$C$7,IF(D$81<Inputs!$C$7,'UE - ESC'!D120,IF(D$81>=Inputs!$C$7+'UE - ESC'!$W$109,0,'UE - ESC'!$T120/'UE - ESC'!$W$109)),'UE - AER'!D120),0) -> 0 | E93: =IFERROR(IF($B93<Inputs!$C$7,IF(E$81<Inputs!$C$7,'UE - ESC'!E120,IF(E$81>=Inputs!$C$7+'UE - ESC'!$W$109,0,'UE - ESC'!$T120/'UE - ESC'!$W$109)),'UE - AER'!E120),0) -> 0 | F93: =IFERROR(IF($B93<Inputs!$C$7,IF(F$81<Inputs!$C$7,'UE - ESC'!F120,IF(F$81>=Inputs!$C$7+'UE - ESC'!$W$109,0,'UE - ESC'!$T120/'UE - ESC'!$W$109)),'UE - AER'!F120),0) -> 0 | G93: =IFERROR(IF($B93<Inputs!$C$7,IF(G$81<Inputs!$C$7,'UE - ESC'!G120,IF(G$81>=Inputs!$C$7+'UE - ESC'!$W$109,0,'UE - ESC'!$T120/'UE - ESC'!$W$109)),'UE - AER'!G120),0) -> 0 | H93: =IFERROR(IF($B93<Inputs!$C$7,IF(H$81<Inputs!$C$7,'UE - ESC'!H120,IF(H$81>=Inputs!$C$7+'UE - ESC'!$W$109,0,'UE - ESC'!$T120/'UE - ESC'!$W$109)),'UE - AER'!H120),0) -> 0 | I93: =IFERROR(IF($B93<Inputs!$C$7,IF(I$81<Inputs!$C$7,'UE - ESC'!I120,IF(I$81>=Inputs!$C$7+'UE - ESC'!$W$109,0,'UE - ESC'!$T120/'UE - ESC'!$W$109)),'UE - AER'!I120),0) -> 0 | J93: =IFERROR(IF($B93<Inputs!$C$7,IF(J$81<Inputs!$C$7,'UE - ESC'!J120,IF(J$81>=Inputs!$C$7+'UE - ESC'!$W$109,0,'UE - ESC'!$T120/'UE - ESC'!$W$109)),'UE - AER'!J120),0) -> 0 | K93: =IFERROR(IF($B93<Inputs!$C$7,IF(K$81<Inputs!$C$7,'UE - ESC'!K120,IF(K$81>=Inputs!$C$7+'UE - ESC'!$W$109,0,'UE - ESC'!$T120/'UE - ESC'!$W$109)),'UE - AER'!K120),0) -> 0 | L93: =IFERROR(IF($B93<Inputs!$C$7,IF(L$81<Inputs!$C$7,'UE - ESC'!L120,IF(L$81>=Inputs!$C$7+'UE - ESC'!$W$109,0,'UE - ESC'!$T120/'UE - ESC'!$W$109)),'UE - AER'!L120),0) -> 0 | M93: =IFERROR(IF($B93<Inputs!$C$7,IF(M$81<Inputs!$C$7,'UE - ESC'!M120,IF(M$81>=Inputs!$C$7+'UE - ESC'!$W$109,0,'UE - ESC'!$T120/'UE - ESC'!$W$109)),'UE - AER'!M120),0) -> 0 | N93: =IFERROR(IF($B93<Inputs!$C$7,IF(N$81<Inputs!$C$7,'UE - ESC'!N120,IF(N$81>=Inputs!$C$7+'UE - ESC'!$W$109,0,'UE - ESC'!$T120/'UE - ESC'!$W$109)),'UE - AER'!N120),0) -> 0 | O93: =IFERROR(IF($B93<Inputs!$C$7,IF(O$81<Inputs!$C$7,'UE - ESC'!O120,IF(O$81>=Inputs!$C$7+'UE - ESC'!$W$109,0,'UE - ESC'!$T120/'UE - ESC'!$W$109)),'UE - AER'!O120),0) -> 0
B94: 0 | C94: 7 | D94: =IFERROR(IF($B94<Inputs!$C$7,IF(D$81<Inputs!$C$7,'UE - ESC'!D121,IF(D$81>=Inputs!$C$7+'UE - ESC'!$W$109,0,'UE - ESC'!$T121/'UE - ESC'!$W$109)),'UE - AER'!D121),0) -> 0 | E94: =IFERROR(IF($B94<Inputs!$C$7,IF(E$81<Inputs!$C$7,'UE - ESC'!E121,IF(E$81>=Inputs!$C$7+'UE - ESC'!$W$109,0,'UE - ESC'!$T121/'UE - ESC'!$W$109)),'UE - AER'!E121),0) -> 0 | F94: =IFERROR(IF($B94<Inputs!$C$7,IF(F$81<Inputs!$C$7,'UE - ESC'!F121,IF(F$81>=Inputs!$C$7+'UE - ESC'!$W$109,0,'UE - ESC'!$T121/'UE - ESC'!$W$109)),'UE - AER'!F121),0) -> 0 | G94: =IFERROR(IF($B94<Inputs!$C$7,IF(G$81<Inputs!$C$7,'UE - ESC'!G121,IF(G$81>=Inputs!$C$7+'UE - ESC'!$W$109,0,'UE - ESC'!$T121/'UE - ESC'!$W$109)),'UE - AER'!G121),0) -> 0 | H94: =IFERROR(IF($B94<Inputs!$C$7,IF(H$81<Inputs!$C$7,'UE - ESC'!H121,IF(H$81>=Inputs!$C$7+'UE - ESC'!$W$109,0,'UE - ESC'!$T121/'UE - ESC'!$W$109)),'UE - AER'!H121),0) -> 0 | I94: =IFERROR(IF($B94<Inputs!$C$7,IF(I$81<Inputs!$C$7,'UE - ESC'!I121,IF(I$81>=Inputs!$C$7+'UE - ESC'!$W$109,0,'UE - ESC'!$T121/'UE - ESC'!$W$109)),'UE - AER'!I121),0) -> 0 | J94: =IFERROR(IF($B94<Inputs!$C$7,IF(J$81<Inputs!$C$7,'UE - ESC'!J121,IF(J$81>=Inputs!$C$7+'UE - ESC'!$W$109,0,'UE - ESC'!$T121/'UE - ESC'!$W$109)),'UE - AER'!J121),0) -> 0 | K94: =IFERROR(IF($B94<Inputs!$C$7,IF(K$81<Inputs!$C$7,'UE - ESC'!K121,IF(K$81>=Inputs!$C$7+'UE - ESC'!$W$109,0,'UE - ESC'!$T121/'UE - ESC'!$W$109)),'UE - AER'!K121),0) -> 0 | L94: =IFERROR(IF($B94<Inputs!$C$7,IF(L$81<Inputs!$C$7,'UE - ESC'!L121,IF(L$81>=Inputs!$C$7+'UE - ESC'!$W$109,0,'UE - ESC'!$T121/'UE - ESC'!$W$109)),'UE - AER'!L121),0) -> 0 | M94: =IFERROR(IF($B94<Inputs!$C$7,IF(M$81<Inputs!$C$7,'UE - ESC'!M121,IF(M$81>=Inputs!$C$7+'UE - ESC'!$W$109,0,'UE - ESC'!$T121/'UE - ESC'!$W$109)),'UE - AER'!M121),0) -> 0 | N94: =IFERROR(IF($B94<Inputs!$C$7,IF(N$81<Inputs!$C$7,'UE - ESC'!N121,IF(N$81>=Inputs!$C$7+'UE - ESC'!$W$109,0,'UE - ESC'!$T121/'UE - ESC'!$W$109)),'UE - AER'!N121),0) -> 0 | O94: =IFERROR(IF($B94<Inputs!$C$7,IF(O$81<Inputs!$C$7,'UE - ESC'!O121,IF(O$81>=Inputs!$C$7+'UE - ESC'!$W$109,0,'UE - ESC'!$T121/'UE - ESC'!$W$109)),'UE - AER'!O121),0) -> 0
B95: TOTAL | D95: =SUM(D82:D94) -> 5197051.609 | E95: 13187857.38 | F95: 16643439.15 | G95: 17913474.32 | H95: 18652430.64 | I95: 19079018.79 | J95: 19684616.82 | K95: 5920547.903 | L95: 6887124.219 | M95: 7318995.802 | N95: 7390293.863 | O95: 7539123.317
B98: ="Depreciation - "&Inputs!C4&" - "&INDEX(Inputs!B38:B45,A100,)&" - "&IF(Inputs!C5=Inputs!C17,Inputs!C17,Inputs!C18) -> Depreciation - United Energy - Communications - 2015$
A100: 6 | B100: =INDEX(Inputs!$B$38:$B$45,$A$100,) -> Communications | C100: Life | D100: 2009 | E100: 2010 | F100: 2011 | G100: 2012 | H100: 2013 | I100: 2014 | J100: 2015 | K100: 2016 | L100: 2017 | M100: 2018 | N100: 2019 | O100: 2020
B101: =B82 -> 2009 | C101: =INDEX(Inputs!$C$38:$C$45,$A$100,) -> 7 | D101: =IFERROR(IF($B101<Inputs!$C$7,IF(D$100<Inputs!$C$7,'UE - ESC'!D128,IF(D$100>=Inputs!$C$7+'UE - ESC'!$W$128,0,'UE - ESC'!$T128/'UE - ESC'!$W$128)),'UE - AER'!D128),0) -> 0 | E101: =IFERROR(IF($B101<Inputs!$C$7,IF(E$100<Inputs!$C$7,'UE - ESC'!E128,IF(E$100>=Inputs!$C$7+'UE - ESC'!$W$128,0,'UE - ESC'!$T128/'UE - ESC'!$W$128)),'UE - AER'!E128),0) -> 0 | F101: =IFERROR(IF($B101<Inputs!$C$7,IF(F$100<Inputs!$C$7,'UE - ESC'!F128,IF(F$100>=Inputs!$C$7+'UE - ESC'!$W$128,0,'UE - ESC'!$T128/'UE - ESC'!$W$128)),'UE - AER'!F128),0) -> 0 | G101: =IFERROR(IF($B101<Inputs!$C$7,IF(G$100<Inputs!$C$7,'UE - ESC'!G128,IF(G$100>=Inputs!$C$7+'UE - ESC'!$W$128,0,'UE - ESC'!$T128/'UE - ESC'!$W$128)),'UE - AER'!G128),0) -> 0 | H101: =IFERROR(IF($B101<Inputs!$C$7,IF(H$100<Inputs!$C$7,'UE - ESC'!H128,IF(H$100>=Inputs!$C$7+'UE - ESC'!$W$128,0,'UE - ESC'!$T128/'UE - ESC'!$W$128)),'UE - AER'!H128),0) -> 0 | I101: =IFERROR(IF($B101<Inputs!$C$7,IF(I$100<Inputs!$C$7,'UE - ESC'!I128,IF(I$100>=Inputs!$C$7+'UE - ESC'!$W$128,0,'UE - ESC'!$T128/'UE - ESC'!$W$128)),'UE - AER'!I128),0) -> 0 | J101: =IFERROR(IF($B101<Inputs!$C$7,IF(J$100<Inputs!$C$7,'UE - ESC'!J128,IF(J$100>=Inputs!$C$7+'UE - ESC'!$W$128,0,'UE - ESC'!$T128/'UE - ESC'!$W$128)),'UE - AER'!J128),0) -> 0 | K101: =IFERROR(IF($B101<Inputs!$C$7,IF(K$100<Inputs!$C$7,'UE - ESC'!K128,IF(K$100>=Inputs!$C$7+'UE - ESC'!$W$128,0,'UE - ESC'!$T128/'UE - ESC'!$W$128)),'UE - AER'!K128),0) -> 0 | L101: =IFERROR(IF($B101<Inputs!$C$7,IF(L$100<Inputs!$C$7,'UE - ESC'!L128,IF(L$100>=Inputs!$C$7+'UE - ESC'!$W$128,0,'UE - ESC'!$T128/'UE - ESC'!$W$128)),'UE - AER'!L128),0) -> 0 | M101: =IFERROR(IF($B101<Inputs!$C$7,IF(M$100<Inputs!$C$7,'UE - ESC'!M128,IF(M$100>=Inputs!$C$7+'UE - ESC'!$W$128,0,'UE - ESC'!$T128/'UE - ESC'!$W$128)),'UE - AER'!M128),0) -> 0 | N101: =IFERROR(IF($B101<Inputs!$C$7,IF(N$100<Inputs!$C$7,'UE - ESC'!N128,IF(N$100>=Inputs!$C$7+'UE - ESC'!$W$128,0,'UE - ESC'!$T128/'UE - ESC'!$W$128)),'UE - AER'!N128),0) -> 0 | O101: =IFERROR(IF($B101<Inputs!$C$7,IF(O$100<Inputs!$C$7,'UE - ESC'!O128,IF(O$100>=Inputs!$C$7+'UE - ESC'!$W$128,0,'UE - ESC'!$T128/'UE - ESC'!$W$128)),'UE - AER'!O128),0) -> 0
B102: =B83 -> 2010 | C102: =C101 -> 7 | D102: =IFERROR(IF($B102<Inputs!$C$7,IF(D$100<Inputs!$C$7,'UE - ESC'!D129,IF(D$100>=Inputs!$C$7+'UE - ESC'!$W$128,0,'UE - ESC'!$T129/'UE - ESC'!$W$128)),'UE - AER'!D129),0) -> 0 | E102: =IFERROR(IF($B102<Inputs!$C$7,IF(E$100<Inputs!$C$7,'UE - ESC'!E129,IF(E$100>=Inputs!$C$7+'UE - ESC'!$W$128,0,'UE - ESC'!$T129/'UE - ESC'!$W$128)),'UE - AER'!E129),0) -> 0 | F102: =IFERROR(IF($B102<Inputs!$C$7,IF(F$100<Inputs!$C$7,'UE - ESC'!F129,IF(F$100>=Inputs!$C$7+'UE - ESC'!$W$128,0,'UE - ESC'!$T129/'UE - ESC'!$W$128)),'UE - AER'!F129),0) -> 0 | G102: =IFERROR(IF($B102<Inputs!$C$7,IF(G$100<Inputs!$C$7,'UE - ESC'!G129,IF(G$100>=Inputs!$C$7+'UE - ESC'!$W$128,0,'UE - ESC'!$T129/'UE - ESC'!$W$128)),'UE - AER'!G129),0) -> 0 | H102: =IFERROR(IF($B102<Inputs!$C$7,IF(H$100<Inputs!$C$7,'UE - ESC'!H129,IF(H$100>=Inputs!$C$7+'UE - ESC'!$W$128,0,'UE - ESC'!$T129/'UE - ESC'!$W$128)),'UE - AER'!H129),0) -> 0 | I102: =IFERROR(IF($B102<Inputs!$C$7,IF(I$100<Inputs!$C$7,'UE - ESC'!I129,IF(I$100>=Inputs!$C$7+'UE - ESC'!$W$128,0,'UE - ESC'!$T129/'UE - ESC'!$W$128)),'UE - AER'!I129),0) -> 0 | J102: =IFERROR(IF($B102<Inputs!$C$7,IF(J$100<Inputs!$C$7,'UE - ESC'!J129,IF(J$100>=Inputs!$C$7+'UE - ESC'!$W$128,0,'UE - ESC'!$T129/'UE - ESC'!$W$128)),'UE - AER'!J129),0) -> 0 | K102: =IFERROR(IF($B102<Inputs!$C$7,IF(K$100<Inputs!$C$7,'UE - ESC'!K129,IF(K$100>=Inputs!$C$7+'UE - ESC'!$W$128,0,'UE - ESC'!$T129/'UE - ESC'!$W$128)),'UE - AER'!K129),0) -> 0 | L102: =IFERROR(IF($B102<Inputs!$C$7,IF(L$100<Inputs!$C$7,'UE - ESC'!L129,IF(L$100>=Inputs!$C$7+'UE - ESC'!$W$128,0,'UE - ESC'!$T129/'UE - ESC'!$W$128)),'UE - AER'!L129),0) -> 0 | M102: =IFERROR(IF($B102<Inputs!$C$7,IF(M$100<Inputs!$C$7,'UE - ESC'!M129,IF(M$100>=Inputs!$C$7+'UE - ESC'!$W$128,0,'UE - ESC'!$T129/'UE - ESC'!$W$128)),'UE - AER'!M129),0) -> 0 | N102: =IFERROR(IF($B102<Inputs!$C$7,IF(N$100<Inputs!$C$7,'UE - ESC'!N129,IF(N$100>=Inputs!$C$7+'UE - ESC'!$W$128,0,'UE - ESC'!$T129/'UE - ESC'!$W$128)),'UE - AER'!N129),0) -> 0 | O102: =IFERROR(IF($B102<Inputs!$C$7,IF(O$100<Inputs!$C$7,'UE - ESC'!O129,IF(O$100>=Inputs!$C$7+'UE - ESC'!$W$128,0,'UE - ESC'!$T129/'UE - ESC'!$W$128)),'UE - AER'!O129),0) -> 0
B103: 2011 | C103: =C102 -> 7 | D103: =IFERROR(IF($B103<Inputs!$C$7,IF(D$100<Inputs!$C$7,'UE - ESC'!D130,IF(D$100>=Inputs!$C$7+'UE - ESC'!$W$128,0,'UE - ESC'!$T130/'UE - ESC'!$W$128)),'UE - AER'!D130),0) -> 0 | E103: =IFERROR(IF($B103<Inputs!$C$7,IF(E$100<Inputs!$C$7,'UE - ESC'!E130,IF(E$100>=Inputs!$C$7+'UE - ESC'!$W$128,0,'UE - ESC'!$T130/'UE - ESC'!$W$128)),'UE - AER'!E130),0) -> 0 | F103: =IFERROR(IF($B103<Inputs!$C$7,IF(F$100<Inputs!$C$7,'UE - ESC'!F130,IF(F$100>=Inputs!$C$7+'UE - ESC'!$W$128,0,'UE - ESC'!$T130/'UE - ESC'!$W$128)),'UE - AER'!F130),0) -> 179711.6992 | G103: =IFERROR(IF($B103<Inputs!$C$7,IF(G$100<Inputs!$C$7,'UE - ESC'!G130,IF(G$100>=Inputs!$C$7+'UE - ESC'!$W$128,0,'UE - ESC'!$T130/'UE - ESC'!$W$128)),'UE - AER'!G130),0) -> 359423.3984 | H103: =IFERROR(IF($B103<Inputs!$C$7,IF(H$100<Inputs!$C$7,'UE - ESC'!H130,IF(H$100>=Inputs!$C$7+'UE - ESC'!$W$128,0,'UE - ESC'!$T130/'UE - ESC'!$W$128)),'UE - AER'!H130),0) -> 359423.3984 | I103: =IFERROR(IF($B103<Inputs!$C$7,IF(I$100<Inputs!$C$7,'UE - ESC'!I130,IF(I$100>=Inputs!$C$7+'UE - ESC'!$W$128,0,'UE - ESC'!$T130/'UE - ESC'!$W$128)),'UE - AER'!I130),0) -> 359423.3984 | J103: =IFERROR(IF($B103<Inputs!$C$7,IF(J$100<Inputs!$C$7,'UE - ESC'!J130,IF(J$100>=Inputs!$C$7+'UE - ESC'!$W$128,0,'UE - ESC'!$T130/'UE - ESC'!$W$128)),'UE - AER'!J130),0) -> 359423.3984 | K103: =IFERROR(IF($B103<Inputs!$C$7,IF(K$100<Inputs!$C$7,'UE - ESC'!K130,IF(K$100>=Inputs!$C$7+'UE - ESC'!$W$128,0,'UE - ESC'!$T130/'UE - ESC'!$W$128)),'UE - AER'!K130),0) -> 224639.624 | L103: =IFERROR(IF($B103<Inputs!$C$7,IF(L$100<Inputs!$C$7,'UE - ESC'!L130,IF(L$100>=Inputs!$C$7+'UE - ESC'!$W$128,0,'UE - ESC'!$T130/'UE - ESC'!$W$128)),'UE - AER'!L130),0) -> 224639.624 | M103: =IFERROR(IF($B103<Inputs!$C$7,IF(M$100<Inputs!$C$7,'UE - ESC'!M130,IF(M$100>=Inputs!$C$7+'UE - ESC'!$W$128,0,'UE - ESC'!$T130/'UE - ESC'!$W$128)),'UE - AER'!M130),0) -> 224639.624 | N103: =IFERROR(IF($B103<Inputs!$C$7,IF(N$100<Inputs!$C$7,'UE - ESC'!N130,IF(N$100>=Inputs!$C$7+'UE - ESC'!$W$128,0,'UE - ESC'!$T130/'UE - ESC'!$W$128)),'UE - AER'!N130),0) -> 224639.624 | O103: =IFERROR(IF($B103<Inputs!$C$7,IF(O$100<Inputs!$C$7,'UE - ESC'!O130,IF(O$100>=Inputs!$C$7+'UE - ESC'!$W$128,0,'UE - ESC'!$T130/'UE - ESC'!$W$128)),'UE - AER'!O130),0) -> 0
B104: 2012 | C104: 7 | D104: =IFERROR(IF($B104<Inputs!$C$7,IF(D$100<Inputs!$C$7,'UE - ESC'!D131,IF(D$100>=Inputs!$C$7+'UE - ESC'!$W$128,0,'UE - ESC'!$T131/'UE - ESC'!$W$128)),'UE - AER'!D131),0) -> 0 | E104: =IFERROR(IF($B104<Inputs!$C$7,IF(E$100<Inputs!$C$7,'UE - ESC'!E131,IF(E$100>=Inputs!$C$7+'UE - ESC'!$W$128,0,'UE - ESC'!$T131/'UE - ESC'!$W$128)),'UE - AER'!E131),0) -> 0 | F104: =IFERROR(IF($B104<Inputs!$C$7,IF(F$100<Inputs!$C$7,'UE - ESC'!F131,IF(F$100>=Inputs!$C$7+'UE - ESC'!$W$128,0,'UE - ESC'!$T131/'UE - ESC'!$W$128)),'UE - AER'!F131),0) -> 0 | G104: =IFERROR(IF($B104<Inputs!$C$7,IF(G$100<Inputs!$C$7,'UE - ESC'!G131,IF(G$100>=Inputs!$C$7+'UE - ESC'!$W$128,0,'UE - ESC'!$T131/'UE - ESC'!$W$128)),'UE - AER'!G131),0) -> 31946.13192 | H104: =IFERROR(IF($B104<Inputs!$C$7,IF(H$100<Inputs!$C$7,'UE - ESC'!H131,IF(H$100>=Inputs!$C$7+'UE - ESC'!$W$128,0,'UE - ESC'!$T131/'UE - ESC'!$W$128)),'UE - AER'!H131),0) -> 63892.26384 | I104: =IFERROR(IF($B104<Inputs!$C$7,IF(I$100<Inputs!$C$7,'UE - ESC'!I131,IF(I$100>=Inputs!$C$7+'UE - ESC'!$W$128,0,'UE - ESC'!$T131/'UE - ESC'!$W$128)),'UE - AER'!I131),0) -> 63892.26384 | J104: =IFERROR(IF($B104<Inputs!$C$7,IF(J$100<Inputs!$C$7,'UE - ESC'!J131,IF(J$100>=Inputs!$C$7+'UE - ESC'!$W$128,0,'UE - ESC'!$T131/'UE - ESC'!$W$128)),'UE - AER'!J131),0) -> 63892.26384 | K104: =IFERROR(IF($B104<Inputs!$C$7,IF(K$100<Inputs!$C$7,'UE - ESC'!K131,IF(K$100>=Inputs!$C$7+'UE - ESC'!$W$128,0,'UE - ESC'!$T131/'UE - ESC'!$W$128)),'UE - AER'!K131),0) -> 55905.73086 | L104: =IFERROR(IF($B104<Inputs!$C$7,IF(L$100<Inputs!$C$7,'UE - ESC'!L131,IF(L$100>=Inputs!$C$7+'UE - ESC'!$W$128,0,'UE - ESC'!$T131/'UE - ESC'!$W$128)),'UE - AER'!L131),0) -> 55905.73086 | M104: =IFERROR(IF($B104<Inputs!$C$7,IF(M$100<Inputs!$C$7,'UE - ESC'!M131,IF(M$100>=Inputs!$C$7+'UE - ESC'!$W$128,0,'UE - ESC'!$T131/'UE - ESC'!$W$128)),'UE - AER'!M131),0) -> 55905.73086 | N104: =IFERROR(IF($B104<Inputs!$C$7,IF(N$100<Inputs!$C$7,'UE - ESC'!N131,IF(N$100>=Inputs!$C$7+'UE - ESC'!$W$128,0,'UE - ESC'!$T131/'UE - ESC'!$W$128)),'UE - AER'!N131),0) -> 55905.73086 | O104: =IFERROR(IF($B104<Inputs!$C$7,IF(O$100<Inputs!$C$7,'UE - ESC'!O131,IF(O$100>=Inputs!$C$7+'UE - ESC'!$W$128,0,'UE - ESC'!$T131/'UE - ESC'!$W$128)),'UE - AER'!O131),0) -> 0
B105: 2013 | C105: 7 | D105: =IFERROR(IF($B105<Inputs!$C$7,IF(D$100<Inputs!$C$7,'UE - ESC'!D132,IF(D$100>=Inputs!$C$7+'UE - ESC'!$W$128,0,'UE - ESC'!$T132/'UE - ESC'!$W$128)),'UE - AER'!D132),0) -> 0 | E105: =IFERROR(IF($B105<Inputs!$C$7,IF(E$100<Inputs!$C$7,'UE - ESC'!E132,IF(E$100>=Inputs!$C$7+'UE - ESC'!$W$128,0,'UE - ESC'!$T132/'UE - ESC'!$W$128)),'UE - AER'!E132),0) -> 0 | F105: =IFERROR(IF($B105<Inputs!$C$7,IF(F$100<Inputs!$C$7,'UE - ESC'!F132,IF(F$100>=Inputs!$C$7+'UE - ESC'!$W$128,0,'UE - ESC'!$T132/'UE - ESC'!$W$128)),'UE - AER'!F132),0) -> 0 | G105: =IFERROR(IF($B105<Inputs!$C$7,IF(G$100<Inputs!$C$7,'UE - ESC'!G132,IF(G$100>=Inputs!$C$7+'UE - ESC'!$W$128,0,'UE - ESC'!$T132/'UE - ESC'!$W$128)),'UE - AER'!G132),0) -> 0 | H105: =IFERROR(IF($B105<Inputs!$C$7,IF(H$100<Inputs!$C$7,'UE - ESC'!H132,IF(H$100>=Inputs!$C$7+'UE - ESC'!$W$128,0,'UE - ESC'!$T132/'UE - ESC'!$W$128)),'UE - AER'!H132),0) -> 78915.06379 | I105: =IFERROR(IF($B105<Inputs!$C$7,IF(I$100<Inputs!$C$7,'UE - ESC'!I132,IF(I$100>=Inputs!$C$7+'UE - ESC'!$W$128,0,'UE - ESC'!$T132/'UE - ESC'!$W$128)),'UE - AER'!I132),0) -> 157830.1276 | J105: =IFERROR(IF($B105<Inputs!$C$7,IF(J$100<Inputs!$C$7,'UE - ESC'!J132,IF(J$100>=Inputs!$C$7+'UE - ESC'!$W$128,0,'UE - ESC'!$T132/'UE - ESC'!$W$128)),'UE - AER'!J132),0) -> 157830.1276 | K105: =IFERROR(IF($B105<Inputs!$C$7,IF(K$100<Inputs!$C$7,'UE - ESC'!K132,IF(K$100>=Inputs!$C$7+'UE - ESC'!$W$128,0,'UE - ESC'!$T132/'UE - ESC'!$W$128)),'UE - AER'!K132),0) -> 177558.8935 | L105: =IFERROR(IF($B105<Inputs!$C$7,IF(L$100<Inputs!$C$7,'UE - ESC'!L132,IF(L$100>=Inputs!$C$7+'UE - ESC'!$W$128,0,'UE - ESC'!$T132/'UE - ESC'!$W$128)),'UE - AER'!L132),0) -> 177558.8935 | M105: =IFERROR(IF($B105<Inputs!$C$7,IF(M$100<Inputs!$C$7,'UE - ESC'!M132,IF(M$100>=Inputs!$C$7+'UE - ESC'!$W$128,0,'UE - ESC'!$T132/'UE - ESC'!$W$128)),'UE - AER'!M132),0) -> 177558.8935 | N105: =IFERROR(IF($B105<Inputs!$C$7,IF(N$100<Inputs!$C$7,'UE - ESC'!N132,IF(N$100>=Inputs!$C$7+'UE - ESC'!$W$128,0,'UE - ESC'!$T132/'UE - ESC'!$W$128)),'UE - AER'!N132),0) -> 177558.8935 | O105: =IFERROR(IF($B105<Inputs!$C$7,IF(O$100<Inputs!$C$7,'UE - ESC'!O132,IF(O$100>=Inputs!$C$7+'UE - ESC'!$W$128,0,'UE - ESC'!$T132/'UE - ESC'!$W$128)),'UE - AER'!O132),0) -> 0
B106: 2014 | C106: 7 | D106: =IFERROR(IF($B106<Inputs!$C$7,IF(D$100<Inputs!$C$7,'UE - ESC'!D133,IF(D$100>=Inputs!$C$7+'UE - ESC'!$W$128,0,'UE - ESC'!$T133/'UE - ESC'!$W$128)),'UE - AER'!D133),0) -> 0 | E106: =IFERROR(IF($B106<Inputs!$C$7,IF(E$100<Inputs!$C$7,'UE - ESC'!E133,IF(E$100>=Inputs!$C$7+'UE - ESC'!$W$128,0,'UE - ESC'!$T133/'UE - ESC'!$W$128)),'UE - AER'!E133),0) -> 0 | F106: =IFERROR(IF($B106<Inputs!$C$7,IF(F$100<Inputs!$C$7,'UE - ESC'!F133,IF(F$100>=Inputs!$C$7+'UE - ESC'!$W$128,0,'UE - ESC'!$T133/'UE - ESC'!$W$128)),'UE - AER'!F133),0) -> 0 | G106: =IFERROR(IF($B106<Inputs!$C$7,IF(G$100<Inputs!$C$7,'UE - ESC'!G133,IF(G$100>=Inputs!$C$7+'UE - ESC'!$W$128,0,'UE - ESC'!$T133/'UE - ESC'!$W$128)),'UE - AER'!G133),0) -> 0 | H106: =IFERROR(IF($B106<Inputs!$C$7,IF(H$100<Inputs!$C$7,'UE - ESC'!H133,IF(H$100>=Inputs!$C$7+'UE - ESC'!$W$128,0,'UE - ESC'!$T133/'UE - ESC'!$W$128)),'UE - AER'!H133),0) -> 0 | I106: =IFERROR(IF($B106<Inputs!$C$7,IF(I$100<Inputs!$C$7,'UE - ESC'!I133,IF(I$100>=Inputs!$C$7+'UE - ESC'!$W$128,0,'UE - ESC'!$T133/'UE - ESC'!$W$128)),'UE - AER'!I133),0) -> 78924.80936 | J106: =IFERROR(IF($B106<Inputs!$C$7,IF(J$100<Inputs!$C$7,'UE - ESC'!J133,IF(J$100>=Inputs!$C$7+'UE - ESC'!$W$128,0,'UE - ESC'!$T133/'UE - ESC'!$W$128)),'UE - AER'!J133),0) -> 157849.6187 | K106: =IFERROR(IF($B106<Inputs!$C$7,IF(K$100<Inputs!$C$7,'UE - ESC'!K133,IF(K$100>=Inputs!$C$7+'UE - ESC'!$W$128,0,'UE - ESC'!$T133/'UE - ESC'!$W$128)),'UE - AER'!K133),0) -> 217043.2258 | L106: =IFERROR(IF($B106<Inputs!$C$7,IF(L$100<Inputs!$C$7,'UE - ESC'!L133,IF(L$100>=Inputs!$C$7+'UE - ESC'!$W$128,0,'UE - ESC'!$T133/'UE - ESC'!$W$128)),'UE - AER'!L133),0) -> 217043.2258 | M106: =IFERROR(IF($B106<Inputs!$C$7,IF(M$100<Inputs!$C$7,'UE - ESC'!M133,IF(M$100>=Inputs!$C$7+'UE - ESC'!$W$128,0,'UE - ESC'!$T133/'UE - ESC'!$W$128)),'UE - AER'!M133),0) -> 217043.2258 | N106: =IFERROR(IF($B106<Inputs!$C$7,IF(N$100<Inputs!$C$7,'UE - ESC'!N133,IF(N$100>=Inputs!$C$7+'UE - ESC'!$W$128,0,'UE - ESC'!$T133/'UE - ESC'!$W$128)),'UE - AER'!N133),0) -> 217043.2258 | O106: =IFERROR(IF($B106<Inputs!$C$7,IF(O$100<Inputs!$C$7,'UE - ESC'!O133,IF(O$100>=Inputs!$C$7+'UE - ESC'!$W$128,0,'UE - ESC'!$T133/'UE - ESC'!$W$128)),'UE - AER'!O133),0) -> 0
B107: 2015 | C107: 7 | D107: =IFERROR(IF($B107<Inputs!$C$7,IF(D$100<Inputs!$C$7,'UE - ESC'!D134,IF(D$100>=Inputs!$C$7+'UE - ESC'!$W$128,0,'UE - ESC'!$T134/'UE - ESC'!$W$128)),'UE - AER'!D134),0) -> 0 | E107: =IFERROR(IF($B107<Inputs!$C$7,IF(E$100<Inputs!$C$7,'UE - ESC'!E134,IF(E$100>=Inputs!$C$7+'UE - ESC'!$W$128,0,'UE - ESC'!$T134/'UE - ESC'!$W$128)),'UE - AER'!E134),0) -> 0 | F107: =IFERROR(IF($B107<Inputs!$C$7,IF(F$100<Inputs!$C$7,'UE - ESC'!F134,IF(F$100>=Inputs!$C$7+'UE - ESC'!$W$128,0,'UE - ESC'!$T134/'UE - ESC'!$W$128)),'UE - AER'!F134),0) -> 0 | G107: =IFERROR(IF($B107<Inputs!$C$7,IF(G$100<Inputs!$C$7,'UE - ESC'!G134,IF(G$100>=Inputs!$C$7+'UE - ESC'!$W$128,0,'UE - ESC'!$T134/'UE - ESC'!$W$128)),'UE - AER'!G134),0) -> 0 | H107: =IFERROR(IF($B107<Inputs!$C$7,IF(H$100<Inputs!$C$7,'UE - ESC'!H134,IF(H$100>=Inputs!$C$7+'UE - ESC'!$W$128,0,'UE - ESC'!$T134/'UE - ESC'!$W$128)),'UE - AER'!H134),0) -> 0 | I107: =IFERROR(IF($B107<Inputs!$C$7,IF(I$100<Inputs!$C$7,'UE - ESC'!I134,IF(I$100>=Inputs!$C$7+'UE - ESC'!$W$128,0,'UE - ESC'!$T134/'UE - ESC'!$W$128)),'UE - AER'!I134),0) -> 0 | J107: =IFERROR(IF($B107<Inputs!$C$7,IF(J$100<Inputs!$C$7,'UE - ESC'!J134,IF(J$100>=Inputs!$C$7+'UE - ESC'!$W$128,0,'UE - ESC'!$T134/'UE - ESC'!$W$128)),'UE - AER'!J134),0) -> 16724.73868 | K107: =IFERROR(IF($B107<Inputs!$C$7,IF(K$100<Inputs!$C$7,'UE - ESC'!K134,IF(K$100>=Inputs!$C$7+'UE - ESC'!$W$128,0,'UE - ESC'!$T134/'UE - ESC'!$W$128)),'UE - AER'!K134),0) -> 54355.4007 | L107: =IFERROR(IF($B107<Inputs!$C$7,IF(L$100<Inputs!$C$7,'UE - ESC'!L134,IF(L$100>=Inputs!$C$7+'UE - ESC'!$W$128,0,'UE - ESC'!$T134/'UE - ESC'!$W$128)),'UE - AER'!L134),0) -> 54355.4007 | M107: =IFERROR(IF($B107<Inputs!$C$7,IF(M$100<Inputs!$C$7,'UE - ESC'!M134,IF(M$100>=Inputs!$C$7+'UE - ESC'!$W$128,0,'UE - ESC'!$T134/'UE - ESC'!$W$128)),'UE - AER'!M134),0) -> 54355.4007 | N107: =IFERROR(IF($B107<Inputs!$C$7,IF(N$100<Inputs!$C$7,'UE - ESC'!N134,IF(N$100>=Inputs!$C$7+'UE - ESC'!$W$128,0,'UE - ESC'!$T134/'UE - ESC'!$W$128)),'UE - AER'!N134),0) -> 54355.4007 | O107: =IFERROR(IF($B107<Inputs!$C$7,IF(O$100<Inputs!$C$7,'UE - ESC'!O134,IF(O$100>=Inputs!$C$7+'UE - ESC'!$W$128,0,'UE - ESC'!$T134/'UE - ESC'!$W$128)),'UE - AER'!O134),0) -> 0
B108: 2016 | C108: 7 | D108: =IFERROR(IF($B108<Inputs!$C$7,IF(D$100<Inputs!$C$7,'UE - ESC'!D135,IF(D$100>=Inputs!$C$7+'UE - ESC'!$W$128,0,'UE - ESC'!$T135/'UE - ESC'!$W$128)),'UE - AER'!D135),0) -> 0 | E108: =IFERROR(IF($B108<Inputs!$C$7,IF(E$100<Inputs!$C$7,'UE - ESC'!E135,IF(E$100>=Inputs!$C$7+'UE - ESC'!$W$128,0,'UE - ESC'!$T135/'UE - ESC'!$W$128)),'UE - AER'!E135),0) -> 0 | F108: =IFERROR(IF($B108<Inputs!$C$7,IF(F$100<Inputs!$C$7,'UE - ESC'!F135,IF(F$100>=Inputs!$C$7+'UE - ESC'!$W$128,0,'UE - ESC'!$T135/'UE - ESC'!$W$128)),'UE - AER'!F135),0) -> 0 | G108: =IFERROR(IF($B108<Inputs!$C$7,IF(G$100<Inputs!$C$7,'UE - ESC'!G135,IF(G$100>=Inputs!$C$7+'UE - ESC'!$W$128,0,'UE - ESC'!$T135/'UE - ESC'!$W$128)),'UE - AER'!G135),0) -> 0 | H108: =IFERROR(IF($B108<Inputs!$C$7,IF(H$100<Inputs!$C$7,'UE - ESC'!H135,IF(H$100>=Inputs!$C$7+'UE - ESC'!$W$128,0,'UE - ESC'!$T135/'UE - ESC'!$W$128)),'UE - AER'!H135),0) -> 0 | I108: =IFERROR(IF($B108<Inputs!$C$7,IF(I$100<Inputs!$C$7,'UE - ESC'!I135,IF(I$100>=Inputs!$C$7+'UE - ESC'!$W$128,0,'UE - ESC'!$T135/'UE - ESC'!$W$128)),'UE - AER'!I135),0) -> 0 | J108: =IFERROR(IF($B108<Inputs!$C$7,IF(J$100<Inputs!$C$7,'UE - ESC'!J135,IF(J$100>=Inputs!$C$7+'UE - ESC'!$W$128,0,'UE - ESC'!$T135/'UE - ESC'!$W$128)),'UE - AER'!J135),0) -> 0 | K108: =IFERROR(IF($B108<Inputs!$C$7,IF(K$100<Inputs!$C$7,'UE - ESC'!K135,IF(K$100>=Inputs!$C$7+'UE - ESC'!$W$128,0,'UE - ESC'!$T135/'UE - ESC'!$W$128)),'UE - AER'!K135),0) -> 0 | L108: =IFERROR(IF($B108<Inputs!$C$7,IF(L$100<Inputs!$C$7,'UE - ESC'!L135,IF(L$100>=Inputs!$C$7+'UE - ESC'!$W$128,0,'UE - ESC'!$T135/'UE - ESC'!$W$128)),'UE - AER'!L135),0) -> 21060.95176 | M108: =IFERROR(IF($B108<Inputs!$C$7,IF(M$100<Inputs!$C$7,'UE - ESC'!M135,IF(M$100>=Inputs!$C$7+'UE - ESC'!$W$128,0,'UE - ESC'!$T135/'UE - ESC'!$W$128)),'UE - AER'!M135),0) -> 21060.95176 | N108: =IFERROR(IF($B108<Inputs!$C$7,IF(N$100<Inputs!$C$7,'UE - ESC'!N135,IF(N$100>=Inputs!$C$7+'UE - ESC'!$W$128,0,'UE - ESC'!$T135/'UE - ESC'!$W$128)),'UE - AER'!N135),0) -> 21060.95176 | O108: =IFERROR(IF($B108<Inputs!$C$7,IF(O$100<Inputs!$C$7,'UE - ESC'!O135,IF(O$100>=Inputs!$C$7+'UE - ESC'!$W$128,0,'UE - ESC'!$T135/'UE - ESC'!$W$128)),'UE - AER'!O135),0) -> 21060.95176
B109: 2017 | C109: 7 | D109: =IFERROR(IF($B109<Inputs!$C$7,IF(D$100<Inputs!$C$7,'UE - ESC'!D136,IF(D$100>=Inputs!$C$7+'UE - ESC'!$W$128,0,'UE - ESC'!$T136/'UE - ESC'!$W$128)),'UE - AER'!D136),0) -> 0 | E109: =IFERROR(IF($B109<Inputs!$C$7,IF(E$100<Inputs!$C$7,'UE - ESC'!E136,IF(E$100>=Inputs!$C$7+'UE - ESC'!$W$128,0,'UE - ESC'!$T136/'UE - ESC'!$W$128)),'UE - AER'!E136),0) -> 0 | F109: =IFERROR(IF($B109<Inputs!$C$7,IF(F$100<Inputs!$C$7,'UE - ESC'!F136,IF(F$100>=Inputs!$C$7+'UE - ESC'!$W$128,0,'UE - ESC'!$T136/'UE - ESC'!$W$128)),'UE - AER'!F136),0) -> 0 | G109: =IFERROR(IF($B109<Inputs!$C$7,IF(G$100<Inputs!$C$7,'UE - ESC'!G136,IF(G$100>=Inputs!$C$7+'UE - ESC'!$W$128,0,'UE - ESC'!$T136/'UE - ESC'!$W$128)),'UE - AER'!G136),0) -> 0 | H109: =IFERROR(IF($B109<Inputs!$C$7,IF(H$100<Inputs!$C$7,'UE - ESC'!H136,IF(H$100>=Inputs!$C$7+'UE - ESC'!$W$128,0,'UE - ESC'!$T136/'UE - ESC'!$W$128)),'UE - AER'!H136),0) -> 0 | I109: =IFERROR(IF($B109<Inputs!$C$7,IF(I$100<Inputs!$C$7,'UE - ESC'!I136,IF(I$100>=Inputs!$C$7+'UE - ESC'!$W$128,0,'UE - ESC'!$T136/'UE - ESC'!$W$128)),'UE - AER'!I136),0) -> 0 | J109: =IFERROR(IF($B109<Inputs!$C$7,IF(J$100<Inputs!$C$7,'UE - ESC'!J136,IF(J$100>=Inputs!$C$7+'UE - ESC'!$W$128,0,'UE - ESC'!$T136/'UE - ESC'!$W$128)),'UE - AER'!J136),0) -> 0 | K109: =IFERROR(IF($B109<Inputs!$C$7,IF(K$100<Inputs!$C$7,'UE - ESC'!K136,IF(K$100>=Inputs!$C$7+'UE - ESC'!$W$128,0,'UE - ESC'!$T136/'UE - ESC'!$W$128)),'UE - AER'!K136),0) -> 0 | L109: =IFERROR(IF($B109<Inputs!$C$7,IF(L$100<Inputs!$C$7,'UE - ESC'!L136,IF(L$100>=Inputs!$C$7+'UE - ESC'!$W$128,0,'UE - ESC'!$T136/'UE - ESC'!$W$128)),'UE - AER'!L136),0) -> 0 | M109: =IFERROR(IF($B109<Inputs!$C$7,IF(M$100<Inputs!$C$7,'UE - ESC'!M136,IF(M$100>=Inputs!$C$7+'UE - ESC'!$W$128,0,'UE - ESC'!$T136/'UE - ESC'!$W$128)),'UE - AER'!M136),0) -> 0 | N109: =IFERROR(IF($B109<Inputs!$C$7,IF(N$100<Inputs!$C$7,'UE - ESC'!N136,IF(N$100>=Inputs!$C$7+'UE - ESC'!$W$128,0,'UE - ESC'!$T136/'UE - ESC'!$W$128)),'UE - AER'!N136),0) -> 0 | O109: =IFERROR(IF($B109<Inputs!$C$7,IF(O$100<Inputs!$C$7,'UE - ESC'!O136,IF(O$100>=Inputs!$C$7+'UE - ESC'!$W$128,0,'UE - ESC'!$T136/'UE - ESC'!$W$128)),'UE - AER'!O136),0) -> 0
B110: 2018 | C110: 7 | D110: =IFERROR(IF($B110<Inputs!$C$7,IF(D$100<Inputs!$C$7,'UE - ESC'!D137,IF(D$100>=Inputs!$C$7+'UE - ESC'!$W$128,0,'UE - ESC'!$T137/'UE - ESC'!$W$128)),'UE - AER'!D137),0) -> 0 | E110: =IFERROR(IF($B110<Inputs!$C$7,IF(E$100<Inputs!$C$7,'UE - ESC'!E137,IF(E$100>=Inputs!$C$7+'UE - ESC'!$W$128,0,'UE - ESC'!$T137/'UE - ESC'!$W$128)),'UE - AER'!E137),0) -> 0 | F110: =IFERROR(IF($B110<Inputs!$C$7,IF(F$100<Inputs!$C$7,'UE - ESC'!F137,IF(F$100>=Inputs!$C$7+'UE - ESC'!$W$128,0,'UE - ESC'!$T137/'UE - ESC'!$W$128)),'UE - AER'!F137),0) -> 0 | G110: =IFERROR(IF($B110<Inputs!$C$7,IF(G$100<Inputs!$C$7,'UE - ESC'!G137,IF(G$100>=Inputs!$C$7+'UE - ESC'!$W$128,0,'UE - ESC'!$T137/'UE - ESC'!$W$128)),'UE - AER'!G137),0) -> 0 | H110: =IFERROR(IF($B110<Inputs!$C$7,IF(H$100<Inputs!$C$7,'UE - ESC'!H137,IF(H$100>=Inputs!$C$7+'UE - ESC'!$W$128,0,'UE - ESC'!$T137/'UE - ESC'!$W$128)),'UE - AER'!H137),0) -> 0 | I110: =IFERROR(IF($B110<Inputs!$C$7,IF(I$100<Inputs!$C$7,'UE - ESC'!I137,IF(I$100>=Inputs!$C$7+'UE - ESC'!$W$128,0,'UE - ESC'!$T137/'UE - ESC'!$W$128)),'UE - AER'!I137),0) -> 0 | J110: =IFERROR(IF($B110<Inputs!$C$7,IF(J$100<Inputs!$C$7,'UE - ESC'!J137,IF(J$100>=Inputs!$C$7+'UE - ESC'!$W$128,0,'UE - ESC'!$T137/'UE - ESC'!$W$128)),'UE - AER'!J137),0) -> 0 | K110: =IFERROR(IF($B110<Inputs!$C$7,IF(K$100<Inputs!$C$7,'UE - ESC'!K137,IF(K$100>=Inputs!$C$7+'UE - ESC'!$W$128,0,'UE - ESC'!$T137/'UE - ESC'!$W$128)),'UE - AER'!K137),0) -> 0 | L110: =IFERROR(IF($B110<Inputs!$C$7,IF(L$100<Inputs!$C$7,'UE - ESC'!L137,IF(L$100>=Inputs!$C$7+'UE - ESC'!$W$128,0,'UE - ESC'!$T137/'UE - ESC'!$W$128)),'UE - AER'!L137),0) -> 0 | M110: =IFERROR(IF($B110<Inputs!$C$7,IF(M$100<Inputs!$C$7,'UE - ESC'!M137,IF(M$100>=Inputs!$C$7+'UE - ESC'!$W$128,0,'UE - ESC'!$T137/'UE - ESC'!$W$128)),'UE - AER'!M137),0) -> 0 | N110: =IFERROR(IF($B110<Inputs!$C$7,IF(N$100<Inputs!$C$7,'UE - ESC'!N137,IF(N$100>=Inputs!$C$7+'UE - ESC'!$W$128,0,'UE - ESC'!$T137/'UE - ESC'!$W$128)),'UE - AER'!N137),0) -> 0 | O110: =IFERROR(IF($B110<Inputs!$C$7,IF(O$100<Inputs!$C$7,'UE - ESC'!O137,IF(O$100>=Inputs!$C$7+'UE - ESC'!$W$128,0,'UE - ESC'!$T137/'UE - ESC'!$W$128)),'UE - AER'!O137),0) -> 0
B111: 2019 | C111: 7 | D111: =IFERROR(IF($B111<Inputs!$C$7,IF(D$100<Inputs!$C$7,'UE - ESC'!D138,IF(D$100>=Inputs!$C$7+'UE - ESC'!$W$128,0,'UE - ESC'!$T138/'UE - ESC'!$W$128)),'UE - AER'!D138),0) -> 0 | E111: =IFERROR(IF($B111<Inputs!$C$7,IF(E$100<Inputs!$C$7,'UE - ESC'!E138,IF(E$100>=Inputs!$C$7+'UE - ESC'!$W$128,0,'UE - ESC'!$T138/'UE - ESC'!$W$128)),'UE - AER'!E138),0) -> 0 | F111: =IFERROR(IF($B111<Inputs!$C$7,IF(F$100<Inputs!$C$7,'UE - ESC'!F138,IF(F$100>=Inputs!$C$7+'UE - ESC'!$W$128,0,'UE - ESC'!$T138/'UE - ESC'!$W$128)),'UE - AER'!F138),0) -> 0 | G111: =IFERROR(IF($B111<Inputs!$C$7,IF(G$100<Inputs!$C$7,'UE - ESC'!G138,IF(G$100>=Inputs!$C$7+'UE - ESC'!$W$128,0,'UE - ESC'!$T138/'UE - ESC'!$W$128)),'UE - AER'!G138),0) -> 0 | H111: =IFERROR(IF($B111<Inputs!$C$7,IF(H$100<Inputs!$C$7,'UE - ESC'!H138,IF(H$100>=Inputs!$C$7+'UE - ESC'!$W$128,0,'UE - ESC'!$T138/'UE - ESC'!$W$128)),'UE - AER'!H138),0) -> 0 | I111: =IFERROR(IF($B111<Inputs!$C$7,IF(I$100<Inputs!$C$7,'UE - ESC'!I138,IF(I$100>=Inputs!$C$7+'UE - ESC'!$W$128,0,'UE - ESC'!$T138/'UE - ESC'!$W$128)),'UE - AER'!I138),0) -> 0 | J111: =IFERROR(IF($B111<Inputs!$C$7,IF(J$100<Inputs!$C$7,'UE - ESC'!J138,IF(J$100>=Inputs!$C$7+'UE - ESC'!$W$128,0,'UE - ESC'!$T138/'UE - ESC'!$W$128)),'UE - AER'!J138),0) -> 0 | K111: =IFERROR(IF($B111<Inputs!$C$7,IF(K$100<Inputs!$C$7,'UE - ESC'!K138,IF(K$100>=Inputs!$C$7+'UE - ESC'!$W$128,0,'UE - ESC'!$T138/'UE - ESC'!$W$128)),'UE - AER'!K138),0) -> 0 | L111: =IFERROR(IF($B111<Inputs!$C$7,IF(L$100<Inputs!$C$7,'UE - ESC'!L138,IF(L$100>=Inputs!$C$7+'UE - ESC'!$W$128,0,'UE - ESC'!$T138/'UE - ESC'!$W$128)),'UE - AER'!L138),0) -> 0 | M111: =IFERROR(IF($B111<Inputs!$C$7,IF(M$100<Inputs!$C$7,'UE - ESC'!M138,IF(M$100>=Inputs!$C$7+'UE - ESC'!$W$128,0,'UE - ESC'!$T138/'UE - ESC'!$W$128)),'UE - AER'!M138),0) -> 0 | N111: =IFERROR(IF($B111<Inputs!$C$7,IF(N$100<Inputs!$C$7,'UE - ESC'!N138,IF(N$100>=Inputs!$C$7+'UE - ESC'!$W$128,0,'UE - ESC'!$T138/'UE - ESC'!$W$128)),'UE - AER'!N138),0) -> 0 | O111: =IFERROR(IF($B111<Inputs!$C$7,IF(O$100<Inputs!$C$7,'UE - ESC'!O138,IF(O$100>=Inputs!$C$7+'UE - ESC'!$W$128,0,'UE - ESC'!$T138/'UE - ESC'!$W$128)),'UE - AER'!O138),0) -> 0
B112: 2020 | C112: 7 | D112: =IFERROR(IF($B112<Inputs!$C$7,IF(D$100<Inputs!$C$7,'UE - ESC'!D139,IF(D$100>=Inputs!$C$7+'UE - ESC'!$W$128,0,'UE - ESC'!$T139/'UE - ESC'!$W$128)),'UE - AER'!D139),0) -> 0 | E112: =IFERROR(IF($B112<Inputs!$C$7,IF(E$100<Inputs!$C$7,'UE - ESC'!E139,IF(E$100>=Inputs!$C$7+'UE - ESC'!$W$128,0,'UE - ESC'!$T139/'UE - ESC'!$W$128)),'UE - AER'!E139),0) -> 0 | F112: =IFERROR(IF($B112<Inputs!$C$7,IF(F$100<Inputs!$C$7,'UE - ESC'!F139,IF(F$100>=Inputs!$C$7+'UE - ESC'!$W$128,0,'UE - ESC'!$T139/'UE - ESC'!$W$128)),'UE - AER'!F139),0) -> 0 | G112: =IFERROR(IF($B112<Inputs!$C$7,IF(G$100<Inputs!$C$7,'UE - ESC'!G139,IF(G$100>=Inputs!$C$7+'UE - ESC'!$W$128,0,'UE - ESC'!$T139/'UE - ESC'!$W$128)),'UE - AER'!G139),0) -> 0 | H112: =IFERROR(IF($B112<Inputs!$C$7,IF(H$100<Inputs!$C$7,'UE - ESC'!H139,IF(H$100>=Inputs!$C$7+'UE - ESC'!$W$128,0,'UE - ESC'!$T139/'UE - ESC'!$W$128)),'UE - AER'!H139),0) -> 0 | I112: =IFERROR(IF($B112<Inputs!$C$7,IF(I$100<Inputs!$C$7,'UE - ESC'!I139,IF(I$100>=Inputs!$C$7+'UE - ESC'!$W$128,0,'UE - ESC'!$T139/'UE - ESC'!$W$128)),'UE - AER'!I139),0) -> 0 | J112: =IFERROR(IF($B112<Inputs!$C$7,IF(J$100<Inputs!$C$7,'UE - ESC'!J139,IF(J$100>=Inputs!$C$7+'UE - ESC'!$W$128,0,'UE - ESC'!$T139/'UE - ESC'!$W$128)),'UE - AER'!J139),0) -> 0 | K112: =IFERROR(IF($B112<Inputs!$C$7,IF(K$100<Inputs!$C$7,'UE - ESC'!K139,IF(K$100>=Inputs!$C$7+'UE - ESC'!$W$128,0,'UE - ESC'!$T139/'UE - ESC'!$W$128)),'UE - AER'!K139),0) -> 0 | L112: =IFERROR(IF($B112<Inputs!$C$7,IF(L$100<Inputs!$C$7,'UE - ESC'!L139,IF(L$100>=Inputs!$C$7+'UE - ESC'!$W$128,0,'UE - ESC'!$T139/'UE - ESC'!$W$128)),'UE - AER'!L139),0) -> 0 | M112: =IFERROR(IF($B112<Inputs!$C$7,IF(M$100<Inputs!$C$7,'UE - ESC'!M139,IF(M$100>=Inputs!$C$7+'UE - ESC'!$W$128,0,'UE - ESC'!$T139/'UE - ESC'!$W$128)),'UE - AER'!M139),0) -> 0 | N112: =IFERROR(IF($B112<Inputs!$C$7,IF(N$100<Inputs!$C$7,'UE - ESC'!N139,IF(N$100>=Inputs!$C$7+'UE - ESC'!$W$128,0,'UE - ESC'!$T139/'UE - ESC'!$W$128)),'UE - AER'!N139),0) -> 0 | O112: =IFERROR(IF($B112<Inputs!$C$7,IF(O$100<Inputs!$C$7,'UE - ESC'!O139,IF(O$100>=Inputs!$C$7+'UE - ESC'!$W$128,0,'UE - ESC'!$T139/'UE - ESC'!$W$128)),'UE - AER'!O139),0) -> 0
B113: 0 | C113: 7 | D113: =IFERROR(IF($B113<Inputs!$C$7,IF(D$100<Inputs!$C$7,'UE - ESC'!D140,IF(D$100>=Inputs!$C$7+'UE - ESC'!$W$128,0,'UE - ESC'!$T140/'UE - ESC'!$W$128)),'UE - AER'!D140),0) -> 0 | E113: =IFERROR(IF($B113<Inputs!$C$7,IF(E$100<Inputs!$C$7,'UE - ESC'!E140,IF(E$100>=Inputs!$C$7+'UE - ESC'!$W$128,0,'UE - ESC'!$T140/'UE - ESC'!$W$128)),'UE - AER'!E140),0) -> 0 | F113: =IFERROR(IF($B113<Inputs!$C$7,IF(F$100<Inputs!$C$7,'UE - ESC'!F140,IF(F$100>=Inputs!$C$7+'UE - ESC'!$W$128,0,'UE - ESC'!$T140/'UE - ESC'!$W$128)),'UE - AER'!F140),0) -> 0 | G113: =IFERROR(IF($B113<Inputs!$C$7,IF(G$100<Inputs!$C$7,'UE - ESC'!G140,IF(G$100>=Inputs!$C$7+'UE - ESC'!$W$128,0,'UE - ESC'!$T140/'UE - ESC'!$W$128)),'UE - AER'!G140),0) -> 0 | H113: =IFERROR(IF($B113<Inputs!$C$7,IF(H$100<Inputs!$C$7,'UE - ESC'!H140,IF(H$100>=Inputs!$C$7+'UE - ESC'!$W$128,0,'UE - ESC'!$T140/'UE - ESC'!$W$128)),'UE - AER'!H140),0) -> 0 | I113: =IFERROR(IF($B113<Inputs!$C$7,IF(I$100<Inputs!$C$7,'UE - ESC'!I140,IF(I$100>=Inputs!$C$7+'UE - ESC'!$W$128,0,'UE - ESC'!$T140/'UE - ESC'!$W$128)),'UE - AER'!I140),0) -> 0 | J113: =IFERROR(IF($B113<Inputs!$C$7,IF(J$100<Inputs!$C$7,'UE - ESC'!J140,IF(J$100>=Inputs!$C$7+'UE - ESC'!$W$128,0,'UE - ESC'!$T140/'UE - ESC'!$W$128)),'UE - AER'!J140),0) -> 0 | K113: =IFERROR(IF($B113<Inputs!$C$7,IF(K$100<Inputs!$C$7,'UE - ESC'!K140,IF(K$100>=Inputs!$C$7+'UE - ESC'!$W$128,0,'UE - ESC'!$T140/'UE - ESC'!$W$128)),'UE - AER'!K140),0) -> 0 | L113: =IFERROR(IF($B113<Inputs!$C$7,IF(L$100<Inputs!$C$7,'UE - ESC'!L140,IF(L$100>=Inputs!$C$7+'UE - ESC'!$W$128,0,'UE - ESC'!$T140/'UE - ESC'!$W$128)),'UE - AER'!L140),0) -> 0 | M113: =IFERROR(IF($B113<Inputs!$C$7,IF(M$100<Inputs!$C$7,'UE - ESC'!M140,IF(M$100>=Inputs!$C$7+'UE - ESC'!$W$128,0,'UE - ESC'!$T140/'UE - ESC'!$W$128)),'UE - AER'!M140),0) -> 0 | N113: =IFERROR(IF($B113<Inputs!$C$7,IF(N$100<Inputs!$C$7,'UE - ESC'!N140,IF(N$100>=Inputs!$C$7+'UE - ESC'!$W$128,0,'UE - ESC'!$T140/'UE - ESC'!$W$128)),'UE - AER'!N140),0) -> 0 | O113: =IFERROR(IF($B113<Inputs!$C$7,IF(O$100<Inputs!$C$7,'UE - ESC'!O140,IF(O$100>=Inputs!$C$7+'UE - ESC'!$W$128,0,'UE - ESC'!$T140/'UE - ESC'!$W$128)),'UE - AER'!O140),0) -> 0
B114: TOTAL | D114: =SUM(D101:D113) -> 0 | E114: 0 | F114: 179711.6992 | G114: 391369.5303 | H114: 502230.726 | I114: 660070.5992 | J114: 755720.1472 | K114: 729502.8748 | L114: 750563.8266 | M114: 750563.8266 | N114: 750563.8266 | O114: 21060.95176
B117: ="Depreciation - "&Inputs!C4&" - "&INDEX(Inputs!B38:B45,A119,)&" - "&IF(Inputs!C5=Inputs!C17,Inputs!C17,Inputs!C18) -> Depreciation - United Energy - Other - 2015$
A119: 7 | B119: =INDEX(Inputs!$B$38:$B$45,$A$119,) -> Other | C119: Life | D119: 2009 | E119: 2010 | F119: 2011 | G119: 2012 | H119: 2013 | I119: 2014 | J119: 2015 | K119: 2016 | L119: 2017 | M119: 2018 | N119: 2019 | O119: 2020
B120: =B101 -> 2009 | C120: =INDEX(Inputs!$C$38:$C$45,$A$119,) -> 7 | D120: =IFERROR(IF($B120<Inputs!$C$7,IF(D$119<Inputs!$C$7,'UE - ESC'!D147,IF(D$119>=Inputs!$C$7+'UE - ESC'!$W$147,0,'UE - ESC'!$T147/'UE - ESC'!$W$147)),'UE - AER'!D147),0) -> 8297.059861 | E120: =IFERROR(IF($B120<Inputs!$C$7,IF(E$119<Inputs!$C$7,'UE - ESC'!E147,IF(E$119>=Inputs!$C$7+'UE - ESC'!$W$147,0,'UE - ESC'!$T147/'UE - ESC'!$W$147)),'UE - AER'!E147),0) -> 16594.11972 | F120: =IFERROR(IF($B120<Inputs!$C$7,IF(F$119<Inputs!$C$7,'UE - ESC'!F147,IF(F$119>=Inputs!$C$7+'UE - ESC'!$W$147,0,'UE - ESC'!$T147/'UE - ESC'!$W$147)),'UE - AER'!F147),0) -> 16594.11972 | G120: =IFERROR(IF($B120<Inputs!$C$7,IF(G$119<Inputs!$C$7,'UE - ESC'!G147,IF(G$119>=Inputs!$C$7+'UE - ESC'!$W$147,0,'UE - ESC'!$T147/'UE - ESC'!$W$147)),'UE - AER'!G147),0) -> 16594.11972 | H120: =IFERROR(IF($B120<Inputs!$C$7,IF(H$119<Inputs!$C$7,'UE - ESC'!H147,IF(H$119>=Inputs!$C$7+'UE - ESC'!$W$147,0,'UE - ESC'!$T147/'UE - ESC'!$W$147)),'UE - AER'!H147),0) -> 16594.11972 | I120: =IFERROR(IF($B120<Inputs!$C$7,IF(I$119<Inputs!$C$7,'UE - ESC'!I147,IF(I$119>=Inputs!$C$7+'UE - ESC'!$W$147,0,'UE - ESC'!$T147/'UE - ESC'!$W$147)),'UE - AER'!I147),0) -> 16594.11972 | J120: =IFERROR(IF($B120<Inputs!$C$7,IF(J$119<Inputs!$C$7,'UE - ESC'!J147,IF(J$119>=Inputs!$C$7+'UE - ESC'!$W$147,0,'UE - ESC'!$T147/'UE - ESC'!$W$147)),'UE - AER'!J147),0) -> 16594.11972 | K120: =IFERROR(IF($B120<Inputs!$C$7,IF(K$119<Inputs!$C$7,'UE - ESC'!K147,IF(K$119>=Inputs!$C$7+'UE - ESC'!$W$147,0,'UE - ESC'!$T147/'UE - ESC'!$W$147)),'UE - AER'!K147),0) -> 2074.264965 | L120: =IFERROR(IF($B120<Inputs!$C$7,IF(L$119<Inputs!$C$7,'UE - ESC'!L147,IF(L$119>=Inputs!$C$7+'UE - ESC'!$W$147,0,'UE - ESC'!$T147/'UE - ESC'!$W$147)),'UE - AER'!L147),0) -> 2074.264965 | M120: =IFERROR(IF($B120<Inputs!$C$7,IF(M$119<Inputs!$C$7,'UE - ESC'!M147,IF(M$119>=Inputs!$C$7+'UE - ESC'!$W$147,0,'UE - ESC'!$T147/'UE - ESC'!$W$147)),'UE - AER'!M147),0) -> 2074.264965 | N120: =IFERROR(IF($B120<Inputs!$C$7,IF(N$119<Inputs!$C$7,'UE - ESC'!N147,IF(N$119>=Inputs!$C$7+'UE - ESC'!$W$147,0,'UE - ESC'!$T147/'UE - ESC'!$W$147)),'UE - AER'!N147),0) -> 2074.264965 | O120: =IFERROR(IF($B120<Inputs!$C$7,IF(O$119<Inputs!$C$7,'UE - ESC'!O147,IF(O$119>=Inputs!$C$7+'UE - ESC'!$W$147,0,'UE - ESC'!$T147/'UE - ESC'!$W$147)),'UE - AER'!O147),0) -> 0
B121: =B102 -> 2010 | C121: =C120 -> 7 | D121: =IFERROR(IF($B121<Inputs!$C$7,IF(D$119<Inputs!$C$7,'UE - ESC'!D148,IF(D$119>=Inputs!$C$7+'UE - ESC'!$W$147,0,'UE - ESC'!$T148/'UE - ESC'!$W$147)),'UE - AER'!D148),0) -> 0 | E121: =IFERROR(IF($B121<Inputs!$C$7,IF(E$119<Inputs!$C$7,'UE - ESC'!E148,IF(E$119>=Inputs!$C$7+'UE - ESC'!$W$147,0,'UE - ESC'!$T148/'UE - ESC'!$W$147)),'UE - AER'!E148),0) -> 29798.88458 | F121: =IFERROR(IF($B121<Inputs!$C$7,IF(F$119<Inputs!$C$7,'UE - ESC'!F148,IF(F$119>=Inputs!$C$7+'UE - ESC'!$W$147,0,'UE - ESC'!$T148/'UE - ESC'!$W$147)),'UE - AER'!F148),0) -> 59597.76915 | G121: =IFERROR(IF($B121<Inputs!$C$7,IF(G$119<Inputs!$C$7,'UE - ESC'!G148,IF(G$119>=Inputs!$C$7+'UE - ESC'!$W$147,0,'UE - ESC'!$T148/'UE - ESC'!$W$147)),'UE - AER'!G148),0) -> 59597.76915 | H121: =IFERROR(IF($B121<Inputs!$C$7,IF(H$119<Inputs!$C$7,'UE - ESC'!H148,IF(H$119>=Inputs!$C$7+'UE - ESC'!$W$147,0,'UE - ESC'!$T148/'UE - ESC'!$W$147)),'UE - AER'!H148),0) -> 59597.76915 | I121: =IFERROR(IF($B121<Inputs!$C$7,IF(I$119<Inputs!$C$7,'UE - ESC'!I148,IF(I$119>=Inputs!$C$7+'UE - ESC'!$W$147,0,'UE - ESC'!$T148/'UE - ESC'!$W$147)),'UE - AER'!I148),0) -> 59597.76915 | J121: =IFERROR(IF($B121<Inputs!$C$7,IF(J$119<Inputs!$C$7,'UE - ESC'!J148,IF(J$119>=Inputs!$C$7+'UE - ESC'!$W$147,0,'UE - ESC'!$T148/'UE - ESC'!$W$147)),'UE - AER'!J148),0) -> 59597.76915 | K121: =IFERROR(IF($B121<Inputs!$C$7,IF(K$119<Inputs!$C$7,'UE - ESC'!K148,IF(K$119>=Inputs!$C$7+'UE - ESC'!$W$147,0,'UE - ESC'!$T148/'UE - ESC'!$W$147)),'UE - AER'!K148),0) -> 22349.16343 | L121: =IFERROR(IF($B121<Inputs!$C$7,IF(L$119<Inputs!$C$7,'UE - ESC'!L148,IF(L$119>=Inputs!$C$7+'UE - ESC'!$W$147,0,'UE - ESC'!$T148/'UE - ESC'!$W$147)),'UE - AER'!L148),0) -> 22349.16343 | M121: =IFERROR(IF($B121<Inputs!$C$7,IF(M$119<Inputs!$C$7,'UE - ESC'!M148,IF(M$119>=Inputs!$C$7+'UE - ESC'!$W$147,0,'UE - ESC'!$T148/'UE - ESC'!$W$147)),'UE - AER'!M148),0) -> 22349.16343 | N121: =IFERROR(IF($B121<Inputs!$C$7,IF(N$119<Inputs!$C$7,'UE - ESC'!N148,IF(N$119>=Inputs!$C$7+'UE - ESC'!$W$147,0,'UE - ESC'!$T148/'UE - ESC'!$W$147)),'UE - AER'!N148),0) -> 22349.16343 | O121: =IFERROR(IF($B121<Inputs!$C$7,IF(O$119<Inputs!$C$7,'UE - ESC'!O148,IF(O$119>=Inputs!$C$7+'UE - ESC'!$W$147,0,'UE - ESC'!$T148/'UE - ESC'!$W$147)),'UE - AER'!O148),0) -> 0
B122: 2011 | C122: =C121 -> 7 | D122: =IFERROR(IF($B122<Inputs!$C$7,IF(D$119<Inputs!$C$7,'UE - ESC'!D149,IF(D$119>=Inputs!$C$7+'UE - ESC'!$W$147,0,'UE - ESC'!$T149/'UE - ESC'!$W$147)),'UE - AER'!D149),0) -> 0 | E122: =IFERROR(IF($B122<Inputs!$C$7,IF(E$119<Inputs!$C$7,'UE - ESC'!E149,IF(E$119>=Inputs!$C$7+'UE - ESC'!$W$147,0,'UE - ESC'!$T149/'UE - ESC'!$W$147)),'UE - AER'!E149),0) -> 0 | F122: =IFERROR(IF($B122<Inputs!$C$7,IF(F$119<Inputs!$C$7,'UE - ESC'!F149,IF(F$119>=Inputs!$C$7+'UE - ESC'!$W$147,0,'UE - ESC'!$T149/'UE - ESC'!$W$147)),'UE - AER'!F149),0) -> 833023.6561 | G122: =IFERROR(IF($B122<Inputs!$C$7,IF(G$119<Inputs!$C$7,'UE - ESC'!G149,IF(G$119>=Inputs!$C$7+'UE - ESC'!$W$147,0,'UE - ESC'!$T149/'UE - ESC'!$W$147)),'UE - AER'!G149),0) -> 1666047.312 | H122: =IFERROR(IF($B122<Inputs!$C$7,IF(H$119<Inputs!$C$7,'UE - ESC'!H149,IF(H$119>=Inputs!$C$7+'UE - ESC'!$W$147,0,'UE - ESC'!$T149/'UE - ESC'!$W$147)),'UE - AER'!H149),0) -> 1666047.312 | I122: =IFERROR(IF($B122<Inputs!$C$7,IF(I$119<Inputs!$C$7,'UE - ESC'!I149,IF(I$119>=Inputs!$C$7+'UE - ESC'!$W$147,0,'UE - ESC'!$T149/'UE - ESC'!$W$147)),'UE - AER'!I149),0) -> 1666047.312 | J122: =IFERROR(IF($B122<Inputs!$C$7,IF(J$119<Inputs!$C$7,'UE - ESC'!J149,IF(J$119>=Inputs!$C$7+'UE - ESC'!$W$147,0,'UE - ESC'!$T149/'UE - ESC'!$W$147)),'UE - AER'!J149),0) -> 1666047.312 | K122: =IFERROR(IF($B122<Inputs!$C$7,IF(K$119<Inputs!$C$7,'UE - ESC'!K149,IF(K$119>=Inputs!$C$7+'UE - ESC'!$W$147,0,'UE - ESC'!$T149/'UE - ESC'!$W$147)),'UE - AER'!K149),0) -> 1041279.57 | L122: =IFERROR(IF($B122<Inputs!$C$7,IF(L$119<Inputs!$C$7,'UE - ESC'!L149,IF(L$119>=Inputs!$C$7+'UE - ESC'!$W$147,0,'UE - ESC'!$T149/'UE - ESC'!$W$147)),'UE - AER'!L149),0) -> 1041279.57 | M122: =IFERROR(IF($B122<Inputs!$C$7,IF(M$119<Inputs!$C$7,'UE - ESC'!M149,IF(M$119>=Inputs!$C$7+'UE - ESC'!$W$147,0,'UE - ESC'!$T149/'UE - ESC'!$W$147)),'UE - AER'!M149),0) -> 1041279.57 | N122: =IFERROR(IF($B122<Inputs!$C$7,IF(N$119<Inputs!$C$7,'UE - ESC'!N149,IF(N$119>=Inputs!$C$7+'UE - ESC'!$W$147,0,'UE - ESC'!$T149/'UE - ESC'!$W$147)),'UE - AER'!N149),0) -> 1041279.57 | O122: =IFERROR(IF($B122<Inputs!$C$7,IF(O$119<Inputs!$C$7,'UE - ESC'!O149,IF(O$119>=Inputs!$C$7+'UE - ESC'!$W$147,0,'UE - ESC'!$T149/'UE - ESC'!$W$147)),'UE - AER'!O149),0) -> 0
B123: 2012 | C123: 7 | D123: =IFERROR(IF($B123<Inputs!$C$7,IF(D$119<Inputs!$C$7,'UE - ESC'!D150,IF(D$119>=Inputs!$C$7+'UE - ESC'!$W$147,0,'UE - ESC'!$T150/'UE - ESC'!$W$147)),'UE - AER'!D150),0) -> 0 | E123: =IFERROR(IF($B123<Inputs!$C$7,IF(E$119<Inputs!$C$7,'UE - ESC'!E150,IF(E$119>=Inputs!$C$7+'UE - ESC'!$W$147,0,'UE - ESC'!$T150/'UE - ESC'!$W$147)),'UE - AER'!E150),0) -> 0 | F123: =IFERROR(IF($B123<Inputs!$C$7,IF(F$119<Inputs!$C$7,'UE - ESC'!F150,IF(F$119>=Inputs!$C$7+'UE - ESC'!$W$147,0,'UE - ESC'!$T150/'UE - ESC'!$W$147)),'UE - AER'!F150),0) -> 0 | G123: =IFERROR(IF($B123<Inputs!$C$7,IF(G$119<Inputs!$C$7,'UE - ESC'!G150,IF(G$119>=Inputs!$C$7+'UE - ESC'!$W$147,0,'UE - ESC'!$T150/'UE - ESC'!$W$147)),'UE - AER'!G150),0) -> 206466.5846 | H123: =IFERROR(IF($B123<Inputs!$C$7,IF(H$119<Inputs!$C$7,'UE - ESC'!H150,IF(H$119>=Inputs!$C$7+'UE - ESC'!$W$147,0,'UE - ESC'!$T150/'UE - ESC'!$W$147)),'UE - AER'!H150),0) -> 412933.1691 | I123: =IFERROR(IF($B123<Inputs!$C$7,IF(I$119<Inputs!$C$7,'UE - ESC'!I150,IF(I$119>=Inputs!$C$7+'UE - ESC'!$W$147,0,'UE - ESC'!$T150/'UE - ESC'!$W$147)),'UE - AER'!I150),0) -> 412933.1691 | J123: =IFERROR(IF($B123<Inputs!$C$7,IF(J$119<Inputs!$C$7,'UE - ESC'!J150,IF(J$119>=Inputs!$C$7+'UE - ESC'!$W$147,0,'UE - ESC'!$T150/'UE - ESC'!$W$147)),'UE - AER'!J150),0) -> 412933.1691 | K123: =IFERROR(IF($B123<Inputs!$C$7,IF(K$119<Inputs!$C$7,'UE - ESC'!K150,IF(K$119>=Inputs!$C$7+'UE - ESC'!$W$147,0,'UE - ESC'!$T150/'UE - ESC'!$W$147)),'UE - AER'!K150),0) -> 361316.523 | L123: =IFERROR(IF($B123<Inputs!$C$7,IF(L$119<Inputs!$C$7,'UE - ESC'!L150,IF(L$119>=Inputs!$C$7+'UE - ESC'!$W$147,0,'UE - ESC'!$T150/'UE - ESC'!$W$147)),'UE - AER'!L150),0) -> 361316.523 | M123: =IFERROR(IF($B123<Inputs!$C$7,IF(M$119<Inputs!$C$7,'UE - ESC'!M150,IF(M$119>=Inputs!$C$7+'UE - ESC'!$W$147,0,'UE - ESC'!$T150/'UE - ESC'!$W$147)),'UE - AER'!M150),0) -> 361316.523 | N123: =IFERROR(IF($B123<Inputs!$C$7,IF(N$119<Inputs!$C$7,'UE - ESC'!N150,IF(N$119>=Inputs!$C$7+'UE - ESC'!$W$147,0,'UE - ESC'!$T150/'UE - ESC'!$W$147)),'UE - AER'!N150),0) -> 361316.523 | O123: =IFERROR(IF($B123<Inputs!$C$7,IF(O$119<Inputs!$C$7,'UE - ESC'!O150,IF(O$119>=Inputs!$C$7+'UE - ESC'!$W$147,0,'UE - ESC'!$T150/'UE - ESC'!$W$147)),'UE - AER'!O150),0) -> 0
B124: 2013 | C124: 7 | D124: =IFERROR(IF($B124<Inputs!$C$7,IF(D$119<Inputs!$C$7,'UE - ESC'!D151,IF(D$119>=Inputs!$C$7+'UE - ESC'!$W$147,0,'UE - ESC'!$T151/'UE - ESC'!$W$147)),'UE - AER'!D151),0) -> 0 | E124: =IFERROR(IF($B124<Inputs!$C$7,IF(E$119<Inputs!$C$7,'UE - ESC'!E151,IF(E$119>=Inputs!$C$7+'UE - ESC'!$W$147,0,'UE - ESC'!$T151/'UE - ESC'!$W$147)),'UE - AER'!E151),0) -> 0 | F124: =IFERROR(IF($B124<Inputs!$C$7,IF(F$119<Inputs!$C$7,'UE - ESC'!F151,IF(F$119>=Inputs!$C$7+'UE - ESC'!$W$147,0,'UE - ESC'!$T151/'UE - ESC'!$W$147)),'UE - AER'!F151),0) -> 0 | G124: =IFERROR(IF($B124<Inputs!$C$7,IF(G$119<Inputs!$C$7,'UE - ESC'!G151,IF(G$119>=Inputs!$C$7+'UE - ESC'!$W$147,0,'UE - ESC'!$T151/'UE - ESC'!$W$147)),'UE - AER'!G151),0) -> 0 | H124: =IFERROR(IF($B124<Inputs!$C$7,IF(H$119<Inputs!$C$7,'UE - ESC'!H151,IF(H$119>=Inputs!$C$7+'UE - ESC'!$W$147,0,'UE - ESC'!$T151/'UE - ESC'!$W$147)),'UE - AER'!H151),0) -> 533556.5686 | I124: =IFERROR(IF($B124<Inputs!$C$7,IF(I$119<Inputs!$C$7,'UE - ESC'!I151,IF(I$119>=Inputs!$C$7+'UE - ESC'!$W$147,0,'UE - ESC'!$T151/'UE - ESC'!$W$147)),'UE - AER'!I151),0) -> 1067113.137 | J124: =IFERROR(IF($B124<Inputs!$C$7,IF(J$119<Inputs!$C$7,'UE - ESC'!J151,IF(J$119>=Inputs!$C$7+'UE - ESC'!$W$147,0,'UE - ESC'!$T151/'UE - ESC'!$W$147)),'UE - AER'!J151),0) -> 1067113.137 | K124: =IFERROR(IF($B124<Inputs!$C$7,IF(K$119<Inputs!$C$7,'UE - ESC'!K151,IF(K$119>=Inputs!$C$7+'UE - ESC'!$W$147,0,'UE - ESC'!$T151/'UE - ESC'!$W$147)),'UE - AER'!K151),0) -> 1200502.279 | L124: =IFERROR(IF($B124<Inputs!$C$7,IF(L$119<Inputs!$C$7,'UE - ESC'!L151,IF(L$119>=Inputs!$C$7+'UE - ESC'!$W$147,0,'UE - ESC'!$T151/'UE - ESC'!$W$147)),'UE - AER'!L151),0) -> 1200502.279 | M124: =IFERROR(IF($B124<Inputs!$C$7,IF(M$119<Inputs!$C$7,'UE - ESC'!M151,IF(M$119>=Inputs!$C$7+'UE - ESC'!$W$147,0,'UE - ESC'!$T151/'UE - ESC'!$W$147)),'UE - AER'!M151),0) -> 1200502.279 | N124: =IFERROR(IF($B124<Inputs!$C$7,IF(N$119<Inputs!$C$7,'UE - ESC'!N151,IF(N$119>=Inputs!$C$7+'UE - ESC'!$W$147,0,'UE - ESC'!$T151/'UE - ESC'!$W$147)),'UE - AER'!N151),0) -> 1200502.279 | O124: =IFERROR(IF($B124<Inputs!$C$7,IF(O$119<Inputs!$C$7,'UE - ESC'!O151,IF(O$119>=Inputs!$C$7+'UE - ESC'!$W$147,0,'UE - ESC'!$T151/'UE - ESC'!$W$147)),'UE - AER'!O151),0) -> 0
B125: 2014 | C125: 7 | D125: =IFERROR(IF($B125<Inputs!$C$7,IF(D$119<Inputs!$C$7,'UE - ESC'!D152,IF(D$119>=Inputs!$C$7+'UE - ESC'!$W$147,0,'UE - ESC'!$T152/'UE - ESC'!$W$147)),'UE - AER'!D152),0) -> 0 | E125: =IFERROR(IF($B125<Inputs!$C$7,IF(E$119<Inputs!$C$7,'UE - ESC'!E152,IF(E$119>=Inputs!$C$7+'UE - ESC'!$W$147,0,'UE - ESC'!$T152/'UE - ESC'!$W$147)),'UE - AER'!E152),0) -> 0 | F125: =IFERROR(IF($B125<Inputs!$C$7,IF(F$119<Inputs!$C$7,'UE - ESC'!F152,IF(F$119>=Inputs!$C$7+'UE - ESC'!$W$147,0,'UE - ESC'!$T152/'UE - ESC'!$W$147)),'UE - AER'!F152),0) -> 0 | G125: =IFERROR(IF($B125<Inputs!$C$7,IF(G$119<Inputs!$C$7,'UE - ESC'!G152,IF(G$119>=Inputs!$C$7+'UE - ESC'!$W$147,0,'UE - ESC'!$T152/'UE - ESC'!$W$147)),'UE - AER'!G152),0) -> 0 | H125: =IFERROR(IF($B125<Inputs!$C$7,IF(H$119<Inputs!$C$7,'UE - ESC'!H152,IF(H$119>=Inputs!$C$7+'UE - ESC'!$W$147,0,'UE - ESC'!$T152/'UE - ESC'!$W$147)),'UE - AER'!H152),0) -> 0 | I125: =IFERROR(IF($B125<Inputs!$C$7,IF(I$119<Inputs!$C$7,'UE - ESC'!I152,IF(I$119>=Inputs!$C$7+'UE - ESC'!$W$147,0,'UE - ESC'!$T152/'UE - ESC'!$W$147)),'UE - AER'!I152),0) -> 0 | J125: =IFERROR(IF($B125<Inputs!$C$7,IF(J$119<Inputs!$C$7,'UE - ESC'!J152,IF(J$119>=Inputs!$C$7+'UE - ESC'!$W$147,0,'UE - ESC'!$T152/'UE - ESC'!$W$147)),'UE - AER'!J152),0) -> 0 | K125: =IFERROR(IF($B125<Inputs!$C$7,IF(K$119<Inputs!$C$7,'UE - ESC'!K152,IF(K$119>=Inputs!$C$7+'UE - ESC'!$W$147,0,'UE - ESC'!$T152/'UE - ESC'!$W$147)),'UE - AER'!K152),0) -> 0 | L125: =IFERROR(IF($B125<Inputs!$C$7,IF(L$119<Inputs!$C$7,'UE - ESC'!L152,IF(L$119>=Inputs!$C$7+'UE - ESC'!$W$147,0,'UE - ESC'!$T152/'UE - ESC'!$W$147)),'UE - AER'!L152),0) -> 0 | M125: =IFERROR(IF($B125<Inputs!$C$7,IF(M$119<Inputs!$C$7,'UE - ESC'!M152,IF(M$119>=Inputs!$C$7+'UE - ESC'!$W$147,0,'UE - ESC'!$T152/'UE - ESC'!$W$147)),'UE - AER'!M152),0) -> 0 | N125: =IFERROR(IF($B125<Inputs!$C$7,IF(N$119<Inputs!$C$7,'UE - ESC'!N152,IF(N$119>=Inputs!$C$7+'UE - ESC'!$W$147,0,'UE - ESC'!$T152/'UE - ESC'!$W$147)),'UE - AER'!N152),0) -> 0 | O125: =IFERROR(IF($B125<Inputs!$C$7,IF(O$119<Inputs!$C$7,'UE - ESC'!O152,IF(O$119>=Inputs!$C$7+'UE - ESC'!$W$147,0,'UE - ESC'!$T152/'UE - ESC'!$W$147)),'UE - AER'!O152),0) -> 0
B126: 2015 | C126: 7 | D126: =IFERROR(IF($B126<Inputs!$C$7,IF(D$119<Inputs!$C$7,'UE - ESC'!D153,IF(D$119>=Inputs!$C$7+'UE - ESC'!$W$147,0,'UE - ESC'!$T153/'UE - ESC'!$W$147)),'UE - AER'!D153),0) -> 0 | E126: =IFERROR(IF($B126<Inputs!$C$7,IF(E$119<Inputs!$C$7,'UE - ESC'!E153,IF(E$119>=Inputs!$C$7+'UE - ESC'!$W$147,0,'UE - ESC'!$T153/'UE - ESC'!$W$147)),'UE - AER'!E153),0) -> 0 | F126: =IFERROR(IF($B126<Inputs!$C$7,IF(F$119<Inputs!$C$7,'UE - ESC'!F153,IF(F$119>=Inputs!$C$7+'UE - ESC'!$W$147,0,'UE - ESC'!$T153/'UE - ESC'!$W$147)),'UE - AER'!F153),0) -> 0 | G126: =IFERROR(IF($B126<Inputs!$C$7,IF(G$119<Inputs!$C$7,'UE - ESC'!G153,IF(G$119>=Inputs!$C$7+'UE - ESC'!$W$147,0,'UE - ESC'!$T153/'UE - ESC'!$W$147)),'UE - AER'!G153),0) -> 0 | H126: =IFERROR(IF($B126<Inputs!$C$7,IF(H$119<Inputs!$C$7,'UE - ESC'!H153,IF(H$119>=Inputs!$C$7+'UE - ESC'!$W$147,0,'UE - ESC'!$T153/'UE - ESC'!$W$147)),'UE - AER'!H153),0) -> 0 | I126: =IFERROR(IF($B126<Inputs!$C$7,IF(I$119<Inputs!$C$7,'UE - ESC'!I153,IF(I$119>=Inputs!$C$7+'UE - ESC'!$W$147,0,'UE - ESC'!$T153/'UE - ESC'!$W$147)),'UE - AER'!I153),0) -> 0 | J126: =IFERROR(IF($B126<Inputs!$C$7,IF(J$119<Inputs!$C$7,'UE - ESC'!J153,IF(J$119>=Inputs!$C$7+'UE - ESC'!$W$147,0,'UE - ESC'!$T153/'UE - ESC'!$W$147)),'UE - AER'!J153),0) -> 164145.9083 | K126: =IFERROR(IF($B126<Inputs!$C$7,IF(K$119<Inputs!$C$7,'UE - ESC'!K153,IF(K$119>=Inputs!$C$7+'UE - ESC'!$W$147,0,'UE - ESC'!$T153/'UE - ESC'!$W$147)),'UE - AER'!K153),0) -> 533474.202 | L126: =IFERROR(IF($B126<Inputs!$C$7,IF(L$119<Inputs!$C$7,'UE - ESC'!L153,IF(L$119>=Inputs!$C$7+'UE - ESC'!$W$147,0,'UE - ESC'!$T153/'UE - ESC'!$W$147)),'UE - AER'!L153),0) -> 533474.202 | M126: =IFERROR(IF($B126<Inputs!$C$7,IF(M$119<Inputs!$C$7,'UE - ESC'!M153,IF(M$119>=Inputs!$C$7+'UE - ESC'!$W$147,0,'UE - ESC'!$T153/'UE - ESC'!$W$147)),'UE - AER'!M153),0) -> 533474.202 | N126: =IFERROR(IF($B126<Inputs!$C$7,IF(N$119<Inputs!$C$7,'UE - ESC'!N153,IF(N$119>=Inputs!$C$7+'UE - ESC'!$W$147,0,'UE - ESC'!$T153/'UE - ESC'!$W$147)),'UE - AER'!N153),0) -> 533474.202 | O126: =IFERROR(IF($B126<Inputs!$C$7,IF(O$119<Inputs!$C$7,'UE - ESC'!O153,IF(O$119>=Inputs!$C$7+'UE - ESC'!$W$147,0,'UE - ESC'!$T153/'UE - ESC'!$W$147)),'UE - AER'!O153),0) -> 0
B127: 2016 | C127: 7 | D127: =IFERROR(IF($B127<Inputs!$C$7,IF(D$119<Inputs!$C$7,'UE - ESC'!D154,IF(D$119>=Inputs!$C$7+'UE - ESC'!$W$147,0,'UE - ESC'!$T154/'UE - ESC'!$W$147)),'UE - AER'!D154),0) -> 0 | E127: =IFERROR(IF($B127<Inputs!$C$7,IF(E$119<Inputs!$C$7,'UE - ESC'!E154,IF(E$119>=Inputs!$C$7+'UE - ESC'!$W$147,0,'UE - ESC'!$T154/'UE - ESC'!$W$147)),'UE - AER'!E154),0) -> 0 | F127: =IFERROR(IF($B127<Inputs!$C$7,IF(F$119<Inputs!$C$7,'UE - ESC'!F154,IF(F$119>=Inputs!$C$7+'UE - ESC'!$W$147,0,'UE - ESC'!$T154/'UE - ESC'!$W$147)),'UE - AER'!F154),0) -> 0 | G127: =IFERROR(IF($B127<Inputs!$C$7,IF(G$119<Inputs!$C$7,'UE - ESC'!G154,IF(G$119>=Inputs!$C$7+'UE - ESC'!$W$147,0,'UE - ESC'!$T154/'UE - ESC'!$W$147)),'UE - AER'!G154),0) -> 0 | H127: =IFERROR(IF($B127<Inputs!$C$7,IF(H$119<Inputs!$C$7,'UE - ESC'!H154,IF(H$119>=Inputs!$C$7+'UE - ESC'!$W$147,0,'UE - ESC'!$T154/'UE - ESC'!$W$147)),'UE - AER'!H154),0) -> 0 | I127: =IFERROR(IF($B127<Inputs!$C$7,IF(I$119<Inputs!$C$7,'UE - ESC'!I154,IF(I$119>=Inputs!$C$7+'UE - ESC'!$W$147,0,'UE - ESC'!$T154/'UE - ESC'!$W$147)),'UE - AER'!I154),0) -> 0 | J127: =IFERROR(IF($B127<Inputs!$C$7,IF(J$119<Inputs!$C$7,'UE - ESC'!J154,IF(J$119>=Inputs!$C$7+'UE - ESC'!$W$147,0,'UE - ESC'!$T154/'UE - ESC'!$W$147)),'UE - AER'!J154),0) -> 0 | K127: =IFERROR(IF($B127<Inputs!$C$7,IF(K$119<Inputs!$C$7,'UE - ESC'!K154,IF(K$119>=Inputs!$C$7+'UE - ESC'!$W$147,0,'UE - ESC'!$T154/'UE - ESC'!$W$147)),'UE - AER'!K154),0) -> 0 | L127: =IFERROR(IF($B127<Inputs!$C$7,IF(L$119<Inputs!$C$7,'UE - ESC'!L154,IF(L$119>=Inputs!$C$7+'UE - ESC'!$W$147,0,'UE - ESC'!$T154/'UE - ESC'!$W$147)),'UE - AER'!L154),0) -> 38461.66567 | M127: =IFERROR(IF($B127<Inputs!$C$7,IF(M$119<Inputs!$C$7,'UE - ESC'!M154,IF(M$119>=Inputs!$C$7+'UE - ESC'!$W$147,0,'UE - ESC'!$T154/'UE - ESC'!$W$147)),'UE - AER'!M154),0) -> 38461.66567 | N127: =IFERROR(IF($B127<Inputs!$C$7,IF(N$119<Inputs!$C$7,'UE - ESC'!N154,IF(N$119>=Inputs!$C$7+'UE - ESC'!$W$147,0,'UE - ESC'!$T154/'UE - ESC'!$W$147)),'UE - AER'!N154),0) -> 38461.66567 | O127: =IFERROR(IF($B127<Inputs!$C$7,IF(O$119<Inputs!$C$7,'UE - ESC'!O154,IF(O$119>=Inputs!$C$7+'UE - ESC'!$W$147,0,'UE - ESC'!$T154/'UE - ESC'!$W$147)),'UE - AER'!O154),0) -> 38461.66567
B128: 2017 | C128: 7 | D128: =IFERROR(IF($B128<Inputs!$C$7,IF(D$119<Inputs!$C$7,'UE - ESC'!D155,IF(D$119>=Inputs!$C$7+'UE - ESC'!$W$147,0,'UE - ESC'!$T155/'UE - ESC'!$W$147)),'UE - AER'!D155),0) -> 0 | E128: =IFERROR(IF($B128<Inputs!$C$7,IF(E$119<Inputs!$C$7,'UE - ESC'!E155,IF(E$119>=Inputs!$C$7+'UE - ESC'!$W$147,0,'UE - ESC'!$T155/'UE - ESC'!$W$147)),'UE - AER'!E155),0) -> 0 | F128: =IFERROR(IF($B128<Inputs!$C$7,IF(F$119<Inputs!$C$7,'UE - ESC'!F155,IF(F$119>=Inputs!$C$7+'UE - ESC'!$W$147,0,'UE - ESC'!$T155/'UE - ESC'!$W$147)),'UE - AER'!F155),0) -> 0 | G128: =IFERROR(IF($B128<Inputs!$C$7,IF(G$119<Inputs!$C$7,'UE - ESC'!G155,IF(G$119>=Inputs!$C$7+'UE - ESC'!$W$147,0,'UE - ESC'!$T155/'UE - ESC'!$W$147)),'UE - AER'!G155),0) -> 0 | H128: =IFERROR(IF($B128<Inputs!$C$7,IF(H$119<Inputs!$C$7,'UE - ESC'!H155,IF(H$119>=Inputs!$C$7+'UE - ESC'!$W$147,0,'UE - ESC'!$T155/'UE - ESC'!$W$147)),'UE - AER'!H155),0) -> 0 | I128: =IFERROR(IF($B128<Inputs!$C$7,IF(I$119<Inputs!$C$7,'UE - ESC'!I155,IF(I$119>=Inputs!$C$7+'UE - ESC'!$W$147,0,'UE - ESC'!$T155/'UE - ESC'!$W$147)),'UE - AER'!I155),0) -> 0 | J128: =IFERROR(IF($B128<Inputs!$C$7,IF(J$119<Inputs!$C$7,'UE - ESC'!J155,IF(J$119>=Inputs!$C$7+'UE - ESC'!$W$147,0,'UE - ESC'!$T155/'UE - ESC'!$W$147)),'UE - AER'!J155),0) -> 0 | K128: =IFERROR(IF($B128<Inputs!$C$7,IF(K$119<Inputs!$C$7,'UE - ESC'!K155,IF(K$119>=Inputs!$C$7+'UE - ESC'!$W$147,0,'UE - ESC'!$T155/'UE - ESC'!$W$147)),'UE - AER'!K155),0) -> 0 | L128: =IFERROR(IF($B128<Inputs!$C$7,IF(L$119<Inputs!$C$7,'UE - ESC'!L155,IF(L$119>=Inputs!$C$7+'UE - ESC'!$W$147,0,'UE - ESC'!$T155/'UE - ESC'!$W$147)),'UE - AER'!L155),0) -> 0 | M128: =IFERROR(IF($B128<Inputs!$C$7,IF(M$119<Inputs!$C$7,'UE - ESC'!M155,IF(M$119>=Inputs!$C$7+'UE - ESC'!$W$147,0,'UE - ESC'!$T155/'UE - ESC'!$W$147)),'UE - AER'!M155),0) -> 8639.776802 | N128: =IFERROR(IF($B128<Inputs!$C$7,IF(N$119<Inputs!$C$7,'UE - ESC'!N155,IF(N$119>=Inputs!$C$7+'UE - ESC'!$W$147,0,'UE - ESC'!$T155/'UE - ESC'!$W$147)),'UE - AER'!N155),0) -> 8639.776802 | O128: =IFERROR(IF($B128<Inputs!$C$7,IF(O$119<Inputs!$C$7,'UE - ESC'!O155,IF(O$119>=Inputs!$C$7+'UE - ESC'!$W$147,0,'UE - ESC'!$T155/'UE - ESC'!$W$147)),'UE - AER'!O155),0) -> 8639.776802
B129: 2018 | C129: 7 | D129: =IFERROR(IF($B129<Inputs!$C$7,IF(D$119<Inputs!$C$7,'UE - ESC'!D156,IF(D$119>=Inputs!$C$7+'UE - ESC'!$W$147,0,'UE - ESC'!$T156/'UE - ESC'!$W$147)),'UE - AER'!D156),0) -> 0 | E129: =IFERROR(IF($B129<Inputs!$C$7,IF(E$119<Inputs!$C$7,'UE - ESC'!E156,IF(E$119>=Inputs!$C$7+'UE - ESC'!$W$147,0,'UE - ESC'!$T156/'UE - ESC'!$W$147)),'UE - AER'!E156),0) -> 0 | F129: =IFERROR(IF($B129<Inputs!$C$7,IF(F$119<Inputs!$C$7,'UE - ESC'!F156,IF(F$119>=Inputs!$C$7+'UE - ESC'!$W$147,0,'UE - ESC'!$T156/'UE - ESC'!$W$147)),'UE - AER'!F156),0) -> 0 | G129: =IFERROR(IF($B129<Inputs!$C$7,IF(G$119<Inputs!$C$7,'UE - ESC'!G156,IF(G$119>=Inputs!$C$7+'UE - ESC'!$W$147,0,'UE - ESC'!$T156/'UE - ESC'!$W$147)),'UE - AER'!G156),0) -> 0 | H129: =IFERROR(IF($B129<Inputs!$C$7,IF(H$119<Inputs!$C$7,'UE - ESC'!H156,IF(H$119>=Inputs!$C$7+'UE - ESC'!$W$147,0,'UE - ESC'!$T156/'UE - ESC'!$W$147)),'UE - AER'!H156),0) -> 0 | I129: =IFERROR(IF($B129<Inputs!$C$7,IF(I$119<Inputs!$C$7,'UE - ESC'!I156,IF(I$119>=Inputs!$C$7+'UE - ESC'!$W$147,0,'UE - ESC'!$T156/'UE - ESC'!$W$147)),'UE - AER'!I156),0) -> 0 | J129: =IFERROR(IF($B129<Inputs!$C$7,IF(J$119<Inputs!$C$7,'UE - ESC'!J156,IF(J$119>=Inputs!$C$7+'UE - ESC'!$W$147,0,'UE - ESC'!$T156/'UE - ESC'!$W$147)),'UE - AER'!J156),0) -> 0 | K129: =IFERROR(IF($B129<Inputs!$C$7,IF(K$119<Inputs!$C$7,'UE - ESC'!K156,IF(K$119>=Inputs!$C$7+'UE - ESC'!$W$147,0,'UE - ESC'!$T156/'UE - ESC'!$W$147)),'UE - AER'!K156),0) -> 0 | L129: =IFERROR(IF($B129<Inputs!$C$7,IF(L$119<Inputs!$C$7,'UE - ESC'!L156,IF(L$119>=Inputs!$C$7+'UE - ESC'!$W$147,0,'UE - ESC'!$T156/'UE - ESC'!$W$147)),'UE - AER'!L156),0) -> 0 | M129: =IFERROR(IF($B129<Inputs!$C$7,IF(M$119<Inputs!$C$7,'UE - ESC'!M156,IF(M$119>=Inputs!$C$7+'UE - ESC'!$W$147,0,'UE - ESC'!$T156/'UE - ESC'!$W$147)),'UE - AER'!M156),0) -> 0 | N129: =IFERROR(IF($B129<Inputs!$C$7,IF(N$119<Inputs!$C$7,'UE - ESC'!N156,IF(N$119>=Inputs!$C$7+'UE - ESC'!$W$147,0,'UE - ESC'!$T156/'UE - ESC'!$W$147)),'UE - AER'!N156),0) -> 8734.012594 | O129: =IFERROR(IF($B129<Inputs!$C$7,IF(O$119<Inputs!$C$7,'UE - ESC'!O156,IF(O$119>=Inputs!$C$7+'UE - ESC'!$W$147,0,'UE - ESC'!$T156/'UE - ESC'!$W$147)),'UE - AER'!O156),0) -> 8734.012594
B130: 2019 | C130: 7 | D130: =IFERROR(IF($B130<Inputs!$C$7,IF(D$119<Inputs!$C$7,'UE - ESC'!D157,IF(D$119>=Inputs!$C$7+'UE - ESC'!$W$147,0,'UE - ESC'!$T157/'UE - ESC'!$W$147)),'UE - AER'!D157),0) -> 0 | E130: =IFERROR(IF($B130<Inputs!$C$7,IF(E$119<Inputs!$C$7,'UE - ESC'!E157,IF(E$119>=Inputs!$C$7+'UE - ESC'!$W$147,0,'UE - ESC'!$T157/'UE - ESC'!$W$147)),'UE - AER'!E157),0) -> 0 | F130: =IFERROR(IF($B130<Inputs!$C$7,IF(F$119<Inputs!$C$7,'UE - ESC'!F157,IF(F$119>=Inputs!$C$7+'UE - ESC'!$W$147,0,'UE - ESC'!$T157/'UE - ESC'!$W$147)),'UE - AER'!F157),0) -> 0 | G130: =IFERROR(IF($B130<Inputs!$C$7,IF(G$119<Inputs!$C$7,'UE - ESC'!G157,IF(G$119>=Inputs!$C$7+'UE - ESC'!$W$147,0,'UE - ESC'!$T157/'UE - ESC'!$W$147)),'UE - AER'!G157),0) -> 0 | H130: =IFERROR(IF($B130<Inputs!$C$7,IF(H$119<Inputs!$C$7,'UE - ESC'!H157,IF(H$119>=Inputs!$C$7+'UE - ESC'!$W$147,0,'UE - ESC'!$T157/'UE - ESC'!$W$147)),'UE - AER'!H157),0) -> 0 | I130: =IFERROR(IF($B130<Inputs!$C$7,IF(I$119<Inputs!$C$7,'UE - ESC'!I157,IF(I$119>=Inputs!$C$7+'UE - ESC'!$W$147,0,'UE - ESC'!$T157/'UE - ESC'!$W$147)),'UE - AER'!I157),0) -> 0 | J130: =IFERROR(IF($B130<Inputs!$C$7,IF(J$119<Inputs!$C$7,'UE - ESC'!J157,IF(J$119>=Inputs!$C$7+'UE - ESC'!$W$147,0,'UE - ESC'!$T157/'UE - ESC'!$W$147)),'UE - AER'!J157),0) -> 0 | K130: =IFERROR(IF($B130<Inputs!$C$7,IF(K$119<Inputs!$C$7,'UE - ESC'!K157,IF(K$119>=Inputs!$C$7+'UE - ESC'!$W$147,0,'UE - ESC'!$T157/'UE - ESC'!$W$147)),'UE - AER'!K157),0) -> 0 | L130: =IFERROR(IF($B130<Inputs!$C$7,IF(L$119<Inputs!$C$7,'UE - ESC'!L157,IF(L$119>=Inputs!$C$7+'UE - ESC'!$W$147,0,'UE - ESC'!$T157/'UE - ESC'!$W$147)),'UE - AER'!L157),0) -> 0 | M130: =IFERROR(IF($B130<Inputs!$C$7,IF(M$119<Inputs!$C$7,'UE - ESC'!M157,IF(M$119>=Inputs!$C$7+'UE - ESC'!$W$147,0,'UE - ESC'!$T157/'UE - ESC'!$W$147)),'UE - AER'!M157),0) -> 0 | N130: =IFERROR(IF($B130<Inputs!$C$7,IF(N$119<Inputs!$C$7,'UE - ESC'!N157,IF(N$119>=Inputs!$C$7+'UE - ESC'!$W$147,0,'UE - ESC'!$T157/'UE - ESC'!$W$147)),'UE - AER'!N157),0) -> 0 | O130: =IFERROR(IF($B130<Inputs!$C$7,IF(O$119<Inputs!$C$7,'UE - ESC'!O157,IF(O$119>=Inputs!$C$7+'UE - ESC'!$W$147,0,'UE - ESC'!$T157/'UE - ESC'!$W$147)),'UE - AER'!O157),0) -> 1947.539715
B131: 2020 | C131: 7 | D131: =IFERROR(IF($B131<Inputs!$C$7,IF(D$119<Inputs!$C$7,'UE - ESC'!D158,IF(D$119>=Inputs!$C$7+'UE - ESC'!$W$147,0,'UE - ESC'!$T158/'UE - ESC'!$W$147)),'UE - AER'!D158),0) -> 0 | E131: =IFERROR(IF($B131<Inputs!$C$7,IF(E$119<Inputs!$C$7,'UE - ESC'!E158,IF(E$119>=Inputs!$C$7+'UE - ESC'!$W$147,0,'UE - ESC'!$T158/'UE - ESC'!$W$147)),'UE - AER'!E158),0) -> 0 | F131: =IFERROR(IF($B131<Inputs!$C$7,IF(F$119<Inputs!$C$7,'UE - ESC'!F158,IF(F$119>=Inputs!$C$7+'UE - ESC'!$W$147,0,'UE - ESC'!$T158/'UE - ESC'!$W$147)),'UE - AER'!F158),0) -> 0 | G131: =IFERROR(IF($B131<Inputs!$C$7,IF(G$119<Inputs!$C$7,'UE - ESC'!G158,IF(G$119>=Inputs!$C$7+'UE - ESC'!$W$147,0,'UE - ESC'!$T158/'UE - ESC'!$W$147)),'UE - AER'!G158),0) -> 0 | H131: =IFERROR(IF($B131<Inputs!$C$7,IF(H$119<Inputs!$C$7,'UE - ESC'!H158,IF(H$119>=Inputs!$C$7+'UE - ESC'!$W$147,0,'UE - ESC'!$T158/'UE - ESC'!$W$147)),'UE - AER'!H158),0) -> 0 | I131: =IFERROR(IF($B131<Inputs!$C$7,IF(I$119<Inputs!$C$7,'UE - ESC'!I158,IF(I$119>=Inputs!$C$7+'UE - ESC'!$W$147,0,'UE - ESC'!$T158/'UE - ESC'!$W$147)),'UE - AER'!I158),0) -> 0 | J131: =IFERROR(IF($B131<Inputs!$C$7,IF(J$119<Inputs!$C$7,'UE - ESC'!J158,IF(J$119>=Inputs!$C$7+'UE - ESC'!$W$147,0,'UE - ESC'!$T158/'UE - ESC'!$W$147)),'UE - AER'!J158),0) -> 0 | K131: =IFERROR(IF($B131<Inputs!$C$7,IF(K$119<Inputs!$C$7,'UE - ESC'!K158,IF(K$119>=Inputs!$C$7+'UE - ESC'!$W$147,0,'UE - ESC'!$T158/'UE - ESC'!$W$147)),'UE - AER'!K158),0) -> 0 | L131: =IFERROR(IF($B131<Inputs!$C$7,IF(L$119<Inputs!$C$7,'UE - ESC'!L158,IF(L$119>=Inputs!$C$7+'UE - ESC'!$W$147,0,'UE - ESC'!$T158/'UE - ESC'!$W$147)),'UE - AER'!L158),0) -> 0 | M131: =IFERROR(IF($B131<Inputs!$C$7,IF(M$119<Inputs!$C$7,'UE - ESC'!M158,IF(M$119>=Inputs!$C$7+'UE - ESC'!$W$147,0,'UE - ESC'!$T158/'UE - ESC'!$W$147)),'UE - AER'!M158),0) -> 0 | N131: =IFERROR(IF($B131<Inputs!$C$7,IF(N$119<Inputs!$C$7,'UE - ESC'!N158,IF(N$119>=Inputs!$C$7+'UE - ESC'!$W$147,0,'UE - ESC'!$T158/'UE - ESC'!$W$147)),'UE - AER'!N158),0) -> 0 | O131: =IFERROR(IF($B131<Inputs!$C$7,IF(O$119<Inputs!$C$7,'UE - ESC'!O158,IF(O$119>=Inputs!$C$7+'UE - ESC'!$W$147,0,'UE - ESC'!$T158/'UE - ESC'!$W$147)),'UE - AER'!O158),0) -> 0
B132: 0 | C132: 7 | D132: =IFERROR(IF($B132<Inputs!$C$7,IF(D$119<Inputs!$C$7,'UE - ESC'!D159,IF(D$119>=Inputs!$C$7+'UE - ESC'!$W$147,0,'UE - ESC'!$T159/'UE - ESC'!$W$147)),'UE - AER'!D159),0) -> 0 | E132: =IFERROR(IF($B132<Inputs!$C$7,IF(E$119<Inputs!$C$7,'UE - ESC'!E159,IF(E$119>=Inputs!$C$7+'UE - ESC'!$W$147,0,'UE - ESC'!$T159/'UE - ESC'!$W$147)),'UE - AER'!E159),0) -> 0 | F132: =IFERROR(IF($B132<Inputs!$C$7,IF(F$119<Inputs!$C$7,'UE - ESC'!F159,IF(F$119>=Inputs!$C$7+'UE - ESC'!$W$147,0,'UE - ESC'!$T159/'UE - ESC'!$W$147)),'UE - AER'!F159),0) -> 0 | G132: =IFERROR(IF($B132<Inputs!$C$7,IF(G$119<Inputs!$C$7,'UE - ESC'!G159,IF(G$119>=Inputs!$C$7+'UE - ESC'!$W$147,0,'UE - ESC'!$T159/'UE - ESC'!$W$147)),'UE - AER'!G159),0) -> 0 | H132: =IFERROR(IF($B132<Inputs!$C$7,IF(H$119<Inputs!$C$7,'UE - ESC'!H159,IF(H$119>=Inputs!$C$7+'UE - ESC'!$W$147,0,'UE - ESC'!$T159/'UE - ESC'!$W$147)),'UE - AER'!H159),0) -> 0 | I132: =IFERROR(IF($B132<Inputs!$C$7,IF(I$119<Inputs!$C$7,'UE - ESC'!I159,IF(I$119>=Inputs!$C$7+'UE - ESC'!$W$147,0,'UE - ESC'!$T159/'UE - ESC'!$W$147)),'UE - AER'!I159),0) -> 0 | J132: =IFERROR(IF($B132<Inputs!$C$7,IF(J$119<Inputs!$C$7,'UE - ESC'!J159,IF(J$119>=Inputs!$C$7+'UE - ESC'!$W$147,0,'UE - ESC'!$T159/'UE - ESC'!$W$147)),'UE - AER'!J159),0) -> 0 | K132: =IFERROR(IF($B132<Inputs!$C$7,IF(K$119<Inputs!$C$7,'UE - ESC'!K159,IF(K$119>=Inputs!$C$7+'UE - ESC'!$W$147,0,'UE - ESC'!$T159/'UE - ESC'!$W$147)),'UE - AER'!K159),0) -> 0 | L132: =IFERROR(IF($B132<Inputs!$C$7,IF(L$119<Inputs!$C$7,'UE - ESC'!L159,IF(L$119>=Inputs!$C$7+'UE - ESC'!$W$147,0,'UE - ESC'!$T159/'UE - ESC'!$W$147)),'UE - AER'!L159),0) -> 0 | M132: =IFERROR(IF($B132<Inputs!$C$7,IF(M$119<Inputs!$C$7,'UE - ESC'!M159,IF(M$119>=Inputs!$C$7+'UE - ESC'!$W$147,0,'UE - ESC'!$T159/'UE - ESC'!$W$147)),'UE - AER'!M159),0) -> 0 | N132: =IFERROR(IF($B132<Inputs!$C$7,IF(N$119<Inputs!$C$7,'UE - ESC'!N159,IF(N$119>=Inputs!$C$7+'UE - ESC'!$W$147,0,'UE - ESC'!$T159/'UE - ESC'!$W$147)),'UE - AER'!N159),0) -> 0 | O132: =IFERROR(IF($B132<Inputs!$C$7,IF(O$119<Inputs!$C$7,'UE - ESC'!O159,IF(O$119>=Inputs!$C$7+'UE - ESC'!$W$147,0,'UE - ESC'!$T159/'UE - ESC'!$W$147)),'UE - AER'!O159),0) -> 0
B133: TOTAL | D133: =SUM(D120:D132) -> 8297.059861 | E133: 46393.0043 | F133: 909215.545 | G133: 1948705.786 | H133: 2688728.939 | I133: 3222285.507 | J133: 3386431.416 | K133: 3160996.003 | L133: 3199457.668 | M133: 3208097.445 | N133: 3216831.458 | O133: 57782.99478
B136: ="Depreciation - "&Inputs!C4&" - "&INDEX(Inputs!B38:B45,A138,)&" - "&IF(Inputs!C5=Inputs!C17,Inputs!C17,Inputs!C18) -> Depreciation - United Energy - - 2015$
A138: 8 | B138: =INDEX(Inputs!$B$38:$B$45,$A$138,) ->  | C138: Life | D138: 2009 | E138: 2010 | F138: 2011 | G138: 2012 | H138: 2013 | I138: 2014 | J138: 2015 | K138: 2016 | L138: 2017 | M138: 2018 | N138: 2019 | O138: 2020
B139: =B120 -> 2009 | C139: =INDEX(Inputs!$C$38:$C$45,$A$138,) ->  | D139: =IFERROR(IF($B139<Inputs!$C$7,IF(D$138<Inputs!$C$7,'UE - ESC'!D166,IF(D$138>=Inputs!$C$7+'UE - ESC'!$W$166,0,'UE - ESC'!$T166/'UE - ESC'!$W$166)),'UE - AER'!D166),0) -> 0 | E139: =IFERROR(IF($B139<Inputs!$C$7,IF(E$138<Inputs!$C$7,'UE - ESC'!E166,IF(E$138>=Inputs!$C$7+'UE - ESC'!$W$166,0,'UE - ESC'!$T166/'UE - ESC'!$W$166)),'UE - AER'!E166),0) -> 0 | F139: =IFERROR(IF($B139<Inputs!$C$7,IF(F$138<Inputs!$C$7,'UE - ESC'!F166,IF(F$138>=Inputs!$C$7+'UE - ESC'!$W$166,0,'UE - ESC'!$T166/'UE - ESC'!$W$166)),'UE - AER'!F166),0) -> 0 | G139: =IFERROR(IF($B139<Inputs!$C$7,IF(G$138<Inputs!$C$7,'UE - ESC'!G166,IF(G$138>=Inputs!$C$7+'UE - ESC'!$W$166,0,'UE - ESC'!$T166/'UE - ESC'!$W$166)),'UE - AER'!G166),0) -> 0 | H139: =IFERROR(IF($B139<Inputs!$C$7,IF(H$138<Inputs!$C$7,'UE - ESC'!H166,IF(H$138>=Inputs!$C$7+'UE - ESC'!$W$166,0,'UE - ESC'!$T166/'UE - ESC'!$W$166)),'UE - AER'!H166),0) -> 0 | I139: =IFERROR(IF($B139<Inputs!$C$7,IF(I$138<Inputs!$C$7,'UE - ESC'!I166,IF(I$138>=Inputs!$C$7+'UE - ESC'!$W$166,0,'UE - ESC'!$T166/'UE - ESC'!$W$166)),'UE - AER'!I166),0) -> 0 | J139: =IFERROR(IF($B139<Inputs!$C$7,IF(J$138<Inputs!$C$7,'UE - ESC'!J166,IF(J$138>=Inputs!$C$7+'UE - ESC'!$W$166,0,'UE - ESC'!$T166/'UE - ESC'!$W$166)),'UE - AER'!J166),0) -> 0 | K139: =IFERROR(IF($B139<Inputs!$C$7,IF(K$138<Inputs!$C$7,'UE - ESC'!K166,IF(K$138>=Inputs!$C$7+'UE - ESC'!$W$166,0,'UE - ESC'!$T166/'UE - ESC'!$W$166)),'UE - AER'!K166),0) -> 0 | L139: =IFERROR(IF($B139<Inputs!$C$7,IF(L$138<Inputs!$C$7,'UE - ESC'!L166,IF(L$138>=Inputs!$C$7+'UE - ESC'!$W$166,0,'UE - ESC'!$T166/'UE - ESC'!$W$166)),'UE - AER'!L166),0) -> 0 | M139: =IFERROR(IF($B139<Inputs!$C$7,IF(M$138<Inputs!$C$7,'UE - ESC'!M166,IF(M$138>=Inputs!$C$7+'UE - ESC'!$W$166,0,'UE - ESC'!$T166/'UE - ESC'!$W$166)),'UE - AER'!M166),0) -> 0 | N139: =IFERROR(IF($B139<Inputs!$C$7,IF(N$138<Inputs!$C$7,'UE - ESC'!N166,IF(N$138>=Inputs!$C$7+'UE - ESC'!$W$166,0,'UE - ESC'!$T166/'UE - ESC'!$W$166)),'UE - AER'!N166),0) -> 0 | O139: =IFERROR(IF($B139<Inputs!$C$7,IF(O$138<Inputs!$C$7,'UE - ESC'!O166,IF(O$138>=Inputs!$C$7+'UE - ESC'!$W$166,0,'UE - ESC'!$T166/'UE - ESC'!$W$166)),'UE - AER'!O166),0) -> 0
B140: =B121 -> 2010 | C140: =C139 ->  | D140: =IFERROR(IF($B140<Inputs!$C$7,IF(D$138<Inputs!$C$7,'UE - ESC'!D167,IF(D$138>=Inputs!$C$7+'UE - ESC'!$W$166,0,'UE - ESC'!$T167/'UE - ESC'!$W$166)),'UE - AER'!D167),0) -> 0 | E140: =IFERROR(IF($B140<Inputs!$C$7,IF(E$138<Inputs!$C$7,'UE - ESC'!E167,IF(E$138>=Inputs!$C$7+'UE - ESC'!$W$166,0,'UE - ESC'!$T167/'UE - ESC'!$W$166)),'UE - AER'!E167),0) -> 0 | F140: =IFERROR(IF($B140<Inputs!$C$7,IF(F$138<Inputs!$C$7,'UE - ESC'!F167,IF(F$138>=Inputs!$C$7+'UE - ESC'!$W$166,0,'UE - ESC'!$T167/'UE - ESC'!$W$166)),'UE - AER'!F167),0) -> 0 | G140: =IFERROR(IF($B140<Inputs!$C$7,IF(G$138<Inputs!$C$7,'UE - ESC'!G167,IF(G$138>=Inputs!$C$7+'UE - ESC'!$W$166,0,'UE - ESC'!$T167/'UE - ESC'!$W$166)),'UE - AER'!G167),0) -> 0 | H140: =IFERROR(IF($B140<Inputs!$C$7,IF(H$138<Inputs!$C$7,'UE - ESC'!H167,IF(H$138>=Inputs!$C$7+'UE - ESC'!$W$166,0,'UE - ESC'!$T167/'UE - ESC'!$W$166)),'UE - AER'!H167),0) -> 0 | I140: =IFERROR(IF($B140<Inputs!$C$7,IF(I$138<Inputs!$C$7,'UE - ESC'!I167,IF(I$138>=Inputs!$C$7+'UE - ESC'!$W$166,0,'UE - ESC'!$T167/'UE - ESC'!$W$166)),'UE - AER'!I167),0) -> 0 | J140: =IFERROR(IF($B140<Inputs!$C$7,IF(J$138<Inputs!$C$7,'UE - ESC'!J167,IF(J$138>=Inputs!$C$7+'UE - ESC'!$W$166,0,'UE - ESC'!$T167/'UE - ESC'!$W$166)),'UE - AER'!J167),0) -> 0 | K140: =IFERROR(IF($B140<Inputs!$C$7,IF(K$138<Inputs!$C$7,'UE - ESC'!K167,IF(K$138>=Inputs!$C$7+'UE - ESC'!$W$166,0,'UE - ESC'!$T167/'UE - ESC'!$W$166)),'UE - AER'!K167),0) -> 0 | L140: =IFERROR(IF($B140<Inputs!$C$7,IF(L$138<Inputs!$C$7,'UE - ESC'!L167,IF(L$138>=Inputs!$C$7+'UE - ESC'!$W$166,0,'UE - ESC'!$T167/'UE - ESC'!$W$166)),'UE - AER'!L167),0) -> 0 | M140: =IFERROR(IF($B140<Inputs!$C$7,IF(M$138<Inputs!$C$7,'UE - ESC'!M167,IF(M$138>=Inputs!$C$7+'UE - ESC'!$W$166,0,'UE - ESC'!$T167/'UE - ESC'!$W$166)),'UE - AER'!M167),0) -> 0 | N140: =IFERROR(IF($B140<Inputs!$C$7,IF(N$138<Inputs!$C$7,'UE - ESC'!N167,IF(N$138>=Inputs!$C$7+'UE - ESC'!$W$166,0,'UE - ESC'!$T167/'UE - ESC'!$W$166)),'UE - AER'!N167),0) -> 0 | O140: =IFERROR(IF($B140<Inputs!$C$7,IF(O$138<Inputs!$C$7,'UE - ESC'!O167,IF(O$138>=Inputs!$C$7+'UE - ESC'!$W$166,0,'UE - ESC'!$T167/'UE - ESC'!$W$166)),'UE - AER'!O167),0) -> 0
B141: 2011 | C141: =C140 ->  | D141: =IFERROR(IF($B141<Inputs!$C$7,IF(D$138<Inputs!$C$7,'UE - ESC'!D168,IF(D$138>=Inputs!$C$7+'UE - ESC'!$W$166,0,'UE - ESC'!$T168/'UE - ESC'!$W$166)),'UE - AER'!D168),0) -> 0 | E141: =IFERROR(IF($B141<Inputs!$C$7,IF(E$138<Inputs!$C$7,'UE - ESC'!E168,IF(E$138>=Inputs!$C$7+'UE - ESC'!$W$166,0,'UE - ESC'!$T168/'UE - ESC'!$W$166)),'UE - AER'!E168),0) -> 0 | F141: =IFERROR(IF($B141<Inputs!$C$7,IF(F$138<Inputs!$C$7,'UE - ESC'!F168,IF(F$138>=Inputs!$C$7+'UE - ESC'!$W$166,0,'UE - ESC'!$T168/'UE - ESC'!$W$166)),'UE - AER'!F168),0) -> 0 | G141: =IFERROR(IF($B141<Inputs!$C$7,IF(G$138<Inputs!$C$7,'UE - ESC'!G168,IF(G$138>=Inputs!$C$7+'UE - ESC'!$W$166,0,'UE - ESC'!$T168/'UE - ESC'!$W$166)),'UE - AER'!G168),0) -> 0 | H141: =IFERROR(IF($B141<Inputs!$C$7,IF(H$138<Inputs!$C$7,'UE - ESC'!H168,IF(H$138>=Inputs!$C$7+'UE - ESC'!$W$166,0,'UE - ESC'!$T168/'UE - ESC'!$W$166)),'UE - AER'!H168),0) -> 0 | I141: =IFERROR(IF($B141<Inputs!$C$7,IF(I$138<Inputs!$C$7,'UE - ESC'!I168,IF(I$138>=Inputs!$C$7+'UE - ESC'!$W$166,0,'UE - ESC'!$T168/'UE - ESC'!$W$166)),'UE - AER'!I168),0) -> 0 | J141: =IFERROR(IF($B141<Inputs!$C$7,IF(J$138<Inputs!$C$7,'UE - ESC'!J168,IF(J$138>=Inputs!$C$7+'UE - ESC'!$W$166,0,'UE - ESC'!$T168/'UE - ESC'!$W$166)),'UE - AER'!J168),0) -> 0 | K141: =IFERROR(IF($B141<Inputs!$C$7,IF(K$138<Inputs!$C$7,'UE - ESC'!K168,IF(K$138>=Inputs!$C$7+'UE - ESC'!$W$166,0,'UE - ESC'!$T168/'UE - ESC'!$W$166)),'UE - AER'!K168),0) -> 0 | L141: =IFERROR(IF($B141<Inputs!$C$7,IF(L$138<Inputs!$C$7,'UE - ESC'!L168,IF(L$138>=Inputs!$C$7+'UE - ESC'!$W$166,0,'UE - ESC'!$T168/'UE - ESC'!$W$166)),'UE - AER'!L168),0) -> 0 | M141: =IFERROR(IF($B141<Inputs!$C$7,IF(M$138<Inputs!$C$7,'UE - ESC'!M168,IF(M$138>=Inputs!$C$7+'UE - ESC'!$W$166,0,'UE - ESC'!$T168/'UE - ESC'!$W$166)),'UE - AER'!M168),0) -> 0 | N141: =IFERROR(IF($B141<Inputs!$C$7,IF(N$138<Inputs!$C$7,'UE - ESC'!N168,IF(N$138>=Inputs!$C$7+'UE - ESC'!$W$166,0,'UE - ESC'!$T168/'UE - ESC'!$W$166)),'UE - AER'!N168),0) -> 0 | O141: =IFERROR(IF($B141<Inputs!$C$7,IF(O$138<Inputs!$C$7,'UE - ESC'!O168,IF(O$138>=Inputs!$C$7+'UE - ESC'!$W$166,0,'UE - ESC'!$T168/'UE - ESC'!$W$166)),'UE - AER'!O168),0) -> 0
B142: 2012 | D142: =IFERROR(IF($B142<Inputs!$C$7,IF(D$138<Inputs!$C$7,'UE - ESC'!D169,IF(D$138>=Inputs!$C$7+'UE - ESC'!$W$166,0,'UE - ESC'!$T169/'UE - ESC'!$W$166)),'UE - AER'!D169),0) -> 0 | E142: =IFERROR(IF($B142<Inputs!$C$7,IF(E$138<Inputs!$C$7,'UE - ESC'!E169,IF(E$138>=Inputs!$C$7+'UE - ESC'!$W$166,0,'UE - ESC'!$T169/'UE - ESC'!$W$166)),'UE - AER'!E169),0) -> 0 | F142: =IFERROR(IF($B142<Inputs!$C$7,IF(F$138<Inputs!$C$7,'UE - ESC'!F169,IF(F$138>=Inputs!$C$7+'UE - ESC'!$W$166,0,'UE - ESC'!$T169/'UE - ESC'!$W$166)),'UE - AER'!F169),0) -> 0 | G142: =IFERROR(IF($B142<Inputs!$C$7,IF(G$138<Inputs!$C$7,'UE - ESC'!G169,IF(G$138>=Inputs!$C$7+'UE - ESC'!$W$166,0,'UE - ESC'!$T169/'UE - ESC'!$W$166)),'UE - AER'!G169),0) -> 0 | H142: =IFERROR(IF($B142<Inputs!$C$7,IF(H$138<Inputs!$C$7,'UE - ESC'!H169,IF(H$138>=Inputs!$C$7+'UE - ESC'!$W$166,0,'UE - ESC'!$T169/'UE - ESC'!$W$166)),'UE - AER'!H169),0) -> 0 | I142: =IFERROR(IF($B142<Inputs!$C$7,IF(I$138<Inputs!$C$7,'UE - ESC'!I169,IF(I$138>=Inputs!$C$7+'UE - ESC'!$W$166,0,'UE - ESC'!$T169/'UE - ESC'!$W$166)),'UE - AER'!I169),0) -> 0 | J142: =IFERROR(IF($B142<Inputs!$C$7,IF(J$138<Inputs!$C$7,'UE - ESC'!J169,IF(J$138>=Inputs!$C$7+'UE - ESC'!$W$166,0,'UE - ESC'!$T169/'UE - ESC'!$W$166)),'UE - AER'!J169),0) -> 0 | K142: =IFERROR(IF($B142<Inputs!$C$7,IF(K$138<Inputs!$C$7,'UE - ESC'!K169,IF(K$138>=Inputs!$C$7+'UE - ESC'!$W$166,0,'UE - ESC'!$T169/'UE - ESC'!$W$166)),'UE - AER'!K169),0) -> 0 | L142: =IFERROR(IF($B142<Inputs!$C$7,IF(L$138<Inputs!$C$7,'UE - ESC'!L169,IF(L$138>=Inputs!$C$7+'UE - ESC'!$W$166,0,'UE - ESC'!$T169/'UE - ESC'!$W$166)),'UE - AER'!L169),0) -> 0 | M142: =IFERROR(IF($B142<Inputs!$C$7,IF(M$138<Inputs!$C$7,'UE - ESC'!M169,IF(M$138>=Inputs!$C$7+'UE - ESC'!$W$166,0,'UE - ESC'!$T169/'UE - ESC'!$W$166)),'UE - AER'!M169),0) -> 0 | N142: =IFERROR(IF($B142<Inputs!$C$7,IF(N$138<Inputs!$C$7,'UE - ESC'!N169,IF(N$138>=Inputs!$C$7+'UE - ESC'!$W$166,0,'UE - ESC'!$T169/'UE - ESC'!$W$166)),'UE - AER'!N169),0) -> 0 | O142: =IFERROR(IF($B142<Inputs!$C$7,IF(O$138<Inputs!$C$7,'UE - ESC'!O169,IF(O$138>=Inputs!$C$7+'UE - ESC'!$W$166,0,'UE - ESC'!$T169/'UE - ESC'!$W$166)),'UE - AER'!O169),0) -> 0
B143: 2013 | D143: =IFERROR(IF($B143<Inputs!$C$7,IF(D$138<Inputs!$C$7,'UE - ESC'!D170,IF(D$138>=Inputs!$C$7+'UE - ESC'!$W$166,0,'UE - ESC'!$T170/'UE - ESC'!$W$166)),'UE - AER'!D170),0) -> 0 | E143: =IFERROR(IF($B143<Inputs!$C$7,IF(E$138<Inputs!$C$7,'UE - ESC'!E170,IF(E$138>=Inputs!$C$7+'UE - ESC'!$W$166,0,'UE - ESC'!$T170/'UE - ESC'!$W$166)),'UE - AER'!E170),0) -> 0 | F143: =IFERROR(IF($B143<Inputs!$C$7,IF(F$138<Inputs!$C$7,'UE - ESC'!F170,IF(F$138>=Inputs!$C$7+'UE - ESC'!$W$166,0,'UE - ESC'!$T170/'UE - ESC'!$W$166)),'UE - AER'!F170),0) -> 0 | G143: =IFERROR(IF($B143<Inputs!$C$7,IF(G$138<Inputs!$C$7,'UE - ESC'!G170,IF(G$138>=Inputs!$C$7+'UE - ESC'!$W$166,0,'UE - ESC'!$T170/'UE - ESC'!$W$166)),'UE - AER'!G170),0) -> 0 | H143: =IFERROR(IF($B143<Inputs!$C$7,IF(H$138<Inputs!$C$7,'UE - ESC'!H170,IF(H$138>=Inputs!$C$7+'UE - ESC'!$W$166,0,'UE - ESC'!$T170/'UE - ESC'!$W$166)),'UE - AER'!H170),0) -> 0 | I143: =IFERROR(IF($B143<Inputs!$C$7,IF(I$138<Inputs!$C$7,'UE - ESC'!I170,IF(I$138>=Inputs!$C$7+'UE - ESC'!$W$166,0,'UE - ESC'!$T170/'UE - ESC'!$W$166)),'UE - AER'!I170),0) -> 0 | J143: =IFERROR(IF($B143<Inputs!$C$7,IF(J$138<Inputs!$C$7,'UE - ESC'!J170,IF(J$138>=Inputs!$C$7+'UE - ESC'!$W$166,0,'UE - ESC'!$T170/'UE - ESC'!$W$166)),'UE - AER'!J170),0) -> 0 | K143: =IFERROR(IF($B143<Inputs!$C$7,IF(K$138<Inputs!$C$7,'UE - ESC'!K170,IF(K$138>=Inputs!$C$7+'UE - ESC'!$W$166,0,'UE - ESC'!$T170/'UE - ESC'!$W$166)),'UE - AER'!K170),0) -> 0 | L143: =IFERROR(IF($B143<Inputs!$C$7,IF(L$138<Inputs!$C$7,'UE - ESC'!L170,IF(L$138>=Inputs!$C$7+'UE - ESC'!$W$166,0,'UE - ESC'!$T170/'UE - ESC'!$W$166)),'UE - AER'!L170),0) -> 0 | M143: =IFERROR(IF($B143<Inputs!$C$7,IF(M$138<Inputs!$C$7,'UE - ESC'!M170,IF(M$138>=Inputs!$C$7+'UE - ESC'!$W$166,0,'UE - ESC'!$T170/'UE - ESC'!$W$166)),'UE - AER'!M170),0) -> 0 | N143: =IFERROR(IF($B143<Inputs!$C$7,IF(N$138<Inputs!$C$7,'UE - ESC'!N170,IF(N$138>=Inputs!$C$7+'UE - ESC'!$W$166,0,'UE - ESC'!$T170/'UE - ESC'!$W$166)),'UE - AER'!N170),0) -> 0 | O143: =IFERROR(IF($B143<Inputs!$C$7,IF(O$138<Inputs!$C$7,'UE - ESC'!O170,IF(O$138>=Inputs!$C$7+'UE - ESC'!$W$166,0,'UE - ESC'!$T170/'UE - ESC'!$W$166)),'UE - AER'!O170),0) -> 0
B144: 2014 | D144: =IFERROR(IF($B144<Inputs!$C$7,IF(D$138<Inputs!$C$7,'UE - ESC'!D171,IF(D$138>=Inputs!$C$7+'UE - ESC'!$W$166,0,'UE - ESC'!$T171/'UE - ESC'!$W$166)),'UE - AER'!D171),0) -> 0 | E144: =IFERROR(IF($B144<Inputs!$C$7,IF(E$138<Inputs!$C$7,'UE - ESC'!E171,IF(E$138>=Inputs!$C$7+'UE - ESC'!$W$166,0,'UE - ESC'!$T171/'UE - ESC'!$W$166)),'UE - AER'!E171),0) -> 0 | F144: =IFERROR(IF($B144<Inputs!$C$7,IF(F$138<Inputs!$C$7,'UE - ESC'!F171,IF(F$138>=Inputs!$C$7+'UE - ESC'!$W$166,0,'UE - ESC'!$T171/'UE - ESC'!$W$166)),'UE - AER'!F171),0) -> 0 | G144: =IFERROR(IF($B144<Inputs!$C$7,IF(G$138<Inputs!$C$7,'UE - ESC'!G171,IF(G$138>=Inputs!$C$7+'UE - ESC'!$W$166,0,'UE - ESC'!$T171/'UE - ESC'!$W$166)),'UE - AER'!G171),0) -> 0 | H144: =IFERROR(IF($B144<Inputs!$C$7,IF(H$138<Inputs!$C$7,'UE - ESC'!H171,IF(H$138>=Inputs!$C$7+'UE - ESC'!$W$166,0,'UE - ESC'!$T171/'UE - ESC'!$W$166)),'UE - AER'!H171),0) -> 0 | I144: =IFERROR(IF($B144<Inputs!$C$7,IF(I$138<Inputs!$C$7,'UE - ESC'!I171,IF(I$138>=Inputs!$C$7+'UE - ESC'!$W$166,0,'UE - ESC'!$T171/'UE - ESC'!$W$166)),'UE - AER'!I171),0) -> 0 | J144: =IFERROR(IF($B144<Inputs!$C$7,IF(J$138<Inputs!$C$7,'UE - ESC'!J171,IF(J$138>=Inputs!$C$7+'UE - ESC'!$W$166,0,'UE - ESC'!$T171/'UE - ESC'!$W$166)),'UE - AER'!J171),0) -> 0 | K144: =IFERROR(IF($B144<Inputs!$C$7,IF(K$138<Inputs!$C$7,'UE - ESC'!K171,IF(K$138>=Inputs!$C$7+'UE - ESC'!$W$166,0,'UE - ESC'!$T171/'UE - ESC'!$W$166)),'UE - AER'!K171),0) -> 0 | L144: =IFERROR(IF($B144<Inputs!$C$7,IF(L$138<Inputs!$C$7,'UE - ESC'!L171,IF(L$138>=Inputs!$C$7+'UE - ESC'!$W$166,0,'UE - ESC'!$T171/'UE - ESC'!$W$166)),'UE - AER'!L171),0) -> 0 | M144: =IFERROR(IF($B144<Inputs!$C$7,IF(M$138<Inputs!$C$7,'UE - ESC'!M171,IF(M$138>=Inputs!$C$7+'UE - ESC'!$W$166,0,'UE - ESC'!$T171/'UE - ESC'!$W$166)),'UE - AER'!M171),0) -> 0 | N144: =IFERROR(IF($B144<Inputs!$C$7,IF(N$138<Inputs!$C$7,'UE - ESC'!N171,IF(N$138>=Inputs!$C$7+'UE - ESC'!$W$166,0,'UE - ESC'!$T171/'UE - ESC'!$W$166)),'UE - AER'!N171),0) -> 0 | O144: =IFERROR(IF($B144<Inputs!$C$7,IF(O$138<Inputs!$C$7,'UE - ESC'!O171,IF(O$138>=Inputs!$C$7+'UE - ESC'!$W$166,0,'UE - ESC'!$T171/'UE - ESC'!$W$166)),'UE - AER'!O171),0) -> 0
B145: 2015 | D145: =IFERROR(IF($B145<Inputs!$C$7,IF(D$138<Inputs!$C$7,'UE - ESC'!D172,IF(D$138>=Inputs!$C$7+'UE - ESC'!$W$166,0,'UE - ESC'!$T172/'UE - ESC'!$W$166)),'UE - AER'!D172),0) -> 0 | E145: =IFERROR(IF($B145<Inputs!$C$7,IF(E$138<Inputs!$C$7,'UE - ESC'!E172,IF(E$138>=Inputs!$C$7+'UE - ESC'!$W$166,0,'UE - ESC'!$T172/'UE - ESC'!$W$166)),'UE - AER'!E172),0) -> 0 | F145: =IFERROR(IF($B145<Inputs!$C$7,IF(F$138<Inputs!$C$7,'UE - ESC'!F172,IF(F$138>=Inputs!$C$7+'UE - ESC'!$W$166,0,'UE - ESC'!$T172/'UE - ESC'!$W$166)),'UE - AER'!F172),0) -> 0 | G145: =IFERROR(IF($B145<Inputs!$C$7,IF(G$138<Inputs!$C$7,'UE - ESC'!G172,IF(G$138>=Inputs!$C$7+'UE - ESC'!$W$166,0,'UE - ESC'!$T172/'UE - ESC'!$W$166)),'UE - AER'!G172),0) -> 0 | H145: =IFERROR(IF($B145<Inputs!$C$7,IF(H$138<Inputs!$C$7,'UE - ESC'!H172,IF(H$138>=Inputs!$C$7+'UE - ESC'!$W$166,0,'UE - ESC'!$T172/'UE - ESC'!$W$166)),'UE - AER'!H172),0) -> 0 | I145: =IFERROR(IF($B145<Inputs!$C$7,IF(I$138<Inputs!$C$7,'UE - ESC'!I172,IF(I$138>=Inputs!$C$7+'UE - ESC'!$W$166,0,'UE - ESC'!$T172/'UE - ESC'!$W$166)),'UE - AER'!I172),0) -> 0 | J145: =IFERROR(IF($B145<Inputs!$C$7,IF(J$138<Inputs!$C$7,'UE - ESC'!J172,IF(J$138>=Inputs!$C$7+'UE - ESC'!$W$166,0,'UE - ESC'!$T172/'UE - ESC'!$W$166)),'UE - AER'!J172),0) -> 0 | K145: =IFERROR(IF($B145<Inputs!$C$7,IF(K$138<Inputs!$C$7,'UE - ESC'!K172,IF(K$138>=Inputs!$C$7+'UE - ESC'!$W$166,0,'UE - ESC'!$T172/'UE - ESC'!$W$166)),'UE - AER'!K172),0) -> 0 | L145: =IFERROR(IF($B145<Inputs!$C$7,IF(L$138<Inputs!$C$7,'UE - ESC'!L172,IF(L$138>=Inputs!$C$7+'UE - ESC'!$W$166,0,'UE - ESC'!$T172/'UE - ESC'!$W$166)),'UE - AER'!L172),0) -> 0 | M145: =IFERROR(IF($B145<Inputs!$C$7,IF(M$138<Inputs!$C$7,'UE - ESC'!M172,IF(M$138>=Inputs!$C$7+'UE - ESC'!$W$166,0,'UE - ESC'!$T172/'UE - ESC'!$W$166)),'UE - AER'!M172),0) -> 0 | N145: =IFERROR(IF($B145<Inputs!$C$7,IF(N$138<Inputs!$C$7,'UE - ESC'!N172,IF(N$138>=Inputs!$C$7+'UE - ESC'!$W$166,0,'UE - ESC'!$T172/'UE - ESC'!$W$166)),'UE - AER'!N172),0) -> 0 | O145: =IFERROR(IF($B145<Inputs!$C$7,IF(O$138<Inputs!$C$7,'UE - ESC'!O172,IF(O$138>=Inputs!$C$7+'UE - ESC'!$W$166,0,'UE - ESC'!$T172/'UE - ESC'!$W$166)),'UE - AER'!O172),0) -> 0
B146: 2016 | D146: =IFERROR(IF($B146<Inputs!$C$7,IF(D$138<Inputs!$C$7,'UE - ESC'!D173,IF(D$138>=Inputs!$C$7+'UE - ESC'!$W$166,0,'UE - ESC'!$T173/'UE - ESC'!$W$166)),'UE - AER'!D173),0) -> 0 | E146: =IFERROR(IF($B146<Inputs!$C$7,IF(E$138<Inputs!$C$7,'UE - ESC'!E173,IF(E$138>=Inputs!$C$7+'UE - ESC'!$W$166,0,'UE - ESC'!$T173/'UE - ESC'!$W$166)),'UE - AER'!E173),0) -> 0 | F146: =IFERROR(IF($B146<Inputs!$C$7,IF(F$138<Inputs!$C$7,'UE - ESC'!F173,IF(F$138>=Inputs!$C$7+'UE - ESC'!$W$166,0,'UE - ESC'!$T173/'UE - ESC'!$W$166)),'UE - AER'!F173),0) -> 0 | G146: =IFERROR(IF($B146<Inputs!$C$7,IF(G$138<Inputs!$C$7,'UE - ESC'!G173,IF(G$138>=Inputs!$C$7+'UE - ESC'!$W$166,0,'UE - ESC'!$T173/'UE - ESC'!$W$166)),'UE - AER'!G173),0) -> 0 | H146: =IFERROR(IF($B146<Inputs!$C$7,IF(H$138<Inputs!$C$7,'UE - ESC'!H173,IF(H$138>=Inputs!$C$7+'UE - ESC'!$W$166,0,'UE - ESC'!$T173/'UE - ESC'!$W$166)),'UE - AER'!H173),0) -> 0 | I146: =IFERROR(IF($B146<Inputs!$C$7,IF(I$138<Inputs!$C$7,'UE - ESC'!I173,IF(I$138>=Inputs!$C$7+'UE - ESC'!$W$166,0,'UE - ESC'!$T173/'UE - ESC'!$W$166)),'UE - AER'!I173),0) -> 0 | J146: =IFERROR(IF($B146<Inputs!$C$7,IF(J$138<Inputs!$C$7,'UE - ESC'!J173,IF(J$138>=Inputs!$C$7+'UE - ESC'!$W$166,0,'UE - ESC'!$T173/'UE - ESC'!$W$166)),'UE - AER'!J173),0) -> 0 | K146: =IFERROR(IF($B146<Inputs!$C$7,IF(K$138<Inputs!$C$7,'UE - ESC'!K173,IF(K$138>=Inputs!$C$7+'UE - ESC'!$W$166,0,'UE - ESC'!$T173/'UE - ESC'!$W$166)),'UE - AER'!K173),0) -> 0 | L146: =IFERROR(IF($B146<Inputs!$C$7,IF(L$138<Inputs!$C$7,'UE - ESC'!L173,IF(L$138>=Inputs!$C$7+'UE - ESC'!$W$166,0,'UE - ESC'!$T173/'UE - ESC'!$W$166)),'UE - AER'!L173),0) -> 0 | M146: =IFERROR(IF($B146<Inputs!$C$7,IF(M$138<Inputs!$C$7,'UE - ESC'!M173,IF(M$138>=Inputs!$C$7+'UE - ESC'!$W$166,0,'UE - ESC'!$T173/'UE - ESC'!$W$166)),'UE - AER'!M173),0) -> 0 | N146: =IFERROR(IF($B146<Inputs!$C$7,IF(N$138<Inputs!$C$7,'UE - ESC'!N173,IF(N$138>=Inputs!$C$7+'UE - ESC'!$W$166,0,'UE - ESC'!$T173/'UE - ESC'!$W$166)),'UE - AER'!N173),0) -> 0 | O146: =IFERROR(IF($B146<Inputs!$C$7,IF(O$138<Inputs!$C$7,'UE - ESC'!O173,IF(O$138>=Inputs!$C$7+'UE - ESC'!$W$166,0,'UE - ESC'!$T173/'UE - ESC'!$W$166)),'UE - AER'!O173),0) -> 0
B147: 2017 | D147: =IFERROR(IF($B147<Inputs!$C$7,IF(D$138<Inputs!$C$7,'UE - ESC'!D174,IF(D$138>=Inputs!$C$7+'UE - ESC'!$W$166,0,'UE - ESC'!$T174/'UE - ESC'!$W$166)),'UE - AER'!D174),0) -> 0 | E147: =IFERROR(IF($B147<Inputs!$C$7,IF(E$138<Inputs!$C$7,'UE - ESC'!E174,IF(E$138>=Inputs!$C$7+'UE - ESC'!$W$166,0,'UE - ESC'!$T174/'UE - ESC'!$W$166)),'UE - AER'!E174),0) -> 0 | F147: =IFERROR(IF($B147<Inputs!$C$7,IF(F$138<Inputs!$C$7,'UE - ESC'!F174,IF(F$138>=Inputs!$C$7+'UE - ESC'!$W$166,0,'UE - ESC'!$T174/'UE - ESC'!$W$166)),'UE - AER'!F174),0) -> 0 | G147: =IFERROR(IF($B147<Inputs!$C$7,IF(G$138<Inputs!$C$7,'UE - ESC'!G174,IF(G$138>=Inputs!$C$7+'UE - ESC'!$W$166,0,'UE - ESC'!$T174/'UE - ESC'!$W$166)),'UE - AER'!G174),0) -> 0 | H147: =IFERROR(IF($B147<Inputs!$C$7,IF(H$138<Inputs!$C$7,'UE - ESC'!H174,IF(H$138>=Inputs!$C$7+'UE - ESC'!$W$166,0,'UE - ESC'!$T174/'UE - ESC'!$W$166)),'UE - AER'!H174),0) -> 0 | I147: =IFERROR(IF($B147<Inputs!$C$7,IF(I$138<Inputs!$C$7,'UE - ESC'!I174,IF(I$138>=Inputs!$C$7+'UE - ESC'!$W$166,0,'UE - ESC'!$T174/'UE - ESC'!$W$166)),'UE - AER'!I174),0) -> 0 | J147: =IFERROR(IF($B147<Inputs!$C$7,IF(J$138<Inputs!$C$7,'UE - ESC'!J174,IF(J$138>=Inputs!$C$7+'UE - ESC'!$W$166,0,'UE - ESC'!$T174/'UE - ESC'!$W$166)),'UE - AER'!J174),0) -> 0 | K147: =IFERROR(IF($B147<Inputs!$C$7,IF(K$138<Inputs!$C$7,'UE - ESC'!K174,IF(K$138>=Inputs!$C$7+'UE - ESC'!$W$166,0,'UE - ESC'!$T174/'UE - ESC'!$W$166)),'UE - AER'!K174),0) -> 0 | L147: =IFERROR(IF($B147<Inputs!$C$7,IF(L$138<Inputs!$C$7,'UE - ESC'!L174,IF(L$138>=Inputs!$C$7+'UE - ESC'!$W$166,0,'UE - ESC'!$T174/'UE - ESC'!$W$166)),'UE - AER'!L174),0) -> 0 | M147: =IFERROR(IF($B147<Inputs!$C$7,IF(M$138<Inputs!$C$7,'UE - ESC'!M174,IF(M$138>=Inputs!$C$7+'UE - ESC'!$W$166,0,'UE - ESC'!$T174/'UE - ESC'!$W$166)),'UE - AER'!M174),0) -> 0 | N147: =IFERROR(IF($B147<Inputs!$C$7,IF(N$138<Inputs!$C$7,'UE - ESC'!N174,IF(N$138>=Inputs!$C$7+'UE - ESC'!$W$166,0,'UE - ESC'!$T174/'UE - ESC'!$W$166)),'UE - AER'!N174),0) -> 0 | O147: =IFERROR(IF($B147<Inputs!$C$7,IF(O$138<Inputs!$C$7,'UE - ESC'!O174,IF(O$138>=Inputs!$C$7+'UE - ESC'!$W$166,0,'UE - ESC'!$T174/'UE - ESC'!$W$166)),'UE - AER'!O174),0) -> 0
B148: 2018 | D148: =IFERROR(IF($B148<Inputs!$C$7,IF(D$138<Inputs!$C$7,'UE - ESC'!D175,IF(D$138>=Inputs!$C$7+'UE - ESC'!$W$166,0,'UE - ESC'!$T175/'UE - ESC'!$W$166)),'UE - AER'!D175),0) -> 0 | E148: =IFERROR(IF($B148<Inputs!$C$7,IF(E$138<Inputs!$C$7,'UE - ESC'!E175,IF(E$138>=Inputs!$C$7+'UE - ESC'!$W$166,0,'UE - ESC'!$T175/'UE - ESC'!$W$166)),'UE - AER'!E175),0) -> 0 | F148: =IFERROR(IF($B148<Inputs!$C$7,IF(F$138<Inputs!$C$7,'UE - ESC'!F175,IF(F$138>=Inputs!$C$7+'UE - ESC'!$W$166,0,'UE - ESC'!$T175/'UE - ESC'!$W$166)),'UE - AER'!F175),0) -> 0 | G148: =IFERROR(IF($B148<Inputs!$C$7,IF(G$138<Inputs!$C$7,'UE - ESC'!G175,IF(G$138>=Inputs!$C$7+'UE - ESC'!$W$166,0,'UE - ESC'!$T175/'UE - ESC'!$W$166)),'UE - AER'!G175),0) -> 0 | H148: =IFERROR(IF($B148<Inputs!$C$7,IF(H$138<Inputs!$C$7,'UE - ESC'!H175,IF(H$138>=Inputs!$C$7+'UE - ESC'!$W$166,0,'UE - ESC'!$T175/'UE - ESC'!$W$166)),'UE - AER'!H175),0) -> 0 | I148: =IFERROR(IF($B148<Inputs!$C$7,IF(I$138<Inputs!$C$7,'UE - ESC'!I175,IF(I$138>=Inputs!$C$7+'UE - ESC'!$W$166,0,'UE - ESC'!$T175/'UE - ESC'!$W$166)),'UE - AER'!I175),0) -> 0 | J148: =IFERROR(IF($B148<Inputs!$C$7,IF(J$138<Inputs!$C$7,'UE - ESC'!J175,IF(J$138>=Inputs!$C$7+'UE - ESC'!$W$166,0,'UE - ESC'!$T175/'UE - ESC'!$W$166)),'UE - AER'!J175),0) -> 0 | K148: =IFERROR(IF($B148<Inputs!$C$7,IF(K$138<Inputs!$C$7,'UE - ESC'!K175,IF(K$138>=Inputs!$C$7+'UE - ESC'!$W$166,0,'UE - ESC'!$T175/'UE - ESC'!$W$166)),'UE - AER'!K175),0) -> 0 | L148: =IFERROR(IF($B148<Inputs!$C$7,IF(L$138<Inputs!$C$7,'UE - ESC'!L175,IF(L$138>=Inputs!$C$7+'UE - ESC'!$W$166,0,'UE - ESC'!$T175/'UE - ESC'!$W$166)),'UE - AER'!L175),0) -> 0 | M148: =IFERROR(IF($B148<Inputs!$C$7,IF(M$138<Inputs!$C$7,'UE - ESC'!M175,IF(M$138>=Inputs!$C$7+'UE - ESC'!$W$166,0,'UE - ESC'!$T175/'UE - ESC'!$W$166)),'UE - AER'!M175),0) -> 0 | N148: =IFERROR(IF($B148<Inputs!$C$7,IF(N$138<Inputs!$C$7,'UE - ESC'!N175,IF(N$138>=Inputs!$C$7+'UE - ESC'!$W$166,0,'UE - ESC'!$T175/'UE - ESC'!$W$166)),'UE - AER'!N175),0) -> 0 | O148: =IFERROR(IF($B148<Inputs!$C$7,IF(O$138<Inputs!$C$7,'UE - ESC'!O175,IF(O$138>=Inputs!$C$7+'UE - ESC'!$W$166,0,'UE - ESC'!$T175/'UE - ESC'!$W$166)),'UE - AER'!O175),0) -> 0
B149: 2019 | D149: =IFERROR(IF($B149<Inputs!$C$7,IF(D$138<Inputs!$C$7,'UE - ESC'!D176,IF(D$138>=Inputs!$C$7+'UE - ESC'!$W$166,0,'UE - ESC'!$T176/'UE - ESC'!$W$166)),'UE - AER'!D176),0) -> 0 | E149: =IFERROR(IF($B149<Inputs!$C$7,IF(E$138<Inputs!$C$7,'UE - ESC'!E176,IF(E$138>=Inputs!$C$7+'UE - ESC'!$W$166,0,'UE - ESC'!$T176/'UE - ESC'!$W$166)),'UE - AER'!E176),0) -> 0 | F149: =IFERROR(IF($B149<Inputs!$C$7,IF(F$138<Inputs!$C$7,'UE - ESC'!F176,IF(F$138>=Inputs!$C$7+'UE - ESC'!$W$166,0,'UE - ESC'!$T176/'UE - ESC'!$W$166)),'UE - AER'!F176),0) -> 0 | G149: =IFERROR(IF($B149<Inputs!$C$7,IF(G$138<Inputs!$C$7,'UE - ESC'!G176,IF(G$138>=Inputs!$C$7+'UE - ESC'!$W$166,0,'UE - ESC'!$T176/'UE - ESC'!$W$166)),'UE - AER'!G176),0) -> 0 | H149: =IFERROR(IF($B149<Inputs!$C$7,IF(H$138<Inputs!$C$7,'UE - ESC'!H176,IF(H$138>=Inputs!$C$7+'UE - ESC'!$W$166,0,'UE - ESC'!$T176/'UE - ESC'!$W$166)),'UE - AER'!H176),0) -> 0 | I149: =IFERROR(IF($B149<Inputs!$C$7,IF(I$138<Inputs!$C$7,'UE - ESC'!I176,IF(I$138>=Inputs!$C$7+'UE - ESC'!$W$166,0,'UE - ESC'!$T176/'UE - ESC'!$W$166)),'UE - AER'!I176),0) -> 0 | J149: =IFERROR(IF($B149<Inputs!$C$7,IF(J$138<Inputs!$C$7,'UE - ESC'!J176,IF(J$138>=Inputs!$C$7+'UE - ESC'!$W$166,0,'UE - ESC'!$T176/'UE - ESC'!$W$166)),'UE - AER'!J176),0) -> 0 | K149: =IFERROR(IF($B149<Inputs!$C$7,IF(K$138<Inputs!$C$7,'UE - ESC'!K176,IF(K$138>=Inputs!$C$7+'UE - ESC'!$W$166,0,'UE - ESC'!$T176/'UE - ESC'!$W$166)),'UE - AER'!K176),0) -> 0 | L149: =IFERROR(IF($B149<Inputs!$C$7,IF(L$138<Inputs!$C$7,'UE - ESC'!L176,IF(L$138>=Inputs!$C$7+'UE - ESC'!$W$166,0,'UE - ESC'!$T176/'UE - ESC'!$W$166)),'UE - AER'!L176),0) -> 0 | M149: =IFERROR(IF($B149<Inputs!$C$7,IF(M$138<Inputs!$C$7,'UE - ESC'!M176,IF(M$138>=Inputs!$C$7+'UE - ESC'!$W$166,0,'UE - ESC'!$T176/'UE - ESC'!$W$166)),'UE - AER'!M176),0) -> 0 | N149: =IFERROR(IF($B149<Inputs!$C$7,IF(N$138<Inputs!$C$7,'UE - ESC'!N176,IF(N$138>=Inputs!$C$7+'UE - ESC'!$W$166,0,'UE - ESC'!$T176/'UE - ESC'!$W$166)),'UE - AER'!N176),0) -> 0 | O149: =IFERROR(IF($B149<Inputs!$C$7,IF(O$138<Inputs!$C$7,'UE - ESC'!O176,IF(O$138>=Inputs!$C$7+'UE - ESC'!$W$166,0,'UE - ESC'!$T176/'UE - ESC'!$W$166)),'UE - AER'!O176),0) -> 0
B150: 2020 | D150: =IFERROR(IF($B150<Inputs!$C$7,IF(D$138<Inputs!$C$7,'UE - ESC'!D177,IF(D$138>=Inputs!$C$7+'UE - ESC'!$W$166,0,'UE - ESC'!$T177/'UE - ESC'!$W$166)),'UE - AER'!D177),0) -> 0 | E150: =IFERROR(IF($B150<Inputs!$C$7,IF(E$138<Inputs!$C$7,'UE - ESC'!E177,IF(E$138>=Inputs!$C$7+'UE - ESC'!$W$166,0,'UE - ESC'!$T177/'UE - ESC'!$W$166)),'UE - AER'!E177),0) -> 0 | F150: =IFERROR(IF($B150<Inputs!$C$7,IF(F$138<Inputs!$C$7,'UE - ESC'!F177,IF(F$138>=Inputs!$C$7+'UE - ESC'!$W$166,0,'UE - ESC'!$T177/'UE - ESC'!$W$166)),'UE - AER'!F177),0) -> 0 | G150: =IFERROR(IF($B150<Inputs!$C$7,IF(G$138<Inputs!$C$7,'UE - ESC'!G177,IF(G$138>=Inputs!$C$7+'UE - ESC'!$W$166,0,'UE - ESC'!$T177/'UE - ESC'!$W$166)),'UE - AER'!G177),0) -> 0 | H150: =IFERROR(IF($B150<Inputs!$C$7,IF(H$138<Inputs!$C$7,'UE - ESC'!H177,IF(H$138>=Inputs!$C$7+'UE - ESC'!$W$166,0,'UE - ESC'!$T177/'UE - ESC'!$W$166)),'UE - AER'!H177),0) -> 0 | I150: =IFERROR(IF($B150<Inputs!$C$7,IF(I$138<Inputs!$C$7,'UE - ESC'!I177,IF(I$138>=Inputs!$C$7+'UE - ESC'!$W$166,0,'UE - ESC'!$T177/'UE - ESC'!$W$166)),'UE - AER'!I177),0) -> 0 | J150: =IFERROR(IF($B150<Inputs!$C$7,IF(J$138<Inputs!$C$7,'UE - ESC'!J177,IF(J$138>=Inputs!$C$7+'UE - ESC'!$W$166,0,'UE - ESC'!$T177/'UE - ESC'!$W$166)),'UE - AER'!J177),0) -> 0 | K150: =IFERROR(IF($B150<Inputs!$C$7,IF(K$138<Inputs!$C$7,'UE - ESC'!K177,IF(K$138>=Inputs!$C$7+'UE - ESC'!$W$166,0,'UE - ESC'!$T177/'UE - ESC'!$W$166)),'UE - AER'!K177),0) -> 0 | L150: =IFERROR(IF($B150<Inputs!$C$7,IF(L$138<Inputs!$C$7,'UE - ESC'!L177,IF(L$138>=Inputs!$C$7+'UE - ESC'!$W$166,0,'UE - ESC'!$T177/'UE - ESC'!$W$166)),'UE - AER'!L177),0) -> 0 | M150: =IFERROR(IF($B150<Inputs!$C$7,IF(M$138<Inputs!$C$7,'UE - ESC'!M177,IF(M$138>=Inputs!$C$7+'UE - ESC'!$W$166,0,'UE - ESC'!$T177/'UE - ESC'!$W$166)),'UE - AER'!M177),0) -> 0 | N150: =IFERROR(IF($B150<Inputs!$C$7,IF(N$138<Inputs!$C$7,'UE - ESC'!N177,IF(N$138>=Inputs!$C$7+'UE - ESC'!$W$166,0,'UE - ESC'!$T177/'UE - ESC'!$W$166)),'UE - AER'!N177),0) -> 0 | O150: =IFERROR(IF($B150<Inputs!$C$7,IF(O$138<Inputs!$C$7,'UE - ESC'!O177,IF(O$138>=Inputs!$C$7+'UE - ESC'!$W$166,0,'UE - ESC'!$T177/'UE - ESC'!$W$166)),'UE - AER'!O177),0) -> 0
B151: 0 | D151: =IFERROR(IF($B151<Inputs!$C$7,IF(D$138<Inputs!$C$7,'UE - ESC'!D178,IF(D$138>=Inputs!$C$7+'UE - ESC'!$W$166,0,'UE - ESC'!$T178/'UE - ESC'!$W$166)),'UE - AER'!D178),0) -> 0 | E151: =IFERROR(IF($B151<Inputs!$C$7,IF(E$138<Inputs!$C$7,'UE - ESC'!E178,IF(E$138>=Inputs!$C$7+'UE - ESC'!$W$166,0,'UE - ESC'!$T178/'UE - ESC'!$W$166)),'UE - AER'!E178),0) -> 0 | F151: =IFERROR(IF($B151<Inputs!$C$7,IF(F$138<Inputs!$C$7,'UE - ESC'!F178,IF(F$138>=Inputs!$C$7+'UE - ESC'!$W$166,0,'UE - ESC'!$T178/'UE - ESC'!$W$166)),'UE - AER'!F178),0) -> 0 | G151: =IFERROR(IF($B151<Inputs!$C$7,IF(G$138<Inputs!$C$7,'UE - ESC'!G178,IF(G$138>=Inputs!$C$7+'UE - ESC'!$W$166,0,'UE - ESC'!$T178/'UE - ESC'!$W$166)),'UE - AER'!G178),0) -> 0 | H151: =IFERROR(IF($B151<Inputs!$C$7,IF(H$138<Inputs!$C$7,'UE - ESC'!H178,IF(H$138>=Inputs!$C$7+'UE - ESC'!$W$166,0,'UE - ESC'!$T178/'UE - ESC'!$W$166)),'UE - AER'!H178),0) -> 0 | I151: =IFERROR(IF($B151<Inputs!$C$7,IF(I$138<Inputs!$C$7,'UE - ESC'!I178,IF(I$138>=Inputs!$C$7+'UE - ESC'!$W$166,0,'UE - ESC'!$T178/'UE - ESC'!$W$166)),'UE - AER'!I178),0) -> 0 | J151: =IFERROR(IF($B151<Inputs!$C$7,IF(J$138<Inputs!$C$7,'UE - ESC'!J178,IF(J$138>=Inputs!$C$7+'UE - ESC'!$W$166,0,'UE - ESC'!$T178/'UE - ESC'!$W$166)),'UE - AER'!J178),0) -> 0 | K151: =IFERROR(IF($B151<Inputs!$C$7,IF(K$138<Inputs!$C$7,'UE - ESC'!K178,IF(K$138>=Inputs!$C$7+'UE - ESC'!$W$166,0,'UE - ESC'!$T178/'UE - ESC'!$W$166)),'UE - AER'!K178),0) -> 0 | L151: =IFERROR(IF($B151<Inputs!$C$7,IF(L$138<Inputs!$C$7,'UE - ESC'!L178,IF(L$138>=Inputs!$C$7+'UE - ESC'!$W$166,0,'UE - ESC'!$T178/'UE - ESC'!$W$166)),'UE - AER'!L178),0) -> 0 | M151: =IFERROR(IF($B151<Inputs!$C$7,IF(M$138<Inputs!$C$7,'UE - ESC'!M178,IF(M$138>=Inputs!$C$7+'UE - ESC'!$W$166,0,'UE - ESC'!$T178/'UE - ESC'!$W$166)),'UE - AER'!M178),0) -> 0 | N151: =IFERROR(IF($B151<Inputs!$C$7,IF(N$138<Inputs!$C$7,'UE - ESC'!N178,IF(N$138>=Inputs!$C$7+'UE - ESC'!$W$166,0,'UE - ESC'!$T178/'UE - ESC'!$W$166)),'UE - AER'!N178),0) -> 0 | O151: =IFERROR(IF($B151<Inputs!$C$7,IF(O$138<Inputs!$C$7,'UE - ESC'!O178,IF(O$138>=Inputs!$C$7+'UE - ESC'!$W$166,0,'UE - ESC'!$T178/'UE - ESC'!$W$166)),'UE - AER'!O178),0) -> 0
B152: TOTAL | D152: =SUM(D139:D151) -> 0 | E152: 0 | F152: 0 | G152: 0 | H152: 0 | I152: 0 | J152: 0 | K152: 0 | L152: 0 | M152: 0 | N152: 0 | O152: 0
B155: ="Written Down Value - "&INDEX(Inputs!B38:B45,A158,)&" - "&Inputs!C4&" - "&IF(Inputs!C5=Inputs!C17,Inputs!C17,Inputs!C18) -> Written Down Value - Single Phase - United Energy - 2015$
D157: 2009 | E157: 2010 | F157: 2011 | G157: 2012 | H157: 2013 | I157: 2014 | J157: 2015 | K157: 2016 | L157: 2017 | M157: 2018 | N157: 2019 | O157: 2020
A158: 1 | B158: =INDEX(Inputs!$B$38:$B$45,$A$158,) -> Single Phase | C158: Starting RAB - Real | D158: =0 -> 0 | E158: =D159 -> 10252568.97 | F158: 36075091.6 | G158: 77388035.66 | H158: 119355808.6 | I158: 149229816 | J158: 147657123.9 | K158: 136466294 | L158: 125019553.7 | M158: 112549574.6 | N158: 100079595.4 | O158: 87609616.26
C159: End RAB - Real | D159: =IF(D157<Inputs!$C$7,D158+(OFFSET(Inputs!D$37,MATCH($B158,Inputs!$B$38:$B$45,0),,,)-SUM(D19)),D158+(OFFSET(Inputs!D$37,MATCH($B158,Inputs!$B$38:$B$45,0),,,)*(1+Inputs!$C$6)^0.5)-SUM(D19)) -> 10252568.97 | E159: =IF(E157<Inputs!$C$7,E158+(OFFSET(Inputs!E$37,MATCH($B158,Inputs!$B$38:$B$45,0),,,)-SUM(E19)),E158+(OFFSET(Inputs!E$37,MATCH($B158,Inputs!$B$38:$B$45,0),,,)*(1+Inputs!$C$6)^0.5)-SUM(E19)) -> 36075091.6 | F159: =IF(F157<Inputs!$C$7,F158+(OFFSET(Inputs!F$37,MATCH($B158,Inputs!$B$38:$B$45,0),,,)-SUM(F19)),F158+(OFFSET(Inputs!F$37,MATCH($B158,Inputs!$B$38:$B$45,0),,,)*(1+Inputs!$C$6)^0.5)-SUM(F19)) -> 77388035.66 | G159: =IF(G157<Inputs!$C$7,G158+(OFFSET(Inputs!G$37,MATCH($B158,Inputs!$B$38:$B$45,0),,,)-SUM(G19)),G158+(OFFSET(Inputs!G$37,MATCH($B158,Inputs!$B$38:$B$45,0),,,)*(1+Inputs!$C$6)^0.5)-SUM(G19)) -> 119355808.6 | H159: =IF(H157<Inputs!$C$7,H158+(OFFSET(Inputs!H$37,MATCH($B158,Inputs!$B$38:$B$45,0),,,)-SUM(H19)),H158+(OFFSET(Inputs!H$37,MATCH($B158,Inputs!$B$38:$B$45,0),,,)*(1+Inputs!$C$6)^0.5)-SUM(H19)) -> 149229816 | I159: =IF(I157<Inputs!$C$7,I158+(OFFSET(Inputs!I$37,MATCH($B158,Inputs!$B$38:$B$45,0),,,)-SUM(I19)),I158+(OFFSET(Inputs!I$37,MATCH($B158,Inputs!$B$38:$B$45,0),,,)*(1+Inputs!$C$6)^0.5)-SUM(I19)) -> 147657123.9 | J159: =IF(J157<Inputs!$C$7,J158+(OFFSET(Inputs!J$37,MATCH($B158,Inputs!$B$38:$B$45,0),,,)-SUM(J19)),J158+(OFFSET(Inputs!J$37,MATCH($B158,Inputs!$B$38:$B$45,0),,,)*(1+Inputs!$C$6)^0.5)-SUM(J19)) -> 136466294 | K159: =IF(K157<Inputs!$C$7,K158+(OFFSET(Inputs!K$37,MATCH($B158,Inputs!$B$38:$B$45,0),,,)-SUM(K19)),K158+(OFFSET(Inputs!K$37,MATCH($B158,Inputs!$B$38:$B$45,0),,,)*(1+Inputs!$C$6)^0.5)-SUM(K19)) -> 125019553.7 | L159: =IF(L157<Inputs!$C$7,L158+(OFFSET(Inputs!L$37,MATCH($B158,Inputs!$B$38:$B$45,0),,,)-SUM(L19)),L158+(OFFSET(Inputs!L$37,MATCH($B158,Inputs!$B$38:$B$45,0),,,)*(1+Inputs!$C$6)^0.5)-SUM(L19)) -> 112549574.6 | M159: =IF(M157<Inputs!$C$7,M158+(OFFSET(Inputs!M$37,MATCH($B158,Inputs!$B$38:$B$45,0),,,)-SUM(M19)),M158+(OFFSET(Inputs!M$37,MATCH($B158,Inputs!$B$38:$B$45,0),,,)*(1+Inputs!$C$6)^0.5)-SUM(M19)) -> 100079595.4 | N159: =IF(N157<Inputs!$C$7,N158+(OFFSET(Inputs!N$37,MATCH($B158,Inputs!$B$38:$B$45,0),,,)-SUM(N19)),N158+(OFFSET(Inputs!N$37,MATCH($B158,Inputs!$B$38:$B$45,0),,,)*(1+Inputs!$C$6)^0.5)-SUM(N19)) -> 87609616.26 | O159: =IF(O157<Inputs!$C$7,O158+(OFFSET(Inputs!O$37,MATCH($B158,Inputs!$B$38:$B$45,0),,,)-SUM(O19)),O158+(OFFSET(Inputs!O$37,MATCH($B158,Inputs!$B$38:$B$45,0),,,)*(1+Inputs!$C$6)^0.5)-SUM(O19)) -> 75139637.11
C160: Average RAB | D160: =AVERAGE(D158,D159) -> 5126284.486 | E160: 23163830.28 | F160: 56731563.63 | G160: 98371922.12 | H160: 134292812.3 | I160: 148443469.9 | J160: 142061709 | K160: 130742923.9 | L160: 118784564.2 | M160: 106314585 | N160: 93844605.84 | O160: 81374626.68
C161: End Yr Cumulative Volumes | D161: =SUM(OFFSET(Inputs!D$51,$A158,,,):OFFSET(Inputs!$D$51,$A158,,,)) -> 11101 | E161: =SUM(OFFSET(Inputs!E$51,$A158,,,):OFFSET(Inputs!$D$51,$A158,,,)) -> 88223 | F161: =SUM(OFFSET(Inputs!F$51,$A158,,,):OFFSET(Inputs!$D$51,$A158,,,)) -> 202764.3164 | G161: =SUM(OFFSET(Inputs!G$51,$A158,,,):OFFSET(Inputs!$D$51,$A158,,,)) -> 336655.3164 | H161: =SUM(OFFSET(Inputs!H$51,$A158,,,):OFFSET(Inputs!$D$51,$A158,,,)) -> 443276.3164 | I161: =SUM(OFFSET(Inputs!I$51,$A158,,,):OFFSET(Inputs!$D$51,$A158,,,)) -> 507932.3164 | J161: =SUM(OFFSET(Inputs!J$51,$A158,,,):OFFSET(Inputs!$D$51,$A158,,,)) -> 521396.3164 | K161: =SUM(OFFSET(Inputs!K$51,$A158,,,):OFFSET(Inputs!$D$51,$A158,,,)) -> 533892.3164 | L161: =SUM(OFFSET(Inputs!L$51,$A158,,,):OFFSET(Inputs!$D$51,$A158,,,)) -> 535164.3164 | M161: =SUM(OFFSET(Inputs!M$51,$A158,,,):OFFSET(Inputs!$D$51,$A158,,,)) -> 536487.3164 | N161: =SUM(OFFSET(Inputs!N$51,$A158,,,):OFFSET(Inputs!$D$51,$A158,,,)) -> 537864.3164 | O161: =SUM(OFFSET(Inputs!O$51,$A158,,,):OFFSET(Inputs!$D$51,$A158,,,)) -> 539295.3164
C162: Average WDV | D162: =IFERROR(D160/AVERAGE(0,D161),0) -> 923.5716576 | E162: =IFERROR(E160/AVERAGE(D161,E161),0) -> 466.4296703 | F162: 389.9246492 | G162: 364.73245 | H162: 344.3707285 | I162: 312.115481 | J162: 276.0278971 | K162: 247.7860934 | L162: 222.2231461 | M162: 198.4125844 | N162: 174.6999827 | O162: 151.0911182
B165: ="Written Down Value - "&INDEX(Inputs!B38:B45,A168,)&" - "&Inputs!C4&" - "&IF(Inputs!C5=Inputs!C17,Inputs!C17,Inputs!C18) -> Written Down Value - Single Phase, Two Element - United Energy - 2015$
D167: 2009 | E167: 2010 | F167: 2011 | G167: 2012 | H167: 2013 | I167: 2014 | J167: 2015 | K167: 2016 | L167: 2017 | M167: 2018 | N167: 2019 | O167: 2020
A168: 2 | B168: =INDEX(Inputs!$B$38:$B$45,A168,) -> Single Phase, Two Element | C168: Starting RAB - Real | D168: =0 -> 0 | E168: =D169 -> 1183009.117 | F168: 1101422.281 | G168: 1019835.446 | H168: 938248.6101 | I168: 12925075.72 | J168: 15182868.92 | K168: 14147192.19 | L168: 13142028.43 | M168: 12048244.09 | N168: 10954459.75 | O168: 9860675.408
C169: End RAB - Real | D169: =IF(D167<Inputs!$C$7,D168+(OFFSET(Inputs!D$37,MATCH($B168,Inputs!$B$38:$B$45,0),,,)-SUM(D38)),D168+(OFFSET(Inputs!D$37,MATCH($B168,Inputs!$B$38:$B$45,0),,,)*(1+Inputs!$C$6)^0.5)-SUM(D38)) -> 1183009.117 | E169: =IF(E167<Inputs!$C$7,E168+(OFFSET(Inputs!E$37,MATCH($B168,Inputs!$B$38:$B$45,0),,,)-SUM(E38)),E168+(OFFSET(Inputs!E$37,MATCH($B168,Inputs!$B$38:$B$45,0),,,)*(1+Inputs!$C$6)^0.5)-SUM(E38)) -> 1101422.281 | F169: =IF(F167<Inputs!$C$7,F168+(OFFSET(Inputs!F$37,MATCH($B168,Inputs!$B$38:$B$45,0),,,)-SUM(F38)),F168+(OFFSET(Inputs!F$37,MATCH($B168,Inputs!$B$38:$B$45,0),,,)*(1+Inputs!$C$6)^0.5)-SUM(F38)) -> 1019835.446 | G169: =IF(G167<Inputs!$C$7,G168+(OFFSET(Inputs!G$37,MATCH($B168,Inputs!$B$38:$B$45,0),,,)-SUM(G38)),G168+(OFFSET(Inputs!G$37,MATCH($B168,Inputs!$B$38:$B$45,0),,,)*(1+Inputs!$C$6)^0.5)-SUM(G38)) -> 938248.6101 | H169: =IF(H167<Inputs!$C$7,H168+(OFFSET(Inputs!H$37,MATCH($B168,Inputs!$B$38:$B$45,0),,,)-SUM(H38)),H168+(OFFSET(Inputs!H$37,MATCH($B168,Inputs!$B$38:$B$45,0),,,)*(1+Inputs!$C$6)^0.5)-SUM(H38)) -> 12925075.72 | I169: =IF(I167<Inputs!$C$7,I168+(OFFSET(Inputs!I$37,MATCH($B168,Inputs!$B$38:$B$45,0),,,)-SUM(I38)),I168+(OFFSET(Inputs!I$37,MATCH($B168,Inputs!$B$38:$B$45,0),,,)*(1+Inputs!$C$6)^0.5)-SUM(I38)) -> 15182868.92 | J169: =IF(J167<Inputs!$C$7,J168+(OFFSET(Inputs!J$37,MATCH($B168,Inputs!$B$38:$B$45,0),,,)-SUM(J38)),J168+(OFFSET(Inputs!J$37,MATCH($B168,Inputs!$B$38:$B$45,0),,,)*(1+Inputs!$C$6)^0.5)-SUM(J38)) -> 14147192.19 | K169: =IF(K167<Inputs!$C$7,K168+(OFFSET(Inputs!K$37,MATCH($B168,Inputs!$B$38:$B$45,0),,,)-SUM(K38)),K168+(OFFSET(Inputs!K$37,MATCH($B168,Inputs!$B$38:$B$45,0),,,)*(1+Inputs!$C$6)^0.5)-SUM(K38)) -> 13142028.43 | L169: =IF(L167<Inputs!$C$7,L168+(OFFSET(Inputs!L$37,MATCH($B168,Inputs!$B$38:$B$45,0),,,)-SUM(L38)),L168+(OFFSET(Inputs!L$37,MATCH($B168,Inputs!$B$38:$B$45,0),,,)*(1+Inputs!$C$6)^0.5)-SUM(L38)) -> 12048244.09 | M169: =IF(M167<Inputs!$C$7,M168+(OFFSET(Inputs!M$37,MATCH($B168,Inputs!$B$38:$B$45,0),,,)-SUM(M38)),M168+(OFFSET(Inputs!M$37,MATCH($B168,Inputs!$B$38:$B$45,0),,,)*(1+Inputs!$C$6)^0.5)-SUM(M38)) -> 10954459.75 | N169: =IF(N167<Inputs!$C$7,N168+(OFFSET(Inputs!N$37,MATCH($B168,Inputs!$B$38:$B$45,0),,,)-SUM(N38)),N168+(OFFSET(Inputs!N$37,MATCH($B168,Inputs!$B$38:$B$45,0),,,)*(1+Inputs!$C$6)^0.5)-SUM(N38)) -> 9860675.408 | O169: =IF(O167<Inputs!$C$7,O168+(OFFSET(Inputs!O$37,MATCH($B168,Inputs!$B$38:$B$45,0),,,)-SUM(O38)),O168+(OFFSET(Inputs!O$37,MATCH($B168,Inputs!$B$38:$B$45,0),,,)*(1+Inputs!$C$6)^0.5)-SUM(O38)) -> 8766891.069
C170: Average RAB | D170: =AVERAGE(D168,D169) -> 591504.5586 | E170: 1142215.699 | F170: 1060628.864 | G170: 979042.028 | H170: 6931662.164 | I170: 14053972.32 | J170: 14665030.56 | K170: 13644610.31 | L170: 12595136.26 | M170: 11501351.92 | N170: 10407567.58 | O170: 9313783.239
C171: End Yr Cumulative Volumes | D171: =SUM(OFFSET(Inputs!D$51,$A168,,,):OFFSET(Inputs!$D$51,$A168,,,)) -> 1238 | E171: =SUM(OFFSET(Inputs!E$51,$A168,,,):OFFSET(Inputs!$D$51,$A168,,,)) -> 1238 | F171: =SUM(OFFSET(Inputs!F$51,$A168,,,):OFFSET(Inputs!$D$51,$A168,,,)) -> 1238 | G171: =SUM(OFFSET(Inputs!G$51,$A168,,,):OFFSET(Inputs!$D$51,$A168,,,)) -> 1238 | H171: =SUM(OFFSET(Inputs!H$51,$A168,,,):OFFSET(Inputs!$D$51,$A168,,,)) -> 33363 | I171: =SUM(OFFSET(Inputs!I$51,$A168,,,):OFFSET(Inputs!$D$51,$A168,,,)) -> 53311 | J171: =SUM(OFFSET(Inputs!J$51,$A168,,,):OFFSET(Inputs!$D$51,$A168,,,)) -> 54569 | K171: =SUM(OFFSET(Inputs!K$51,$A168,,,):OFFSET(Inputs!$D$51,$A168,,,)) -> 55615 | L171: =SUM(OFFSET(Inputs!L$51,$A168,,,):OFFSET(Inputs!$D$51,$A168,,,)) -> 55746 | M171: =SUM(OFFSET(Inputs!M$51,$A168,,,):OFFSET(Inputs!$D$51,$A168,,,)) -> 55882 | N171: =SUM(OFFSET(Inputs!N$51,$A168,,,):OFFSET(Inputs!$D$51,$A168,,,)) -> 56023 | O171: =SUM(OFFSET(Inputs!O$51,$A168,,,):OFFSET(Inputs!$D$51,$A168,,,)) -> 56170
C172: Average WDV | D172: =IFERROR(D170/AVERAGE(0,D171),0) -> 955.5808701 | E172: =IFERROR(E170/AVERAGE(D171,E171),0) -> 922.6298056 | F172: 856.7276766 | G172: 790.8255476 | H172: 400.6625337 | I172: 324.2949978 | J172: 271.8767252 | K172: 247.6695402 | L172: 226.2037204 | M172: 206.0657168 | N172: 186.007195 | O172: 166.0314501
B175: ="Written Down Value - "&INDEX(Inputs!B38:B45,A178,)&" - "&Inputs!C4&" - "&IF(Inputs!C5=Inputs!C17,Inputs!C17,Inputs!C18) -> Written Down Value - Three Phase DC - United Energy - 2015$
D177: 2009 | E177: 2010 | F177: 2011 | G177: 2012 | H177: 2013 | I177: 2014 | J177: 2015 | K177: 2016 | L177: 2017 | M177: 2018 | N177: 2019 | O177: 2020
A178: 3 | B178: =INDEX(Inputs!$B$38:$B$45,A178,) -> Three Phase DC | C178: Starting RAB - Real | D178: =0 -> 0 | E178: =D179 -> 0 | F178: 97993.6011 | G178: 7914434.937 | H178: 13362210.26 | I178: 24146191.29 | J178: 32119039.9 | K178: 30244302.31 | L178: 28222410.93 | M178: 25668821.27 | N178: 23115231.6 | O178: 20561641.93
C179: End RAB - Real | D179: =IF(D177<Inputs!$C$7,D178+(OFFSET(Inputs!D$37,MATCH($B178,Inputs!$B$38:$B$45,0),,,)-SUM(D57)),D178+(OFFSET(Inputs!D$37,MATCH($B178,Inputs!$B$38:$B$45,0),,,)*(1+Inputs!$C$6)^0.5)-SUM(D57)) -> 0 | E179: =IF(E177<Inputs!$C$7,E178+(OFFSET(Inputs!E$37,MATCH($B178,Inputs!$B$38:$B$45,0),,,)-SUM(E57)),E178+(OFFSET(Inputs!E$37,MATCH($B178,Inputs!$B$38:$B$45,0),,,)*(1+Inputs!$C$6)^0.5)-SUM(E57)) -> 97993.6011 | F179: =IF(F177<Inputs!$C$7,F178+(OFFSET(Inputs!F$37,MATCH($B178,Inputs!$B$38:$B$45,0),,,)-SUM(F57)),F178+(OFFSET(Inputs!F$37,MATCH($B178,Inputs!$B$38:$B$45,0),,,)*(1+Inputs!$C$6)^0.5)-SUM(F57)) -> 7914434.937 | G179: =IF(G177<Inputs!$C$7,G178+(OFFSET(Inputs!G$37,MATCH($B178,Inputs!$B$38:$B$45,0),,,)-SUM(G57)),G178+(OFFSET(Inputs!G$37,MATCH($B178,Inputs!$B$38:$B$45,0),,,)*(1+Inputs!$C$6)^0.5)-SUM(G57)) -> 13362210.26 | H179: =IF(H177<Inputs!$C$7,H178+(OFFSET(Inputs!H$37,MATCH($B178,Inputs!$B$38:$B$45,0),,,)-SUM(H57)),H178+(OFFSET(Inputs!H$37,MATCH($B178,Inputs!$B$38:$B$45,0),,,)*(1+Inputs!$C$6)^0.5)-SUM(H57)) -> 24146191.29 | I179: =IF(I177<Inputs!$C$7,I178+(OFFSET(Inputs!I$37,MATCH($B178,Inputs!$B$38:$B$45,0),,,)-SUM(I57)),I178+(OFFSET(Inputs!I$37,MATCH($B178,Inputs!$B$38:$B$45,0),,,)*(1+Inputs!$C$6)^0.5)-SUM(I57)) -> 32119039.9 | J179: =IF(J177<Inputs!$C$7,J178+(OFFSET(Inputs!J$37,MATCH($B178,Inputs!$B$38:$B$45,0),,,)-SUM(J57)),J178+(OFFSET(Inputs!J$37,MATCH($B178,Inputs!$B$38:$B$45,0),,,)*(1+Inputs!$C$6)^0.5)-SUM(J57)) -> 30244302.31 | K179: =IF(K177<Inputs!$C$7,K178+(OFFSET(Inputs!K$37,MATCH($B178,Inputs!$B$38:$B$45,0),,,)-SUM(K57)),K178+(OFFSET(Inputs!K$37,MATCH($B178,Inputs!$B$38:$B$45,0),,,)*(1+Inputs!$C$6)^0.5)-SUM(K57)) -> 28222410.93 | L179: =IF(L177<Inputs!$C$7,L178+(OFFSET(Inputs!L$37,MATCH($B178,Inputs!$B$38:$B$45,0),,,)-SUM(L57)),L178+(OFFSET(Inputs!L$37,MATCH($B178,Inputs!$B$38:$B$45,0),,,)*(1+Inputs!$C$6)^0.5)-SUM(L57)) -> 25668821.27 | M179: =IF(M177<Inputs!$C$7,M178+(OFFSET(Inputs!M$37,MATCH($B178,Inputs!$B$38:$B$45,0),,,)-SUM(M57)),M178+(OFFSET(Inputs!M$37,MATCH($B178,Inputs!$B$38:$B$45,0),,,)*(1+Inputs!$C$6)^0.5)-SUM(M57)) -> 23115231.6 | N179: =IF(N177<Inputs!$C$7,N178+(OFFSET(Inputs!N$37,MATCH($B178,Inputs!$B$38:$B$45,0),,,)-SUM(N57)),N178+(OFFSET(Inputs!N$37,MATCH($B178,Inputs!$B$38:$B$45,0),,,)*(1+Inputs!$C$6)^0.5)-SUM(N57)) -> 20561641.93 | O179: =IF(O177<Inputs!$C$7,O178+(OFFSET(Inputs!O$37,MATCH($B178,Inputs!$B$38:$B$45,0),,,)-SUM(O57)),O178+(OFFSET(Inputs!O$37,MATCH($B178,Inputs!$B$38:$B$45,0),,,)*(1+Inputs!$C$6)^0.5)-SUM(O57)) -> 18008052.26
C180: Average RAB | D180: =AVERAGE(D178,D179) -> 0 | E180: 48996.80055 | F180: 4006214.269 | G180: 10638322.6 | H180: 18754200.78 | I180: 28132615.6 | J180: 31181671.1 | K180: 29233356.62 | L180: 26945616.1 | M180: 24392026.43 | N180: 21838436.76 | O180: 19284847.09
C181: End Yr Cumulative Volumes | D181: =SUM(OFFSET(Inputs!D$51,$A178,,,):OFFSET(Inputs!$D$51,$A178,,,)) -> 0 | E181: =SUM(OFFSET(Inputs!E$51,$A178,,,):OFFSET(Inputs!$D$51,$A178,,,)) -> 189 | F181: =SUM(OFFSET(Inputs!F$51,$A178,,,):OFFSET(Inputs!$D$51,$A178,,,)) -> 13747.04086 | G181: =SUM(OFFSET(Inputs!G$51,$A178,,,):OFFSET(Inputs!$D$51,$A178,,,)) -> 24950.04086 | H181: =SUM(OFFSET(Inputs!H$51,$A178,,,):OFFSET(Inputs!$D$51,$A178,,,)) -> 46409.04086 | I181: =SUM(OFFSET(Inputs!I$51,$A178,,,):OFFSET(Inputs!$D$51,$A178,,,)) -> 88471.04086 | J181: =SUM(OFFSET(Inputs!J$51,$A178,,,):OFFSET(Inputs!$D$51,$A178,,,)) -> 93519.04086 | K181: =SUM(OFFSET(Inputs!K$51,$A178,,,):OFFSET(Inputs!$D$51,$A178,,,)) -> 97827.04086 | L181: =SUM(OFFSET(Inputs!L$51,$A178,,,):OFFSET(Inputs!$D$51,$A178,,,)) -> 98035.04086 | M181: =SUM(OFFSET(Inputs!M$51,$A178,,,):OFFSET(Inputs!$D$51,$A178,,,)) -> 98252.04086 | N181: =SUM(OFFSET(Inputs!N$51,$A178,,,):OFFSET(Inputs!$D$51,$A178,,,)) -> 98477.04086 | O181: =SUM(OFFSET(Inputs!O$51,$A178,,,):OFFSET(Inputs!$D$51,$A178,,,)) -> 98712.04086
C182: Average WDV | D182: =IFERROR(D180/AVERAGE(0,D181),0) -> 0 | E182: =IFERROR(E180/AVERAGE(D181,E181),0) -> 518.4846619 | F182: 574.9429568 | G182: 549.8255748 | H182: 525.6289831 | I182: 417.1500379 | J182: 342.6744008 | K182: 305.5547974 | L182: 275.1488789 | M182: 248.5342002 | N182: 222.0153378 | O182: 195.5975141
B185: ="Written Down Value - "&INDEX(Inputs!B38:B45,A188,)&" - "&Inputs!C4&" - "&IF(Inputs!C5=Inputs!C17,Inputs!C17,Inputs!C18) -> Written Down Value - Three Phase CT - United Energy - 2015$
D187: 2009 | E187: 2010 | F187: 2011 | G187: 2012 | H187: 2013 | I187: 2014 | J187: 2015 | K187: 2016 | L187: 2017 | M187: 2018 | N187: 2019 | O187: 2020
A188: 4 | B188: =INDEX(Inputs!$B$38:$B$45,A188,) -> Three Phase CT | C188: Starting RAB - Real | D188: =0 -> 0 | E188: =D189 -> 0 | F188: 0 | G188: 0 | H188: 0 | I188: 0 | J188: 1467616.27 | K188: 1442498.725 | L188: 1412952.929 | M188: 1305017.984 | N188: 1197083.039 | O188: 1089148.094
C189: End RAB - Real | D189: =IF(D187<Inputs!$C$7,D188+(OFFSET(Inputs!D$37,MATCH($B188,Inputs!$B$38:$B$45,0),,,)-SUM(D76)),D188+(OFFSET(Inputs!D$37,MATCH($B188,Inputs!$B$38:$B$45,0),,,)*(1+Inputs!$C$6)^0.5)-SUM(D76)) -> 0 | E189: =IF(E187<Inputs!$C$7,E188+(OFFSET(Inputs!E$37,MATCH($B188,Inputs!$B$38:$B$45,0),,,)-SUM(E76)),E188+(OFFSET(Inputs!E$37,MATCH($B188,Inputs!$B$38:$B$45,0),,,)*(1+Inputs!$C$6)^0.5)-SUM(E76)) -> 0 | F189: =IF(F187<Inputs!$C$7,F188+(OFFSET(Inputs!F$37,MATCH($B188,Inputs!$B$38:$B$45,0),,,)-SUM(F76)),F188+(OFFSET(Inputs!F$37,MATCH($B188,Inputs!$B$38:$B$45,0),,,)*(1+Inputs!$C$6)^0.5)-SUM(F76)) -> 0 | G189: =IF(G187<Inputs!$C$7,G188+(OFFSET(Inputs!G$37,MATCH($B188,Inputs!$B$38:$B$45,0),,,)-SUM(G76)),G188+(OFFSET(Inputs!G$37,MATCH($B188,Inputs!$B$38:$B$45,0),,,)*(1+Inputs!$C$6)^0.5)-SUM(G76)) -> 0 | H189: =IF(H187<Inputs!$C$7,H188+(OFFSET(Inputs!H$37,MATCH($B188,Inputs!$B$38:$B$45,0),,,)-SUM(H76)),H188+(OFFSET(Inputs!H$37,MATCH($B188,Inputs!$B$38:$B$45,0),,,)*(1+Inputs!$C$6)^0.5)-SUM(H76)) -> 0 | I189: =IF(I187<Inputs!$C$7,I188+(OFFSET(Inputs!I$37,MATCH($B188,Inputs!$B$38:$B$45,0),,,)-SUM(I76)),I188+(OFFSET(Inputs!I$37,MATCH($B188,Inputs!$B$38:$B$45,0),,,)*(1+Inputs!$C$6)^0.5)-SUM(I76)) -> 1467616.27 | J189: =IF(J187<Inputs!$C$7,J188+(OFFSET(Inputs!J$37,MATCH($B188,Inputs!$B$38:$B$45,0),,,)-SUM(J76)),J188+(OFFSET(Inputs!J$37,MATCH($B188,Inputs!$B$38:$B$45,0),,,)*(1+Inputs!$C$6)^0.5)-SUM(J76)) -> 1442498.725 | K189: =IF(K187<Inputs!$C$7,K188+(OFFSET(Inputs!K$37,MATCH($B188,Inputs!$B$38:$B$45,0),,,)-SUM(K76)),K188+(OFFSET(Inputs!K$37,MATCH($B188,Inputs!$B$38:$B$45,0),,,)*(1+Inputs!$C$6)^0.5)-SUM(K76)) -> 1412952.929 | L189: =IF(L187<Inputs!$C$7,L188+(OFFSET(Inputs!L$37,MATCH($B188,Inputs!$B$38:$B$45,0),,,)-SUM(L76)),L188+(OFFSET(Inputs!L$37,MATCH($B188,Inputs!$B$38:$B$45,0),,,)*(1+Inputs!$C$6)^0.5)-SUM(L76)) -> 1305017.984 | M189: =IF(M187<Inputs!$C$7,M188+(OFFSET(Inputs!M$37,MATCH($B188,Inputs!$B$38:$B$45,0),,,)-SUM(M76)),M188+(OFFSET(Inputs!M$37,MATCH($B188,Inputs!$B$38:$B$45,0),,,)*(1+Inputs!$C$6)^0.5)-SUM(M76)) -> 1197083.039 | N189: =IF(N187<Inputs!$C$7,N188+(OFFSET(Inputs!N$37,MATCH($B188,Inputs!$B$38:$B$45,0),,,)-SUM(N76)),N188+(OFFSET(Inputs!N$37,MATCH($B188,Inputs!$B$38:$B$45,0),,,)*(1+Inputs!$C$6)^0.5)-SUM(N76)) -> 1089148.094 | O189: =IF(O187<Inputs!$C$7,O188+(OFFSET(Inputs!O$37,MATCH($B188,Inputs!$B$38:$B$45,0),,,)-SUM(O76)),O188+(OFFSET(Inputs!O$37,MATCH($B188,Inputs!$B$38:$B$45,0),,,)*(1+Inputs!$C$6)^0.5)-SUM(O76)) -> 981213.1486
C190: Average RAB | D190: =AVERAGE(D188,D189) -> 0 | E190: 0 | F190: 0 | G190: 0 | H190: 0 | I190: 733808.1351 | J190: 1455057.498 | K190: 1427725.827 | L190: 1358985.456 | M190: 1251050.511 | N190: 1143115.566 | O190: 1035180.621
C191: End Yr Cumulative Volumes | D191: =SUM(OFFSET(Inputs!D$51,$A188,,,):OFFSET(Inputs!$D$51,$A188,,,)) -> 0 | E191: =SUM(OFFSET(Inputs!E$51,$A188,,,):OFFSET(Inputs!$D$51,$A188,,,)) -> 0 | F191: =SUM(OFFSET(Inputs!F$51,$A188,,,):OFFSET(Inputs!$D$51,$A188,,,)) -> 0 | G191: =SUM(OFFSET(Inputs!G$51,$A188,,,):OFFSET(Inputs!$D$51,$A188,,,)) -> 0 | H191: =SUM(OFFSET(Inputs!H$51,$A188,,,):OFFSET(Inputs!$D$51,$A188,,,)) -> 0 | I191: =SUM(OFFSET(Inputs!I$51,$A188,,,):OFFSET(Inputs!$D$51,$A188,,,)) -> 2524 | J191: =SUM(OFFSET(Inputs!J$51,$A188,,,):OFFSET(Inputs!$D$51,$A188,,,)) -> 2794 | K191: =SUM(OFFSET(Inputs!K$51,$A188,,,):OFFSET(Inputs!$D$51,$A188,,,)) -> 3047 | L191: =SUM(OFFSET(Inputs!L$51,$A188,,,):OFFSET(Inputs!$D$51,$A188,,,)) -> 3103 | M191: =SUM(OFFSET(Inputs!M$51,$A188,,,):OFFSET(Inputs!$D$51,$A188,,,)) -> 3162 | N191: =SUM(OFFSET(Inputs!N$51,$A188,,,):OFFSET(Inputs!$D$51,$A188,,,)) -> 3224 | O191: =SUM(OFFSET(Inputs!O$51,$A188,,,):OFFSET(Inputs!$D$51,$A188,,,)) -> 3289
C192: Average WDV | D192: =IFERROR(D190/AVERAGE(0,D191),0) -> 0 | E192: =IFERROR(E190/AVERAGE(D191,E191),0) -> 0 | F192: 0 | G192: 0 | H192: 0 | I192: 581.4644493 | J192: 547.2198186 | K192: 488.8634915 | L192: 441.9464898 | M192: 399.3776572 | N192: 358.0067542 | O192: 317.8813515
B195: ="Written Down Value - "&INDEX(Inputs!B38:B45,A198,)&" - "&Inputs!C4&" - "&IF(Inputs!C5=Inputs!C17,Inputs!C17,Inputs!C18) -> Written Down Value - IT - United Energy - 2015$
D197: 2009 | E197: 2010 | F197: 2011 | G197: 2012 | H197: 2013 | I197: 2014 | J197: 2015 | K197: 2016 | L197: 2017 | M197: 2018 | N197: 2019 | O197: 2020
A198: 5 | B198: =INDEX(Inputs!$B$38:$B$45,A198,) -> IT | C198: Starting RAB - Real | D198: =0 -> 0 | E198: =D199 -> 67561670.91 | F198: 93486371.8 | G198: 86108519.2 | H198: 76709950.68 | I198: 59888002.77 | J198: 44950735.3 | K198: 29602739.52 | L198: 30448225.83 | M198: 26584202.69 | N198: 19764293.31 | O198: 13415805.62
C199: End RAB - Real | D199: =IF(D197<Inputs!$C$7,D198+(OFFSET(Inputs!D$37,MATCH($B198,Inputs!$B$38:$B$45,0),,,)-SUM(D95)),D198+(OFFSET(Inputs!D$37,MATCH($B198,Inputs!$B$38:$B$45,0),,,)*(1+Inputs!$C$6)^0.5)-SUM(D95)) -> 67561670.91 | E199: =IF(E197<Inputs!$C$7,E198+(OFFSET(Inputs!E$37,MATCH($B198,Inputs!$B$38:$B$45,0),,,)-SUM(E95)),E198+(OFFSET(Inputs!E$37,MATCH($B198,Inputs!$B$38:$B$45,0),,,)*(1+Inputs!$C$6)^0.5)-SUM(E95)) -> 93486371.8 | F199: =IF(F197<Inputs!$C$7,F198+(OFFSET(Inputs!F$37,MATCH($B198,Inputs!$B$38:$B$45,0),,,)-SUM(F95)),F198+(OFFSET(Inputs!F$37,MATCH($B198,Inputs!$B$38:$B$45,0),,,)*(1+Inputs!$C$6)^0.5)-SUM(F95)) -> 86108519.2 | G199: =IF(G197<Inputs!$C$7,G198+(OFFSET(Inputs!G$37,MATCH($B198,Inputs!$B$38:$B$45,0),,,)-SUM(G95)),G198+(OFFSET(Inputs!G$37,MATCH($B198,Inputs!$B$38:$B$45,0),,,)*(1+Inputs!$C$6)^0.5)-SUM(G95)) -> 76709950.68 | H199: =IF(H197<Inputs!$C$7,H198+(OFFSET(Inputs!H$37,MATCH($B198,Inputs!$B$38:$B$45,0),,,)-SUM(H95)),H198+(OFFSET(Inputs!H$37,MATCH($B198,Inputs!$B$38:$B$45,0),,,)*(1+Inputs!$C$6)^0.5)-SUM(H95)) -> 59888002.77 | I199: =IF(I197<Inputs!$C$7,I198+(OFFSET(Inputs!I$37,MATCH($B198,Inputs!$B$38:$B$45,0),,,)-SUM(I95)),I198+(OFFSET(Inputs!I$37,MATCH($B198,Inputs!$B$38:$B$45,0),,,)*(1+Inputs!$C$6)^0.5)-SUM(I95)) -> 44950735.3 | J199: =IF(J197<Inputs!$C$7,J198+(OFFSET(Inputs!J$37,MATCH($B198,Inputs!$B$38:$B$45,0),,,)-SUM(J95)),J198+(OFFSET(Inputs!J$37,MATCH($B198,Inputs!$B$38:$B$45,0),,,)*(1+Inputs!$C$6)^0.5)-SUM(J95)) -> 29602739.52 | K199: =IF(K197<Inputs!$C$7,K198+(OFFSET(Inputs!K$37,MATCH($B198,Inputs!$B$38:$B$45,0),,,)-SUM(K95)),K198+(OFFSET(Inputs!K$37,MATCH($B198,Inputs!$B$38:$B$45,0),,,)*(1+Inputs!$C$6)^0.5)-SUM(K95)) -> 30448225.83 | L199: =IF(L197<Inputs!$C$7,L198+(OFFSET(Inputs!L$37,MATCH($B198,Inputs!$B$38:$B$45,0),,,)-SUM(L95)),L198+(OFFSET(Inputs!L$37,MATCH($B198,Inputs!$B$38:$B$45,0),,,)*(1+Inputs!$C$6)^0.5)-SUM(L95)) -> 26584202.69 | M199: =IF(M197<Inputs!$C$7,M198+(OFFSET(Inputs!M$37,MATCH($B198,Inputs!$B$38:$B$45,0),,,)-SUM(M95)),M198+(OFFSET(Inputs!M$37,MATCH($B198,Inputs!$B$38:$B$45,0),,,)*(1+Inputs!$C$6)^0.5)-SUM(M95)) -> 19764293.31 | N199: =IF(N197<Inputs!$C$7,N198+(OFFSET(Inputs!N$37,MATCH($B198,Inputs!$B$38:$B$45,0),,,)-SUM(N95)),N198+(OFFSET(Inputs!N$37,MATCH($B198,Inputs!$B$38:$B$45,0),,,)*(1+Inputs!$C$6)^0.5)-SUM(N95)) -> 13415805.62 | O199: =IF(O197<Inputs!$C$7,O198+(OFFSET(Inputs!O$37,MATCH($B198,Inputs!$B$38:$B$45,0),,,)-SUM(O95)),O198+(OFFSET(Inputs!O$37,MATCH($B198,Inputs!$B$38:$B$45,0),,,)*(1+Inputs!$C$6)^0.5)-SUM(O95)) -> 9529626.307
C200: Average RAB | D200: =AVERAGE(D198,D199) -> 33780835.46 | E200: 80524021.36 | F200: 89797445.5 | G200: 81409234.94 | H200: 68298976.72 | I200: 52419369.03 | J200: 37276737.41 | K200: 30025482.67 | L200: 28516214.26 | M200: 23174248 | N200: 16590049.47 | O200: 11472715.97
C201: End Yr Cumulative Volumes | D201: =SUM(D161,D171,D181,D191) -> 12339 | E201: =SUM(E161,E171,E181,E191) -> 89650 | F201: 217749.3572 | G201: 362843.3572 | H201: 523048.3572 | I201: 652238.3572 | J201: 672278.3572 | K201: 690381.3572 | L201: 692048.3572 | M201: 693783.3572 | N201: 695588.3572 | O201: 697466.3572
C202: Average WDV | D202: =IFERROR(D200/AVERAGE(0,D201),0) -> 5475.457566 | E202: =IFERROR(E200/AVERAGE(D201,E201),0) -> 1579.072672 | F202: 584.2396439 | G202: 280.4349173 | H202: 154.1926075 | I202: 89.20269138 | J202: 56.28730389 | K202: 44.06893717 | L202: 41.25521024 | M202: 33.44453408 | N202: 23.88136925 | O202: 16.47130704
B205: ="Written Down Value - "&INDEX(Inputs!B38:B45,A208,)&" - "&Inputs!C4&" - "&IF(Inputs!C5=Inputs!C17,Inputs!C17,Inputs!C18) -> Written Down Value - Communications - United Energy - 2015$
D207: 2009 | E207: 2010 | F207: 2011 | G207: 2012 | H207: 2013 | I207: 2014 | J207: 2015 | K207: 2016 | L207: 2017 | M207: 2018 | N207: 2019 | O207: 2020
A208: 6 | B208: =INDEX(Inputs!$B$38:$B$45,A208,) -> Communications | C208: Starting RAB - Real | D208: =0 -> 0 | E208: =D209 -> 0 | F208: 0 | G208: 2336252.089 | H208: 2392128.406 | I208: 2994708.573 | J208: 3439585.305 | K208: 2918011.499 | L208: 2335935.287 | M208: 1585371.46 | N208: 834807.6336 | O208: 84243.80704
C209: End RAB - Real | D209: =IF(D207<Inputs!$C$7,D208+(OFFSET(Inputs!D$37,MATCH($B208,Inputs!$B$38:$B$45,0),,,)-SUM(D114)),D208+(OFFSET(Inputs!D$37,MATCH($B208,Inputs!$B$38:$B$45,0),,,)*(1+Inputs!$C$6)^0.5)-SUM(D114)) -> 0 | E209: =IF(E207<Inputs!$C$7,E208+(OFFSET(Inputs!E$37,MATCH($B208,Inputs!$B$38:$B$45,0),,,)-SUM(E114)),E208+(OFFSET(Inputs!E$37,MATCH($B208,Inputs!$B$38:$B$45,0),,,)*(1+Inputs!$C$6)^0.5)-SUM(E114)) -> 0 | F209: =IF(F207<Inputs!$C$7,F208+(OFFSET(Inputs!F$37,MATCH($B208,Inputs!$B$38:$B$45,0),,,)-SUM(F114)),F208+(OFFSET(Inputs!F$37,MATCH($B208,Inputs!$B$38:$B$45,0),,,)*(1+Inputs!$C$6)^0.5)-SUM(F114)) -> 2336252.089 | G209: =IF(G207<Inputs!$C$7,G208+(OFFSET(Inputs!G$37,MATCH($B208,Inputs!$B$38:$B$45,0),,,)-SUM(G114)),G208+(OFFSET(Inputs!G$37,MATCH($B208,Inputs!$B$38:$B$45,0),,,)*(1+Inputs!$C$6)^0.5)-SUM(G114)) -> 2392128.406 | H209: =IF(H207<Inputs!$C$7,H208+(OFFSET(Inputs!H$37,MATCH($B208,Inputs!$B$38:$B$45,0),,,)-SUM(H114)),H208+(OFFSET(Inputs!H$37,MATCH($B208,Inputs!$B$38:$B$45,0),,,)*(1+Inputs!$C$6)^0.5)-SUM(H114)) -> 2994708.573 | I209: =IF(I207<Inputs!$C$7,I208+(OFFSET(Inputs!I$37,MATCH($B208,Inputs!$B$38:$B$45,0),,,)-SUM(I114)),I208+(OFFSET(Inputs!I$37,MATCH($B208,Inputs!$B$38:$B$45,0),,,)*(1+Inputs!$C$6)^0.5)-SUM(I114)) -> 3439585.305 | J209: =IF(J207<Inputs!$C$7,J208+(OFFSET(Inputs!J$37,MATCH($B208,Inputs!$B$38:$B$45,0),,,)-SUM(J114)),J208+(OFFSET(Inputs!J$37,MATCH($B208,Inputs!$B$38:$B$45,0),,,)*(1+Inputs!$C$6)^0.5)-SUM(J114)) -> 2918011.499 | K209: =IF(K207<Inputs!$C$7,K208+(OFFSET(Inputs!K$37,MATCH($B208,Inputs!$B$38:$B$45,0),,,)-SUM(K114)),K208+(OFFSET(Inputs!K$37,MATCH($B208,Inputs!$B$38:$B$45,0),,,)*(1+Inputs!$C$6)^0.5)-SUM(K114)) -> 2335935.287 | L209: =IF(L207<Inputs!$C$7,L208+(OFFSET(Inputs!L$37,MATCH($B208,Inputs!$B$38:$B$45,0),,,)-SUM(L114)),L208+(OFFSET(Inputs!L$37,MATCH($B208,Inputs!$B$38:$B$45,0),,,)*(1+Inputs!$C$6)^0.5)-SUM(L114)) -> 1585371.46 | M209: =IF(M207<Inputs!$C$7,M208+(OFFSET(Inputs!M$37,MATCH($B208,Inputs!$B$38:$B$45,0),,,)-SUM(M114)),M208+(OFFSET(Inputs!M$37,MATCH($B208,Inputs!$B$38:$B$45,0),,,)*(1+Inputs!$C$6)^0.5)-SUM(M114)) -> 834807.6336 | N209: =IF(N207<Inputs!$C$7,N208+(OFFSET(Inputs!N$37,MATCH($B208,Inputs!$B$38:$B$45,0),,,)-SUM(N114)),N208+(OFFSET(Inputs!N$37,MATCH($B208,Inputs!$B$38:$B$45,0),,,)*(1+Inputs!$C$6)^0.5)-SUM(N114)) -> 84243.80704 | O209: =IF(O207<Inputs!$C$7,O208+(OFFSET(Inputs!O$37,MATCH($B208,Inputs!$B$38:$B$45,0),,,)-SUM(O114)),O208+(OFFSET(Inputs!O$37,MATCH($B208,Inputs!$B$38:$B$45,0),,,)*(1+Inputs!$C$6)^0.5)-SUM(O114)) -> 63182.85528
C210: Average RAB | D210: =AVERAGE(D208,D209) -> 0 | E210: 0 | F210: 1168126.045 | G210: 2364190.248 | H210: 2693418.49 | I210: 3217146.939 | J210: 3178798.402 | K210: 2626973.393 | L210: 1960653.373 | M210: 1210089.547 | N210: 459525.7203 | O210: 73713.33116
C211: End Yr Cumulative Volumes | D211: =SUM(D161,D171,D181,D191) -> 12339 | E211: =SUM(E161,E171,E181,E191) -> 89650 | F211: 217749.3572 | G211: 362843.3572 | H211: 523048.3572 | I211: 652238.3572 | J211: 672278.3572 | K211: 690381.3572 | L211: 692048.3572 | M211: 693783.3572 | N211: 695588.3572 | O211: 697466.3572
C212: Average WDV | D212: =IFERROR(D210/AVERAGE(0,D211),0) -> 0 | E212: =IFERROR(E210/AVERAGE(D211,E211),0) -> 0 | F212: 7.60005522 | G212: 8.144057578 | H212: 6.080694617 | I212: 5.474658906 | J212: 4.799937015 | K212: 3.855655767 | L212: 2.836532452 | M212: 1.746373004 | N212: 0.6614870816 | O212: 0.1058297716
B215: ="Written Down Value - "&INDEX(Inputs!B38:B45,A218,)&" - "&Inputs!C4&" - "&IF(Inputs!C5=Inputs!C17,Inputs!C17,Inputs!C18) -> Written Down Value - Other - United Energy - 2015$
D217: 2009 | E217: 2010 | F217: 2011 | G217: 2012 | H217: 2013 | I217: 2014 | J217: 2015 | K217: 2016 | L217: 2017 | M217: 2018 | N217: 2019 | O217: 2020
A218: 7 | B218: =INDEX(Inputs!$B$38:$B$45,A218,) -> Other | C218: Starting RAB - Real | D218: =0 -> 0 | E218: =D219 -> 107861.7782 | F218: 478653.158 | G218: 11231768.8 | H218: 12173595.2 | I218: 16954658.22 | J218: 13732372.71 | K218: 12643984.01 | L218: 9752219.668 | M218: 6613240.437 | N218: 3466281.08 | O218: 263082.4003
C219: End RAB - Real | D219: =IF(D217<Inputs!$C$7,D218+(OFFSET(Inputs!D$37,MATCH($B218,Inputs!$B$38:$B$45,0),,,)-SUM(D133)),D218+(OFFSET(Inputs!D$37,MATCH($B218,Inputs!$B$38:$B$45,0),,,)*(1+Inputs!$C$6)^0.5)-SUM(D133)) -> 107861.7782 | E219: =IF(E217<Inputs!$C$7,E218+(OFFSET(Inputs!E$37,MATCH($B218,Inputs!$B$38:$B$45,0),,,)-SUM(E133)),E218+(OFFSET(Inputs!E$37,MATCH($B218,Inputs!$B$38:$B$45,0),,,)*(1+Inputs!$C$6)^0.5)-SUM(E133)) -> 478653.158 | F219: =IF(F217<Inputs!$C$7,F218+(OFFSET(Inputs!F$37,MATCH($B218,Inputs!$B$38:$B$45,0),,,)-SUM(F133)),F218+(OFFSET(Inputs!F$37,MATCH($B218,Inputs!$B$38:$B$45,0),,,)*(1+Inputs!$C$6)^0.5)-SUM(F133)) -> 11231768.8 | G219: =IF(G217<Inputs!$C$7,G218+(OFFSET(Inputs!G$37,MATCH($B218,Inputs!$B$38:$B$45,0),,,)-SUM(G133)),G218+(OFFSET(Inputs!G$37,MATCH($B218,Inputs!$B$38:$B$45,0),,,)*(1+Inputs!$C$6)^0.5)-SUM(G133)) -> 12173595.2 | H219: =IF(H217<Inputs!$C$7,H218+(OFFSET(Inputs!H$37,MATCH($B218,Inputs!$B$38:$B$45,0),,,)-SUM(H133)),H218+(OFFSET(Inputs!H$37,MATCH($B218,Inputs!$B$38:$B$45,0),,,)*(1+Inputs!$C$6)^0.5)-SUM(H133)) -> 16954658.22 | I219: =IF(I217<Inputs!$C$7,I218+(OFFSET(Inputs!I$37,MATCH($B218,Inputs!$B$38:$B$45,0),,,)-SUM(I133)),I218+(OFFSET(Inputs!I$37,MATCH($B218,Inputs!$B$38:$B$45,0),,,)*(1+Inputs!$C$6)^0.5)-SUM(I133)) -> 13732372.71 | J219: =IF(J217<Inputs!$C$7,J218+(OFFSET(Inputs!J$37,MATCH($B218,Inputs!$B$38:$B$45,0),,,)-SUM(J133)),J218+(OFFSET(Inputs!J$37,MATCH($B218,Inputs!$B$38:$B$45,0),,,)*(1+Inputs!$C$6)^0.5)-SUM(J133)) -> 12643984.01 | K219: =IF(K217<Inputs!$C$7,K218+(OFFSET(Inputs!K$37,MATCH($B218,Inputs!$B$38:$B$45,0),,,)-SUM(K133)),K218+(OFFSET(Inputs!K$37,MATCH($B218,Inputs!$B$38:$B$45,0),,,)*(1+Inputs!$C$6)^0.5)-SUM(K133)) -> 9752219.668 | L219: =IF(L217<Inputs!$C$7,L218+(OFFSET(Inputs!L$37,MATCH($B218,Inputs!$B$38:$B$45,0),,,)-SUM(L133)),L218+(OFFSET(Inputs!L$37,MATCH($B218,Inputs!$B$38:$B$45,0),,,)*(1+Inputs!$C$6)^0.5)-SUM(L133)) -> 6613240.437 | M219: =IF(M217<Inputs!$C$7,M218+(OFFSET(Inputs!M$37,MATCH($B218,Inputs!$B$38:$B$45,0),,,)-SUM(M133)),M218+(OFFSET(Inputs!M$37,MATCH($B218,Inputs!$B$38:$B$45,0),,,)*(1+Inputs!$C$6)^0.5)-SUM(M133)) -> 3466281.08 | N219: =IF(N217<Inputs!$C$7,N218+(OFFSET(Inputs!N$37,MATCH($B218,Inputs!$B$38:$B$45,0),,,)-SUM(N133)),N218+(OFFSET(Inputs!N$37,MATCH($B218,Inputs!$B$38:$B$45,0),,,)*(1+Inputs!$C$6)^0.5)-SUM(N133)) -> 263082.4003 | O219: =IF(O217<Inputs!$C$7,O218+(OFFSET(Inputs!O$37,MATCH($B218,Inputs!$B$38:$B$45,0),,,)-SUM(O133)),O218+(OFFSET(Inputs!O$37,MATCH($B218,Inputs!$B$38:$B$45,0),,,)*(1+Inputs!$C$6)^0.5)-SUM(O133)) -> 219591.834
C220: Average RAB | D220: =AVERAGE(D218,D219) -> 53930.8891 | E220: 293257.4681 | F220: 5855210.978 | G220: 11702682 | H220: 14564126.71 | I220: 15343515.46 | J220: 13188178.36 | K220: 11198101.84 | L220: 8182730.052 | M220: 5039760.759 | N220: 1864681.74 | O220: 241337.1171
C221: Cumulative Volumes | D221: =D211 -> 12339 | E221: 89650 | F221: 217749.3572 | G221: 362843.3572 | H221: 523048.3572 | I221: 652238.3572 | J221: 672278.3572 | K221: 690381.3572 | L221: 692048.3572 | M221: 693783.3572 | N221: 695588.3572 | O221: 697466.3572
C222: Average WDV | D222: =IFERROR(D220/AVERAGE(0,D221),0) -> 8.741533203 | E222: =IFERROR(E220/AVERAGE(D221,E221),0) -> 5.750766614 | F222: 38.09514132 | G222: 40.31287926 | H222: 32.88015108 | I222: 26.11025084 | J222: 19.91394781 | K222: 16.43565407 | L222: 11.83818601 | M222: 7.273265153 | N222: 2.684208583 | O222: 0.3464861999
B225: ="Written Down Value - "&INDEX(Inputs!B38:B45,A228,)&" - "&Inputs!C4&" - "&IF(Inputs!C5=Inputs!C17,Inputs!C17,Inputs!C18) -> Written Down Value - - United Energy - 2015$
D227: 2009 | E227: 2010 | F227: 2011 | G227: 2012 | H227: 2013 | I227: 2014 | J227: 2015 | K227: 2016 | L227: 2017 | M227: 2018 | N227: 2019 | O227: 2020
A228: 8 | B228: =INDEX(Inputs!$B$38:$B$45,A228,) ->  | C228: Starting RAB - Real | D228: =0 -> 0 | E228: =D229 -> 0 | F228: 0 | G228: 0 | H228: 0 | I228: 0 | J228: 0 | K228: 0 | L228: 0 | M228: 0 | N228: 0 | O228: 0
